Workbook

Sheet Transition Matrices
A1: Model Inputs | H1: Transition Matrix: Treatment A | BB1: txA_cost | BC1: txA_QALY | BD1: txB_cost | BE1: txB_QALY | BF1: txB_cumu_NMB | DT1: txA_cost | DU1: txA_QALY | DV1: txB_cost | DW1: txB_QALY | DY1: txA_ExpNB | DZ1: txB_ExpNB | EA1: selected | EB1: EVPI | EG1: CEAC/CEF | EH1: txA_% | EI1: txB_% | EJ1: txA_NB | EK1: txB_NB
AA2: Transition Matrix: Treatment B | BB2: =$R$92 -> 15953.91883 | BC2: =$V$92 -> 0.5050228065 | BD2: =$AK$92 -> 31197.82121 | BE2: =$AO$92 -> 0.8439548079 | BF2: =$AS$22 -> -432.5 | BG2: =$AS$23 -> -1099.810425 | BH2: =$AS$24 -> -1637.469922 | BI2: =$AS$25 -> -2086.967546 | BJ2: =$AS$26 -> -2473.827411 | BK2: =$AS$27 -> -2813.96018 | BL2: =$AS$28 -> -3117.475334 | BM2: =$AS$29 -> -3390.970168 | BN2: =$AS$30 -> -3638.904875 | BO2: =$AS$31 -> -3864.429235 | BP2: =$AS$32 -> -4069.880188 | BQ2: =$AS$33 -> -4257.081844 | BR2: =$AS$34 -> -4421.763021 | BS2: =$AS$35 -> -4571.48254 | BT2: =$AS$36 -> -4707.319891 | BU2: =$AS$37 -> -4830.245825 | BV2: =$AS$38 -> -4941.147455 | BW2: =$AS$39 -> -5040.844299 | BX2: =$AS$40 -> -5130.098836 | BY2: =$AS$41 -> -5209.623714 | BZ2: =$AS$42 -> -5280.086911 | CA2: =$AS$43 -> -5342.11562 | CB2: =$AS$44 -> -5396.299328 | CC2: =$AS$45 -> -5443.192376 | CD2: =$AS$46 -> -5481.959321 | CE2: =$AS$47 -> -5514.659758 | CF2: =$AS$48 -> -5541.739323 | CG2: =$AS$49 -> -5563.617037 | CH2: =$AS$50 -> -5580.686789 | CI2: =$AS$51 -> -5593.318721 | CJ2: =$AS$52 -> -5601.860538 | CK2: =$AS$53 -> -5606.63874 | CL2: =$AS$54 -> -5607.959789 | CM2: =$AS$55 -> -5606.111212 | CN2: =$AS$56 -> -5601.362649 | CO2: =$AS$57 -> -5593.966841 | CP2: =$AS$58 -> -5584.492186 | CQ2: =$AS$59 -> -5572.902797 | CR2: =$AS$60 -> -5559.399145 | CS2: =$AS$61 -> -5544.168726 | CT2: =$AS$62 -> -5527.386794 | CU2: =$AS$63 -> -5509.217051 | CV2: =$AS$64 -> -5489.812308 | CW2: =$AS$65 -> -5469.315102 | CX2: =$AS$66 -> -5447.858289 | CY2: =$AS$67 -> -5425.565598 | CZ2: =$AS$68 -> -5402.552161 | DA2: =$AS$69 -> -5378.92501 | DB2: =$AS$70 -> -5355.599934 | DC2: =$AS$71 -> -5331.867058 | DD2: =$AS$72 -> -5307.808971 | DE2: =$AS$73 -> -5283.502124 | DF2: =$AS$74 -> -5259.017194 | DG2: =$AS$75 -> -5234.419437 | DH2: =$AS$76 -> -5209.769009 | DI2: =$AS$77 -> -5185.12128 | DJ2: =$AS$78 -> -5160.527126 | DK2: =$AS$79 -> -5136.033205 | DL2: =$AS$80 -> -5111.68222 | DM2: =$AS$81 -> -5087.513163 | DN2: =$AS$82 -> -5075.942337 | DT2: =AVERAGE(DT9:DT10008) -> 16789.01985 | DU2: =AVERAGE(DU9:DU10008) -> 0.5083214092 | DV2: =AVERAGE(DV9:DV10008) -> 30607.12439 | DW2: =AVERAGE(DW9:DW10008) -> 0.8416174291 | DY2: =lambda*DU2-DT2 -> -1539.377573 | DZ2: =lambda*DW2-DV2 -> -5358.601516 | EA2: =IF(DY2>DZ2, "tx A", IF(DZ2>DY2, "tx B", "either")) -> tx A | EB2: =AVERAGE(EB9:EB10008) -> 647.1368153 | EH2: =DY3 -> 0.8001 | EI2: =DZ3 -> 0.1999 | EJ2: =DY2 -> -1539.377573 | EK2: =DZ2 -> -5358.601516
J3: SILENT | K3: ACTIVE | L3: COMPL | M3: DEAD | AC3: SILENT | AD3: ACTIVE | AE3: COMPL | AF3: DEAD | DY3: =COUNTIF($EA9:$EA10008,"tx A")/10000 -> 0.8001 | DZ3: =COUNTIF($EA9:$EA10008,"tx B")/10000 -> 0.1999
I4: SILENT | J4: =1-K4-L4-M4 -> 0.8924444444 | K4: =p_active_A -> 0.09422222222 | L4: =p_compl_sil_A -> 0.01155555556 | M4: =p_dead_sil_A -> 0.001777777778 | AB4: SILENT | AC4: =1-AD4-AE4-AF4 -> 0.8914386584 | AD4: =p_active_B -> 0.09267431598 | AE4: =p_compl_sil_B -> 0.01412180053 | AF4: =p_dead_sil_B -> 0.001765225066 | EG4: lambda (display only)
I5: ACTIVE | J5: =p_success_A -> 0.1944764097 | K5: =1-J5-L5-M5 -> 0.6605293441 | L5: =p_compl_act_A -> 0.1438434983 | M5: =p_dead_act_A -> 0.001150747986 | AB5: ACTIVE | AC5: =p_success_B -> 0.2119047619 | AD5: =1-AC5-AE5-AF5 -> 0.6892857143 | AE5: =p_compl_act_B -> 0.09761904762 | AF5: =p_dead_act_B -> 0.00119047619 | DY5: incr_cost | DZ5: incr_QALY | EA5: ICER | EG5: 50000
I6: COMPL | J6: 0 | K6: 0 | L6: =1-M6 -> 0.9965059399 | M6: =p_dead_cmp_A -> 0.003494060098 | AB6: COMPL | AC6: 0 | AD6: 0 | AE6: =1-AF6 -> 0.9965059399 | AF6: =p_dead_cmp_B -> 0.003494060098 | AS6: Incremental analysis | BF6: txB_cumu_NMB | DY6: =DV2-DT2 -> 13818.10454 | DZ6: =DW2-DU2 -> 0.3332960199 | EA6: =DY6/DZ6 -> 41458.95455
I7: DEAD | J7: 0 | K7: 0 | L7: 0 | M7: 1 | AB7: DEAD | AC7: 0 | AD7: 0 | AE7: 0 | AF7: 1 | BF7: Period
BB8: txA_cost | BC8: txA_QALY | BD8: txB_cost | BE8: txB_QALY | BF8: 1 | BG8: 2 | BH8: 3 | BI8: 4 | BJ8: 5 | BK8: 6 | BL8: 7 | BM8: 8 | BN8: 9 | BO8: 10 | BP8: 11 | BQ8: 12 | BR8: 13 | BS8: 14 | BT8: 15 | BU8: 16 | BV8: 17 | BW8: 18 | BX8: 19 | BY8: 20 | BZ8: 21 | CA8: 22 | CB8: 23 | CC8: 24 | CD8: 25 | CE8: 26 | CF8: 27 | CG8: 28 | CH8: 29 | CI8: 30 | CJ8: 31 | CK8: 32 | CL8: 33 | CM8: 34 | CN8: 35 | CO8: 36 | CP8: 37 | CQ8: 38 | CR8: 39 | CS8: 40 | CT8: 41 | CU8: 42 | CV8: 43 | CW8: 44 | CX8: 45 | CY8: 46 | CZ8: 47 | DA8: 48 | DB8: 49 | DC8: 50 | DD8: 51 | DE8: 52 | DF8: 53 | DG8: 54 | DH8: 55 | DI8: 56 | DJ8: 57 | DK8: 58 | DL8: 59 | DM8: 60 | DN8: 61 | DT8: txA_cost | DU8: txA_QALY | DV8: txB_cost | DW8: txB_QALY | DY8: txA_NB | DZ8: txB_NB | EA8: Optimal | EB8: NB lost | EG8: lambda or WTP | EH8: txA_% | EI8: txB_% | EJ8: txA_NB | EK8: txB_NB | EL8: CEF
AV9: COSTS | AW9: OUTCOMES | AX9: NET BENEFIT | BA9: 1 | BB9: 16877.86298 | BC9: 0.4045228628 | BD9: 30665.47175 | BE9: 0.5957077255 | BF9: -432.5 | BG9: -1106.180555 | BH9: -1656.823426 | BI9: -2125.847822 | BJ9: -2538.5165 | BK9: -2910.368383 | BL9: -3251.083725 | BM9: -3566.806852 | BN9: -3861.542228 | BO9: -4137.993838 | BP9: -4398.070092 | BQ9: -4643.187799 | BR9: -4863.442658 | BS9: -5071.374318 | BT9: -5267.725756 | BU9: -5453.154441 | BV9: -5628.256215 | BW9: -5793.580117 | BX9: -5949.637752 | BY9: -6096.909361 | BZ9: -6235.847893 | CA9: -6366.881843 | CB9: -6490.417351 | CC9: -6606.839822 | CD9: -6711.29261 | CE9: -6809.650795 | CF9: -6902.229061 | CG9: -6989.326484 | CH9: -7071.227315 | CI9: -7148.201721 | CJ9: -7220.506469 | CK9: -7288.385582 | CL9: -7352.070956 | CM9: -7411.782947 | CN9: -7467.730928 | CO9: -7520.113819 | CP9: -7566.786938 | CQ9: -7610.41567 | CR9: -7651.162394 | CS9: -7689.181331 | CT9: -7724.618933 | CU9: -7757.614261 | CV9: -7788.299349 | CW9: -7816.799541 | CX9: -7843.233821 | CY9: -7867.715119 | CZ9: -7890.350613 | DA9: -7911.242004 | DB9: -7929.569421 | DC9: -7946.414879 | DD9: -7961.861085 | DE9: -7975.986483 | DF9: -7988.865465 | DG9: -8000.568574 | DH9: -8011.16269 | DI9: -8020.711215 | DJ9: -8029.274241 | DK9: -8036.90872 | DL9: -8043.668618 | DM9: -8049.605063 | DN9: -8052.062883 | DS9: 1 | DT9: 16877.86298 | DU9: 0.4045228628 | DV9: 30665.47175 | DW9: 0.5957077255 | DX9: 1 | DY9: =lambda*DU9-DT9 -> -4742.177102 | DZ9: =lambda*DW9-DV9 -> -12794.23998 | EA9: =IF(DY9>DZ9, "tx A", IF(DZ9>DY9, "tx B", "either")) -> tx A | EB9: =IF(EA$2="tx A", MAX(0,DZ9-DY9), MAX(0, DY9-DZ9)) -> 0 | EG9: 0 | EH9: 1 | EI9: 0 | EJ9: -16767.43388 | EK9: -30622.09179 | EL9: =IF(EJ9>EK9,EH9,EI9) -> 1
AT10: Treatment A | AV10: =$R$92 -> 15953.91883 | AW10: =$V$92 -> 0.5050228065 | AX10: =AW10*lambda-AV10 -> -803.2346382 | BA10: =1+BA9 -> 2 | BB10: 17893.26424 | BC10: 0.4043660512 | BD10: 30424.4489 | BE10: 0.6404004883 | BF10: -432.5 | BG10: -1107.060512 | BH10: -1662.028687 | BI10: -2137.759456 | BJ10: -2557.478404 | BK10: -2934.790696 | BL10: -3277.894537 | BM10: -3591.942061 | BN10: -3880.360341 | BO10: -4145.589643 | BP10: -4389.495689 | BQ10: -4613.599878 | BR10: -4809.417206 | BS10: -4988.726622 | BT10: -5152.538177 | BU10: -5301.787208 | BV10: -5437.347746 | BW10: -5560.040841 | BX10: -5670.640078 | BY10: -5769.875505 | BZ10: -5858.436668 | CA10: -5936.975107 | CB10: -6006.106537 | CC10: -6066.412808 | CD10: -6115.966049 | CE10: -6158.132682 | CF10: -6193.379994 | CG10: -6222.149308 | CH10: -6244.85733 | CI10: -6261.897448 | CJ10: -6273.640951 | CK10: -6280.43819 | CL10: -6282.619685 | CM10: -6280.497168 | CN10: -6274.36458 | CO10: -6264.499016 | CP10: -6251.796731 | CQ10: -6236.022262 | CR10: -6217.396321 | CS10: -6196.126735 | CT10: -6172.409143 | CU10: -6146.427646 | CV10: -6118.355435 | CW10: -6088.355381 | CX10: -6056.580594 | CY10: -6023.174956 | CZ10: -5988.273626 | DA10: -5952.003517 | DB10: -5916.270404 | DC10: -5879.453576 | DD10: -5841.652846 | DE10: -5802.961768 | DF10: -5763.467992 | DG10: -5723.253588 | DH10: -5682.395364 | DI10: -5640.965159 | DJ10: -5599.030126 | DK10: -5556.652995 | DL10: -5513.892329 | DM10: -5470.802762 | DN10: -5450.151552 | DS10: =1+DS9 -> 2 | DT10: 17893.26424 | DU10: 0.4043660512 | DV10: 30424.4489 | DW10: 0.6404004883 | DX10: 2 | DY10: =lambda*DU10-DT10 -> -5762.282703 | DZ10: -11212.43426 | EA10: tx A | EB10: 0 | EG10: =EG9+400 -> 400 | EH10: 1 | EI10: 0 | EJ10: -16566.45638 | EK10: -30286.89848 | EL10: =IF(EJ10>EK10,EH10,EI10) -> 1
AT11: Treatment B | AV11: =$AK$92 -> 31197.82121 | AW11: =$AO$92 -> 0.8439548079 | AX11: =AW11*lambda-AV11 -> -5879.176975 | BA11: =1+BA10 -> 3 | BB11: 16930.90828 | BC11: 0.5318229304 | BD11: 28499.46486 | BE11: 0.6992213352 | BF11: -432.5 | BG11: -1165.574787 | BH11: -1796.849342 | BI11: -2348.879799 | BJ11: -2838.187375 | BK11: -3276.746698 | BL11: -3673.226107 | BM11: -4033.94455 | BN11: -4363.576284 | BO11: -4665.65408 | BP11: -4942.92086 | BQ11: -5197.571629 | BR11: -5420.282536 | BS11: -5624.646042 | BT11: -5811.940384 | BU11: -5983.303633 | BV11: -6139.765926 | BW11: -6282.271352 | BX11: -6411.692994 | BY11: -6528.843473 | BZ11: -6634.482521 | CA11: -6729.322595 | CB11: -6814.033193 | CC11: -6889.244293 | CD11: -6952.391822 | CE11: -7007.589703 | CF11: -7055.339802 | CG11: -7096.115236 | CH11: -7130.362035 | CI11: -7158.500685 | CJ11: -7180.927552 | CK11: -7198.016223 | CL11: -7210.118763 | CM11: -7217.566899 | CN11: -7220.67314 | CO11: -7219.731832 | CP11: -7215.24452 | CQ11: -7207.414915 | CR11: -7196.476958 | CS11: -7182.650798 | CT11: -7166.143559 | CU11: -7147.15006 | CV11: -7125.853497 | CW11: -7102.426094 | CX11: -7077.02971 | CY11: -7049.816425 | CZ11: -7020.929081 | DA11: -6990.501806 | DB11: -6960.176754 | DC11: -6928.617525 | DD11: -6895.929662 | DE11: -6862.212132 | DF11: -6827.557701 | DG11: -6792.053285 | DH11: -6755.780288 | DI11: -6718.814916 | DJ11: -6681.228478 | DK11: -6643.087669 | DL11: -6604.454836 | DM11: -6565.388231 | DN11: -6546.604432 | DS11: =1+DS10 -> 3 | DT11: 16930.90828 | DU11: 0.5318229304 | DV11: 28499.46486 | DW11: 0.6992213352 | DX11: 3 | DY11: -976.2203694 | DZ11: -7522.824802 | EA11: tx A | EB11: 0 | EG11: =EG10+400 -> 800 | EH11: 1 | EI11: 0 | EJ11: -16365.47887 | EK11: -29951.70516 | EL11: 1
BA12: 4 | BB12: 15646.28304 | BC12: 1.307498839 | BD12: 29997.66172 | BE12: 1.523703859 | BF12: -432.5 | BG12: -1157.730007 | BH12: -1783.918864 | BI12: -2337.328455 | BJ12: -2835.058453 | BK12: -3288.398594 | BL12: -3704.947069 | BM12: -4089.949328 | BN12: -4447.144398 | BO12: -4779.300127 | BP12: -5088.551966 | BQ12: -5376.617666 | BR12: -5632.156678 | BS12: -5870.069168 | BT12: -6091.405576 | BU12: -6297.118125 | BV12: -6488.083023 | BW12: -6665.11511 | BX12: -6828.977723 | BY12: -6980.389513 | BZ12: -7120.029311 | CA12: -7248.539739 | CB12: -7366.530014 | CC12: -7474.578196 | CD12: -7568.535243 | CE12: -7654.042692 | CF12: -7731.572034 | CG12: -7801.571148 | CH12: -7864.465471 | CI12: -7920.659105 | CJ12: -7970.535843 | CK12: -8014.460153 | CL12: -8052.778101 | CM12: -8085.81823 | CN12: -8113.892402 | CO12: -8137.29659 | CP12: -8155.406161 | CQ12: -8169.589358 | CR12: -8180.086877 | CS12: -8187.126984 | CT12: -8190.926112 | CU12: -8191.689428 | CV12: -8189.611384 | CW12: -8184.876227 | CX12: -8177.658502 | CY12: -8168.123518 | CZ12: -8156.427801 | DA12: -8142.719521 | DB12: -8127.880836 | DC12: -8111.385321 | DD12: -8093.352482 | DE12: -8073.89532 | DF12: -8053.120654 | DG12: -8031.129421 | DH12: -8008.016977 | DI12: -7983.873367 | DJ12: -7958.783596 | DK12: -7932.827877 | DL12: -7906.081876 | DM12: -7878.616939 | DN12: -7865.228067 | DS12: 4 | DT12: 15646.28304 | DU12: 1.307498839 | DV12: 29997.66172 | DW12: 1.523703859 | DX12: 4 | DY12: 23578.68212 | DZ12: 15713.45405 | EA12: tx A | EB12: 0 | EG12: 1200 | EH12: 1 | EI12: 0 | EJ12: -16164.50137 | EK12: -29616.51184 | EL12: 1
BA13: 5 | BB13: 17258.0128 | BC13: -0.6094558951 | BD13: 31526.52022 | BE13: 0.1203329512 | BF13: -432.5 | BG13: -1037.877929 | BH13: -1467.456063 | BI13: -1772.955951 | BJ13: -1986.920262 | BK13: -2130.347765 | BL13: -2217.226342 | BM13: -2257.238152 | BN13: -2257.382962 | BO13: -2222.958264 | BP13: -2158.155173 | BQ13: -2066.423721 | BR13: -1956.209739 | BS13: -1825.585131 | BT13: -1676.720775 | BU13: -1511.574409 | BV13: -1331.928114 | BW13: -1139.414213 | BX13: -935.53389 | BY13: -721.6711416 | BZ13: -499.1037057 | CA13: -269.0119762 | CB13: -32.48653787 | CC13: 209.465275 | CD13: 444.177909 | CE13: 682.355933 | CF13: 923.2464857 | CG13: 1166.156534 | CH13: 1410.448916 | CI13: 1655.538659 | CJ13: 1900.889527 | CK13: 2146.010794 | CL13: 2390.454223 | CM13: 2633.811217 | CN13: 2875.710165 | CO13: 3115.813935 | CP13: 3342.484024 | CQ13: 3566.891978 | CR13: 3788.802361 | CS13: 4008.004428 | CT13: 4224.310385 | CU13: 4437.553765 | CV13: 4647.587898 | CW13: 4854.284488 | CX13: 5057.532262 | CY13: 5257.23572 | CZ13: 5453.313954 | DA13: 5645.699546 | DB13: 5825.354774 | DC13: 6001.399454 | DD13: 6173.802265 | DE13: 6342.541161 | DF13: 6507.602616 | DG13: 6668.980921 | DH13: 6826.677525 | DI13: 6980.700418 | DJ13: 7131.063564 | DK13: 7277.786355 | DL13: 7420.893121 | DM13: 7560.412658 | DN13: 7625.157964 | DS13: 5 | DT13: 17258.0128 | DU13: -0.6094558951 | DV13: 31526.52022 | DW13: 0.1203329512 | DX13: 5 | DY13: -35541.68965 | DZ13: -27916.53169 | EA13: tx B | EB13: 7625.157964 | EG13: 1600 | EH13: 1 | EI13: 0 | EJ13: -15963.52386 | EK13: -29281.31853 | EL13: 1
AT14: Incremental | AV14: =AV11-AV10 -> 15243.90238 | BA14: 6 | BB14: 16385.0356 | BC14: 0.8832984587 | BD14: 29310.66602 | BE14: 1.053639434 | BF14: -432.5 | BG14: -1175.688001 | BH14: -1823.330074 | BI14: -2395.297141 | BJ14: -2906.366209 | BK14: -3367.446795 | BL14: -3786.600157 | BM14: -4169.831273 | BN14: -4521.679159 | BO14: -4845.644754 | BP14: -5144.495012 | BQ14: -5420.47601 | BR14: -5663.318656 | BS14: -5887.690558 | BT14: -6094.925878 | BU14: -6286.213111 | BV14: -6462.626709 | BW14: -6625.149043 | BX14: -6774.685886 | BY14: -6912.077497 | BZ14: -7038.106761 | CA14: -7153.505332 | CB14: -7258.958424 | CC14: -7355.108662 | CD14: -7438.394975 | CE14: -7513.935575 | CF14: -7582.237492 | CG14: -7643.777214 | CH14: -7699.002548 | CI14: -7748.334336 | CJ14: -7792.168044 | CK14: -7830.875246 | CL14: -7864.805002 | CM14: -7894.285168 | CN14: -7919.623619 | CO14: -7941.109397 | CP14: -7958.161212 | CQ14: -7972.044658 | CR14: -7982.987195 | CS14: -7991.202155 | CT14: -7996.889559 | CU14: -8000.236895 | CV14: -8001.419847 | CW14: -8000.602987 | CX14: -7997.940428 | CY14: -7993.576435 | CZ14: -7987.646008 | DA14: -7980.275431 | DB14: -7971.996723 | DC14: -7962.564018 | DD14: -7952.075524 | DE14: -7940.622953 | DF14: -7928.291916 | DG14: -7915.162285 | DH14: -7901.308543 | DI14: -7886.80011 | DJ14: -7871.701651 | DK14: -7856.073368 | DL14: -7839.971271 | DM14: -7823.447438 | DN14: -7815.401161 | DS14: 6 | DT14: 16385.0356 | DU14: 0.8832984587 | DV14: 29310.66602 | DW14: 1.053639434 | DX14: 6 | DY14: 10113.91816 | DZ14: 2298.517001 | EA14: tx A | EB14: 0 | EG14: 2000 | EH14: 1 | EI14: 0 | EJ14: -15762.54636 | EK14: -28946.12521 | EL14: 1
AV15: for | AW15: =AW11-AW10 -> 0.3389320014 | AX15: QALYs | BA15: 7 | BB15: 19565.40846 | BC15: 0.1265728409 | BD15: 30949.67918 | BE15: 0.6190474122 | BF15: -432.5 | BG15: -1079.41569 | BH15: -1575.895547 | BI15: -1963.955165 | BJ15: -2270.19824 | BK15: -2511.923832 | BL15: -2700.778122 | BM15: -2844.940312 | BN15: -2950.433285 | BO15: -3021.911542 | BP15: -3063.136814 | BQ15: -3077.266939 | BR15: -3067.520306 | BS15: -3036.8692 | BT15: -2987.377971 | BU15: -2920.919287 | BV15: -2839.203469 | BW15: -2743.799228 | BX15: -2636.149063 | BY15: -2517.581277 | BZ15: -2389.319794 | CA15: -2252.492495 | CB15: -2108.138502 | CC15: -1957.214702 | CD15: -1808.059422 | CE15: -1654.256922 | CF15: -1496.515558 | CG15: -1335.485357 | CH15: -1171.762133 | CI15: -1005.891313 | CJ15: -838.3715202 | CK15: -669.6579019 | CL15: -500.1652457 | CM15: -330.2708849 | CN15: -160.3174117 | CO15: 9.384790734 | CP15: 170.4994509 | CQ15: 330.8667698 | CR15: 490.2702538 | CS15: 648.5159439 | CT15: 805.4307106 | CU15: 960.8606639 | CV15: 1114.669672 | CW15: 1266.737979 | CX15: 1416.96092 | CY15: 1565.247725 | CZ15: 1711.520399 | DA15: 1855.712686 | DB15: 1991.004514 | DC15: 2124.21875 | DD15: 2255.32057 | DE15: 2384.283022 | DF15: 2511.08634 | DG15: 2635.717306 | DH15: 2758.168656 | DI15: 2878.438539 | DJ15: 2996.529997 | DK15: 3112.450506 | DL15: 3226.21153 | DM15: 3337.828123 | DN15: 3389.966422 | DS15: 7 | DT15: 19565.40846 | DU15: 0.1265728409 | DV15: 30949.67918 | DW15: 0.6190474122 | DX15: 7 | DY15: -15768.22323 | DZ15: -12378.25681 | EA15: tx B | EB15: 3389.966422 | EG15: 2400 | EH15: 1 | EI15: 0 | EJ15: -15561.56885 | EK15: -28610.93189 | EL15: 1
BA16: 8 | BB16: 17455.17719 | BC16: -0.5181403492 | BD16: 29576.86348 | BE16: -0.1596635801 | BF16: -432.5 | BG16: -1116.351027 | BH16: -1674.693063 | BI16: -2142.976429 | BJ16: -2544.000847 | BK16: -2892.628255 | BL16: -3198.729203 | BM16: -3469.025319 | BN16: -3708.241911 | BO16: -3919.829452 | BP16: -4106.41567 | BQ16: -4270.08926 | BR16: -4405.793172 | BS16: -4522.731188 | BT16: -4622.14518 | BU16: -4705.152698 | BV16: -4772.775193 | BW16: -4825.9566 | BX16: -4865.575844 | BY16: -4892.455513 | BZ16: -4907.368087 | CA16: -4911.04061 | CB16: -4904.158341 | CC16: -4887.367739 | CD16: -4862.521308 | CE16: -4829.36818 | CF16: -4788.426483 | CG16: -4740.185508 | CH16: -4685.107297 | CI16: -4623.628123 | CJ16: -4556.15988 | CK16: -4483.091384 | CL16: -4404.789611 | CM16: -4321.600863 | CN16: -4233.851866 | CO16: -4141.850819 | CP16: -4050.458027 | CQ16: -3955.5535 | CR16: -3857.383294 | CS16: -3756.179308 | CT16: -3652.160046 | CU16: -3545.531343 | CV16: -3436.487049 | CW16: -3325.209675 | CX16: -3211.871016 | CY16: -3096.632727 | CZ16: -2979.646882 | DA16: -2861.056497 | DB16: -2746.713191 | DC16: -2631.09015 | DD16: -2514.300441 | DE16: -2396.450255 | DF16: -2277.639284 | DG16: -2157.961091 | DH16: -2037.503443 | DI16: -1916.348642 | DJ16: -1794.573829 | DK16: -1672.251275 | DL16: -1549.448656 | DM16: -1426.229316 | DN16: -1367.383218 | DS16: 8 | DT16: 17455.17719 | DU16: -0.5181403492 | DV16: 29576.86348 | DW16: -0.1596635801 | DX16: 8 | DY16: -32999.38766 | DZ16: -34366.77088 | EA16: tx A | EB16: 0 | EG16: 2800 | EH16: 1 | EI16: 0 | EJ16: -15360.59135 | EK16: -28275.73858 | EL16: 1
AT17: ICER | AV17: =AV14/AW15 -> 44976.28526 | AW17: per QALY | BA17: 9 | BB17: 18414.11587 | BC17: 0.8314242337 | BD17: 32317.85443 | BE17: 1.362874741 | BF17: -432.5 | BG17: -1058.858583 | BH17: -1527.156834 | BI17: -1886.923233 | BJ17: -2168.935836 | BK17: -2392.629546 | BL17: -2570.557093 | BM17: -2711.076663 | BN17: -2819.972155 | BO17: -2901.430969 | BP17: -2958.635058 | BQ17: -2994.119129 | BR17: -3009.23292 | BS17: -3007.389592 | BT17: -2990.109429 | BU17: -2958.758815 | BV17: -2914.581748 | BW17: -2858.720563 | BX17: -2792.230093 | BY17: -2716.087752 | BZ17: -2631.201108 | CA17: -2538.41384 | CB17: -2438.510651 | CC17: -2332.221476 | CD17: -2225.558353 | CE17: -2114.061004 | CF17: -1998.288018 | CG17: -1878.758151 | CH17: -1755.952838 | CI17: -1630.318527 | CJ17: -1502.26888 | CK17: -1372.18683 | CL17: -1240.426518 | CM17: -1107.315111 | CN17: -973.1545179 | CO17: -838.222994 | CP17: -709.2264868 | CQ17: -579.9638878 | CR17: -450.6409524 | CS17: -321.4461909 | CT17: -192.5519982 | CU17: -64.11571585 | CV17: 63.71936904 | CW17: 190.8230849 | CX17: 317.0774934 | CY17: 442.3760603 | CZ17: 566.6228764 | DA17: 689.7319263 | DB17: 805.8219021 | DC17: 920.6901416 | DD17: 1034.279225 | DE17: 1146.538766 | DF17: 1257.424911 | DG17: 1366.899855 | DH17: 1474.931402 | DI17: 1581.49254 | DJ17: 1686.561057 | DK17: 1790.119165 | DL17: 1892.153164 | DM17: 1992.653113 | DN17: 2039.776647 | DS17: 9 | DT17: 18414.11587 | DU17: 0.8314242337 | DV17: 32317.85443 | DW17: 1.362874741 | DX17: 9 | DY17: 6528.611138 | DZ17: 8568.387785 | EA17: tx B | EB17: 2039.776647 | EG17: 3200 | EH17: 1 | EI17: 0 | EJ17: -15159.61384 | EK17: -27940.54526 | EL17: 1
BA18: 10 | BB18: 17631.72069 | BC18: 1.174478715 | BD18: 32176.09898 | BE18: 1.536510443 | BF18: -432.5 | BG18: -1081.690426 | BH18: -1602.147746 | BI18: -2041.629054 | BJ18: -2426.258656 | BK18: -2770.375957 | BL18: -3081.975411 | BM18: -3365.682412 | BN18: -3624.361636 | BO18: -3859.972986 | BP18: -4074.018089 | BQ18: -4267.767022 | BR18: -4434.054806 | BS18: -4583.136181 | BT18: -4715.994312 | BU18: -4833.574273 | BV18: -4936.784654 | BW18: -5026.497114 | BX18: -5103.545557 | BY18: -5168.725591 | BZ18: -5222.794477 | CA18: -5266.471546 | CB18: -5300.439008 | CC18: -5325.343031 | CD18: -5341.011589 | CE18: -5349.181083 | CF18: -5350.371592 | CG18: -5345.074168 | CH18: -5333.752217 | CI18: -5316.842847 | CJ18: -5294.758186 | CK18: -5267.88664 | CL18: -5236.594113 | CM18: -5201.225163 | CN18: -5162.10412 | CO18: -5119.536138 | CP18: -5075.985725 | CQ18: -5029.682773 | CR18: -4980.8687 | CS18: -4929.770235 | CT18: -4876.600201 | CU18: -4821.558262 | CV18: -4764.831632 | CW18: -4706.595751 | CX18: -4647.014918 | CY18: -4586.242905 | CZ18: -4524.423531 | DA18: -4461.691208 | DB18: -4401.196212 | DC18: -4340.062844 | DD18: -4278.39511 | DE18: -4216.289891 | DF18: -4153.837343 | DG18: -4091.121276 | DH18: -4028.219517 | DI18: -3965.204252 | DJ18: -3902.142346 | DK18: -3839.095658 | DL18: -3776.121323 | DM18: -3713.272035 | DN18: -3683.426451 | DS18: 10 | DT18: 17631.72069 | DU18: 1.174478715 | DV18: 32176.09898 | DW18: 1.536510443 | DX18: 10 | DY18: 17602.64076 | DZ18: 13919.21431 | EA18: tx A | EB18: 0 | EG18: 3600 | EH18: 1 | EI18: 0 | EJ18: -14958.63633 | EK18: -27605.35195 | EL18: 1
H19: TREATMENT A | AA19: TREATMENT B | BA19: 11 | BB19: 18147.0578 | BC19: 0.01659514708 | BD19: 30069.96296 | BE19: 0.4426714271 | BF19: -432.5 | BG19: -1065.442663 | BH19: -1548.664921 | BI19: -1930.376772 | BJ19: -2239.296099 | BK19: -2492.959327 | BL19: -2702.449539 | BM19: -2875.092412 | BN19: -3015.997679 | BO19: -3128.943633 | BP19: -3216.887078 | BQ19: -3282.259274 | BR19: -3325.002134 | BS19: -3349.971237 | BT19: -3358.73105 | BU19: -3352.704733 | BV19: -3333.197891 | BW19: -3301.414588 | BX19: -3258.468766 | BY19: -3205.392853 | BZ19: -3143.144616 | CA19: -3072.612884 | CB19: -2994.622506 | CC19: -2909.93876 | CD19: -2823.588849 | CE19: -2732.166695 | CF19: -2636.252589 | CG19: -2536.38365 | CH19: -2433.056631 | CI19: -2326.730561 | CJ19: -2217.829213 | CK19: -2106.743416 | CL19: -1993.833229 | CM19: -1879.429983 | CN19: -1763.83819 | CO19: -1647.337337 | CP19: -1535.762329 | CQ19: -1423.788738 | CR19: -1311.62049 | CS19: -1199.443525 | CT19: -1087.427043 | CU19: -975.7246662 | CV19: -864.4755307 | CW19: -753.8053104 | CX19: -643.8271746 | CY19: -534.6426859 | CZ19: -426.3426408 | DA19: -319.0078565 | DB19: -217.7717145 | DC19: -117.5830539 | DD19: -18.49436142 | DE19: 79.44883513 | DF19: 176.2074307 | DG19: 271.7482414 | DH19: 366.0435369 | DI19: 459.0706028 | DJ19: 550.8113332 | DK19: 641.2518497 | DL19: 730.3821465 | DM19: 818.1957602 | DN19: 859.3832365 | DS19: 11 | DT19: 18147.0578 | DU19: 0.01659514708 | DV19: 30069.96296 | DW19: 0.4426714271 | DX19: 11 | DY19: -17649.20339 | DZ19: -16789.82015 | EA19: tx B | EB19: 859.3832365 | EG19: 4000 | EH19: 1 | EI19: 0 | EJ19: -14757.65883 | EK19: -27270.15863 | EL19: 1
J20: PROBABILITIES | O20: COSTS | S20: OUTCOMES | AC20: PROBABILITIES | AH20: COSTS | AL20: OUTCOMES | BA20: 12 | BB20: 16273.53401 | BC20: 0.3856247918 | BD20: 31124.94602 | BE20: 0.8548006861 | BF20: -432.5 | BG20: -1058.656182 | BH20: -1527.287119 | BI20: -1889.209698 | BJ20: -2176.400472 | BK20: -2409.185755 | BL20: -2600.675469 | BM20: -2759.497966 | BN20: -2891.487465 | BO20: -3000.725829 | BP20: -3090.186282 | BQ20: -3162.131688 | BR20: -3215.683874 | BS20: -3255.687461 | BT20: -3283.357388 | BU20: -3299.762397 | BV20: -3305.861598 | BW20: -3302.528073 | BX20: -3290.564433 | BY20: -3270.713371 | BZ20: -3243.665064 | CA20: -3210.062609 | CB20: -3170.506183 | CC20: -3125.556388 | CD20: -3078.109391 | CE20: -3026.490875 | CF20: -2971.136307 | CG20: -2912.452336 | CH20: -2850.818498 | CI20: -2786.588807 | CJ20: -2720.09324 | CK20: -2651.639128 | CL20: -2581.512477 | CM20: -2509.979202 | CN20: -2437.286299 | CO20: -2363.662953 | CP20: -2292.861651 | CQ20: -2221.5638 | CR20: -2149.94255 | CS20: -2078.157764 | CT20: -2006.356813 | CU20: -1934.675335 | CV20: -1863.237942 | CW20: -1792.158903 | CX20: -1721.542773 | CY20: -1651.485004 | CZ20: -1582.072508 | DA20: -1513.384197 | DB20: -1448.72448 | DC20: -1384.883827 | DD20: -1321.917336 | DE20: -1259.874265 | DF20: -1198.798417 | DG20: -1138.728506 | DH20: -1079.698495 | DI20: -1021.73792 | DJ20: -964.872194 | DK20: -909.1228937 | DL20: -854.5080299 | DM20: -801.0423013 | DN20: -776.135174 | DS20: 12 | DT20: 16273.53401 | DU20: 0.3856247918 | DV20: 31124.94602 | DW20: 0.8548006861 | DX20: 12 | DY20: -4704.790259 | DZ20: -5480.925433 | EA20: tx A | EB20: 0 | EG20: 4400 | EH20: 1 | EI20: 0 | EJ20: -14556.68132 | EK20: -26934.96531 | EL20: 1
A21: PROBABILITIES | B21: Treatment A | C21: Treatment B | H21: YEARS | I21: PERIOD | J21: SILENT | K21: ACTIVE | L21: COMPL | M21: DEAD | N21: discount | O21: SILENT | P21: ACTIVE | Q21: COMPL | R21: DEAD | S21: SILENT | T21: ACTIVE | U21: COMPL | V21: DEAD | AA21: YEARS | AB21: PERIOD | AC21: SILENT | AD21: ACTIVE | AE21: COMPL | AF21: DEAD | AG21: discount | AH21: SILENT | AI21: ACTIVE | AJ21: COMPL | AK21: DEAD | AL21: SILENT | AM21: ACTIVE | AN21: COMPL | AO21: DEAD | AP21: incr_cost | AQ21: incr_QALY | AR21: NMB | AS21: cumu_NMB | AT21: Copy of cumu_NMB | BA21: 13 | BB21: 18438.76512 | BC21: 0.2501364799 | BD21: 29713.29706 | BE21: 0.3493939725 | BF21: -432.5 | BG21: -1075.525191 | BH21: -1584.607384 | BI21: -2011.056654 | BJ21: -2384.818593 | BK21: -2723.411445 | BL21: -3037.125909 | BM21: -3332.049799 | BN21: -3611.826995 | BO21: -3878.680068 | BP21: -4134.00464 | BQ21: -4378.714704 | BR21: -4602.265634 | BS21: -4816.756266 | BT21: -5022.540099 | BU21: -5219.915446 | BV21: -5409.147037 | BW21: -5590.478516 | BX21: -5764.139658 | BY21: -5930.350529 | BZ21: -6089.32388 | CA21: -6241.26652 | CB21: -6386.380096 | CC21: -6524.86155 | CD21: -6650.615661 | CE21: -6770.41601 | CF21: -6884.437809 | CG21: -6992.852318 | CH21: -7095.826886 | CI21: -7193.524985 | CJ21: -7286.106245 | CK21: -7373.726488 | CL21: -7456.537767 | CM21: -7534.688404 | CN21: -7608.323031 | CO21: -7677.582637 | CP21: -7739.50833 | CQ21: -7797.525661 | CR21: -7851.758777 | CS21: -7902.328551 | CT21: -7949.352632 | CU21: -7992.945505 | CV21: -8033.218541 | CW21: -8070.280059 | CX21: -8104.235381 | CY21: -8135.186889 | CZ21: -8163.234089 | DA21: -8188.473665 | DB21: -8209.926879 | DC21: -8228.882494 | DD21: -8245.424871 | DE21: -8259.635911 | DF21: -8271.595113 | DG21: -8281.379625 | DH21: -8289.064305 | DI21: -8294.721772 | DJ21: -8298.422462 | DK21: -8300.234682 | DL21: -8300.224661 | DM21: -8298.456607 | DN21: -8296.807154 | DS21: 13 | DT21: 18438.76512 | DU21: 0.2501364799 | DV21: 29713.29706 | DW21: 0.3493939725 | DX21: 13 | DY21: -10934.67073 | DZ21: -19231.47788 | EA21: tx A | EB21: 0 | EG21: 4800 | EH21: 1 | EI21: 0 | EJ21: -14355.70382 | EK21: -26599.772 | EL21: 1
A22: p_active | B22: =Parameters!D8 -> 0.09422222222 | C22: =Parameters!D9 -> 0.09267431598 | H22: =TEXT((I22-MOD(I22-1,12))/12,"0")&"."&TEXT(MOD(I22-1,12), "00") -> 0.00 | I22: 1 | J22: 0 | K22: 1 | L22: 0 | M22: 0 | N22: 1 | O22: =c_sil_A*J22*N22 -> 0 | P22: =c_act_A*K22*N22 -> 122.4295517 | Q22: =c_compl_A*L22*N22 -> 0 | R22: =c_dead_A*M22*N22 -> 0 | S22: =u_sil*J22*N22 -> 0 | T22: =u_act*K22*N22 -> 0.05441666667 | U22: =u_compl*L22*N22 -> 0 | V22: =u_dead*M22*N22 -> 0 | AA22: =TEXT((AB22-MOD(AB22-1,12))/12,"0")&"."&TEXT(MOD(AB22-1,12), "00") -> 0.00 | AB22: 1 | AC22: 0 | AD22: 1 | AE22: 0 | AF22: 0 | AG22: 1 | AH22: =c_sil_B*AC22*AG22 -> 0 | AI22: =c_act_B*AD22*AG22 -> 987.4295517 | AJ22: =c_compl_B*AE22*AG22 -> 0 | AK22: =c_dead_B*AF22*AG22 -> 0 | AL22: =u_sil*AC22*AG22 -> 0 | AM22: =u_act*AD22*AG22 -> 0.05441666667 | AN22: =u_compl*AE22*AG22 -> 0 | AO22: =u_dead*AF22*AG22 -> 0 | AP22: =SUM(AH22:AK22)-SUM(O22:R22) -> 865 | AQ22: =SUM(AL22:AO22)-SUM(S22:V22) -> 0 | AR22: =(AQ22*lambda)-AP22 -> -865 | AS22: =AR22*0.5 -> -432.5 | AT22: =$AS$22 -> -432.5 | BA22: 14 | BB22: 16837.63553 | BC22: 0.9232539974 | BD22: 29313.81936 | BE22: 1.000855579 | BF22: -432.5 | BG22: -1153.309515 | BH22: -1769.752525 | BI22: -2309.893892 | BJ22: -2793.275635 | BK22: -3233.408025 | BL22: -3639.606101 | BM22: -4018.304549 | BN22: -4373.979473 | BO22: -4709.784444 | BP22: -5027.984052 | BQ22: -5330.246592 | BR22: -5604.145224 | BS22: -5865.024319 | BT22: -6113.660437 | BU22: -6350.710243 | BV22: -6576.746411 | BW22: -6792.281302 | BX22: -6997.782591 | BY22: -7193.683639 | BZ22: -7380.39041 | CA22: -7558.286159 | CB22: -7727.734652 | CC22: -7889.082433 | CD22: -8035.347227 | CE22: -8174.513807 | CF22: -8306.870984 | CG22: -8432.695577 | CH22: -8552.25305 | CI22: -8665.798064 | CJ22: -8773.574968 | CK22: -8875.818257 | CL22: -8972.752985 | CM22: -9064.595166 | CN22: -9151.552137 | CO22: -9233.822921 | CP22: -9307.894956 | CQ22: -9377.860545 | CR22: -9443.887335 | CS22: -9506.136252 | CT22: -9564.761769 | CU22: -9619.912171 | CV22: -9671.729794 | CW22: -9720.351271 | CX22: -9765.907754 | CY22: -9808.52514 | CZ22: -9848.324274 | DA22: -9885.421156 | DB22: -9918.283994 | DC22: -9948.781097 | DD22: -9977.010174 | DE22: -10003.06501 | DF22: -10027.03564 | DG22: -10049.00848 | DH22: -10069.06646 | DI22: -10087.28921 | DJ22: -10103.75314 | DK22: -10118.53161 | DL22: -10131.69503 | DM22: -10143.31098 | DN22: -10148.13638 | DS22: 14 | DT22: 16837.63553 | DU22: 0.9232539974 | DV22: 29313.81936 | DW22: 1.000855579 | DX22: 14 | DY22: 10859.98439 | DZ22: 711.8480064 | EA22: tx A | EB22: 0 | EG22: 5200 | EH22: 1 | EI22: 0 | EJ22: -14154.72631 | EK22: -26264.57868 | EL22: 1
A23: p_success | B23: =Parameters!D10 -> 0.1944764097 | C23: =Parameters!D11 -> 0.2119047619 | H23: =TEXT((I23-MOD(I23-1,12))/12,"0")&"."&TEXT(MOD(I23-1,12), "00") -> 0.01 | I23: =1+I22 -> 2 | J23: =MMULT(J22:M22,J$4:M$7) -> 0.1944764097 | K23: 0.6605293441 | L23: 0.1438434983 | M23: 0.001150747986 | N23: =N22 -> 1 | O23: 11.96411131 | P23: 80.86831148 | Q23: 57.10538496 | R23: 0 | S23: 0.01327301496 | T23: 0.03594380514 | U23: -0.001642213272 | V23: 0 | AA23: =TEXT((AB23-MOD(AB23-1,12))/12,"0")&"."&TEXT(MOD(AB23-1,12), "00") -> 0.01 | AB23: =1+AB22 -> 2 | AC23: =MMULT(AC22:AF22,AC$4:AF$7) -> 0.2119047619 | AD23: 0.6892857143 | AE23: 0.09761904762 | AF23: 0.00119047619 | AG23: =AG22 -> 1 | AH23: 196.3339157 | AI23: 680.6210839 | AJ23: 38.75443354 | AK23: 0 | AL23: 0.0144625 | AM23: 0.03750863095 | AN23: -0.001114484127 | AO23: 0 | AP23: =SUM(AH23:AK23)-SUM(O23:R23) -> 765.7716253 | AQ23: =SUM(AL23:AO23)-SUM(S23:V23) -> 0.003282039998 | AR23: -667.3104254 | AS23: =AS22+AR23 -> -1099.810425 | AT23: =$AS$23 -> -1099.810425 | BA23: 15 | BB23: 16461.57369 | BC23: 0.9698067317 | BD23: 33187.02773 | BE23: 1.352277381 | BF23: -432.5 | BG23: -1138.9746 | BH23: -1739.534471 | BI23: -2265.391367 | BJ23: -2735.309332 | BK23: -3160.803008 | BL23: -3549.155631 | BM23: -3905.170879 | BN23: -4232.189725 | BO23: -4532.680823 | BP23: -4808.583535 | BQ23: -5061.50755 | BR23: -5281.833107 | BS23: -5482.796276 | BT23: -5665.489687 | BU23: -5830.929619 | BV23: -5980.07016 | BW23: -6113.812156 | BX23: -6233.009147 | BY23: -6338.471506 | BZ23: -6430.96953 | CA23: -6511.235889 | CB23: -6579.967687 | CC23: -6637.828256 | CD23: -6683.181146 | CE23: -6719.353579 | CF23: -6746.889679 | CG23: -6766.306999 | CH23: -6778.097726 | CI23: -6782.729829 | CJ23: -6780.648149 | CK23: -6772.275446 | CL23: -6758.0134 | CM23: -6738.243565 | CN23: -6713.328283 | CO23: -6683.611559 | CP23: -6651.048074 | CQ23: -6614.517799 | CR23: -6574.300612 | CS23: -6530.661917 | CT23: -6483.853306 | CU23: -6434.113202 | CV23: -6381.667468 | CW23: -6326.729989 | CX23: -6269.503235 | CY23: -6210.178791 | CZ23: -6148.937871 | DA23: -6085.951803 | DB23: -6024.457227 | DC23: -5961.600464 | DD23: -5897.519032 | DE23: -5832.342702 | DF23: -5766.193864 | DG23: -5699.187886 | DH23: -5631.433449 | DI23: -5563.032875 | DJ23: -5494.082433 | DK23: -5424.672634 | DL23: -5354.888516 | DM23: -5284.809914 | DN23: -5251.334579 | DS23: 15 | DT23: 16461.57369 | DU23: 0.9698067317 | DV23: 33187.02773 | DW23: 1.352277381 | DX23: 15 | DY23: 12632.62827 | DZ23: 7381.293687 | EA23: tx A | EB23: 0 | EG23: 5600 | EH23: 1 | EI23: 0 | EJ23: -13953.74881 | EK23: -25929.38536 | EL23: 1
A24: p_compl_sil | B24: =Parameters!D12 -> 0.01155555556 | C24: =Parameters!D13 -> 0.01412180053 | H24: 0.02 | I24: =1+I23 -> 3 | J24: =MMULT(J23:M23,J$4:M$7) -> 0.3020167667 | K24: 0.4546230139 | L24: 0.240601035 | M24: 0.002759184466 | N24: =N23 -> 1 | O24: 18.57995127 | P24: 55.65929178 | Q24: 95.51780156 | R24: 0 | S24: 0.02061264433 | T24: 0.024739069 | U24: -0.002746861816 | V24: 0 | AA24: 0.02 | AB24: =1+AB23 -> 3 | AC24: =MMULT(AC23:AF23,AC$4:AF$7) -> 0.3349630218 | AD24: 0.4947529248 | AE24: 0.1675578525 | AF24: 0.002726200838 | AG24: =AG23 -> 1 | AH24: 310.3498057 | AI24: 488.5336587 | AJ24: 66.51990383 | AK24: 0 | AL24: 0.02286122624 | AM24: 0.02692280499 | AN24: -0.00191295215 | AO24: 0 | AP24: 695.6463236 | AQ24: 0.005266227565 | AR24: -537.6594967 | AS24: =AS23+AR24 -> -1637.469922 | AT24: =$AS$24 -> -1637.469922 | BA24: 16 | BB24: 16921.88066 | BC24: 0.6799362106 | BD24: 31452.17467 | BE24: 1.138873083 | BF24: -432.5 | BG24: -1099.857827 | BH24: -1637.673894 | BI24: -2085.570885 | BJ24: -2466.954164 | BK24: -2796.002079 | BL24: -3081.64045 | BM24: -3329.795587 | BN24: -3544.667475 | BO24: -3729.447047 | BP24: -3886.719216 | BQ24: -4018.689005 | BR24: -4122.136207 | BS24: -4205.031815 | BT24: -4268.92925 | BU24: -4315.271756 | BV24: -4345.406697 | BW24: -4360.595048 | BX24: -4362.018247 | BY24: -4350.783597 | BZ24: -4327.928834 | CA24: -4294.426196 | CB24: -4251.186168 | CC24: -4199.060977 | CD24: -4141.715194 | CE24: -4077.376625 | CF24: -4006.708708 | CG24: -3930.331034 | CH24: -3848.821895 | CI24: -3762.720695 | CJ24: -3672.530224 | CK24: -3578.718823 | CL24: -3481.72242 | CM24: -3381.946464 | CN24: -3279.767742 | CO24: -3175.536106 | CP24: -3074.621814 | CQ24: -2972.347897 | CR24: -2868.979537 | CS24: -2764.761958 | CT24: -2659.921651 | CU24: -2554.667538 | CV24: -2449.192065 | CW24: -2343.672235 | CX24: -2238.270577 | CY24: -2133.136069 | CZ24: -2028.404999 | DA24: -1924.201781 | DB24: -1825.571252 | DC24: -1727.649378 | DD24: -1630.524945 | DE24: -1534.278113 | DF24: -1438.980988 | DG24: -1344.698167 | DH24: -1251.487245 | DI24: -1159.399297 | DJ24: -1068.479329 | DK24: -978.7666985 | DL24: -890.295519 | DM24: -803.0950308 | DN24: -762.1878517 | DS24: 16 | DT24: 16921.88066 | DU24: 0.6799362106 | DV24: 31452.17467 | DW24: 1.138873083 | DX24: 16 | DY24: 3476.205664 | DZ24: 2714.017812 | EA24: tx A | EB24: 0 | EG24: 6000 | EH24: 1 | EI24: 0 | EJ24: -13752.7713 | EK24: -25594.19205 | EL24: 1
A25: p_compl_act | B25: =Parameters!D14 -> 0.1438434983 | C25: =Parameters!D15 -> 0.09761904762 | H25: 0.03 | I25: 4 | J25: =MMULT(J24:M24,J$4:M$7) -> 0.3579466371 | K25: 0.3287485321 | L25: 0.3086448967 | M25: 0.004659934156 | N25: 1 | O25: 22.02073464 | P25: 40.2485354 | Q25: 122.5309858 | R25: 0 | S25: 0.02442985798 | T25: 0.01788939929 | U25: -0.003523695904 | V25: 0 | AA25: 0.03 | AB25: 4 | AC25: =MMULT(AC24:AF24,AC$4:AF$7) -> 0.4034394875 | AD25: 0.3720685921 | AE25: 0.2199999856 | AF25: 0.004491934744 | AG25: 1 | AH25: 373.7945934 | AI25: 367.3915231 | AJ25: 87.33925427 | AK25: 0 | AL25: 0.02753474502 | AM25: 0.02024673255 | AN25: -0.002511666503 | AO25: 0 | AP25: 643.7251149 | AQ25: 0.006474249713 | AR25: -449.4976235 | AS25: -2086.967546 | AT25: =$AS$25 -> -2086.967546 | BA25: 17 | BB25: 16176.94998 | BC25: 0.5125935834 | BD25: 31174.76587 | BE25: 0.9898852439 | BF25: -432.5 | BG25: -1026.915767 | BH25: -1463.791101 | BI25: -1804.781629 | BJ25: -2083.585619 | BK25: -2318.768152 | BL25: -2520.747415 | BM25: -2695.579696 | BN25: -2846.996568 | BO25: -2977.49279 | BP25: -3088.901849 | BQ25: -3182.697082 | BR25: -3256.459077 | BS25: -3315.743023 | BT25: -3361.555962 | BU25: -3394.842011 | BV25: -3416.491753 | BW25: -3427.347163 | BX25: -3428.204519 | BY25: -3419.816469 | BZ25: -3402.893804 | CA25: -3378.107158 | CB25: -3346.088699 | CC25: -3307.433838 | CD25: -3264.832979 | CE25: -3216.947324 | CF25: -3164.248586 | CG25: -3107.179823 | CH25: -3046.156914 | CI25: -2981.569986 | CJ25: -2913.784773 | CK25: -2843.143926 | CL25: -2769.968249 | CM25: -2694.557885 | CN25: -2617.193442 | CO25: -2538.13706 | CP25: -2461.466939 | CQ25: -2383.63583 | CR25: -2304.84625 | CS25: -2225.286717 | CT25: -2145.132542 | CU25: -2064.54657 | CV25: -1983.679892 | CW25: -1902.672512 | CX25: -1821.65399 | CY25: -1740.74404 | CZ25: -1660.053106 | DA25: -1579.682902 | DB25: -1503.534354 | DC25: -1427.862 | DD25: -1352.740606 | DE25: -1278.238436 | DF25: -1204.417646 | DG25: -1131.334653 | DH25: -1059.040492 | DI25: -987.5811498 | DJ25: -916.9978804 | DK25: -847.3275046 | DL25: -778.6026934 | DM25: -710.8522353 | DN25: -679.0660706 | DS25: 17 | DT25: 16176.94998 | DU25: 0.5125935834 | DV25: 31174.76587 | DW25: 0.9898852439 | DX25: 17 | DY25: -799.1424779 | DZ25: -1478.208549 | EA25: tx A | EB25: 0 | EG25: 6400 | EH25: 1 | EI25: 0 | EJ25: -13551.7938 | EK25: -25258.99873 | EL25: 1
A26: p_dead_sil | B26: =Parameters!D16 -> 0.001777777778 | C26: =Parameters!D17 -> 0.001765225066 | H26: 0.04 | I26: 5 | J26: =MMULT(J25:M25,J$4:M$7) -> 0.3833813218 | K26: 0.2508745798 | L26: 0.3589910841 | M26: 0.006753014262 | N26: 1 | O26: 23.58546632 | P26: 30.71446234 | Q26: 142.5182528 | R26: 0 | S26: 0.02616577522 | T26: 0.01365175839 | U26: -0.004098481543 | V26: 0 | AA26: 0.04 | AB26: 5 | AC26: =MMULT(AC25:AF25,AC$4:AF$7) -> 0.4384846619 | AD26: 0.2938500438 | AE26: 0.261249566 | AF26: 0.006415728212 | AG26: 1 | AH26: 406.2646345 | AI26: 290.156217 | AJ26: 103.7151989 | AK26: 0 | AL26: 0.02992657818 | AM26: 0.01599033988 | AN26: -0.002982599212 | AO26: 0 | AP26: 603.3178689 | AQ26: 0.00721526679 | AR26: -386.8598652 | AS26: -2473.827411 | AT26: =$AS$26 -> -2473.827411 | BA26: 18 | BB26: 16427.52416 | BC26: 0.4205558372 | BD26: 31506.36654 | BE26: 0.6907553346 | BF26: -432.5 | BG26: -1149.949733 | BH26: -1763.490128 | BI26: -2301.096557 | BJ26: -2780.892725 | BK26: -3214.796175 | BL26: -3610.804965 | BM26: -3974.432666 | BN26: -4309.609466 | BO26: -4619.248502 | BP26: -4905.602241 | BQ26: -5170.487137 | BR26: -5403.761887 | BS26: -5619.295775 | BT26: -5818.205044 | BU26: -6001.501662 | BV26: -6170.116244 | BW26: -6324.913196 | BX26: -6466.700971 | BY26: -6596.239198 | BZ26: -6714.243828 | CA26: -6821.390995 | CB26: -6918.320051 | CC26: -7005.63604 | CD26: -7080.184387 | CE26: -7146.639644 | CF26: -7205.491122 | CG26: -7257.202237 | CH26: -7302.211839 | CI26: -7340.935467 | CJ26: -7373.766517 | CK26: -7401.077355 | CL26: -7423.220367 | CM26: -7440.528955 | CN26: -7453.318483 | CO26: -7461.887183 | CP26: -7466.29654 | CQ26: -7467.208388 | CR26: -7464.862542 | CS26: -7459.485538 | CT26: -7451.291297 | CU26: -7440.481771 | CV26: -7427.247542 | CW26: -7411.76841 | CX26: -7394.213935 | CY26: -7374.743966 | CZ26: -7353.509137 | DA26: -7330.651343 | DB26: -7307.46358 | DC26: -7282.977142 | DD26: -7257.304694 | DE26: -7230.552178 | DF26: -7202.819162 | DG26: -7174.199177 | DH26: -7144.780034 | DI26: -7114.64413 | DJ26: -7083.868732 | DK26: -7052.526252 | DL26: -7020.684509 | DM26: -6988.406973 | DN26: -6972.857465 | DS26: 18 | DT26: 16427.52416 | DU26: 0.4205558372 | DV26: 31506.36654 | DW26: 0.6907553346 | DX26: 18 | DY26: -3810.84904 | DZ26: -10783.7065 | EA26: tx A | EB26: 0 | EG26: 6800 | EH26: 1 | EI26: 0 | EJ26: -13350.81629 | EK26: -24923.80541 | EL26: 1
A27: p_dead_act | B27: =Parameters!D18 -> 0.001150747986 | C27: =Parameters!D19 -> 0.00119047619 | H27: 0.05 | I27: 6 | J27: =MMULT(J26:M26,J$4:M$7) -> 0.3909357183 | K27: 0.2018330618 | L27: 0.398253609 | M27: 0.008977610896 | N27: 1 | O27: 24.05020979 | P27: 24.71033127 | Q27: 158.1053431 | R27: 0 | S27: 0.02668136278 | T27: 0.01098308244 | U27: -0.004546728703 | V27: 0 | AA27: 0.05 | AB27: 6 | AC27: =MMULT(AC26:AF26,AC$4:AF$7) -> 0.4531504024 | AD27: 0.2431829034 | AE27: 0.2952142987 | AF27: 0.008452395493 | AG27: 1 | AH27: 419.8527304 | AI27: 240.1259853 | AJ27: 117.1990836 | AK27: 0 | AL27: 0.03092751496 | AM27: 0.013233203 | AN27: -0.003370363244 | AO27: 0 | AP27: 570.3119151 | AQ27: 0.007672638194 | AR27: -340.1327693 | AS27: -2813.96018 | AT27: =$AS$27 -> -2813.96018 | BA27: 19 | BB27: 16062.67669 | BC27: 1.09541056 | BD27: 30843.12818 | BE27: 1.383606098 | BF27: -432.5 | BG27: -1129.519785 | BH27: -1710.00545 | BI27: -2207.280891 | BJ27: -2643.07974 | BK27: -3031.714541 | BL27: -3382.738638 | BM27: -3702.646334 | BN27: -3995.959255 | BO27: -4265.920929 | BP27: -4514.941209 | BQ27: -4744.880939 | BR27: -4947.122491 | BS27: -5133.801518 | BT27: -5305.939127 | BU27: -5464.438086 | BV27: -5610.113277 | BW27: -5743.711726 | BX27: -5865.925956 | BY27: -5977.403033 | BZ27: -6078.750855 | CA27: -6170.542638 | CB27: -6253.320238 | CC27: -6327.596707 | CD27: -6390.703018 | CE27: -6446.615407 | CF27: -6495.750658 | CG27: -6538.504304 | CH27: -6575.251742 | CI27: -6606.34925 | CJ27: -6632.134936 | CK27: -6652.929628 | CL27: -6669.037711 | CM27: -6680.74792 | CN27: -6688.334094 | CO27: -6692.05589 | CP27: -6692.154531 | CQ27: -6689.029441 | CR27: -6682.891164 | CS27: -6673.939156 | CT27: -6662.362318 | CU27: -6648.339509 | CV27: -6632.040031 | CW27: -6613.624098 | CX27: -6593.243272 | CY27: -6571.040892 | CZ27: -6547.152473 | DA27: -6521.706093 | DB27: -6496.102917 | DC27: -6469.240052 | DD27: -6441.220255 | DE27: -6412.140499 | DF27: -6382.092264 | DG27: -6351.161808 | DH27: -6319.430433 | DI27: -6286.974733 | DJ27: -6253.86683 | DK27: -6220.174603 | DL27: -6185.961905 | DM27: -6151.288763 | DN27: -6134.585343 | DS27: 19 | DT27: 16062.67669 | DU27: 1.09541056 | DV27: 30843.12818 | DW27: 1.383606098 | DX27: 19 | DY27: 16799.6401 | DZ27: 10665.05476 | EA27: tx A | EB27: 0 | EG27: 7200 | EH27: 1 | EI27: 0 | EJ27: -13149.83879 | EK27: -24588.6121 | EL27: 1
A28: p_dead_cmp | B28: =Parameters!D20 -> 0.003494060098 | C28: =Parameters!D20 -> 0.003494060098 | H28: 0.06 | I28: 7 | J28: =MMULT(J27:M27,J$4:M$7) -> 0.3881401792 | K28: 0.170151492 | L28: 0.43041194 | M28: 0.01129638876 | N28: 1 | O28: 23.87822933 | P28: 20.83157089 | Q28: 170.8720924 | R28: 0 | S28: 0.02649056723 | T28: 0.009259077024 | U28: -0.004913869649 | V28: 0 | AA28: 0.06 | AB28: 7 | AC28: =MMULT(AC27:AF27,AC$4:AF$7) -> 0.455487402 | AD28: 0.2096179049 | AE28: 0.3243213852 | AF28: 0.0105733079 | AG28: 1 | AH28: 422.0180064 | AI28: 206.9829138 | AJ28: 128.754499 | AK28: 0 | AL28: 0.03108701519 | AM28: 0.01140670766 | AN28: -0.003702669148 | AO28: 0 | AP28: 542.1735266 | AQ28: 0.00795527909 | AR28: -303.5151539 | AS28: -3117.475334 | AT28: =$AS$28 -> -3117.475334 | BA28: 20 | BB28: 16451.98961 | BC28: 1.907325595 | BD28: 30248.34567 | BE28: 1.925391442 | BF28: -432.5 | BG28: -1187.264956 | BH28: -1867.549341 | BI28: -2494.299098 | BJ28: -3079.947322 | BK28: -3632.033168 | BL28: -4155.279492 | BM28: -4652.784152 | BN28: -5126.702265 | BO28: -5578.636527 | BP28: -6009.86036 | BQ28: -6421.445483 | BR28: -6795.625917 | BS28: -7152.816488 | BT28: -7493.773237 | BU28: -7819.206267 | BV28: -8129.787862 | BW28: -8426.157544 | BX28: -8708.92537 | BY28: -8978.674236 | BZ28: -9235.961606 | CA28: -9481.320908 | CB28: -9715.262714 | CC28: -9938.275807 | CD28: -10140.7066 | CE28: -10333.60148 | CF28: -10517.36899 | CG28: -10692.40031 | CH28: -10859.06996 | CI28: -11017.73656 | CJ28: -11168.74345 | CK28: -11312.41935 | CL28: -11449.07901 | CM28: -11579.02377 | CN28: -11702.54214 | CO28: -11819.91036 | CP28: -11926.08419 | CQ28: -12026.89373 | CR28: -12122.56985 | CS28: -12213.33357 | CT28: -12299.39651 | CU28: -12380.96124 | CV28: -12458.22172 | CW28: -12531.36363 | CX28: -12600.56471 | CY28: -12665.99516 | CZ28: -12727.81788 | DA28: -12786.18883 | DB28: -12838.63501 | DC28: -12888.07211 | DD28: -12934.63045 | DE28: -12978.43478 | DF28: -13019.6045 | DG28: -13058.25394 | DH28: -13094.49253 | DI28: -13128.42502 | DJ28: -13160.15169 | DK28: -13189.76853 | DL28: -13217.36742 | DM28: -13243.03631 | DN28: -13254.38063 | DS28: 20 | DT28: 16451.98961 | DU28: 1.907325595 | DV28: 30248.34567 | DW28: 1.925391442 | DX28: 20 | DY28: 40767.77823 | DZ28: 27513.3976 | EA28: tx A | EB28: 0 | EG28: 7600 | EH28: 1 | EI28: 0 | EJ28: -12948.86128 | EK28: -24253.41878 | EL28: 1
H29: 0.07 | I29: 8 | J29: =MMULT(J28:M28,J$4:M$7) -> 0.3794839978 | K29: 0.1489614836 | L29: 0.4578684161 | M29: 0.01368610242 | N29: 1 | O29: 23.3457045 | P29: 18.23728766 | Q29: 181.772221 | R29: 0 | S29: 0.02589978285 | T29: 0.008105987401 | U29: -0.005227331084 | V29: 0 | AA29: 0.07 | AB29: 8 | AC29: =MMULT(AC28:AF28,AC$4:AF$7) -> 0.4504581108 | AD29: 0.1866986107 | AE29: 0.3500831893 | AF29: 0.01276008922 | AG29: 1 | AH29: 417.3582695 | AI29: 184.3517255 | AJ29: 138.9818486 | AK29: 0 | AL29: 0.03074376606 | AM29: 0.01015951607 | AN29: -0.003996783078 | AO29: 0 | AP29: 517.3366303 | AQ29: 0.008128059879 | AR29: -273.494834 | AS29: -3390.970168 | AT29: =$AS$29 -> -3390.970168 | BA29: 21 | BB29: 17082.57022 | BC29: 0.6714433423 | BD29: 29708.44395 | BE29: 0.9013973453 | BF29: -432.5 | BG29: -1116.400875 | BH29: -1675.499189 | BI29: -2146.594805 | BJ29: -2553.85349 | BK29: -2913.24977 | BL29: -3235.442986 | BM29: -3527.638993 | BN29: -3794.79531 | BO29: -4040.401337 | BP29: -4266.983632 | BQ29: -4476.433274 | BR29: -4660.99028 | BS29: -4831.754602 | BT29: -4989.665957 | BU29: -5135.5333 | BV29: -5270.07129 | BW29: -5393.924323 | BX29: -5507.682493 | BY29: -5611.892333 | BZ29: -5707.064151 | CA29: -5793.677155 | CB29: -5872.183133 | CC29: -5943.009173 | CD29: -6003.533537 | CE29: -6057.494174 | CF29: -6105.237742 | CG29: -6147.093395 | CH29: -6183.373778 | CI29: -6214.375911 | CJ29: -6240.382004 | CK29: -6261.660204 | CL29: -6278.465301 | CM29: -6291.039384 | CN29: -6299.612467 | CO29: -6304.403073 | CP29: -6305.560905 | CQ29: -6303.501892 | CR29: -6298.404416 | CS29: -6290.437894 | CT29: -6279.763212 | CU29: -6266.533138 | CV29: -6250.892722 | CW29: -6232.979667 | CX29: -6212.924687 | CY29: -6190.85185 | CZ29: -6166.878901 | DA29: -6141.117574 | DB29: -6114.980724 | DC29: -6087.337408 | DD29: -6058.278487 | DE29: -6027.890138 | DF29: -5996.254087 | DG29: -5963.447826 | DH29: -5929.544824 | DI29: -5894.614725 | DJ29: -5858.723537 | DK29: -5821.933812 | DL29: -5784.304821 | DM29: -5745.892712 | DN29: -5727.253645 | DS29: 21 | DT29: 17082.57022 | DU29: 0.6714433423 | DV29: 29708.44395 | DW29: 0.9013973453 | DX29: 21 | DY29: 3060.730049 | DZ29: -2666.523595 | EA29: tx A | EB29: 0 | EG29: 8000 | EH29: 1 | EI29: 0 | EJ29: -12747.88377 | EK29: -23918.22546 | EL29: 1
A30: COSTS | B30: Treatment A | C30: Treatment B | H30: 0.08 | I30: 9 | J30: =MMULT(J29:M29,J$4:M$7) -> 0.3676378801 | K30: 0.1341492567 | L30: 0.4820808857 | M30: 0.01613197753 | N30: 1 | O30: 22.61693605 | P30: 16.42383335 | Q30: 191.38449 | R30: 0 | S30: 0.02509128532 | T30: 0.007299955383 | U30: -0.005503756778 | V30: 0 | AA30: 0.08 | AB30: 9 | AC30: =MMULT(AC29:AF29,AC$4:AF$7) -> 0.4411180986 | AD30: 0.1704345825 | AE30: 0.3734465977 | AF30: 0.01500072112 | AG30: 1 | AH30: 408.7045651 | AI30: 168.2921434 | AJ30: 148.2570431 | AK30: 0 | AL30: 0.03010631023 | AM30: 0.009274481866 | AN30: -0.004263515324 | AO30: 0 | AP30: 494.8284923 | AQ30: 0.008229792847 | AR30: -247.9347069 | AS30: -3638.904875 | AT30: =$AS$30 -> -3638.904875 | BA30: 22 | BB30: 16630.96965 | BC30: 0.7553506639 | BD30: 29897.71782 | BE30: 1.142104087 | BF30: -432.5 | BG30: -1074.046505 | BH30: -1564.078626 | BI30: -1949.10285 | BJ30: -2259.295149 | BK30: -2514.370636 | BL30: -2727.352911 | BM30: -2906.986027 | BN30: -3059.273373 | BO30: -3188.457159 | BP30: -3297.640804 | BQ30: -3389.184002 | BR30: -3461.345428 | BS30: -3519.944428 | BT30: -3566.220173 | BU30: -3601.252817 | BV30: -3626.003537 | BW30: -3641.340719 | BX30: -3648.05741 | BY30: -3646.883246 | BZ30: -3638.492844 | CA30: -3623.511968 | CB30: -3602.522222 | CC30: -3576.064796 | CD30: -3546.139817 | CE30: -3511.934293 | CF30: -3473.864345 | CG30: -3432.317333 | CH30: -3387.653697 | CI30: -3340.208645 | CJ30: -3290.293731 | CK30: -3238.198318 | CL30: -3184.19096 | CM30: -3128.520691 | CN30: -3071.418243 | CO30: -3013.097186 | CP30: -2956.580825 | CQ30: -2899.265695 | CR30: -2841.312081 | CS30: -2782.867677 | CT30: -2724.068393 | CU30: -2665.039116 | CV30: -2605.894419 | CW30: -2546.739239 | CX30: -2487.669504 | CY30: -2428.772732 | CZ30: -2370.128587 | DA30: -2311.809409 | DB30: -2256.639216 | DC30: -2201.897233 | DD30: -2147.63414 | DE30: -2093.895363 | DF30: -2040.721443 | DG30: -1988.148377 | DH30: -1936.207943 | DI30: -1884.928007 | DJ30: -1834.332804 | DK30: -1784.443211 | DL30: -1735.276991 | DM30: -1686.849033 | DN30: -1664.14548 | DS30: 22 | DT30: 16630.96965 | DU30: 0.7553506639 | DV30: 29897.71782 | DW30: 1.142104087 | DX30: 22 | DY30: 6029.55027 | DZ30: 4365.40479 | EA30: tx A | EB30: 0 | EG30: 8400 | EH30: 1 | EI30: 0 | EJ30: -12546.90627 | EK30: -23583.03215 | EL30: 1
A31: SILENT | B31: =Parameters!D24+Parameters!D27 -> 61.51960197 | C31: =Parameters!D24+Parameters!D28 -> 926.519602 | H31: 0.09 | I31: 10 | J31: =MMULT(J30:M30,J$4:M$7) -> 0.3541852495 | K31: 0.1232491785 | L31: 0.5039412244 | M31: 0.01862434755 | N31: 1 | O31: 21.78933557 | P31: 15.08934168 | Q31: 200.0629709 | R31: 0 | S31: 0.02417314328 | T31: 0.006706809466 | U31: -0.005753328979 | V31: 0 | AA31: 0.09 | AB31: 10 | AC31: =MMULT(AC30:AF30,AC$4:AF$7) -> 0.4293456257 | AD31: 0.158358441 | AE31: 0.3950087963 | AF31: 0.01728713701 | AG31: 1 | AH31: 397.7971382 | AI31: 156.3678044 | AJ31: 156.8171634 | AK31: 0 | AL31: 0.02930283895 | AM31: 0.008617338498 | AN31: -0.004509683758 | AO31: 0 | AP31: 474.0404578 | AQ31: 0.008283869926 | AR31: -225.52436 | AS31: -3864.429235 | AT31: =$AS$31 -> -3864.429235 | BA31: 23 | BB31: 17236.22814 | BC31: 0.9262293832 | BD31: 32140.85455 | BE31: 1.389252468 | BF31: -432.5 | BG31: -1119.730133 | BH31: -1677.832969 | BI31: -2139.846982 | BJ31: -2528.362255 | BK31: -2858.973944 | BL31: -3142.591663 | BM31: -3386.981604 | BN31: -3597.795149 | BO31: -3779.254405 | BP31: -3934.608904 | BQ31: -4066.439876 | BR31: -4171.604875 | BS31: -4258.082389 | BT31: -4327.34543 | BU31: -4380.697338 | BV31: -4419.311149 | BW31: -4444.256509 | BX31: -4456.518319 | BY31: -4457.009868 | BZ31: -4446.582309 | CA31: -4426.031657 | CB31: -4396.104141 | CC31: -4357.500427 | CD31: -4313.099126 | CE31: -4261.651797 | CF31: -4203.713312 | CG31: -4139.805698 | CH31: -4070.420055 | CI31: -3996.018303 | CJ31: -3917.034805 | CK31: -3833.877877 | CL31: -3746.931206 | CM31: -3656.555184 | CN31: -3563.088164 | CO31: -3466.847651 | CP31: -3372.832203 | CQ31: -3276.724776 | CR31: -3178.774407 | CS31: -3079.214244 | CT31: -2978.262413 | CU31: -2876.122841 | CV31: -2772.986036 | CW31: -2669.029827 | CX31: -2564.420064 | CY31: -2459.311288 | CZ31: -2353.847359 | DA31: -2248.162056 | DB31: -2147.416906 | DC31: -2046.689078 | DD31: -1946.080318 | DE31: -1845.684772 | DF31: -1745.589423 | DG31: -1645.874512 | DH31: -1546.61392 | DI31: -1447.875551 | DJ31: -1349.721676 | DK31: -1252.209273 | DL31: -1155.390338 | DM31: -1059.312188 | DN31: -1013.933881 | DS31: 23 | DT31: 17236.22814 | DU31: 0.9262293832 | DV31: 32140.85455 | DW31: 1.389252468 | DX31: 23 | DY31: 10550.65336 | DZ31: 9536.71948 | EA31: tx A | EB31: 0 | EG31: 8800 | EH31: 1 | EI31: 0 | EJ31: -12345.92876 | EK31: -23247.83883 | EL31: 1
A32: ACTIVE | B32: =Parameters!D25+Parameters!D27 -> 122.4295517 | C32: =Parameters!D25+Parameters!D28 -> 987.4295517 | H32: 0.10 | I32: 11 | J32: =MMULT(J31:M31,J$4:M$7) -> 0.340059716 | K32: 0.1147818203 | L32: 0.5240018238 | M32: 0.02115663989 | N32: 1 | O32: 20.92033837 | P32: 14.05268681 | Q32: 208.0269614 | R32: 0 | S32: 0.02320907561 | T32: 0.006246044057 | U32: -0.005982354155 | V32: 0 | AA32: 0.10 | AB32: 11 | AC32: =MMULT(AC31:AF31,AC$4:AF$7) -> 0.4162921963 | AD32: 0.1489435233 | AE32: 0.4151505453 | AF32: 0.0196137351 | AG32: 1 | AH32: 385.70288 | AI32: 147.0712364 | AJ32: 164.81337 | AK32: 0 | AL32: 0.0284119424 | AM32: 0.00810501006 | AN32: -0.004739635392 | AO32: 0 | AP32: 454.5874999 | AQ32: 0.008304551547 | AR32: -205.4509534 | AS32: -4069.880188 | AT32: =$AS$32 -> -4069.880188 | BA32: 24 | BB32: 19084.90301 | BC32: 1.013775254 | BD32: 32781.02448 | BE32: 1.480247926 | BF32: -432.5 | BG32: -1104.24008 | BH32: -1638.499838 | BI32: -2072.242572 | BJ32: -2430.108849 | BK32: -2728.699585 | BL32: -2979.381061 | BM32: -3190.111345 | BN32: -3366.623991 | BO32: -3513.192466 | BP32: -3633.122587 | BQ32: -3729.069354 | BR32: -3799.708879 | BS32: -3851.412617 | BT32: -3885.763925 | BU32: -3904.17999 | BV32: -3907.946923 | BW32: -3898.243414 | BX32: -3876.157058 | BY32: -3842.696007 | BZ32: -3798.797579 | CA32: -3745.334895 | CB32: -3683.122206 | CC32: -3612.919333 | CD32: -3539.125193 | CE32: -3459.027248 | CF32: -3373.213863 | CG32: -3282.233968 | CH32: -3186.599494 | CI32: -3086.787647 | CJ32: -2983.243033 | CK32: -2876.379643 | CL32: -2766.582721 | CM32: -2654.210517 | CN32: -2539.595941 | CO32: -2423.048112 | CP32: -2310.482129 | CQ32: -2196.601285 | CR32: -2081.640061 | CS32: -1965.815392 | CT32: -1849.32776 | CU32: -1732.362232 | CV32: -1615.089432 | CW32: -1497.666455 | CX32: -1380.237729 | CY32: -1262.935833 | CZ32: -1145.882251 | DA32: -1029.188101 | DB32: -918.489724 | DC32: -808.3182225 | DD32: -698.7535075 | DE32: -589.8679704 | DF32: -481.7269869 | DG32: -374.3893912 | DH32: -267.9079214 | DI32: -162.3296381 | DJ32: -57.69631755 | DK32: 45.95517891 | DL32: 148.592558 | DM32: 250.187769 | DN32: 298.0586874 | DS32: 24 | DT32: 19084.90301 | DU32: 1.013775254 | DV32: 32781.02448 | DW32: 1.480247926 | DX32: 24 | DY32: 11328.35462 | DZ32: 11626.41331 | EA32: tx B | EB32: 298.0586874 | EG32: 9200 | EH32: 1 | EI32: 0 | EJ32: -12144.95126 | EK32: -22912.64552 | EL32: 1
A33: COMPL | B33: =Parameters!D26 -> 396.9966362 | C33: =Parameters!E26 -> 396.9966362 | H33: 0.11 | I33: 12 | J33: =MMULT(J32:M32,J$4:M$7) -> 0.3258067606 | K33: 0.1078579426 | L33: 0.5426111275 | M33: 0.02372416931 | N33: 1 | O33: 20.04350223 | P33: 13.20499956 | Q33: 215.4147924 | R33: 0 | S33: 0.02223631141 | T33: 0.005869269712 | U33: -0.006194810372 | V33: 0 | AA33: 0.11 | AB33: 12 | AC33: =MMULT(AC32:AF32,AC$4:AF$7) -> 0.4026607988 | AD33: 0.1412442374 | AE33: 0.4341185046 | AF33: 0.02197645919 | AG33: 1 | AH33: 373.073123 | AI33: 139.468734 | AJ33: 172.3435861 | AK33: 0 | AL33: 0.02748159952 | AM33: 0.007686040584 | AN33: -0.004956186261 | AO33: 0 | AP33: 436.2221489 | AQ33: 0.008300683091 | AR33: -187.2016562 | AS33: -4257.081844 | AT33: =$AS$33 -> -4257.081844 | BA33: 25 | BB33: 17862.14651 | BC33: 1.282251764 | BD33: 33261.15836 | BE33: 1.727512793 | BF33: -432.5 | BG33: -1132.658809 | BH33: -1711.464362 | BI33: -2198.968062 | BJ33: -2615.953072 | BK33: -2976.86895 | BL33: -3291.865812 | BM33: -3568.187418 | BN33: -3811.116226 | BO33: -4024.609711 | BP33: -4211.72634 | BQ33: -4374.909488 | BR33: -4509.449172 | BS33: -4624.750207 | BT33: -4722.239279 | BU33: -4803.18838 | BV33: -4868.750208 | BW33: -4919.982132 | BX33: -4957.862647 | BY33: -4983.302911 | BZ33: -4997.155036 | CA33: -5000.218242 | CB33: -4993.243595 | CC33: -4976.93778 | CD33: -4953.155352 | CE33: -4921.716847 | CF33: -4883.184761 | CG33: -4838.089093 | CH33: -4786.929172 | CI33: -4730.175351 | CJ33: -4668.270584 | CK33: -4601.631906 | CL33: -4530.651815 | CM33: -4455.699594 | CN33: -4377.122548 | CO33: -4295.247176 | CP33: -4214.421571 | CQ33: -4131.02136 | CR33: -4045.304208 | CS33: -3957.511886 | CT33: -3867.871141 | CU33: -3776.594501 | CV33: -3683.881052 | CW33: -3589.91717 | CX33: -3494.877217 | CY33: -3398.924196 | CZ33: -3302.210387 | DA33: -3204.877928 | DB33: -3111.717414 | DC33: -3018.211612 | DD33: -2924.47004 | DE33: -2830.594548 | DF33: -2736.679749 | DG33: -2642.81343 | DH33: -2549.076942 | DI33: -2455.545568 | DJ33: -2362.288874 | DK33: -2269.371037 | DL33: -2176.851164 | DM33: -2084.783584 | DN33: -2041.180989 | DS33: 25 | DT33: 17862.14651 | DU33: 1.282251764 | DV33: 33261.15836 | DW33: 1.727512793 | DX33: 25 | DY33: 20605.40642 | DZ33: 18564.22543 | EA33: tx A | EB33: 0 | EG33: 9600 | EH33: 1 | EI33: 0 | EJ33: -11943.97375 | EK33: -22577.4522 | EL33: 1
A34: DEAD | B34: 0 | C34: 0 | H34: 1.00 | I34: 13 | J34: =MMULT(J33:M33,J$4:M$7) -> 0.3117402589 | K34: 0.1019415731 | L34: 0.5599947535 | M34: 0.02632341453 | N34: =N22/(1+disc) -> 0.9661835749 | O34: 18.52960062 | P34: 12.05860975 | Q34: 214.7980999 | R34: 0 | S34: 0.02055678519 | T34: 0.005359730051 | U34: -0.006177075783 | V34: 0 | AA34: 1.00 | AB34: 13 | AC34: =MMULT(AC33:AF33,AC$4:AF$7) -> 0.3888777288 | AD34: 0.1346739492 | AE34: 0.4520760919 | AF34: 0.02437223017 | AG34: =AG22/(1+disc) -> 0.9661835749 | AH34: 348.1186845 | AI34: 128.4840939 | AJ34: 173.4035631 | AK34: 0 | AL34: 0.02564338646 | AM34: 0.007080683478 | AN34: -0.004986668646 | AO34: 0 | AP34: 404.6200313 | AQ34: 0.007997961839 | AR34: -164.6811761 | AS34: -4421.763021 | AT34: =$AS$34 -> -4421.763021 | BA34: 26 | BB34: 17465.66062 | BC34: -0.1038244616 | BD34: 29727.98755 | BE34: 0.311541102 | BF34: -432.5 | BG34: -1085.239364 | BH34: -1596.943651 | BI34: -2010.829736 | BJ34: -2353.464526 | BK34: -2641.494078 | BL34: -2885.632138 | BM34: -3093.025912 | BN34: -3268.660679 | BO34: -3416.194915 | BP34: -3538.45788 | BQ34: -3637.747033 | BR34: -3712.280016 | BS34: -3768.40319 | BT34: -3807.564449 | BU34: -3831.080469 | BV34: -3840.161681 | BW34: -3835.928709 | BX34: -3819.423659 | BY34: -3791.618263 | BZ34: -3753.420087 | CA34: -3705.677495 | CB34: -3649.183827 | CC34: -3584.681024 | CD34: -3516.282787 | CE34: -3441.535258 | CF34: -3361.015689 | CG34: -3275.2633 | CH34: -3184.781536 | CI34: -3090.040194 | CJ34: -2991.477414 | CK34: -2889.50157 | CL34: -2784.493036 | CM34: -2676.805866 | CN34: -2566.769371 | CO34: -2454.689613 | CP34: -2346.271704 | CQ34: -2236.429656 | CR34: -2125.396266 | CS34: -2013.387113 | CT34: -1900.601615 | CU34: -1787.224036 | CV34: -1673.424426 | CW34: -1559.359515 | CX34: -1445.173552 | CY34: -1330.999095 | CZ34: -1216.957759 | DA34: -1103.160917 | DB34: -995.1127716 | DC34: -887.4828431 | DD34: -780.3515803 | DE34: -673.7919887 | DF34: -567.8701261 | DG34: -462.6455695 | DH34: -358.1718532 | DI34: -254.4968821 | DJ34: -151.6633193 | DK34: -49.70895126 | DL34: 51.33296948 | DM34: 151.4334021 | DN34: 198.6399796 | DS34: 26 | DT34: 17465.66062 | DU34: -0.1038244616 | DV34: 29727.98755 | DW34: 0.311541102 | DX34: 26 | DY34: -20580.39447 | DZ34: -20381.75449 | EA34: tx B | EB34: 198.6399796 | EG34: 10000 | EH34: 1 | EI34: 0 | EJ34: -11742.99625 | EK34: -22242.25888 | EL34: 1
H35: 1.01 | I35: 14 | J35: =MMULT(J34:M34,J$4:M$7) -> 0.2980360933 | K35: 0.09670826036 | L35: 0.5763040625 | M35: 0.02895158381 | N35: 0.9661835749 | O35: 17.71503559 | P35: 11.43956421 | Q35: 221.0538882 | R35: 0 | S35: 0.0196531047 | T35: 0.005084580839 | U35: -0.006356977179 | V35: 0 | AA35: 1.01 | AB35: 14 | AC35: =MMULT(AC34:AF34,AC$4:AF$7) -> 0.375198692 | AD35: 0.1288678068 | AE35: 0.4691349072 | AF35: 0.02679859405 | AG35: 0.9661835749 | AH35: 335.8733746 | AI35: 122.9448122 | AJ35: 179.9468407 | AK35: 0 | AL35: 0.02474136302 | AM35: 0.006775416893 | AN35: -0.005174837544 | AO35: 0 | AP35: 388.5565396 | AQ35: 0.007961234008 | AR35: -149.7195193 | AS35: -4571.48254 | AT35: =$AS$35 -> -4571.48254 | BA35: 27 | BB35: 17408.98541 | BC35: 0.8052050014 | BD35: 31557.48323 | BE35: 1.036386469 | BF35: -432.5 | BG35: -1129.307903 | BH35: -1715.347223 | BI35: -2225.216271 | BJ35: -2679.945196 | BK35: -3092.494815 | BL35: -3471.021337 | BM35: -3820.81373 | BN35: -4145.442917 | BO35: -4447.443264 | BP35: -4728.71671 | BQ35: -4990.772552 | BR35: -5223.246212 | BS35: -5439.658236 | BT35: -5640.941268 | BU35: -5827.948118 | BV35: -6001.469668 | BW35: -6162.246069 | BX35: -6310.973979 | BY35: -6448.311444 | BZ35: -6574.881371 | CA35: -6691.274149 | CB35: -6798.049754 | CC35: -6895.739514 | CD35: -6980.604419 | CE35: -7057.752123 | CF35: -7127.615153 | CG35: -7190.603955 | CH35: -7247.107977 | CI35: -7297.496696 | CJ35: -7342.120591 | CK35: -7381.312069 | CL35: -7415.386346 | CM35: -7444.642285 | CN35: -7469.363197 | CO35: -7489.817603 | CP35: -7505.476985 | CQ35: -7517.544965 | CR35: -7526.23903 | CS35: -7531.765157 | CT35: -7534.318381 | CU35: -7534.083332 | CV35: -7531.234759 | CW35: -7525.938018 | CX35: -7518.349539 | CY35: -7508.617276 | CZ35: -7496.881131 | DA35: -7483.273355 | DB35: -7468.650101 | DC35: -7452.47585 | DD35: -7434.856834 | DE35: -7415.89337 | DF35: -7395.680155 | DG35: -7374.306553 | DH35: -7351.856872 | DI35: -7328.41062 | DJ35: -7304.042755 | DK35: -7278.823914 | DL35: -7252.820644 | DM35: -7226.095609 | DN35: -7213.053793 | DS35: 27 | DT35: 17408.98541 | DU35: 0.8052050014 | DV35: 31557.48323 | DW35: 1.036386469 | DX35: 27 | DY35: 6747.16463 | DZ35: -465.8891627 | EA35: tx A | EB35: 0 | EG35: 10400 | EH35: 1 | EI35: 0 | EJ35: -11542.01874 | EK35: -21907.06557 | EL35: 1
A36: UTILITIES | B36: Value per month (converted) | C36: Value per year (reference) | H36: 1.02 | I36: 15 | J36: =MMULT(J35:M35,J$4:M$7) -> 0.284788131 | K36: 0.0919602668 | L36: 0.5916452486 | M36: 0.03160635362 | N36: 0.9661835749 | O36: 16.92758692 | P36: 10.8779268 | Q36: 226.9383319 | R36: 0 | S36: 0.01877950719 | T36: 0.004834948005 | U36: -0.006526199602 | V36: 0 | AA36: 1.02 | AB36: 15 | AC36: =MMULT(AC35:AF35,AC$4:AF$7) -> 0.3617743205 | AD36: 0.1235980204 | AE36: 0.4853741553 | AF36: 0.0292535038 | AG36: 0.9661835749 | AH36: 323.8560381 | AI36: 117.9172346 | AJ36: 186.1757555 | AK36: 0 | AL36: 0.02385613273 | AM36: 0.006498350024 | AN36: -0.005353966126 | AO36: 0 | AP36: 373.2051826 | AQ36: 0.007912261039 | AR36: -135.8373515 | AS36: -4707.319891 | AT36: =$AS$36 -> -4707.319891 | BA36: 28 | BB36: 17383.53956 | BC36: 0.9926362502 | BD36: 30627.37111 | BE36: 1.251776206 | BF36: -432.5 | BG36: -1069.403056 | BH36: -1564.830125 | BI36: -1970.03581 | BJ36: -2315.483673 | BK36: -2619.405383 | BL36: -2892.828583 | BM36: -3142.531487 | BN36: -3372.77986 | BO36: -3586.348719 | BP36: -3785.123694 | BQ36: -3970.455298 | BR36: -4135.133976 | BS36: -4288.767648 | BT36: -4432.015631 | BU36: -4565.455437 | BV36: -4689.607621 | BW36: -4804.950824 | BX36: -4911.931012 | BY36: -5010.967285 | BZ36: -5102.455645 | CA36: -5186.771545 | CB36: -5264.27171 | CC36: -5335.295503 | CD36: -5397.076949 | CE36: -5453.291229 | CF36: -5504.217585 | CG36: -5550.122095 | CH36: -5591.258305 | CI36: -5627.867816 | CJ36: -5660.18084 | CK36: -5688.416728 | CL36: -5712.784462 | CM36: -5733.483135 | CN36: -5750.702402 | CO36: -5764.622909 | CP36: -5774.902718 | CQ36: -5782.360759 | CR36: -5787.145626 | CS36: -5789.398803 | CT36: -5789.254991 | CU36: -5786.842414 | CV36: -5782.283125 | CW36: -5775.693286 | CX36: -5767.183441 | CY36: -5756.858774 | CZ36: -5744.81936 | DA36: -5731.1604 | DB36: -5716.695684 | DC36: -5700.856807 | DD36: -5683.721765 | DE36: -5665.364721 | DF36: -5645.856178 | DG36: -5625.263156 | DH36: -5603.649349 | DI36: -5581.075288 | DJ36: -5557.598482 | DK36: -5533.273568 | DL36: -5508.15244 | DM36: -5482.284383 | DN36: -5469.632864 | DS36: 28 | DT36: 17383.53956 | DU36: 0.9926362502 | DV36: 30627.37111 | DW36: 1.251776206 | DX36: 28 | DY36: 12395.54795 | DZ36: 6925.915086 | EA36: tx A | EB36: 0 | EG36: 10800 | EH36: 1 | EI36: 0 | EJ36: -11341.04124 | EK36: -21571.87225 | EL36: 1
A37: SILENT | B37: =C37/12 -> 0.06825 | C37: =Parameters!D32 -> 0.819 | H37: 1.03 | I37: 16 | J37: =MMULT(J36:M36,J$4:M$7) -> 0.2720416878 | K37: 0.08757582527 | L37: 0.6060967761 | M37: 0.03428571078 | N37: 0.9661835749 | O37: 16.16994817 | P37: 10.35929375 | Q37: 232.4815279 | R37: 0 | S37: 0.01793898086 | T37: 0.004604429461 | U37: -0.006685608561 | V37: 0 | AA37: 1.03 | AB37: 16 | AC37: =MMULT(AC36:AF36,AC$4:AF$7) -> 0.348690624 | AD37: 0.1187215374 | AE37: 0.5008526547 | AF37: 0.03173518387 | AG37: 0.9661835749 | AH37: 312.1436697 | AI37: 113.2648836 | AJ37: 192.1128687 | AK37: 0 | AL37: 0.02299336724 | AM37: 0.00624196167 | AN37: -0.005524703196 | AO37: 0 | AP37: 358.5106523 | AQ37: 0.007852823946 | AR37: -122.9259339 | AS37: -4830.245825 | AT37: =$AS$37 -> -4830.245825 | BA37: 29 | BB37: 16120.14185 | BC37: 0.6272359118 | BD37: 31778.76705 | BE37: 1.046444999 | BF37: -432.5 | BG37: -1122.124146 | BH37: -1691.595419 | BI37: -2175.124726 | BJ37: -2594.188081 | BK37: -2962.524784 | BL37: -3289.157629 | BM37: -3580.219413 | BN37: -3840.058724 | BO37: -4071.910346 | BP37: -4278.302508 | BQ37: -4461.304968 | BR37: -4614.996193 | BS37: -4749.566463 | BT37: -4866.343665 | BU37: -4966.542412 | BV37: -5051.286286 | BW37: -5121.622458 | BX37: -5178.53163 | BY37: -5222.935084 | BZ37: -5255.69993 | CA37: -5277.643212 | CB37: -5289.535267 | CC37: -5292.102605 | CD37: -5286.319588 | CE37: -5272.923903 | CF37: -5252.495837 | CG37: -5225.582396 | CH37: -5192.699053 | CI37: -5154.331389 | CJ37: -5110.936658 | CK37: -5062.945253 | CL37: -5010.76211 | CM37: -4954.768036 | CN37: -4895.32097 | CO37: -4832.757181 | CP37: -4770.505019 | CQ37: -4705.867443 | CR37: -4639.109102 | CS37: -4570.478039 | CT37: -4500.206577 | CU37: -4428.512162 | CV37: -4355.598164 | CW37: -4281.654633 | CX37: -4206.859029 | CY37: -4131.376903 | CZ37: -4055.362548 | DA37: -3978.959624 | DB37: -3905.952117 | DC37: -3832.820003 | DD37: -3759.672958 | DE37: -3686.612608 | DF37: -3613.732978 | DG37: -3541.120926 | DH37: -3468.856555 | DI37: -3397.013598 | DJ37: -3325.65979 | DK37: -3254.857214 | DL37: -3184.662638 | DM37: -3115.127824 | DN37: -3082.352588 | DS37: 29 | DT37: 16120.14185 | DU37: 0.6272359118 | DV37: 31778.76705 | DW37: 1.046444999 | DX37: 29 | DY37: 2696.935502 | DZ37: -385.4170855 | EA37: tx A | EB37: 0 | EG37: 11200 | EH37: 1 | EI37: 0 | EJ37: -11140.06373 | EK37: -21236.67893 | EL37: 1
A38: ACTIVE | B38: =C38/12 -> 0.05441666667 | C38: =Parameters!D33 -> 0.653 | H38: 1.04 | I38: 17 | J38: =MMULT(J37:M37,J$4:M$7) -> 0.259813525 | K38: 0.08347877479 | L38: 0.6197198435 | M38: 0.03698785671 | N38: 0.9661835749 | O38: 15.4431156 | P38: 9.874656013 | Q38: 237.70695 | R38: 0 | S38: 0.017132631 | T38: 0.004389020929 | U38: -0.006835879111 | V38: 0 | AA38: 1.04 | AB38: 17 | AC38: =MMULT(AC37:AF37,AC$4:AF$7) -> 0.3359939612 | AD38: 0.1141477248 | AE38: 0.5156162683 | AF38: 0.03424204574 | AG38: 0.9661835749 | AH38: 300.7777693 | AI38: 108.9012915 | AJ38: 197.7757721 | AK38: 0 | AL38: 0.02215612353 | AM38: 0.006001486658 | AN38: -0.00568755465 | AO38: 0 | AP38: 344.4301112 | AQ38: 0.00778428272 | AR38: -110.9016297 | AS38: -4941.147455 | AT38: =$AS$38 -> -4941.147455 | BA38: 30 | BB38: 16842.23114 | BC38: 0.4699294236 | BD38: 31160.78788 | BE38: 0.8058786527 | BF38: -432.5 | BG38: -1099.882473 | BH38: -1639.312614 | BI38: -2092.399931 | BJ38: -2484.19967 | BK38: -2830.001085 | BL38: -3139.32926 | BM38: -3418.301486 | BN38: -3671.013147 | BO38: -3900.351978 | BP38: -4108.476096 | BQ38: -4297.094571 | BR38: -4459.511365 | BS38: -4605.886909 | BT38: -4737.276087 | BU38: -4854.642687 | BV38: -4958.879191 | BW38: -5050.819068 | BX38: -5131.244722 | BY38: -5200.892882 | BZ38: -5260.458486 | CA38: -5310.59768 | CB38: -5351.930264 | CC38: -5385.041796 | CD38: -5409.273864 | CE38: -5426.700868 | CF38: -5437.792797 | CG38: -5442.993396 | CH38: -5442.721511 | CI38: -5437.372367 | CJ38: -5427.318779 | CK38: -5412.912301 | CL38: -5394.484323 | CM38: -5372.347114 | CN38: -5346.794807 | CO38: -5318.104344 | CP38: -5288.039611 | CQ38: -5255.46792 | CR38: -5220.608863 | CS38: -5183.668825 | CT38: -5144.841685 | CU38: -5104.309481 | CV38: -5062.243032 | CW38: -5018.802547 | CX38: -4974.138183 | CY38: -4928.390595 | CZ38: -4881.691443 | DA38: -4834.163882 | DB38: -4788.220209 | DC38: -4741.699599 | DD38: -4694.697601 | DE38: -4647.303301 | DF38: -4599.599677 | DG38: -4551.663944 | DH38: -4503.567873 | DI38: -4455.378099 | DJ38: -4407.156412 | DK38: -4358.960034 | DL38: -4310.841878 | DM38: -4262.850799 | DN38: -4240.079861 | DS38: 30 | DT38: 16842.23114 | DU38: 0.4699294236 | DV38: 31160.78788 | DW38: 0.8058786527 | DX38: 30 | DY38: -2744.348437 | DZ38: -6984.428298 | EA38: tx A | EB38: 0 | EG38: 11600 | EH38: 1 | EI38: 0 | EJ38: -10939.08623 | EK38: -20901.48562 | EL38: 1
A39: COMPL | B39: -0.01141666667 | C39: =Parameters!D34 -> -0.137 | H39: 1.05 | I39: 18 | J39: =MMULT(J38:M38,J$4:M$7) -> 0.2481037894 | K39: 0.07962038805 | L39: 0.6325646737 | M39: 0.03971114883 | N39: 0.9661835749 | O39: 14.74709794 | P39: 9.418249676 | Q39: 242.6338625 | R39: 0 | S39: 0.01636046727 | T39: 0.004186160499 | U39: -0.006977565241 | V39: 0 | AA39: 1.05 | AB39: 18 | AC39: =MMULT(AC38:AF38,AC$4:AF$7) -> 0.3237064525 | AD39: 0.1098184066 | AE39: 0.5297025059 | AF39: 0.03677263508 | AG39: 0.9661835749 | AH39: 289.7781386 | AI39: 104.7709565 | AJ39: 203.1788532 | AK39: 0 | AL39: 0.02134586027 | AM39: 0.005773866303 | AN39: -0.005842934244 | AO39: 0 | AP39: 330.9287382 | AQ39: 0.007707729799 | AR39: -99.69684424 | AS39: -5040.844299 | AT39: =$AS$39 -> -5040.844299 | BA39: 31 | BB39: 18570.75743 | BC39: 1.081462142 | BD39: 30315.32007 | BE39: 1.228869496 | BF39: -432.5 | BG39: -1138.639765 | BH39: -1735.639216 | BI39: -2255.078707 | BJ39: -2717.179352 | BK39: -3135.038331 | BL39: -3517.275972 | BM39: -3869.69122 | BN39: -4196.297677 | BO39: -4499.972558 | BP39: -4782.863621 | BQ39: -5046.644715 | BR39: -5280.960786 | BS39: -5499.467251 | BT39: -5703.118237 | BU39: -5892.766639 | BV39: -6069.189241 | BW39: -6233.103075 | BX39: -6385.176258 | BY39: -6526.035354 | BZ39: -6656.27051 | CA39: -6776.439187 | CB39: -6887.068983 | CC39: -6988.659856 | CD39: -7077.25614 | CE39: -7158.123981 | CF39: -7231.67008 | CG39: -7298.280541 | CH39: -7358.321946 | CI39: -7412.14236 | CJ39: -7460.072263 | CK39: -7502.425437 | CL39: -7539.499793 | CM39: -7571.578159 | CN39: -7598.929031 | CO39: -7621.807277 | CP39: -7639.566837 | CQ39: -7653.515823 | CR39: -7663.861765 | CS39: -7670.801599 | CT39: -7674.522193 | CU39: -7675.200848 | CV39: -7673.005772 | CW39: -7668.096532 | CX39: -7660.624485 | CY39: -7650.733184 | CZ39: -7638.558772 | DA39: -7624.230347 | DB39: -7608.649368 | DC39: -7591.244054 | DD39: -7572.119183 | DE39: -7551.374071 | DF39: -7529.102847 | DG39: -7505.394713 | DH39: -7480.334195 | DI39: -7454.001376 | DJ39: -7426.472122 | DK39: -7397.818295 | DL39: -7368.107955 | DM39: -7337.405553 | DN39: -7322.342011 | DS39: 31 | DT39: 18570.75743 | DU39: 1.081462142 | DV39: 30315.32007 | DW39: 1.228869496 | DX39: 31 | DY39: 13873.10681 | DZ39: 6550.764804 | EA39: tx A | EB39: 0 | EG39: 12000 | EH39: 1 | EI39: 0 | EJ39: -10738.10872 | EK39: -20566.2923 | EL39: 1
A40: DEAD | B40: 0 | C40: 0 | H40: 1.06 | I40: 19 | J40: =MMULT(J39:M39,J$4:M$7) -> 0.2369031357 | K40: 0.07596849307 | L40: 0.644674307 | M40: 0.04245406422 | N40: 0.9661835749 | O40: 14.08133972 | P40: 8.986269131 | Q40: 247.2787742 | R40: 0 | S40: 0.01562187344 | T40: 0.003994156681 | U40: -0.007111141712 | V40: 0 | AA40: 1.06 | AB40: 19 | AC40: =MMULT(AC39:AF39,AC$4:AF$7) -> 0.311835489 | AD40: 0.1056955329 | AE40: 0.5431433797 | AF40: 0.03932559841 | AG40: 0.9661835749 | AH40: 279.1513943 | AI40: 100.8375774 | AJ40: 208.3343911 | AK40: 0 | AL40: 0.02056306485 | AM40: 0.005557100077 | AN40: -0.00599119509 | AO40: 0 | AP40: 317.9769797 | AQ40: 0.007624081429 | AR40: -89.25453684 | AS40: -5130.098836 | AT40: =$AS$40 -> -5130.098836 | BA40: 32 | BB40: 16352.98066 | BC40: -0.3175406199 | BD40: 30944.07109 | BE40: 0.2973341501 | BF40: -432.5 | BG40: -1028.390708 | BH40: -1449.693301 | BI40: -1753.71311 | BJ40: -1975.5539 | BK40: -2137.052328 | BL40: -2252.095583 | BM40: -2329.787448 | BN40: -2376.334402 | BO40: -2396.170266 | BP40: -2392.627815 | BQ40: -2368.340805 | BR40: -2327.526278 | BS40: -2270.803801 | BT40: -2199.737704 | BU40: -2115.733031 | BV40: -2020.06866 | BW40: -1913.918814 | BX40: -1798.367575 | BY40: -1674.41914 | BZ40: -1543.005463 | CA40: -1404.992252 | CB40: -1261.183918 | CC40: -1112.327817 | CD40: -966.4137052 | CE40: -816.9666714 | CF40: -664.555627 | CG40: -509.7076772 | CH40: -352.9106918 | CI40: -194.6157158 | CJ40: -35.23923457 | CK40: 124.8346925 | CL40: 285.2524228 | CM40: 445.6888358 | CN40: 605.8455458 | CO40: 765.4492179 | CP40: 916.6880368 | CQ40: 1066.945119 | CR40: 1216.022976 | CS40: 1363.742424 | CT40: 1509.941383 | CU40: 1654.473756 | CV40: 1797.208363 | CW40: 1938.027941 | CX40: 2076.828205 | CY40: 2213.516962 | CZ40: 2348.013271 | DA40: 2480.246663 | DB40: 2603.970224 | DC40: 2725.431542 | DD40: 2844.589365 | DE40: 2961.409837 | DF40: 3075.865955 | DG40: 3187.93705 | DH40: 3297.608304 | DI40: 3404.870291 | DJ40: 3509.718559 | DK40: 3612.153221 | DL40: 3712.178583 | DM40: 3809.802796 | DN40: 3855.152666 | DS40: 32 | DT40: 16352.98066 | DU40: -0.3175406199 | DV40: 30944.07109 | DW40: 0.2973341501 | DX40: 32 | DY40: -25879.19925 | DZ40: -22024.04659 | EA40: tx B | EB40: 3855.152666 | EG40: 12400 | EH40: 1 | EI40: 0 | EJ40: -10537.13121 | EK40: -20231.09898 | EL40: 1
H41: 1.07 | I41: 20 | J41: =MMULT(J40:M40,J$4:M$7) -> 0.2261969671 | K41: 0.0725009588 | L41: 0.6560868974 | M41: 0.04521517672 | N41: 0.9661835749 | O41: 13.44497332 | P41: 8.576096506 | Q41: 251.6563201 | R41: 0 | S41: 0.01491588696 | T41: 0.003811845901 | U41: -0.007237029383 | V41: 0 | AA41: 1.07 | AB41: 20 | AC41: =MMULT(AC40:AF40,AC$4:AF$7) -> 0.3003795967 | AD41: 0.1017535615 | AE41: 0.5559671799 | AF41: 0.04189966186 | AG41: 0.9661835749 | AH41: 268.8962168 | AI41: 97.07678611 | AJ41: 213.253237 | AK41: 0 | AL41: 0.01980764007 | AM41: 0.005349845061 | AN41: -0.006132649247 | AO41: 0 | AP41: 305.5488499 | AQ41: 0.007534132405 | AR41: -79.52487779 | AS41: -5209.623714 | AT41: =$AS$41 -> -5209.623714 | BA41: 33 | BB41: 16587.64802 | BC41: 0.3759743616 | BD41: 32878.12586 | BE41: 0.9677885929 | BF41: -432.5 | BG41: -1112.031915 | BH41: -1662.686155 | BI41: -2119.27522 | BJ41: -2503.620307 | BK41: -2829.765149 | BL41: -3107.072796 | BM41: -3342.067207 | BN41: -3539.53016 | BO41: -3703.156067 | BP41: -3835.944092 | BQ41: -3940.434043 | BR41: -4015.11517 | BS41: -4066.862415 | BT41: -4097.408447 | BU41: -4108.352106 | BV41: -4101.179759 | BW41: -4077.279767 | BX41: -4037.952756 | BY41: -3984.419299 | BZ41: -3917.825968 | CA41: -3839.250335 | CB41: -3749.705278 | CC41: -3650.142803 | CD41: -3546.633005 | CE41: -3435.235187 | CF41: -3316.700933 | CG41: -3191.735693 | CH41: -3061.00129 | CI41: -2925.118278 | CJ41: -2784.668188 | CK41: -2640.195644 | CL41: -2492.21037 | CM41: -2341.1891 | CN41: -2187.577384 | CO41: -2031.791299 | CP41: -1881.722519 | CQ41: -1730.297358 | CR41: -1577.836858 | CS41: -1424.639728 | CT41: -1270.9836 | CU41: -1117.126213 | CV41: -963.3065426 | CW41: -809.7458712 | CX41: -656.6487996 | CY41: -504.2042079 | CZ41: -352.5861661 | DA41: -201.9547963 | DB41: -59.57602886 | DC41: 81.59483402 | DD41: 221.4406367 | DE41: 359.8546312 | DF41: 496.7398503 | DG41: 632.0085147 | DH41: 765.5814717 | DI41: 897.3876634 | DJ41: 1027.363624 | DK41: 1155.453004 | DL41: 1281.60612 | DM41: 1405.779529 | DN41: 1463.9491 | DS41: 33 | DT41: 16587.64802 | DU41: 0.3759743616 | DV41: 32878.12586 | DW41: 0.9677885929 | DX41: 33 | DY41: -5308.417174 | DZ41: -3844.468074 | EA41: tx B | EB41: 1463.9491 | EG41: 12800 | EH41: 1 | EI41: 0 | EJ41: -10336.15371 | EK41: -19895.90567 | EL41: 1
A42: Other parameters | B42: Values | H42: 1.08 | I42: 21 | J42: =MMULT(J41:M41,J$4:M$7) -> 0.2159679528 | K42: 0.06920179166 | L42: 0.6668371135 | M42: 0.04799314204 | N42: 0.9661835749 | O42: 12.83696859 | P42: 8.185839933 | Q42: 255.779798 | R42: 0 | S42: 0.01424136501 | T42: 0.003638387275 | U42: -0.007355610672 | V42: 0 | AA42: 1.08 | AB42: 21 | AC42: =MMULT(AC41:AF41,AC$4:AF$7) -> 0.2893320489 | AD42: 0.09797474998 | AE42: 0.5681995837 | AF42: 0.04449361738 | AG42: 0.9661835749 | AH42: 259.0065843 | AI42: 93.47165551 | AJ42: 217.94524 | AK42: 0 | AL42: 0.01907914236 | AM42: 0.005151168417 | AN42: -0.006267579949 | AO42: 0 | AP42: 293.6208733 | AQ42: 0.007438589215 | AR42: -70.46319687 | AS42: -5280.086911 | AT42: =$AS$42 -> -5280.086911 | BA42: 34 | BB42: 17330.55428 | BC42: 0.5306801191 | BD42: 31292.55105 | BE42: 0.9398186211 | BF42: -432.5 | BG42: -1105.214439 | BH42: -1645.531145 | BI42: -2091.072701 | BJ42: -2465.828544 | BK42: -2785.40338 | BL42: -3060.216062 | BM42: -3297.454423 | BN42: -3502.273338 | BO42: -3678.531443 | BP42: -3829.245952 | BQ42: -3956.874819 | BR42: -4058.415857 | BS42: -4141.663477 | BT42: -4208.14256 | BU42: -4259.22951 | BV42: -4296.180939 | BW42: -4320.153106 | BX42: -4332.215527 | BY42: -4333.360879 | BZ42: -4324.512524 | CA42: -4306.53047 | CB42: -4280.216283 | CC42: -4246.317288 | CD42: -4207.472493 | CE42: -4162.686242 | CF42: -4112.534975 | CG42: -4057.555629 | CH42: -3998.248085 | CI42: -3935.077453 | CJ42: -3868.476208 | CK42: -3798.846195 | CL42: -3726.560518 | CM42: -3651.965309 | CN42: -3575.381403 | CO42: -3497.105903 | CP42: -3421.208534 | CQ42: -3344.203802 | CR42: -3266.315006 | CS42: -3187.748015 | CT42: -3108.692376 | CU42: -3029.322363 | CV42: -2949.797955 | CW42: -2870.265765 | CX42: -2790.859913 | CY42: -2711.702843 | CZ42: -2632.906096 | DA42: -2554.571038 | DB42: -2480.49342 | DC42: -2407.022066 | DD42: -2334.228185 | DE42: -2262.175669 | DF42: -2190.921602 | DG42: -2120.516736 | DH42: -2051.005936 | DI42: -1982.428604 | DJ42: -1914.819073 | DK42: -1848.206974 | DL42: -1782.617585 | DM42: -1718.072159 | DN42: -1687.841714 | DS42: 34 | DT42: 17330.55428 | DU42: 0.5306801191 | DV42: 31292.55105 | DW42: 0.9398186211 | DX42: 34 | DY42: -1410.150706 | DZ42: -3097.992419 | EA42: tx A | EB42: 0 | EG42: 13200 | EH42: 0.9998 | EI42: 0.0002 | EJ42: -10135.1762 | EK42: -19560.71235 | EL42: 0.9998
A43: discount rate | B43: 0.035 | H43: 1.09 | I43: 22 | J43: =MMULT(J42:M42,J$4:M$7) -> 0.2061975157 | K43: 0.0660587945 | L43: 0.676957002 | M43: 0.05078668784 | N43: 0.9661835749 | O43: 12.25622134 | P43: 7.814056615 | Q43: 259.6615002 | R43: 0 | S43: 0.01359708255 | T43: 0.003473139518 | U43: -0.007467239072 | V43: 0 | AA43: 1.09 | AB43: 22 | AC43: =MMULT(AC42:AF42,AC$4:AF$7) -> 0.2786830896 | AD43: 0.09434624524 | AE43: 0.5798643515 | AF43: 0.04710631367 | AG43: 0.9661835749 | AH43: 249.4737635 | AI43: 90.00992333 | AJ43: 222.419514 | AK43: 0 | AL43: 0.01837692837 | AM43: 0.004960394376 | AN43: -0.006396249288 | AO43: 0 | AP43: 282.1714228 | AQ43: 0.007338090459 | AR43: -62.02870897 | AS43: -5342.11562 | AT43: =$AS$43 -> -5342.11562 | BA43: 35 | BB43: 16604.57584 | BC43: 1.374978786 | BD43: 30363.10914 | BE43: 1.466616619 | BF43: -432.5 | BG43: -1176.312528 | BH43: -1829.233018 | BI43: -2412.962547 | BJ43: -2942.978372 | BK43: -3430.305645 | BL43: -3882.814416 | BM43: -4306.15453 | BN43: -4704.421501 | BO43: -5080.62634 | BP43: -5437.024589 | BQ43: -5775.345363 | BR43: -6081.63553 | BS43: -6373.056247 | BT43: -6650.48406 | BU43: -6914.670773 | BV43: -7166.277342 | BW43: -7405.897175 | BX43: -7634.072173 | BY43: -7851.303838 | BZ43: -8058.060997 | CA43: -8254.785239 | CB43: -8441.894784 | CC43: -8619.787297 | CD43: -8780.791744 | CE43: -8933.724243 | CF43: -9078.914942 | CG43: -9216.680045 | CH43: -9347.322618 | CI43: -9471.133271 | CJ43: -9588.390769 | CK43: -9699.362577 | CL43: -9804.305359 | CM43: -9903.465444 | CN43: -9997.079257 | CO43: -10085.37373 | CP43: -10164.60513 | CQ43: -10239.17708 | CR43: -10309.28076 | CS43: -10375.09964 | CT43: -10436.80988 | CU43: -10494.58056 | CV43: -10548.57399 | CW43: -10598.94597 | CX43: -10645.84606 | CY43: -10689.41783 | CZ43: -10729.79909 | DA43: -10767.12211 | DB43: -10799.87617 | DC43: -10829.95465 | DD43: -10857.46896 | DE43: -10882.52605 | DF43: -10905.22859 | DG43: -10925.67512 | DH43: -10943.96022 | DI43: -10960.17467 | DJ43: -10974.40562 | DK43: -10986.7367 | DL43: -10997.2482 | DM43: -11006.01715 | DN43: -11009.39828 | DS43: 35 | DT43: 16604.57584 | DU43: 1.374978786 | DV43: 30363.10914 | DW43: 1.466616619 | DX43: 35 | DY43: 24644.78773 | DZ43: 13635.38944 | EA43: tx A | EB43: 0 | EG43: 13600 | EH43: 0.9998 | EI43: 0.0002 | EJ43: -9934.198699 | EK43: -19225.51903 | EL43: 0.9998
A44: value per QALY | B44: 30000 | H44: 1.10 | I44: 23 | J44: =MMULT(J43:M43,J$4:M$7) -> 0.1968667045 | K44: 0.06306216034 | L44: 0.6864765285 | M44: 0.05359460667 | N44: 0.9661835749 | O44: 11.70160512 | P44: 7.459586493 | Q44: 263.3129204 | R44: 0 | S44: 0.01298178993 | T44: 0.003315587013 | U44: -0.007572245121 | V44: 0 | AA44: 1.10 | AB44: 23 | AC44: =MMULT(AC43:AF43,AC$4:AF$7) -> 0.2684212981 | AD44: 0.09085828374 | AE44: 0.5909837682 | AF44: 0.0497366499 | AG44: 0.9661835749 | AH44: 240.2875307 | AI44: 86.68227477 | AJ44: 226.6846068 | AK44: 0 | AL44: 0.01770024502 | AM44: 0.004777009604 | AN44: -0.006518903079 | AO44: 0 | AP44: 271.1803003 | AQ44: 0.007233219722 | AR44: -54.1837086 | AS44: -5396.299328 | AT44: =$AS$44 -> -5396.299328 | BA44: 36 | BB44: 16395.76571 | BC44: 0.4927959639 | BD44: 29685.79802 | BE44: 0.811071977 | BF44: -432.5 | BG44: -1087.590746 | BH44: -1606.35558 | BI44: -2032.987835 | BJ44: -2394.312269 | BK44: -2706.875779 | BL44: -2981.128836 | BM44: -3223.89107 | BN44: -3439.805296 | BO44: -3632.195437 | BP44: -3803.573301 | BQ44: -3955.938581 | BR44: -4084.527658 | BS44: -4197.966085 | BT44: -4297.468789 | BU44: -4384.133177 | BV44: -4458.962759 | BW44: -4522.882475 | BX44: -4576.749087 | BY44: -4621.358593 | BZ44: -4657.451829 | CA44: -4685.718941 | CB44: -4706.803119 | CC44: -4721.303844 | CD44: -4729.376175 | CE44: -4732.206338 | CF44: -4730.256011 | CG44: -4723.954981 | CH44: -4713.703148 | CI44: -4699.872409 | CJ44: -4682.808416 | CK44: -4662.832234 | CL44: -4640.241893 | CM44: -4615.313851 | CN44: -4588.304372 | CO44: -4559.450814 | CP44: -4530.424177 | CQ44: -4500.043933 | CR44: -4468.488793 | CS44: -4435.923695 | CT44: -4402.500702 | CU44: -4368.359851 | CV44: -4333.629952 | CW44: -4298.429334 | CX44: -4262.866548 | CY44: -4227.041027 | CZ44: -4191.043703 | DA44: -4154.957588 | DB44: -4120.577334 | DC44: -4086.250054 | DD44: -4052.035167 | DE44: -4017.98644 | DF44: -3984.152385 | DG44: -3950.576639 | DH44: -3917.298315 | DI44: -3884.352329 | DJ44: -3851.769709 | DK44: -3819.577886 | DL44: -3787.800961 | DM44: -3756.459959 | DN44: -3741.751914 | DS44: 36 | DT44: 16395.76571 | DU44: 0.4927959639 | DV44: 29685.79802 | DW44: 0.811071977 | DX44: 36 | DY44: -1611.886793 | DZ44: -5353.638707 | EA44: tx A | EB44: 0 | EG44: 14000 | EH44: 0.9996 | EI44: 0.0004 | EJ44: -9733.221193 | EK44: -18890.32572 | EL44: 0.9996
A45: default value per QALY | B45: 30000 | H45: 1.11 | I45: 24 | J45: =MMULT(J44:M44,J$4:M$7) -> 0.1879566992 | K45: 0.06020362579 | L45: 0.6954239241 | M45: 0.05641575082 | N45: 0.9661835749 | O45: 11.17200128 | P45: 7.121452093 | Q45: 266.7448876 | R45: 0 | S45: 0.01239424611 | T45: 0.003165295301 | U45: -0.007670940226 | V45: 0 | AA45: 1.11 | AB45: 24 | AC45: =MMULT(AC44:AF44,AC$4:AF$7) -> 0.2585344249 | AD45: 0.08750307721 | AE45: 0.6015789266 | AF45: 0.05238357133 | AG45: 0.9661835749 | AH45: 231.4369202 | AI45: 83.48127952 | AJ45: 230.748609 | AK45: 0 | AL45: 0.01704828454 | AM45: 0.004600604623 | AN45: -0.006635773989 | AO45: 0 | AP45: 260.6284678 | AQ45: 0.00712451399 | AR45: -46.89304808 | AS45: -5443.192376 | AT45: =$AS$45 -> -5443.192376 | BA45: 37 | BB45: 17623.71101 | BC45: -0.1813637934 | BD45: 31104.94081 | BE45: 0.3905338018 | BF45: -432.5 | BG45: -1032.609326 | BH45: -1461.770217 | BI45: -1776.65714 | BJ45: -2011.786876 | BK45: -2188.484654 | BL45: -2320.204619 | BM45: -2415.687381 | BN45: -2480.834555 | BO45: -2519.822306 | BP45: -2535.763603 | BQ45: -2531.102821 | BR45: -2508.958822 | BS45: -2470.748387 | BT45: -2417.914846 | BU45: -2351.756262 | BV45: -2273.456752 | BW45: -2184.106584 | BX45: -2084.715556 | BY45: -1976.222306 | BZ45: -1859.501167 | CA45: -1735.367468 | CB45: -1604.581881 | CC45: -1467.854111 | CD45: -1332.608444 | CE45: -1192.921879 | CF45: -1049.342207 | CG45: -902.3795466 | CH45: -752.5085762 | CI45: -600.1706303 | CJ45: -445.7756691 | CK45: -289.7041387 | CL45: -132.3087251 | CM45: 26.08398778 | CN45: 185.1719529 | CO45: 344.6761806 | CP45: 496.7363328 | CQ45: 648.722143 | CR45: 800.4260873 | CS45: 951.6577016 | CT45: 1102.242522 | CU45: 1252.021082 | CV45: 1400.847971 | CW45: 1548.590939 | CX45: 1695.130056 | CY45: 1840.356918 | CZ45: 1984.173898 | DA45: 2126.493437 | DB45: 2260.535289 | DC45: 2393.010498 | DD45: 2523.860782 | DE45: 2653.035122 | DF45: 2780.489259 | DG45: 2906.185225 | DH45: 3030.090901 | DI45: 3152.179594 | DJ45: 3272.42965 | DK45: 3390.824081 | DL45: 3507.350218 | DM45: 3621.999388 | DN45: 3675.69806 | DS45: 37 | DT45: 17623.71101 | DU45: -0.1813637934 | DV45: 31104.94081 | DW45: 0.3905338018 | DX45: 37 | DY45: -23064.62481 | DZ45: -19388.92675 | EA45: tx B | EB45: 3675.69806 | EG45: 14400 | EH45: 0.9995 | EI45: 0.0005 | EJ45: -9532.243688 | EK45: -18555.1324 | EL45: 0.9995
H46: 2.00 | I46: 25 | J46: =MMULT(J45:M45,J$4:M$7) -> 0.179449097 | K46: 0.05747595934 | L46: 0.7038259154 | M46: 0.05924902825 | N46: 0.9335107004 | O46: 10.30561929 | P46: 6.568886961 | Q46: 260.8383121 | R46: 0 | S46: 0.01143307977 | T46: 0.002919694855 | U46: -0.007501081348 | V46: 0 | AA46: 2.00 | AB46: 25 | AC46: =MMULT(AC45:AF45,AC$4:AF$7) -> 0.2490098996 | AD46: 0.08427412206 | AE46: 0.6116699123 | AF46: 0.05504606603 | AG46: 0.9335107004 | AH46: 215.372637 | AI46: 77.68186755 | AJ46: 226.6852413 | AK46: 0 | AL46: 0.01586494495 | AM46: 0.004281002412 | AN46: -0.006518921327 | AO46: 0 | AP46: 242.0269275 | AQ46: 0.006775332759 | AR46: -38.76694479 | AS46: -5481.959321 | AT46: =$AS$46 -> -5481.959321 | BA46: 38 | BB46: 17687.15921 | BC46: 0.7637828809 | BD46: 31800.37845 | BE46: 1.182017708 | BF46: -432.5 | BG46: -1056.754984 | BH46: -1529.712007 | BI46: -1904.359466 | BJ46: -2212.279758 | BK46: -2472.484206 | BL46: -2696.596001 | BM46: -2891.889299 | BN46: -3063.070532 | BO46: -3213.322213 | BP46: -3344.914567 | BQ46: -3459.564066 | BR46: -3553.925746 | BS46: -3634.557693 | BT46: -3702.418956 | BU46: -3758.370447 | BV46: -3803.199862 | BW46: -3837.636958 | BX46: -3862.363183 | BY46: -3878.017987 | BZ46: -3885.203173 | CA46: -3884.48608 | CB46: -3876.402054 | CC46: -3861.456482 | CD46: -3841.142254 | CE46: -3815.176752 | CF46: -3783.96503 | CG46: -3747.889378 | CH46: -3707.310497 | CI46: -3662.568615 | CJ46: -3613.984536 | CK46: -3561.860637 | CL46: -3506.481817 | CM46: -3448.116397 | CN46: -3387.016976 | CO46: -3323.421246 | CP46: -3260.689359 | CQ46: -3195.993103 | CR46: -3129.520545 | CS46: -3061.448294 | CT46: -2991.94211 | CU46: -2921.157477 | CV46: -2849.240147 | CW46: -2776.32666 | CX46: -2702.544839 | CY46: -2628.014258 | CZ46: -2552.846687 | DA46: -2477.146519 | DB46: -2404.636661 | DC46: -2331.798838 | DD46: -2258.713612 | DE46: -2185.455939 | DF46: -2112.095479 | DG46: -2038.696899 | DH46: -1965.320146 | DI46: -1892.020721 | DJ46: -1818.849927 | DK46: -1745.855113 | DL46: -1673.079901 | DM46: -1600.564403 | DN46: -1566.174413 | DS46: 38 | DT46: 17687.15921 | DU46: 0.7637828809 | DV46: 31800.37845 | DW46: 1.182017708 | DX46: 38 | DY46: 5226.327217 | DZ46: 3660.152803 | EA46: tx A | EB46: 0 | EG46: 14800 | EH46: 0.9992 | EI46: 0.0008 | EJ46: -9331.266182 | EK46: -18219.93909 | EL46: 0.9992
H47: 2.01 | I47: 26 | J47: =MMULT(J46:M46,J$4:M$7) -> 0.1713260679 | K47: 0.05487265042 | L47: 0.7117078824 | M47: 0.06209339926 | N47: 0.9335107004 | O47: 9.839120171 | P47: 6.271356616 | Q47: 263.7593739 | R47: 0 | S47: 0.01091554448 | T47: 0.002787450561 | U47: -0.007585084046 | V47: 0 | AA47: 2.01 | AB47: 26 | AC47: =MMULT(AC46:AF46,AC$4:AF$7) -> 0.2398351386 | AD47: 0.08116577054 | AE47: 0.6212759285 | AF47: 0.05772316231 | AG47: 0.9335107004 | AH47: 207.4372398 | AI47: 74.81666356 | AJ47: 230.2452368 | AK47: 0 | AL47: 0.01528040161 | AM47: 0.004123102691 | AN47: -0.006621298218 | AO47: 0 | AP47: 232.6292895 | AQ47: 0.006664295085 | AR47: -32.7004369 | AS47: -5514.659758 | AT47: =$AS$47 -> -5514.659758 | BA47: 39 | BB47: 16960.98785 | BC47: 0.3329979928 | BD47: 27464.39164 | BE47: 0.3937204908 | BF47: -432.5 | BG47: -1141.852848 | BH47: -1744.633385 | BI47: -2272.304423 | BJ47: -2745.097863 | BK47: -3176.103411 | BL47: -3573.877607 | BM47: -3944.102767 | BN47: -4290.638589 | BO47: -4616.187061 | BP47: -4922.711984 | BQ47: -5211.703246 | BR47: -5471.360291 | BS47: -5716.377312 | BT47: -5947.556489 | BU47: -6165.609079 | BV47: -6371.180529 | BW47: -6564.866509 | BX47: -6747.223266 | BY47: -6918.774429 | BZ47: -7080.015588 | CA47: -7231.417463 | CB47: -7373.42821 | CC47: -7506.475145 | CD47: -7625.037979 | CE47: -7735.823254 | CF47: -7839.185416 | CG47: -7935.463207 | CH47: -8024.980411 | CI47: -8108.046551 | CJ47: -8184.957531 | CK47: -8255.996245 | CL47: -8321.433155 | CM47: -8381.526837 | CN47: -8436.524503 | CO47: -8486.6625 | CP47: -8529.999913 | CQ47: -8569.129999 | CR47: -8604.24944 | CS47: -8635.546263 | CT47: -8663.200218 | CU47: -8687.383138 | CV47: -8708.259288 | CW47: -8725.98569 | CX47: -8740.712442 | CY47: -8752.583023 | CZ47: -8761.734576 | DA47: -8768.29819 | DB47: -8772.203877 | DC47: -8773.878245 | DD47: -8773.430304 | DE47: -8770.96424 | DF47: -8766.579625 | DG47: -8760.371621 | DH47: -8752.431169 | DI47: -8742.845175 | DJ47: -8731.696689 | DK47: -8719.065068 | DL47: -8705.026144 | DM47: -8689.652372 | DN47: -8681.728854 | DS47: 39 | DT47: 16960.98785 | DU47: 0.3329979928 | DV47: 27464.39164 | DW47: 0.3937204908 | DX47: 39 | DY47: -6971.048065 | DZ47: -15652.77692 | EA47: tx A | EB47: 0 | EG47: 15200 | EH47: 0.9989 | EI47: 0.0011 | EJ47: -9130.288677 | EK47: -17884.74577 | EL47: 0.9989
H48: 2.02 | I48: 27 | J48: =MMULT(J47:M47,J$4:M$7) -> 0.1635704335 | K48: 0.05238771863 | L48: 0.7190939742 | M48: 0.06494787364 | N48: 0.9335107004 | O48: 9.393720241 | P48: 5.987355511 | Q48: 266.496664 | R48: 0 | S48: 0.01042141669 | T48: 0.002661219652 | U48: -0.007663801914 | V48: 0 | AA48: 2.02 | AB48: 27 | AC48: =MMULT(AC47:AF47,AC$4:AF$7) -> 0.2309977275 | AD48: 0.07817296354 | AE48: 0.6304153823 | AF48: 0.06041392666 | AG48: 0.9335107004 | AH48: 199.7936218 | AI48: 72.05796574 | AJ48: 233.6323239 | AK48: 0 | AL48: 0.01471735154 | AM48: 0.003971072463 | AN48: -0.006718702683 | AO48: 0 | AP48: 223.6061718 | AQ48: 0.006550886895 | AR48: -27.0795649 | AS48: -5541.739323 | AT48: =$AS$48 -> -5541.739323 | BA48: 40 | BB48: 18519.72035 | BC48: 0.6652780808 | BD48: 30936.77423 | BE48: 0.9158556695 | BF48: -432.5 | BG48: -1094.867787 | BH48: -1627.33437 | BI48: -2073.39647 | BJ48: -2459.263849 | BK48: -2800.911878 | BL48: -3108.246051 | BM48: -3387.562127 | BN48: -3643.000224 | BO48: -3877.404903 | BP48: -4092.834456 | BQ48: -4290.862919 | BR48: -4464.097847 | BS48: -4622.989785 | BT48: -4768.432256 | BU48: -4901.228657 | BV48: -5022.114889 | BW48: -5131.773449 | BX48: -5230.842455 | BY48: -5319.921621 | BZ48: -5399.576405 | CA48: -5470.341036 | CB48: -5532.720856 | CC48: -5587.194226 | CD48: -5631.9751 | CE48: -5670.066088 | CF48: -5701.854266 | CG48: -5727.706287 | CH48: -5747.96943 | CI48: -5762.972597 | CJ48: -5773.027244 | CK48: -5778.428268 | CL48: -5779.454842 | CM48: -5776.371213 | CN48: -5769.427461 | CO48: -5758.86021 | CP48: -5745.558411 | CQ48: -5729.220517 | CR48: -5710.037233 | CS48: -5688.188868 | CT48: -5663.84587 | CU48: -5637.169328 | CV48: -5608.311457 | CW48: -5577.416051 | CX48: -5544.618919 | CY48: -5510.0483 | CZ48: -5473.82525 | DA48: -5436.06402 | DB48: -5398.738676 | DC48: -5360.147905 | DD48: -5320.383028 | DE48: -5279.530135 | DF48: -5237.670362 | DG48: -5194.880153 | DH48: -5151.231504 | DI48: -5106.792202 | DJ48: -5061.626048 | DK48: -5015.793072 | DL48: -4969.349728 | DM48: -4922.349095 | DN48: -4899.726218 | DS48: 40 | DT48: 18519.72035 | DU48: 0.6652780808 | DV48: 30936.77423 | DW48: 0.9158556695 | DX48: 40 | DY48: 1438.622071 | DZ48: -3461.104146 | EA48: tx A | EB48: 0 | EG48: 15600 | EH48: 0.9981 | EI48: 0.0019 | EJ48: -8929.311171 | EK48: -17549.55245 | EL48: 0.9981
H49: 2.03 | I49: 28 | J49: =MMULT(J48:M48,J$4:M$7) -> 0.1561657001 | K49: 0.05001559516 | L49: 0.7260071966 | M49: 0.06781150815 | N49: 0.9335107004 | O49: 8.968472275 | P49: 5.716247188 | Q49: 269.0587084 | R49: 0 | S49: 0.009949645531 | T49: 0.002540719242 | U49: -0.007737480138 | V49: 0 | AA49: 2.03 | AB49: 28 | AC49: =MMULT(AC48:AF48,AC$4:AF$7) -> 0.2224855275 | AD49: 0.0752910634 | AE49: 0.6391059471 | AF49: 0.06311746192 | AG49: 0.9335107004 | AH49: 192.4312842 | AI49: 69.4014992 | AJ49: 236.8530525 | AK49: 0 | AL49: 0.01417502136 | AM49: 0.003824676142 | AN49: -0.006811323077 | AO49: 0 | AP49: 214.9424081 | AQ49: 0.006435489788 | AR49: -21.87771443 | AS49: -5563.617037 | AT49: =$AS$49 -> -5563.617037 | BA49: 41 | BB49: 17029.8015 | BC49: 1.37508422 | BD49: 32712.61149 | BE49: 1.820294483 | BF49: -432.5 | BG49: -1130.995299 | BH49: -1714.786919 | BI49: -2215.441289 | BJ49: -2652.514034 | BK49: -3038.416717 | BL49: -3381.296497 | BM49: -3686.740053 | BN49: -3958.782115 | BO49: -4200.502859 | BP49: -4414.382317 | BQ49: -4602.511211 | BR49: -4758.897668 | BS49: -4894.062209 | BT49: -5009.432525 | BU49: -5106.329424 | BV49: -5185.984375 | BW49: -5249.55116 | BX49: -5298.114008 | BY49: -5332.693596 | BZ49: -5354.251737 | CA49: -5363.695247 | CB49: -5361.879265 | CC49: -5349.610217 | CD49: -5328.6943 | CE49: -5299.230003 | CF49: -5261.86081 | CG49: -5217.193043 | CH49: -5165.79782 | CI49: -5108.212925 | CJ49: -5044.944561 | CK49: -4976.469025 | CL49: -4903.234295 | CM49: -4825.661531 | CN49: -4744.146508 | CO49: -4659.060969 | CP49: -4574.959012 | CQ49: -4488.10083 | CR49: -4398.778916 | CS49: -4307.267421 | CT49: -4213.823152 | CU49: -4118.686509 | CV49: -4022.082389 | CW49: -3924.221034 | CX49: -3825.298836 | CY49: -3725.499107 | CZ49: -3624.992801 | DA49: -3523.939204 | DB49: -3427.317666 | DC49: -3330.447423 | DD49: -3233.450447 | DE49: -3136.439899 | DF49: -3039.520633 | DG49: -2942.789673 | DH49: -2846.336663 | DI49: -2750.244295 | DJ49: -2654.588717 | DK49: -2559.439913 | DL49: -2464.862069 | DM49: -2370.913919 | DN49: -2326.502086 | DS49: 41 | DT49: 17029.8015 | DU49: 1.37508422 | DV49: 32712.61149 | DW49: 1.820294483 | DX49: 41 | DY49: 24222.7251 | DZ49: 21896.22301 | EA49: tx A | EB49: 0 | EG49: 16000 | EH49: 0.9979 | EI49: 0.0021 | EJ49: -8728.333666 | EK49: -17214.35914 | EL49: 0.9979
H50: 2.04 | I50: 29 | J50: =MMULT(J49:M49,J$4:M$7) -> 0.1490960649 | K50: 0.04775104757 | L50: 0.7324694834 | M50: 0.07068340418 | N50: 0.9335107004 | O50: 8.56246873 | P50: 5.457433636 | Q50: 271.4536358 | R50: 0 | S50: 0.009499224184 | T50: 0.002425683529 | U50: -0.00780635248 | V50: 0 | AA50: 2.04 | AB50: 29 | AC50: =MMULT(AC49:AF49,AC$4:AF$7) -> 0.2142867351 | AD50: 0.07251574849 | AE50: 0.6473646107 | AF50: 0.06583290576 | AG50: 0.9335107004 | AH50: 185.3400177 | AI50: 66.84328038 | AJ50: 239.9137183 | AK50: 0 | AL50: 0.01365265903 | AM50: 0.003683694195 | AN50: -0.006899340449 | AO50: 0 | AP50: 206.6234782 | AQ50: 0.006318457541 | AR50: -17.06975195 | AS50: -5580.686789 | AT50: =$AS$50 -> -5580.686789 | BA50: 42 | BB50: 15223.34989 | BC50: 0.2435640982 | BD50: 30365.26046 | BE50: 0.5176627834 | BF50: -432.5 | BG50: -1079.019057 | BH50: -1584.660517 | BI50: -1997.611229 | BJ50: -2347.892403 | BK50: -2654.305446 | BL50: -2928.71887 | BM50: -3178.713524 | BN50: -3409.214558 | BO50: -3623.498185 | BP50: -3823.812788 | BQ50: -4011.762202 | BR50: -4180.124266 | BS50: -4338.738779 | BT50: -4488.332649 | BU50: -4629.523414 | BV50: -4762.852633 | BW50: -4888.806844 | BX50: -5007.830861 | BY50: -5120.336323 | BZ50: -5226.707322 | CA50: -5327.304206 | CB50: -5422.466241 | CC50: -5512.513574 | CD50: -5593.689908 | CE50: -5670.555698 | CF50: -5743.368764 | CG50: -5812.373104 | CH50: -5877.799649 | CI50: -5939.866951 | CJ50: -5998.78182 | CK50: -6054.739922 | CL50: -6107.92634 | CM50: -6158.516105 | CN50: -6206.674698 | CO50: -6252.558533 | CP50: -6294.231746 | CQ50: -6334.012245 | CR50: -6372.025594 | CS50: -6408.390329 | CT50: -6443.218311 | CU50: -6476.615067 | CV50: -6508.680113 | CW50: -6539.507256 | CX50: -6569.184892 | CY50: -6597.79628 | CZ50: -6625.419807 | DA50: -6652.129243 | DB50: -6676.762321 | DC50: -6700.653052 | DD50: -6723.859817 | DE50: -6746.437451 | DF50: -6768.437423 | DG50: -6789.908017 | DH50: -6810.894502 | DI50: -6831.43929 | DJ50: -6851.582093 | DK50: -6871.360065 | DL50: -6890.807941 | DM50: -6909.958171 | DN50: -6918.950013 | DS50: 42 | DT50: 15223.34989 | DU50: 0.2435640982 | DV50: 30365.26046 | DW50: 0.5176627834 | DX50: 42 | DY50: -7916.426943 | DZ50: -14835.37696 | EA50: tx A | EB50: 0 | EG50: 16400 | EH50: 0.9972 | EI50: 0.0028 | EJ50: -8527.356161 | EK50: -16879.16582 | EL50: 0.9972
H51: 2.05 | I51: 30 | J51: =MMULT(J50:M50,J$4:M$7) -> 0.1423464071 | K51: 0.04558913068 | L51: 0.7385017566 | M51: 0.07356270567 | N51: 0.9335107004 | O51: 8.174841237 | P51: 5.210349677 | Q51: 273.6891999 | R51: 0 | S51: 0.009069189276 | T51: 0.002315861307 | U51: -0.007870641917 | V51: 0 | AA51: 2.05 | AB51: 30 | AC51: =MMULT(AC50:AF50,AC$4:AF$7) -> 0.206389912 | AD51: 0.06984294609 | AE51: 0.6552077127 | AF51: 0.0685594292 | AG51: 0.9335107004 | AH51: 178.5099294 | AI51: 64.37955513 | AJ51: 242.8203766 | AK51: 0 | AL51: 0.01314953581 | AM51: 0.003547919733 | AN51: -0.006982928939 | AO51: 0 | AP51: 198.6354703 | AQ51: 0.006200117937 | AR51: -12.63193223 | AS51: -5593.318721 | AT51: =$AS$51 -> -5593.318721 | BA51: 43 | BB51: 16443.0882 | BC51: 0.2954814557 | BD51: 27964.85913 | BE51: 0.2883850367 | BF51: -432.5 | BG51: -1123.292974 | BH51: -1705.629694 | BI51: -2218.649142 | BJ51: -2685.675896 | BK51: -3120.63619 | BL51: -3531.87115 | BM51: -3924.403453 | BN51: -4301.284808 | BO51: -4664.397048 | BP51: -5014.928361 | BQ51: -5353.656326 | BR51: -5665.522747 | BS51: -5967.03131 | BT51: -6258.476279 | BU51: -6540.10571 | BV51: -6812.141073 | BW51: -7074.78873 | BX51: -7328.246589 | BY51: -7572.707893 | BZ51: -7808.36331 | CA51: -8035.402036 | CB51: -8254.012311 | CC51: -8464.3816 | CD51: -8657.062543 | CE51: -8842.249674 | CF51: -9020.11894 | CG51: -9190.845112 | CH51: -9354.601603 | CI51: -9511.560296 | CJ51: -9661.891377 | CK51: -9805.763177 | CL51: -9943.34204 | CM51: -10074.79219 | CN51: -10200.27561 | CO51: -10319.95195 | CP51: -10428.54862 | CQ51: -10531.91185 | CR51: -10630.18655 | CS51: -10723.51514 | CT51: -10812.03748 | CU51: -10895.89086 | CV51: -10975.20993 | CW51: -11050.12673 | CX51: -11120.77064 | CY51: -11187.26836 | CZ51: -11249.74394 | DA51: -11308.31874 | DB51: -11360.5023 | DC51: -11409.19442 | DD51: -11454.50311 | DE51: -11496.53386 | DF51: -11535.38972 | DG51: -11571.17124 | DH51: -11603.97655 | DI51: -11633.90137 | DJ51: -11661.03903 | DK51: -11685.48052 | DL51: -11707.31451 | DM51: -11726.62737 | DN51: -11734.6635 | DS51: 43 | DT51: 16443.0882 | DU51: 0.2954814557 | DV51: 27964.85913 | DW51: 0.2883850367 | DX51: 43 | DY51: -7578.644533 | DZ51: -19313.30803 | EA51: tx A | EB51: 0 | EG51: 16800 | EH51: 0.9956 | EI51: 0.0044 | EJ51: -8326.378655 | EK51: -16543.9725 | EL51: 0.9956
H52: 2.06 | I52: 31 | J52: =MMULT(J51:M51,J$4:M$7) -> 0.1359022706 | K52: 0.04352515339 | L52: 0.7441239789 | M52: 0.07644859707 | N52: 0.9335107004 | O52: 7.804759593 | P52: 4.974459163 | Q52: 275.772799 | R52: 0 | S52: 0.008658619777 | T52: 0.002211014272 | U52: -0.007930561204 | V52: 0 | AA52: 2.06 | AB52: 31 | AC52: =MMULT(AC51:AF51,AC$4:AF$7) -> 0.1987839992 | AD52: 0.06726878891 | AE52: 0.6626509766 | AF52: 0.07129623534 | AG52: 0.9335107004 | AH52: 171.931454 | AI52: 62.00675869 | AJ52: 245.5788548 | AK52: 0 | AL52: 0.01266494709 | AM52: 0.003417156305 | AN52: -0.007062256124 | AO52: 0 | AP52: 190.9650497 | AQ52: 0.006080774423 | AR52: -8.541817012 | AS52: -5601.860538 | AT52: =$AS$52 -> -5601.860538 | BA52: 44 | BB52: 14777.6936 | BC52: 0.8575863367 | BD52: 27411.70346 | BE52: 0.9191454388 | BF52: -432.5 | BG52: -1124.222239 | BH52: -1706.333791 | BI52: -2216.868093 | BJ52: -2678.625525 | BK52: -3105.35176 | BL52: -3505.408086 | BM52: -3883.951887 | BN52: -4244.232089 | BO52: -4588.358847 | BP52: -4917.760892 | BQ52: -5233.457322 | BR52: -5521.801924 | BS52: -5798.417383 | BT52: -6063.802867 | BU52: -6318.399607 | BV52: -6562.610236 | BW52: -6796.810353 | BX52: -7021.355478 | BY52: -7236.585264 | BZ52: -7442.826082 | CA52: -7640.392639 | CB52: -7829.589021 | CC52: -8010.709399 | CD52: -8175.784762 | CE52: -8333.702485 | CF52: -8484.716857 | CG52: -8629.07411 | CH52: -8767.012658 | CI52: -8898.7633 | CJ52: -9024.549433 | CK52: -9144.587246 | CL52: -9259.085911 | CM52: -9368.247776 | CN52: -9472.268545 | CO52: -9571.337466 | CP52: -9661.147029 | CQ52: -9746.583245 | CR52: -9827.80891 | CS52: -9904.981334 | CT52: -9978.252503 | CU52: -10047.76923 | CV52: -10113.67332 | CW52: -10176.10169 | CX52: -10235.18656 | CY52: -10291.05557 | CZ52: -10343.83191 | DA52: -10393.63448 | DB52: -10438.3426 | DC52: -10480.43326 | DD52: -10520.00815 | DE52: -10557.16538 | DF52: -10591.99956 | DG52: -10624.60193 | DH52: -10655.06047 | DI52: -10683.45998 | DJ52: -10709.88222 | DK52: -10734.40599 | DL52: -10757.10723 | DM52: -10778.05914 | DN52: -10787.23679 | DS52: 44 | DT52: 14777.6936 | DU52: 0.8575863367 | DV52: 27411.70346 | DW52: 0.9191454388 | DX52: 44 | DY52: 10949.8965 | DZ52: 162.6597056 | EA52: tx A | EB52: 0 | EG52: 17200 | EH52: 0.9946 | EI52: 0.0054 | EJ52: -8125.40115 | EK52: -16208.77919 | EL52: 0.9946
H53: 2.07 | I53: 32 | J53: =MMULT(J52:M52,J$4:M$7) -> 0.129749842 | K53: 0.04155465496 | L53: 0.7493552016 | M53: 0.07934030149 | N53: 0.9335107004 | O53: 7.451430496 | P53: 4.749252284 | Q53: 277.7114933 | R53: 0 | S53: 0.008266635594 | T53: 0.002110915828 | U53: -0.007986313381 | V53: 0 | AA53: 2.07 | AB53: 32 | AC53: =MMULT(AC52:AF52,AC$4:AF$7) -> 0.1914583182 | AD53: 0.06478958636 | AE53: 0.6697095374 | AF53: 0.07404255806 | AG53: 0.9335107004 | AH53: 165.5953556 | AI53: 59.72148915 | AJ53: 248.1947617 | AK53: 0 | AL53: 0.01219821253 | AM53: 0.003291216434 | AN53: -0.007137483303 | AO53: 0 | AP53: 183.5994304 | AQ53: 0.005960707621 | AR53: -4.778201755 | AS53: -5606.63874 | AT53: =$AS$53 -> -5606.63874 | BA53: 45 | BB53: 15403.7375 | BC53: 0.9513222588 | BD53: 31134.92686 | BE53: 1.180481654 | BF53: -432.5 | BG53: -1140.043026 | BH53: -1741.673726 | BI53: -2269.274405 | BJ53: -2742.736023 | BK53: -3174.62814 | BL53: -3573.042242 | BM53: -3943.323256 | BN53: -4289.124336 | BO53: -4613.049743 | BP53: -4917.046988 | BQ53: -5202.646336 | BR53: -5458.323519 | BS53: -5698.70602 | BT53: -5924.702117 | BU53: -6137.133695 | BV53: -6336.756872 | BW53: -6524.275178 | BX53: -6700.348153 | BY53: -6865.59715 | BZ53: -7020.609394 | CA53: -7165.940972 | CB53: -7302.119137 | CC53: -7429.644175 | CD53: -7543.307811 | CE53: -7649.612104 | CF53: -7748.964831 | CG53: -7841.753201 | CH53: -7928.344873 | CI53: -8009.088907 | CJ53: -8084.316665 | CK53: -8154.342667 | CL53: -8219.465398 | CM53: -8279.968083 | CN53: -8336.119417 | CO53: -8388.174267 | CP53: -8434.079096 | CQ53: -8476.530974 | CR53: -8515.736811 | CS53: -8551.892719 | CT53: -8585.184528 | CU53: -8615.788294 | CV53: -8643.870769 | CW53: -8669.58986 | CX53: -8693.095062 | CY53: -8714.527867 | CZ53: -8734.022165 | DA53: -8751.704613 | DB53: -8766.933548 | DC53: -8780.658851 | DD53: -8792.98247 | DE53: -8804.000734 | DF53: -8813.804639 | DG53: -8822.480111 | DH53: -8830.10826 | DI53: -8836.765628 | DJ53: -8842.524415 | DK53: -8847.452704 | DL53: -8851.614664 | DM53: -8855.070756 | DN53: -8856.407502 | DS53: 45 | DT53: 15403.7375 | DU53: 0.9513222588 | DV53: 31134.92686 | DW53: 1.180481654 | DX53: 45 | DY53: 13135.93027 | DZ53: 4279.522763 | EA53: tx A | EB53: 0 | EG53: 17600 | EH53: 0.9928 | EI53: 0.0072 | EJ53: -7924.423644 | EK53: -15873.58587 | EL53: 0.9928
H54: 2.08 | I54: 33 | J54: =MMULT(J53:M53,J$4:M$7) -> 0.1238759257 | K54: 0.03967338743 | L54: 0.7542136079 | M54: 0.08223707892 | N54: 0.9335107004 | O54: =c_sil_A*J54*N54 -> 7.114096146 | P54: =c_act_A*K54*N54 -> 4.534243541 | Q54: =c_compl_A*L54*N54 -> 279.5120216 | R54: =c_dead_A*M54*N54 -> 0 | S54: =u_sil*J54*N54 -> 0.007892396025 | T54: =u_act*K54*N54 -> 0.002015350182 | U54: =u_compl*L54*N54 -> -0.008038092237 | V54: =u_dead*M54*N54 -> 0 | AA54: 2.08 | AB54: 33 | AC54: =MMULT(AC53:AF53,AC$4:AF$7) -> 0.1844025682 | AD54: 0.06240180499 | AE54: 0.6763979659 | AF54: 0.07679766092 | AG54: 0.9335107004 | AH54: =c_sil_B*AC54*AG54 -> 159.4927248 | AI54: =c_act_B*AD54*AG54 -> 57.52048947 | AJ54: =c_compl_B*AE54*AG54 -> 250.6734974 | AK54: =c_dead_B*AF54*AG54 -> 0 | AL54: =u_sil*AC54*AG54 -> 0.01174867584 | AM54: =u_act*AD54*AG54 -> 0.003169920625 | AN54: =u_compl*AE54*AG54 -> -0.007208765769 | AO54: =u_dead*AF54*AG54 -> 0 | AP54: 176.5263503 | AQ54: 0.00584017673 | AR54: =(AQ54*lambda)-AP54 -> -1.321048398 | AS54: -5607.959789 | AT54: =$AS$54 -> -5607.959789 | BA54: 46 | BB54: 16445.13248 | BC54: 0.7158142305 | BD54: 30023.33935 | BE54: 0.9766415724 | BF54: -432.5 | BG54: -1116.433604 | BH54: -1678.098329 | BI54: -2154.438081 | BJ54: -2568.854227 | BK54: -2936.345626 | BL54: -3266.687966 | BM54: -3566.400797 | BN54: -3839.964978 | BO54: -4090.576639 | BP54: -4320.614529 | BQ54: -4531.930131 | BR54: -4716.785375 | BS54: -4886.452957 | BT54: -5041.987237 | BU54: -5184.329416 | BV54: -5314.334723 | BW54: -5432.79005 | BX54: -5540.425657 | BY54: -5637.92317 | BZ54: -5725.921241 | CA54: -5805.019726 | CB54: -5875.782928 | CC54: -5938.742206 | CD54: -5991.747895 | CE54: -6038.247382 | CF54: -6078.664167 | CG54: -6113.397408 | CH54: -6142.823281 | CI54: -6167.296261 | CJ54: -6187.150303 | CK54: -6202.699972 | CL54: -6214.241494 | CM54: -6222.053757 | CN54: -6226.399257 | CO54: -6227.524989 | CP54: -6225.751951 | CQ54: -6221.341839 | CR54: -6214.490279 | CS54: -6205.381117 | CT54: -6194.187068 | CU54: -6181.070335 | CV54: -6166.183189 | CW54: -6149.668525 | CX54: -6131.660383 | CY54: -6112.284443 | CZ54: -6091.658498 | DA54: -6069.892897 | DB54: -6048.17677 | DC54: -6025.565757 | DD54: -6002.146003 | DE54: -5977.998043 | DF54: -5953.197128 | DG54: -5927.81352 | DH54: -5901.912792 | DI54: -5875.55609 | DJ54: -5848.800397 | DK54: -5821.698777 | DL54: -5794.300603 | DM54: -5766.651774 | DN54: -5753.38661 | DS54: 46 | DT54: 16445.13248 | DU54: 0.7158142305 | DV54: 30023.33935 | DW54: 0.9766415724 | DX54: 46 | DY54: 5029.294432 | DZ54: -724.0921772 | EA54: tx A | EB54: 0 | EG54: 18000 | EH54: 0.9911 | EI54: 0.0089 | EJ54: -7723.446139 | EK54: -15538.39255 | EL54: 0.9911
H55: 2.09 | I55: 34 | J55: =MMULT(J54:M54,J$4:M$7) -> 0.1182679197 | K55: 0.03787730158 | L55: 0.7587165542 | M55: 0.08513822453 | N55: 0.9335107004 | O55: 6.792032807 | P55: 4.328970153 | Q55: 281.1808162 | R55: 0 | S55: 0.007535098152 | T55: 0.001924111642 | U55: -0.00808608275 | V55: 0 | AA55: 2.09 | AB55: 34 | AC55: =MMULT(AC54:AF54,AC$4:AF$7) -> 0.1776068176 | AD55: 0.0601020546 | AE55: 0.6827302918 | AF55: 0.07956083596 | AG55: 0.9335107004 | AH55: 153.6149716 | AI55: 55.40063463 | AJ55: 253.0202612 | AK55: 0 | AL55: 0.01131570427 | AM55: 0.003053096661 | AN55: -0.007276253042 | AO55: 0 | AP55: 169.7340483 | AQ55: 0.005719420844 | AR55: 1.848577056 | AS55: -5606.111212 | AT55: =$AS$55 -> -5606.111212 | BA55: 47 | BB55: 16094.05796 | BC55: 0.8379807599 | BD55: 29618.07082 | BE55: 1.060410826 | BF55: -432.5 | BG55: -1154.540181 | BH55: -1770.360497 | BI55: -2305.960332 | BJ55: -2779.579007 | BK55: -3203.98664 | BL55: -3588.164577 | BM55: -3938.500349 | BN55: -4259.618994 | BO55: -4554.952148 | BP55: -4827.122973 | BQ55: -5078.20419 | BR55: -5298.857278 | BS55: -5502.399955 | BT55: -5690.01358 | BU55: -5862.747042 | BV55: -6021.548455 | BW55: -6167.286423 | BX55: -6300.764488 | BY55: -6422.731128 | BZ55: -6533.88686 | CA55: -6634.889434 | CB55: -6726.357787 | CC55: -6808.875155 | CD55: -6879.462271 | CE55: -6942.542928 | CF55: -6998.583822 | CG55: -7048.025565 | CH55: -7091.284158 | CI55: -7128.752344 | CJ55: -7160.80087 | CK55: -7187.779672 | CL55: -7210.018985 | CM55: -7227.830392 | CN55: -7241.507818 | CO55: -7251.328469 | CP55: -7257.257279 | CQ55: -7259.996557 | CR55: -7259.767447 | CS55: -7256.778308 | CT55: -7251.225395 | CU55: -7243.293509 | CV55: -7233.156617 | CW55: -7220.978432 | CX55: -7206.912971 | CY55: -7191.105081 | CZ55: -7173.690936 | DA55: -7154.798512 | DB55: -7135.512341 | DC55: -7115.040309 | DD55: -7093.483346 | DE55: -7070.936156 | DF55: -7047.487558 | DG55: -7023.220815 | DH55: -6998.213942 | DI55: -6972.540002 | DJ55: -6946.267382 | DK55: -6919.460058 | DL55: -6892.177843 | DM55: -6864.476624 | DN55: -6851.110891 | DS55: 47 | DT55: 16094.05796 | DU55: 0.8379807599 | DV55: 29618.07082 | DW55: 1.060410826 | DX55: 47 | DY55: 9045.364839 | DZ55: 2194.253948 | EA55: tx A | EB55: 0 | EG55: 18400 | EH55: 0.9894 | EI55: 0.0106 | EJ55: -7522.468633 | EK55: -15203.19924 | EL55: 0.9894
H56: 2.10 | I56: 35 | J56: =MMULT(J55:M55,J$4:M$7) -> 0.1129137895 | K56: 0.03616253537 | L56: 0.7628806081 | M56: 0.08804306708 | N56: 0.9335107004 | O56: 6.484549357 | P56: 4.13299073 | Q56: 282.7240171 | R56: 0 | S56: 0.007193975245 | T56: 0.001837004022 | U56: -0.008130461489 | V56: 0 | AA56: 2.10 | AB56: 35 | AC56: =MMULT(AC55:AF55,AC$4:AF$7) -> 0.1710614948 | AD56: 0.05788707797 | AE56: 0.6887200245 | AF56: 0.0823314027 | AG56: 0.9335107004 | AH56: 147.9538174 | AI56: 53.35892222 | AJ56: 255.2400598 | AK56: 0 | AL56: 0.01089868797 | AM56: 0.002940579081 | AN56: -0.0073400891 | AO56: 0 | AP56: 163.2112422 | AQ56: 0.005598660174 | AR56: 4.748562988 | AS56: -5601.362649 | AT56: =$AS$56 -> -5601.362649 | BA56: 48 | BB56: 15869.44969 | BC56: 0.2081970991 | BD56: 28770.54293 | BE56: 0.2533973358 | BF56: -432.5 | BG56: -1108.892007 | BH56: -1671.783672 | BI56: -2164.301001 | BJ56: -2611.245405 | BK56: -3026.924231 | BL56: -3419.638106 | BM56: -3794.250987 | BN56: -4153.661197 | BO56: -4499.64287 | BP56: -4833.326916 | BQ56: -5155.475722 | BR56: -5451.822576 | BS56: -5738.115742 | BT56: -6014.694968 | BU56: -6281.859468 | BV56: -6539.883568 | BW56: -6789.025577 | BX56: -7029.5328 | BY56: -7261.644363 | BZ56: -7485.592803 | CA56: -7701.604964 | CB56: -7909.90249 | CC56: -8110.702115 | CD56: -8295.000878 | CE56: -8472.558121 | CF56: -8643.566927 | CG56: -8808.216053 | CH56: -8966.689971 | CI56: -9119.168907 | CJ56: -9265.828877 | CK56: -9406.841729 | CL56: -9542.37519 | CM56: -9672.592911 | CN56: -9797.654514 | CO56: -9917.715651 | CP56: -10027.44175 | CQ56: -10132.69084 | CR56: -10233.60012 | CS56: -10330.30325 | CT56: -10422.93037 | CU56: -10511.60818 | CV56: -10596.46 | CW56: -10677.60583 | CX56: -10755.16243 | CY56: -10829.24334 | CZ56: -10899.95899 | DA56: -10967.41675 | DB56: -11028.65888 | DC56: -11086.99424 | DD56: -11142.51671 | DE56: -11195.31747 | DF56: -11245.48509 | DG56: -11293.1056 | DH56: -11338.26252 | DI56: -11381.03694 | DJ56: -11421.50758 | DK56: -11459.75082 | DL56: -11495.8408 | DM56: -11529.84945 | DN56: -11545.08615 | DS56: 48 | DT56: 15869.44969 | DU56: 0.2081970991 | DV56: 28770.54293 | DW56: 0.2533973358 | DX56: 48 | DY56: -9623.536713 | DZ56: -21168.62286 | EA56: tx A | EB56: 0 | EG56: 18800 | EH56: 0.9872 | EI56: 0.0128 | EJ56: -7321.491128 | EK56: -14868.00592 | EL56: 0.9872
H57: 2.11 | I57: 36 | J57: =MMULT(J56:M56,J$4:M$7) -> 0.1078020442 | K57: 0.03452540394 | L57: 0.7667215845 | M57: 0.09095096736 | N57: 0.9335107004 | O57: 6.190985879 | P57: 3.945884129 | Q57: 284.1474853 | R57: 0 | S57: 0.00686829519 | T57: 0.001753840134 | U57: -0.008171397005 | V57: 0 | AA57: 2.11 | AB57: 36 | AC57: =MMULT(AC56:AF56,AC$4:AF$7) -> 0.1647573769 | AD57: 0.05575374291 | AE57: 0.6943801731 | AF57: 0.08510870708 | AG57: 0.9335107004 | AH57: 142.5012852 | AI57: 51.39246504 | AJ57: 257.3377143 | AK57: 0 | AL57: 0.01049703935 | AM57: 0.002832208773 | AN57: -0.007400412589 | AO57: 0 | AP57: 156.9471092 | AQ57: 0.005478097213 | AR57: 7.395807178 | AS57: -5593.966841 | AT57: =$AS$57 -> -5593.966841 | BA57: 49 | BB57: 15767.15869 | BC57: 0.6301442015 | BD57: 30574.57847 | BE57: 1.10438202 | BF57: -432.5 | BG57: -1077.576487 | BH57: -1573.958942 | BI57: -1966.490001 | BJ57: -2283.706813 | BK57: -2544.046309 | BL57: -2759.667819 | BM57: -2938.810216 | BN57: -3087.247146 | BO57: -3209.186853 | BP57: -3307.829735 | BQ57: -3385.71482 | BR57: -3442.115907 | BS57: -3482.441208 | BT57: -3508.177167 | BU57: -3520.649665 | BV57: -3521.058141 | BW57: -3510.498334 | BX57: -3489.977875 | BY57: -3460.427397 | BZ57: -3422.70876 | CA57: -3377.621438 | CB57: -3325.907674 | CC57: -3268.256818 | CD57: -3208.306593 | CE57: -3143.87783 | CF57: -3075.495896 | CG57: -3003.648053 | CH57: -2928.785895 | CI57: -2851.327619 | CJ57: -2771.660142 | CK57: -2690.141086 | CL57: -2607.100642 | CM57: -2522.843318 | CN57: -2437.649587 | CO57: -2351.777427 | CP57: -2269.573959 | CQ57: -2187.156962 | CR57: -2104.715862 | CS57: -2022.423733 | CT57: -1940.438378 | CU57: -1858.903353 | CV57: -1777.948921 | CW57: -1697.692957 | CX57: -1618.241789 | CY57: -1539.690995 | CZ57: -1462.126151 | DA57: -1385.623532 | DB57: -1313.839948 | DC57: -1243.189182 | DD57: -1173.720909 | DE57: -1105.478229 | DF57: -1038.498153 | DG57: -972.8120587 | DH57: -908.4461173 | DI57: -845.4216918 | DJ57: -783.755712 | DK57: -723.4610244 | DL57: -664.5467201 | DM57: -607.0184414 | DN57: -580.285216 | DS57: 49 | DT57: 15767.15869 | DU57: 0.6301442015 | DV57: 30574.57847 | DW57: 1.10438202 | DX57: 49 | DY57: 3137.167356 | DZ57: 2556.88214 | EA57: tx A | EB57: 0 | EG57: 19200 | EH57: 0.985 | EI57: 0.015 | EJ57: -7120.513622 | EK57: -14532.8126 | EL57: 0.985
H58: 3.00 | I58: 37 | J58: =MMULT(J57:M57,J$4:M$7) -> 0.102921712 | K58: 0.03296239058 | L58: 0.7702545806 | M58: 0.09386131677 | N58: 0.9019427057 | O58: 5.710833116 | P58: 3.639853557 | Q58: 275.8036868 | R58: 0 | S58: 0.006335612516 | T58: 0.001617817716 | U58: -0.007931449464 | V58: 0 | AA58: 3.00 | AB58: 37 | AC58: =MMULT(AC57:AF57,AC$4:AF$7) -> 0.1586855787 | AD58: 0.05369903571 | AE58: 0.6997232651 | AF58: 0.08789212049 | AG58: 0.9019427057 | AH58: 132.6083962 | AI58: 47.82462334 | AJ58: 250.5486642 | AK58: 0 | AL58: 0.009768301737 | AM58: 0.002635587098 | AN58: -0.007205175867 | AO58: 0 | AP58: 145.8273102 | AQ58: 0.0051767322 | AR58: 9.474655791 | AS58: -5584.492186 | AT58: =$AS$58 -> -5584.492186 | BA58: 50 | BB58: 17815.96504 | BC58: -0.2967717764 | BD58: 31138.19996 | BE58: 0.1491778209 | BF58: -432.5 | BG58: -1020.287749 | BH58: -1437.242211 | BI58: -1745.754584 | BJ58: -1982.65334 | BK58: -2169.898536 | BL58: -2320.789399 | BM58: -2443.568011 | BN58: -2543.511894 | BO58: -2624.149678 | BP58: -2687.967894 | BQ58: -2736.822456 | BR58: -2770.495115 | BS58: -2792.469845 | BT58: -2803.745054 | BU58: -2805.206883 | BV58: -2797.657502 | BW58: -2781.83256 | BX58: -2758.412286 | BY58: -2728.028874 | BZ58: -2691.271647 | CA58: -2648.690893 | CB58: -2600.800899 | CC58: -2548.082451 | CD58: -2493.703944 | CE58: -2435.555052 | CF58: -2374.009555 | CG58: -2309.416483 | CH58: -2242.101575 | CI58: -2172.368632 | CJ58: -2100.500802 | CK58: -2026.761786 | CL58: -1951.396976 | CM58: -1874.634533 | CN58: -1796.686406 | CO58: -1717.74929 | CP58: -1641.802861 | CQ58: -1565.249037 | CR58: -1488.236581 | CS58: -1410.902919 | CT58: -1333.374832 | CU58: -1255.769108 | CV58: -1178.193159 | CW58: -1100.745604 | CX58: -1023.516818 | CY58: -946.5894507 | CZ58: -870.0389163 | DA58: -793.9338572 | DB58: -721.9364492 | DC58: -650.4763374 | DD58: -579.6019437 | DE58: -509.3567648 | DF58: -439.7797007 | DG58: -370.9053638 | DH58: -302.7643704 | DI58: -235.3836153 | DJ58: -168.7865306 | DK58: -102.9933282 | DL58: -38.02122946 | DM58: 26.1153197 | DN58: 56.2529991 | DS58: 50 | DT58: 17815.96504 | DU58: -0.2967717764 | DV58: 31138.19996 | DW58: 0.1491778209 | DX58: 50 | DY58: -26719.11833 | DZ58: -26662.86533 | EA58: tx B | EB58: 56.2529991 | EG58: 19600 | EH58: 0.9826 | EI58: 0.0174 | EJ58: -6919.536117 | EK58: -14197.61929 | EL58: 0.9826
H59: 3.01 | I59: 38 | J59: =MMULT(J58:M58,J$4:M$7) -> 0.09826231748 | K59: 0.03147013865 | L59: 0.773494008 | M59: 0.0967735359 | N59: 0.9019427057 | O59: 5.452296563 | P59: 3.475072472 | Q59: 276.9636228 | R59: 0 | S59: 0.006048791418 | T59: 0.001544576924 | U59: -0.007964806428 | V59: 0 | AA59: 3.01 | AB59: 38 | AC59: =MMULT(AC58:AF58,AC$4:AF$7) -> 0.1528375407 | AD59: 0.05172005565 | AE59: 0.7047613648 | AF59: 0.09068103882 | AG59: 0.9019427057 | AH59: 127.7213803 | AI59: 46.06213403 | AJ59: 252.3526476 | AK59: 0 | AL59: 0.009408310618 | AM59: 0.00253845734 | AN59: -0.007257054083 | AO59: 0 | AP59: 140.2451701 | AQ59: 0.005061151961 | AR59: 11.5893887 | AS59: -5572.902797 | AT59: =$AS$59 -> -5572.902797 | BA59: 51 | BB59: 16860.52137 | BC59: 0.7195691718 | BD59: 28698.65687 | BE59: 0.8230822048 | BF59: -432.5 | BG59: -1130.655925 | BH59: -1718.063421 | BI59: -2229.489265 | BJ59: -2686.608454 | BK59: -3103.055563 | BL59: -3487.522199 | BM59: -3845.656269 | BN59: -4181.226589 | BO59: -4496.837116 | BP59: -4794.365117 | BQ59: -5075.230136 | BR59: -5327.924561 | BS59: -5566.714751 | BT59: -5792.370746 | BU59: -6005.577891 | BV59: -6206.959983 | BW59: -6397.093879 | BX59: -6576.51885 | BY59: -6745.742699 | BZ59: -6905.24589 | CA59: -7055.484438 | CB59: -7196.892024 | CC59: -7329.881628 | CD59: -7448.896113 | CE59: -7560.625755 | CF59: -7665.411505 | CG59: -7763.578658 | CH59: -7855.437613 | CI59: -7941.284577 | CJ59: -8021.402233 | CK59: -8096.060357 | CL59: -8165.51642 | CM59: -8230.016145 | CN59: -8289.794042 | CO59: -8345.073925 | CP59: -8393.641034 | CQ59: -8438.321889 | CR59: -8479.301768 | CS59: -8516.75749 | CT59: -8550.857799 | CU59: -8581.763729 | CV59: -8609.628956 | CW59: -8634.600132 | CX59: -8656.817203 | CY59: -8676.413714 | CZ59: -8693.5171 | DA59: -8708.248965 | DB59: -8720.131233 | DC59: -8729.970869 | DD59: -8737.868491 | DE59: -8743.920107 | DF59: -8748.217321 | DG59: -8750.847536 | DH59: -8751.894143 | DI59: -8751.436705 | DJ59: -8749.551131 | DK59: -8746.309841 | DL59: -8741.781925 | DM59: -8736.033296 | DN59: -8732.744504 | DS59: 51 | DT59: 16860.52137 | DU59: 0.7195691718 | DV59: 28698.65687 | DW59: 0.8230822048 | DX59: 51 | DY59: 4726.553779 | DZ59: -4006.190725 | EA59: tx A | EB59: 0 | EG59: 20000 | EH59: 0.9808 | EI59: 0.0192 | EJ59: -6718.558612 | EK59: -13862.42597 | EL59: 0.9808
H60: 3.02 | I60: 39 | J60: =MMULT(J59:M59,J$4:M$7) -> 0.09381385891 | K60: 0.03004544395 | L60: 0.7764536239 | M60: 0.09968707322 | N60: 0.9019427057 | O60: 5.205464247 | P60: 3.317751357 | Q60: 278.0233672 | R60: 0 | S60: 0.005774955031 | T60: 0.001474651889 | U60: -0.007995282124 | V60: 0 | AA60: 3.02 | AB60: 39 | AC60: =MMULT(AC59:AF59,AC$4:AF$7) -> 0.1472050184 | AD60: 0.04981401004 | AE60: 0.7095060901 | AF60: 0.09347488153 | AG60: 0.9019427057 | AH60: 123.0144639 | AI60: 44.36460051 | AJ60: 254.0515829 | AK60: 0 | AL60: 0.009061586116 | AM60: 0.002444907258 | AN60: -0.007305911369 | AO60: 0 | AP60: 134.8840645 | AQ60: 0.004946257209 | AR60: 13.50365175 | AS60: -5559.399145 | AT60: =$AS$60 -> -5559.399145 | BA60: 52 | BB60: 17433.84337 | BC60: -0.04073159842 | BD60: 30843.92372 | BE60: 0.3904527189 | BF60: -432.5 | BG60: -1084.85805 | BH60: -1594.98161 | BI60: -2006.552342 | BJ60: -2346.958482 | BK60: -2633.624284 | BL60: -2877.857424 | BM60: -3087.192333 | BN60: -3266.820532 | BO60: -3420.465781 | BP60: -3550.920993 | BQ60: -3660.378737 | BR60: -3746.337573 | BS60: -3815.464406 | BT60: -3869.033207 | BU60: -3908.185101 | BV60: -3933.958992 | BW60: -3947.311555 | BX60: -3949.130592 | BY60: -3940.244261 | BZ60: -3921.427682 | CA60: -3893.407891 | CB60: -3856.867711 | CC60: -3812.448926 | CD60: -3763.216584 | CE60: -3707.59592 | CF60: -3646.095085 | CG60: -3579.1918 | CH60: -3507.33506 | CI60: -3430.946717 | CJ60: -3350.422973 | CK60: -3266.135775 | CL60: -3178.434143 | CM60: -3087.645419 | CN60: -2994.076452 | CO60: -2898.014724 | CP60: -2804.409666 | CQ60: -2708.926797 | CR60: -2611.790445 | CS60: -2513.210244 | CT60: -2413.381953 | CU60: -2312.488231 | CV60: -2210.699378 | CW60: -2108.174033 | CX60: -2005.059833 | CY60: -1901.494047 | CZ60: -1797.604165 | DA60: -1693.508465 | DB60: -1594.278067 | DC60: -1495.052631 | DD60: -1395.921427 | DE60: -1296.966833 | DF60: -1198.26474 | DG60: -1099.884943 | DH60: -1001.891504 | DI60: -904.3431041 | DJ60: -807.2933658 | DK60: -710.7911686 | DL60: -614.8809404 | DM60: -519.6029357 | DN60: -474.5508227 | DS60: 52 | DT60: 17433.84337 | DU60: -0.04073159842 | DV60: 30843.92372 | DW60: 0.3904527189 | DX60: 52 | DY60: -18655.79133 | DZ60: -19130.34215 | EA60: tx A | EB60: 0 | EG60: 20400 | EH60: 0.9773 | EI60: 0.0227 | EJ60: -6517.581106 | EK60: -13527.23266 | EL60: 0.9773
H61: 3.03 | I61: 40 | J61: =MMULT(J60:M60,J$4:M$7) -> 0.08956678726 | K61: 0.02868524765 | L61: 0.7791465613 | M61: 0.1026014038 | N61: 0.9019427057 | O61: 4.969806319 | P61: 3.16755244 | Q61: 278.9876225 | R61: 0 | S61: 0.005513515537 | T61: 0.001407892481 | U61: -0.008023011783 | V61: 0 | AA61: 3.03 | AB61: 40 | AC61: =MMULT(AC60:AF60,AC$4:AF$7) -> 0.14178007 | AD61: 0.04797820988 | AE61: 0.7139686293 | AF61: 0.09627309083 | AG61: 0.9019427057 | AH61: 118.4810104 | AI61: 42.72962792 | AJ61: 255.6494764 | AK61: 0 | AL61: 0.008727639372 | AM61: 0.002354804872 | AN61: -0.007351862935 | AO61: 0 | AP61: 129.7351334 | AQ61: 0.004832185074 | AR61: 15.23041882 | AS61: -5544.168726 | AT61: =$AS$61 -> -5544.168726 | BA61: 53 | BB61: 18580.39185 | BC61: 0.05447967933 | BD61: 30002.78215 | BE61: 0.4488731179 | BF61: -432.5 | BG61: -1058.082728 | BH61: -1530.528954 | BI61: -1901.312407 | BJ61: -2201.411066 | BK61: -2449.720045 | BL61: -2657.997301 | BM61: -2833.771465 | BN61: -2982.051986 | BO61: -3106.335461 | BP61: -3209.198374 | BQ61: -3292.646819 | BR61: -3355.195952 | BS61: -3402.154856 | BT61: -3434.699954 | BU61: -3453.891218 | BV61: -3460.69834 | BW61: -3456.017287 | BX61: -3440.681149 | BY61: -3415.467578 | BZ61: -3381.104183 | CA61: -3338.272665 | CB61: -3287.612167 | CC61: -3229.722109 | CD61: -3168.23885 | CE61: -3100.907835 | CF61: -3028.199828 | CG61: -2950.556071 | CH61: -2868.389983 | CI61: -2782.08876 | CJ61: -2692.014888 | CK61: -2598.507553 | CL61: -2501.883994 | CM61: -2402.440763 | CN61: -2300.454928 | CO61: -2196.185206 | CP61: -2094.935512 | CQ61: -1991.955066 | CR61: -1887.443723 | CS61: -1781.587621 | CT61: -1674.559985 | CU61: -1566.521902 | CV61: -1457.623046 | CW61: -1348.002363 | CX61: -1237.788719 | CY61: -1127.101514 | CZ61: -1016.051257 | DA61: -904.7401148 | DB61: -798.570885 | DC61: -692.3258873 | DD61: -586.0814151 | DE61: -479.907616 | DF61: -373.8688805 | DG61: -268.0242084 | DH61: -162.4275537 | DI61: -57.1281505 | DJ61: 47.82918079 | DK61: 152.4037441 | DL61: 256.5586957 | DM61: 360.2607876 | DN61: 409.412854 | DS61: 53 | DT61: 18580.39185 | DU61: 0.05447967933 | DV61: 30002.78215 | DW61: 0.4488731179 | DX61: 53 | DY61: -16946.00147 | DZ61: -16536.58861 | EA61: tx B | EB61: 409.412854 | EG61: 20800 | EH61: 0.9728 | EI61: 0.0272 | EJ61: -6316.603601 | EK61: -13192.03934 | EL61: 0.9728
H62: 3.04 | I62: 41 | J62: =MMULT(J61:M61,J$4:M$7) -> 0.08551198567 | K62: 0.02738662955 | L62: 0.7815853568 | M62: 0.105516028 | N62: 0.9019427057 | O62: 4.74481691 | P62: 3.024153262 | Q62: 279.8608777 | R62: 0 | S62: 0.005263911725 | T62: 0.001344155375 | U62: -0.008048124497 | V62: 0 | AA62: 3.04 | AB62: 41 | AC62: =MMULT(AC61:AF61,AC$4:AF$7) -> 0.1365550465 | AD62: 0.04621006567 | AE62: 0.718159757 | AF62: 0.09907513078 | AG62: 0.9019427057 | AH62: 114.1146276 | AI62: 41.15491006 | AJ62: 257.150186 | AK62: 0 | AL62: 0.008405999521 | AM62: 0.00226802309 | AN62: -0.007395019729 | AO62: 0 | AP62: 124.7898758 | AQ62: 0.004719060279 | AR62: 16.78193255 | AS62: -5527.386794 | AT62: =$AS$62 -> -5527.386794 | BA62: 54 | BB62: 16112.56155 | BC62: 0.7438434406 | BD62: 32363.77018 | BE62: 1.318830398 | BF62: -432.5 | BG62: -1073.457092 | BH62: -1574.419292 | BI62: -1982.239656 | BJ62: -2323.322273 | BK62: -2612.877223 | BL62: -2860.009981 | BM62: -3070.50389 | BN62: -3248.33113 | BO62: -3396.46685 | BP62: -3517.323988 | BQ62: -3612.983322 | BR62: -3681.869747 | BS62: -3730.177016 | BT62: -3759.433254 | BU62: -3771.07282 | BV62: -3766.445732 | BW62: -3746.823604 | BX62: -3713.403982 | BY62: -3667.313974 | BZ62: -3609.613585 | CA62: -3541.298921 | CB62: -3463.305319 | CC62: -3376.510406 | CD62: -3286.250099 | CE62: -3189.125651 | CF62: -3085.82469 | CG62: -2976.990668 | CH62: -2863.225296 | CI62: -2745.090867 | CJ62: -2623.112459 | CK62: -2497.780034 | CL62: -2369.550435 | CM62: -2238.849269 | CN62: -2106.072701 | CO62: -1971.589152 | CP62: -1842.209865 | CQ62: -1711.833397 | CR62: -1580.740212 | CS62: -1449.189994 | CT62: -1317.422884 | CU62: -1185.660633 | CV62: -1054.107709 | CW62: -922.9523318 | CX62: -792.3674567 | CY62: -662.5117045 | CZ62: -533.5302394 | DA62: -405.5555987 | DB62: -284.7488172 | DC62: -165.1202398 | DD62: -46.76433657 | DE62: 70.23369894 | DF62: 185.7973547 | DG62: 299.8582393 | DH62: 412.3555521 | DI62: 523.2355836 | DJ62: 632.451244 | DK62: 739.9616182 | DL62: 845.7315467 | DM62: 949.7312302 | DN62: 998.4001002 | DS62: 54 | DT62: 16112.56155 | DU62: 0.7438434406 | DV62: 32363.77018 | DW62: 1.318830398 | DX62: 54 | DY62: 6202.741665 | DZ62: 7201.141765 | EA62: tx B | EB62: 998.4001002 | EG62: 21200 | EH62: 0.9677 | EI62: 0.0323 | EJ62: -6115.626095 | EK62: -12856.84602 | EL62: 0.9677
H63: 3.05 | I63: 42 | J63: =MMULT(J62:M62,J$4:M$7) -> 0.08164074993 | K63: 0.02614680177 | L63: 0.7837819777 | M63: 0.1084304706 | N63: 0.9019427057 | O63: 4.530013048 | P63: 2.887245972 | Q63: 280.6474178 | R63: 0 | S63: 0.005025607784 | T63: 0.001283303741 | U63: -0.008070743496 | V63: 0 | AA63: 3.05 | AB63: 42 | AC63: =MMULT(AC62:AF62,AC$4:AF$7) -> 0.1315225805 | AD63: 0.04450708366 | AE63: 0.7220898494 | AF63: 0.1018804865 | AG63: 0.9019427057 | AH63: 109.9091587 | AI63: 39.63822597 | AJ63: 258.5574272 | AK63: 0 | AL63: 0.008096213039 | AM63: 0.002184439514 | AN63: -0.007435488594 | AO63: 0 | AP63: 120.0401351 | AQ63: 0.00460699593 | AR63: 18.16974281 | AS63: -5509.217051 | AT63: =$AS$63 -> -5509.217051 | BA63: 55 | BB63: 15724.65124 | BC63: 0.4566099531 | BD63: 29522.1862 | BE63: 0.6688559045 | BF63: -432.5 | BG63: -1095.813856 | BH63: -1630.791808 | BI63: -2082.103238 | BJ63: -2477.026545 | BK63: -2832.292029 | BL63: -3158.22967 | BM63: -3461.283437 | BN63: -3745.535573 | BO63: -4013.630778 | BP63: -4267.336639 | BQ63: -4507.883564 | BR63: -4725.300205 | BS63: -4931.701926 | BT63: -5127.626023 | BU63: -5313.53043 | BV63: -5489.820595 | BW63: -5656.865913 | BX63: -5815.009835 | BY63: -5964.576122 | BZ63: -6105.872771 | CA63: -6239.194519 | CB63: -6364.824477 | CC63: -6483.035242 | CD63: -6588.801376 | CE63: -6687.993604 | CF63: -6780.845295 | CG63: -6867.581912 | CH63: -6948.421322 | CI63: -7023.574078 | CJ63: -7093.243682 | CK63: -7157.626822 | CL63: -7216.913606 | CM63: -7271.287778 | CN63: -7320.92693 | CO63: -7366.002704 | CP63: -7404.743928 | CQ63: -7439.449754 | CR63: -7470.267745 | CS63: -7497.340503 | CT63: -7520.805836 | CU63: -7540.796911 | CV63: -7557.442413 | CW63: -7570.866683 | CX63: -7581.18987 | CY63: -7588.528063 | CZ63: -7592.993425 | DA63: -7594.694328 | DB63: -7593.781129 | DC63: -7590.431158 | DD63: -7584.737479 | DE63: -7576.789998 | DF63: -7566.675562 | DG63: -7554.478064 | DH63: -7540.278542 | DI63: -7524.155269 | DJ63: -7506.183848 | DK63: -7486.4373 | DL63: -7464.986148 | DM63: -7441.898503 | DN63: -7430.156426 | DS63: 55 | DT63: 15724.65124 | DU63: 0.4566099531 | DV63: 29522.1862 | DW63: 0.6688559045 | DX63: 55 | DY63: -2026.352643 | DZ63: -9456.509069 | EA63: tx A | EB63: 0 | EG63: 21600 | EH63: 0.9616 | EI63: 0.0384 | EJ63: -5914.64859 | EK63: -12521.65271 | EL63: 0.9616
H64: 3.06 | I64: 43 | J64: =MMULT(J63:M63,J$4:M$7) -> 0.07794476985 | K64: 0.0249631027 | L64: 0.785747848 | M64: 0.1113442795 | N64: 0.9019427057 | O64: 4.324933623 | P64: 2.756536665 | Q64: 281.3513335 | R64: 0 | S64: 0.004798092159 | T64: 0.001225206943 | U64: -0.008090986415 | V64: 0 | AA64: 3.06 | AB64: 43 | AC64: =MMULT(AC63:AF63,AC$4:AF$7) -> 0.1266755756 | AD64: 0.04286686213 | AE64: 0.7257688988 | AF64: 0.1046886634 | AG64: 0.9019427057 | AH64: 105.8586739 | AI64: 38.17743667 | AJ64: 259.8747779 | AK64: 0 | AL64: 0.007797843105 | AM64: 0.002103936267 | AN64: -0.007473372426 | AO64: 0 | AP64: 115.4780846 | AQ64: 0.00449609426 | AR64: 19.40474315 | AS64: -5489.812308 | AT64: =$AS$64 -> -5489.812308 | BA64: 56 | BB64: 14734.71963 | BC64: 0.6221181531 | BD64: 28289.55116 | BE64: 0.8866430077 | BF64: -432.5 | BG64: -1106.418145 | BH64: -1652.203761 | BI64: -2109.524534 | BJ64: -2503.55111 | BK64: -2850.41541 | BL64: -3160.603579 | BM64: -3441.066149 | BN64: -3696.531207 | BO64: -3930.322247 | BP64: -4144.868057 | BQ64: -4342.021077 | BR64: -4514.626295 | BS64: -4673.236722 | BT64: -4818.851873 | BU64: -4952.353513 | BV64: -5074.536025 | BW64: -5186.126052 | BX64: -5287.795439 | BY64: -5380.169931 | BZ64: -5463.835224 | CA64: -5539.341318 | CB64: -5607.205777 | CC64: -5667.916291 | CD64: -5719.360563 | CE64: -5764.842819 | CF64: -5804.753034 | CG64: -5839.459235 | CH64: -5869.308719 | CI64: -5894.629179 | CJ64: -5915.729748 | CK64: -5932.901993 | CL64: -5946.420836 | CM64: -5956.545438 | CN64: -5963.520027 | CO64: -5967.574684 | CP64: -5968.861745 | CQ64: -5967.768571 | CR64: -5964.478005 | CS64: -5959.162056 | CT64: -5951.982478 | CU64: -5943.091315 | CV64: -5932.631431 | CW64: -5920.736994 | CX64: -5907.533954 | CY64: -5893.140484 | CZ64: -5877.667406 | DA64: -5861.218588 | DB64: -5844.716439 | DC64: -5827.464435 | DD64: -5809.543745 | DE64: -5791.030259 | DF64: -5771.994886 | DG64: -5752.503832 | DH64: -5732.618863 | DI64: -5712.397556 | DJ64: -5691.893537 | DK64: -5671.156706 | DL64: -5650.233449 | DM64: -5629.166843 | DN64: -5619.085892 | DS64: 56 | DT64: 14734.71963 | DU64: 0.6221181531 | DV64: 28289.55116 | DW64: 0.8866430077 | DX64: 56 | DY64: 3928.824963 | DZ64: -1690.260928 | EA64: tx A | EB64: 0 | EG64: 22000 | EH64: 0.9571 | EI64: 0.0429 | EJ64: -5713.671084 | EK64: -12186.45939 | EL64: 0.9571
H65: 3.07 | I65: 44 | J65: =MMULT(J64:M64,J$4:M$7) -> 0.07441611141 | K65: 0.02383299128 | L65: 0.7874938729 | M65: 0.1142570244 | N65: 0.9019427057 | O65: 4.129138401 | P65: 2.631744742 | Q65: 281.9765295 | R65: 0 | S65: 0.004580876451 | T65: 0.001169740266 | U65: -0.008108965547 | V65: 0 | AA65: 3.07 | AB65: 44 | AC65: =MMULT(AC64:AF64,AC$4:AF$7) -> 0.1220071974 | AD65: 0.041287088 | AE65: 0.7292065281 | AF65: 0.1074991864 | AG65: 0.9019427057 | AH65: 101.9574614 | AI65: 36.77048212 | AJ65: 261.1056837 | AK65: 0 | AL65: 0.007510468994 | AM65: 0.002026399823 | AN65: -0.007508770311 | AO65: 0 | AP65: 111.0962146 | AQ65: 0.004386447336 | AR65: 20.49720548 | AS65: -5469.315102 | AT65: =$AS$65 -> -5469.315102 | BA65: 57 | BB65: 16148.9929 | BC65: 0.09400976878 | BD65: 31155.12059 | BE65: 0.4302429844 | BF65: -432.5 | BG65: -1099.355417 | BH65: -1633.698407 | BI65: -2076.789377 | BJ65: -2454.750365 | BK65: -2784.29023 | BL65: -3076.255066 | BM65: -3337.830417 | BN65: -3573.907692 | BO65: -3787.932442 | BP65: -3982.431371 | BQ65: -4159.340169 | BR65: -4312.54745 | BS65: -4451.705967 | BT65: -4577.873868 | BU65: -4691.987135 | BV65: -4794.890321 | BW65: -4887.35642 | BX65: -4970.099948 | BY65: -5043.785798 | BZ65: -5109.035424 | CA65: -5166.431336 | CB65: -5216.520519 | CC65: -5259.817159 | CD65: -5295.043571 | CE65: -5324.694861 | CF65: -5349.17878 | CG65: -5368.878949 | CH65: -5384.156214 | CI65: -5395.349911 | CJ65: -5402.779043 | CK65: -5406.743392 | CL65: -5407.524565 | CM65: -5405.386982 | CN65: -5400.578814 | CO65: -5393.33287 | CP65: -5384.318171 | CQ65: -5373.384492 | CR65: -5360.714305 | CS65: -5346.478412 | CT65: -5330.836593 | CU65: -5313.938225 | CV65: -5295.922857 | CW65: -5276.920768 | CX65: -5257.053487 | CY65: -5236.43429 | CZ65: -5215.16867 | DA65: -5193.354783 | DB65: -5172.14439 | DC65: -5150.579424 | DD65: -5128.734732 | DE65: -5106.679658 | DF65: -5084.478364 | DG65: -5062.190144 | DH65: -5039.869705 | DI65: -5017.567446 | DJ65: -4995.32972 | DK65: -4973.199073 | DL65: -4951.214481 | DM65: -4929.411571 | DN65: -4919.131216 | DS65: 57 | DT65: 16148.9929 | DU65: 0.09400976878 | DV65: 31155.12059 | DW65: 0.4302429844 | DX65: 57 | DY65: -13328.69984 | DZ65: -18247.83106 | EA65: tx A | EB65: 0 | EG65: 22400 | EH65: 0.9516 | EI65: 0.0484 | EJ65: -5512.693579 | EK65: -11851.26607 | EL65: 0.9516
H66: 3.08 | I66: 45 | J66: =MMULT(J65:M65,J$4:M$7) -> 0.07104719978 | K66: 0.02275404148 | L66: 0.7890304624 | M66: 0.1171682964 | N66: =N54/(1+disc) -> 0.9019427057 | O66: 3.942207075 | P66: 2.512602314 | Q66: 282.5267334 | R66: 0 | S66: 0.004373494371 | T66: 0.001116784638 | U66: -0.008124788083 | V66: 0 | AA66: 3.08 | AB66: 45 | AC66: =MMULT(AC65:AF65,AC$4:AF$7) -> 0.1175108629 | AD66: 0.03976553351 | AE66: 0.7324120042 | AF66: 0.1103115993 | AG66: =AG54/(1+disc) -> 0.9019427057 | AH66: 98.20002041 | AI66: 35.41537826 | AJ66: 262.2534628 | AK66: 0 | AL66: 0.007233685482 | AM66: 0.00195172084 | AN66: -0.007541777672 | AO66: 0 | AP66: 106.8873187 | AQ66: 0.004278137723 | AR66: 21.45681294 | AS66: -5447.858289 | AT66: =$AS$66 -> -5447.858289 | BA66: 58 | BB66: 18116.69573 | BC66: 1.36731981 | BD66: 29565.54183 | BE66: 1.411725577 | BF66: -432.5 | BG66: -1126.212192 | BH66: -1712.487426 | BI66: -2228.760612 | BJ66: -2697.070088 | BK66: -3130.481887 | BL66: -3536.83324 | BM66: -3920.912861 | BN66: -4285.730126 | BO66: -4633.253502 | BP66: -4964.839978 | BQ66: -5281.484711 | BR66: -5569.56225 | BS66: -5844.76621 | BT66: -6107.632579 | BU66: -6358.645303 | BV66: -6598.252255 | BW66: -6826.874662 | BX66: -7044.912729 | BY66: -7252.749076 | BZ66: -7450.750901 | CA66: -7639.271402 | CB66: -7818.650768 | CC66: -7989.216922 | CD66: -8143.568527 | CE66: -8290.118313 | CF66: -8429.146582 | CG66: -8560.923788 | CH66: -8685.710888 | CI66: -8803.759688 | CJ66: -8915.313158 | CK66: -9020.605744 | CL66: -9119.863663 | CM66: -9213.305193 | CN66: -9301.140943 | CO66: -9383.574125 | CP66: -9457.123348 | CQ66: -9525.894168 | CR66: -9590.060414 | CS66: -9649.7898 | CT66: -9705.244133 | CU66: -9756.579525 | CV66: -9803.946585 | CW66: -9847.490615 | CX66: -9887.351793 | CY66: -9923.665352 | CZ66: -9956.561754 | DA66: -9986.166854 | DB66: -10011.34324 | DC66: -10033.61223 | DD66: -10053.08142 | DE66: -10069.85461 | DF66: -10084.03192 | DG66: -10095.70993 | DH66: -10104.9818 | DI66: -10111.93741 | DJ66: -10116.66342 | DK66: -10119.24344 | DL66: -10119.75811 | DM66: -10118.28522 | DN66: -10116.6731 | DS66: 58 | DT66: 18116.69573 | DU66: 1.36731981 | DV66: 29565.54183 | DW66: 1.411725577 | DX66: 58 | DY66: 22902.89858 | DZ66: 12786.22548 | EA66: tx A | EB66: 0 | EG66: 22800 | EH66: 0.9471 | EI66: 0.0529 | EJ66: -5311.716074 | EK66: -11516.07276 | EL66: 0.9471
H67: 3.09 | I67: 46 | J67: =MMULT(J66:M66,J$4:M$7) -> 0.06783080303 | K67: 0.02172393714 | L67: 0.7903675533 | M67: 0.1200777065 | N67: 0.9019427057 | O67: 3.763738366 | P67: 2.398853618 | Q67: 283.0055031 | R67: 0 | S67: 0.00417550074 | T67: 0.00106622638 | U67: -0.008138556348 | V67: 0 | AA67: 3.09 | AB67: 46 | AC67: =MMULT(AC66:AF66,AC$4:AF$7) -> 0.1131802319 | AD67: 0.03830005301 | AE67: 0.7353942511 | AF67: 0.1131254639 | AG67: 0.9019427057 | AH67: 94.5810524 | AI67: 34.11021418 | AJ67: 263.3213107 | AK67: 0 | AL67: 0.006967102274 | AM67: 0.001879794008 | AN67: -0.007572486403 | AO67: 0 | AP67: 102.8444821 | AQ67: 0.004171239108 | AR67: 22.29269111 | AS67: -5425.565598 | AT67: =$AS$67 -> -5425.565598 | BA67: 59 | BB67: 17916.65871 | BC67: 0.5513472405 | BD67: 31625.50495 | BE67: 0.9472863614 | BF67: -432.5 | BG67: -1086.485782 | BH67: -1604.895488 | BI67: -2032.065375 | BJ67: -2394.338643 | BK67: -2707.638886 | BL67: -2981.844008 | BM67: -3223.311598 | BN67: -3436.336832 | BO67: -3623.994259 | BP67: -3788.624163 | BQ67: -3932.113996 | BR67: -4050.159434 | BS67: -4150.930207 | BT67: -4235.63165 | BU67: -4305.369455 | BV67: -4361.169182 | BW67: -4403.988592 | BX67: -4434.725818 | BY67: -4454.225102 | BZ67: -4463.281088 | CA67: -4462.642242 | CB67: -4453.013729 | CC67: -4435.059933 | CD67: -4410.628313 | CE67: -4379.425326 | CF67: -4341.979552 | CG67: -4298.788503 | CH67: -4250.320272 | CI67: -4197.01509 | CJ67: -4139.28681 | CK67: -4077.524306 | CL67: -4012.092812 | CM67: -3943.33518 | CN67: -3871.573089 | CO67: -3797.108181 | CP67: -3723.884337 | CQ67: -3648.60777 | CR67: -3571.514499 | CS67: -3492.82529 | CT67: -3412.746488 | CU67: -3331.470818 | CV67: -3249.17814 | CW67: -3166.036161 | CX67: -3082.20112 | CY67: -2997.818427 | CZ67: -2913.023282 | DA67: -2827.941249 | DB67: -2746.748449 | DC67: -2665.496136 | DD67: -2584.279407 | DE67: -2503.186119 | DF67: -2422.297317 | DG67: -2341.687631 | DH67: -2261.425657 | DI67: -2181.574314 | DJ67: -2102.191191 | DK67: -2023.328862 | DL67: -1945.035193 | DM67: -1867.353636 | DN67: -1830.672616 | DS67: 59 | DT67: 17916.65871 | DU67: 0.5513472405 | DV67: 31625.50495 | DW67: 0.9472863614 | DX67: 59 | DY67: -1376.241494 | DZ67: -3206.914109 | EA67: tx A | EB67: 0 | EG67: 23200 | EH67: 0.9424 | EI67: 0.0576 | EJ67: -5110.738568 | EK67: -11180.87944 | EL67: 0.9424
H68: 3.10 | I68: 47 | J68: =MMULT(J67:M67,J$4:M$7) -> 0.06476001663 | K68: 0.02074046695 | L68: 0.7915146313 | M68: 0.1229848851 | N68: 0.9019427057 | O68: 3.593349161 | P68: 2.290254471 | Q68: 283.4162353 | R68: 0 | S68: 0.00398647053 | T68: 0.001017956959 | U68: -0.008150368016 | V68: 0 | AA68: 3.10 | AB68: 47 | AC68: =MMULT(AC67:AF67,AC$4:AF$7) -> 0.1090091977 | AD68: 0.03688857997 | AE68: 0.7381618628 | AF68: 0.1159403595 | AG68: 0.9019427057 | AH68: 91.09545427 | AI68: 32.8531494 | AJ68: 264.3123044 | AK68: 0 | AL68: 0.006710343462 | AM68: 0.001810517901 | AN68: -0.007600984997 | AO68: 0 | AP68: 98.96106917 | AQ68: 0.004065816894 | AR68: 23.01343765 | AS68: -5402.552161 | AT68: =$AS$68 -> -5402.552161 | BA68: 60 | BB68: 15518.149 | BC68: 0.4153792615 | BD68: 29807.45277 | BE68: 0.6651404828 | BF68: -432.5 | BG68: -1114.759057 | BH68: -1674.266104 | BI68: -2148.734642 | BJ68: -2562.058491 | BK68: -2929.54441 | BL68: -3261.152002 | BM68: -3563.501089 | BN68: -3841.116401 | BO68: -4097.200098 | BP68: -4334.111859 | BQ68: -4553.667735 | BR68: -4747.628598 | BS68: -4927.610015 | BT68: -5094.61357 | BU68: -5249.526265 | BV68: -5393.148909 | BW68: -5526.21458 | BX68: -5649.400848 | BY68: -5763.338105 | BZ68: -5868.615428 | CA68: -5965.784877 | CB68: -6055.364778 | CC68: -6137.842352 | CD68: -6210.064783 | CE68: -6276.370305 | CF68: -6337.145493 | CG68: -6392.754192 | CH68: -6443.538841 | CI68: -6489.821687 | CJ68: -6531.905927 | CK68: -6570.076771 | CL68: -6604.602453 | CM68: -6635.735172 | CN68: -6663.711992 | CO68: -6688.755681 | CP68: -6710.01267 | CQ68: -6728.862697 | CR68: -6745.481497 | CS68: -6760.034 | CT68: -6772.674943 | CU68: -6783.549447 | CV68: -6792.793562 | CW68: -6800.534784 | CX68: -6806.892546 | CY68: -6811.978675 | CZ68: -6815.897837 | DA68: -6818.747942 | DB68: -6820.53137 | DC68: -6821.465326 | DD68: -6821.625921 | DE68: -6821.084209 | DF68: -6819.906482 | DG68: -6818.154553 | DH68: -6815.886018 | DI68: -6813.15451 | DJ68: -6810.009936 | DK68: -6806.498698 | DL68: -6802.663905 | DM68: -6798.545576 | DN68: -6796.467123 | DS68: 60 | DT68: 15518.149 | DU68: 0.4153792615 | DV68: 29807.45277 | DW68: 0.6651404828 | DX68: 60 | DY68: -3056.771158 | DZ68: -9853.238281 | EA68: tx A | EB68: 0 | EG68: 23600 | EH68: 0.9378 | EI68: 0.0622 | EJ68: -4909.761063 | EK68: -10845.68612 | EL68: 0.9378
H69: 3.11 | I69: 48 | J69: =MMULT(J68:M68,J$4:M$7) -> 0.06182824861 | K69: 0.01980151971 | L69: 0.7924807509 | M69: 0.1258894808 | N69: 0.9019427057 | O69: 3.430673691 | P69: 2.186571747 | Q69: 283.762172 | R69: 0 | S69: 0.003805997957 | T69: 0.0009718727565 | U69: -0.008160316323 | V69: 0 | AA69: 3.11 | AB69: 48 | AC69: =MMULT(AC68:AF68,AC$4:AF$7) -> 0.1049918787 | AD69: 0.03552912403 | AE69: 0.7407231151 | AF69: 0.1187558822 | AG69: 0.9019427057 | AH69: 87.73831096 | AI69: 31.6424113 | AJ69: 265.2294075 | AK69: 0 | AL69: 0.006463046988 | AM69: 0.001743794831 | AN69: -0.00762735867 | AO69: 0 | AP69: 95.23071228 | AQ69: 0.003961928758 | AR69: 23.62715045 | AS69: -5378.92501 | AT69: =$AS$69 -> -5378.92501 | BA69: 61 | BB69: 16419.04595 | BC69: -0.5457248114 | BD69: 29487.39899 | BE69: -0.4019004537 | BF69: -432.5 | BG69: -1077.287883 | BH69: -1583.303932 | BI69: -2000.624247 | BJ69: -2360.08131 | BK69: -2680.696412 | BL69: -2974.238714 | BM69: -3248.022661 | BN69: -3506.624993 | BO69: -3752.938955 | BP69: -3988.821753 | BQ69: -4215.49231 | BR69: -4423.381253 | BS69: -4623.836202 | BT69: -4817.266915 | BU69: -5003.993229 | BV69: -5184.278335 | BW69: -5358.349252 | BX69: -5526.409417 | BY69: -5688.646438 | BZ69: -5845.236864 | CA69: -5996.349121 | CB69: -6142.145325 | CC69: -6282.782398 | CD69: -6411.954178 | CE69: -6536.498966 | CF69: -6656.554455 | CG69: -6772.254905 | CH69: -6883.731259 | CI69: -6991.111227 | CJ69: -7094.519352 | CK69: -7194.077066 | CL69: -7289.902735 | CM69: -7382.11171 | CN69: -7470.816366 | CO69: -7556.126154 | CP69: -7634.241858 | CQ69: -7709.324641 | CR69: -7781.470644 | CS69: -7850.773398 | CT69: -7917.323873 | CU69: -7981.210526 | CV69: -8042.519349 | CW69: -8101.333915 | CX69: -8157.735432 | CY69: -8211.802788 | CZ69: -8263.612602 | DA69: -8313.239274 | DB69: -8358.492377 | DC69: -8401.801857 | DD69: -8443.232508 | DE69: -8482.847199 | DF69: -8520.706919 | DG69: -8556.870817 | DH69: -8591.396255 | DI69: -8624.338849 | DJ69: -8655.752512 | DK69: -8685.689498 | DL69: -8714.200447 | DM69: -8741.334427 | DN69: -8753.622305 | DS69: 61 | DT69: 16419.04595 | DU69: -0.5457248114 | DV69: 29487.39899 | DW69: -0.4019004537 | DX69: 61 | DY69: -32790.79029 | DZ69: -41544.4126 | EA69: tx A | EB69: 0 | EG69: 24000 | EH69: 0.9319 | EI69: 0.0681 | EJ69: -4708.783557 | EK69: -10510.49281 | EL69: 0.9319
H70: 4.00 | I70: 49 | J70: =MMULT(J69:M69,J$4:M$7) -> 0.05902920544 | K70: 0.0189050798 | L70: 0.7932745551 | M70: 0.1287911596 | N70: 0.8714422277 | O70: 3.164601686 | P70: 2.016988282 | Q70: 274.440974 | R70: 0 | S70: 0.003510817011 | T70: 0.0008964974344 | U70: -0.007892261128 | V70: 0 | AA70: 4.00 | AB70: 49 | AC70: =MMULT(AC69:AF69,AC$4:AF$7) -> 0.1011226101 | AD70: 0.03421976818 | AE70: 0.7430859776 | AF70: 0.1215716441 | AG70: 0.8714422277 | AH70: 81.6472353 | AI70: 29.44569332 | AJ70: 257.0777521 | AK70: 0 | AL70: 0.006014361485 | AM70: 0.001622734984 | AN70: -0.007392936705 | AO70: 0 | AP70: 88.54811678 | AQ70: 0.003729106447 | AR70: 23.32507663 | AS70: -5355.599934 | AT70: =$AS$70 -> -5355.599934 | BA70: 62 | BB70: 17370.15552 | BC70: -0.1364876572 | BD70: 30997.46087 | BE70: 0.2885913803 | BF70: -432.5 | BG70: -1076.808968 | BH70: -1574.449903 | BI70: -1971.031683 | BJ70: -2294.960213 | BK70: -2564.207712 | BL70: -2790.400772 | BM70: -2981.290003 | BN70: -3142.242829 | BO70: -3277.146629 | BP70: -3388.955978 | BQ70: -3480.024997 | BR70: -3548.867821 | BS70: -3601.423588 | BT70: -3639.107388 | BU70: -3663.192729 | BV70: -3674.84082 | BW70: -3675.119776 | BX70: -3665.017661 | BY70: -3645.451736 | BZ70: -3617.275347 | CA70: -3581.283314 | CB70: -3538.216355 | CC70: -3488.764862 | CD70: -3436.20044 | CE70: -3378.739083 | CF70: -3316.912307 | CG70: -3251.214732 | CH70: -3182.106327 | CI70: -3110.014516 | CJ70: -3035.336157 | CK70: -2958.4394 | CL70: -2879.66544 | CM70: -2799.330169 | CN70: -2717.725728 | CO70: -2635.121984 | CP70: -2555.737148 | CQ70: -2475.856167 | CR70: -2395.680015 | CS70: -2315.39329 | CT70: -2235.165254 | CU70: -2155.150817 | CV70: -2075.491459 | CW70: -1996.316106 | CX70: -1917.741953 | CY70: -1839.875233 | CZ70: -1762.811947 | DA70: -1686.638553 | DB70: -1615.013844 | DC70: -1544.376481 | DD70: -1474.785078 | DE70: -1406.291407 | DF70: -1338.940878 | DG70: -1272.772994 | DH70: -1207.821773 | DI70: -1144.11615 | DJ70: -1081.680349 | DK70: -1020.534236 | DL70: -960.6936483 | DM70: -902.1707063 | DN70: -874.9342277 | DS70: 62 | DT70: 17370.15552 | DU70: -0.1364876572 | DV70: 30997.46087 | DW70: 0.2885913803 | DX70: 62 | DY70: -21464.78523 | DZ70: -22339.71946 | EA70: tx A | EB70: 0 | EG70: 24400 | EH70: 0.9254 | EI70: 0.0746 | EJ70: -4507.806052 | EK70: -10175.29949 | EL70: 0.9254
H71: 4.01 | I71: 50 | J71: =MMULT(J70:M70,J$4:M$7) -> 0.0563568785 | K71: 0.01804922288 | L71: 0.7939042943 | M71: 0.1316896044 | N71: 0.8714422277 | O71: 3.021336157 | P71: 1.925676665 | Q71: 274.6588383 | R71: 0 | S71: 0.003351877876 | T71: 0.0008559118591 | U71: -0.007898526381 | V71: 0 | AA71: 4.01 | AB71: 50 | AC71: =MMULT(AC70:AF70,AC$4:AF$7) -> 0.0973959357 | AD71: 0.03295866607 | AE71: 0.745258125 | AF71: 0.1243872732 | AG71: 0.8714422277 | AH71: 78.63828745 | AI71: 28.36053033 | AJ71: 257.8292275 | AK71: 0 | AL71: 0.005792714053 | AM71: 0.001562932285 | AN71: -0.007414547325 | AO71: 0 | AP71: 85.22219411 | AQ71: 0.003631835659 | AR71: 23.73287566 | AS71: -5331.867058 | AT71: =$AS$71 -> -5331.867058 | BA71: 63 | BB71: 15084.81308 | BC71: 1.115920051 | BD71: 28410.65952 | BE71: 1.012067265 | BF71: -432.5 | BG71: -1180.558142 | BH71: -1854.692368 | BI71: -2479.688747 | BJ71: -3069.865545 | BK71: -3633.537817 | BL71: -4175.582115 | BM71: -4698.908162 | BN71: -5205.302269 | BO71: -5695.909996 | BP71: -6171.511922 | BQ71: -6632.680872 | BR71: -7058.57657 | BS71: -7471.527915 | BT71: -7871.866255 | BU71: -8259.901122 | BV71: -8635.928744 | BW71: -9000.236733 | BX71: -9353.106605 | BY71: -9694.815092 | BZ71: -10025.63479 | CA71: -10345.83442 | CB71: -10655.67894 | CC71: -10955.42949 | CD71: -11231.53793 | CE71: -11498.51937 | CF71: -11756.61122 | CG71: -12006.04696 | CH71: -12247.05609 | CI71: -12479.86403 | CJ71: -12704.69208 | CK71: -12921.7574 | CL71: -13131.27298 | CM71: -13333.44756 | CN71: -13528.48569 | CO71: -13716.5877 | CP71: -13889.3134 | CQ71: -14055.80277 | CR71: -14216.23458 | CS71: -14370.78359 | CT71: -14519.62065 | CU71: -14662.91264 | CV71: -14800.8226 | CW71: -14933.50971 | CX71: -15061.12932 | CY71: -15183.83306 | CZ71: -15301.76881 | DA71: -15415.0808 | DB71: -15518.72733 | DC71: -15618.23473 | DD71: -15713.73021 | DE71: -15805.33767 | DF71: -15893.1778 | DG71: -15977.36811 | DH71: -16058.02301 | DI71: -16135.25384 | DJ71: -16209.16895 | DK71: -16279.87374 | DL71: -16347.47074 | DM71: -16412.05966 | DN71: -16441.43002 | DS71: 63 | DT71: 15084.81308 | DU71: 1.115920051 | DV71: 28410.65952 | DW71: 1.012067265 | DX71: 63 | DY71: 18392.78845 | DZ71: 1951.358425 | EA71: tx A | EB71: 0 | EG71: 24800 | EH71: 0.9176 | EI71: 0.0824 | EJ71: -4306.828546 | EK71: -9840.106175 | EL71: 0.9176
H72: 4.02 | I72: 51 | J72: =MMULT(J71:M71,J$4:M$7) -> 0.05380553118 | K72: 0.01723211168 | L72: 0.7943778433 | M72: 0.1345845138 | N72: 0.8714422277 | O72: 2.88455644 | P72: 1.838498842 | Q72: 274.8226672 | R72: 0 | S72: 0.003200134116 | T72: 0.0008171636443 | U72: -0.007903237704 | V72: 0 | AA72: 4.02 | AB72: 51 | AC72: =MMULT(AC71:AF71,AC$4:AF$7) -> 0.09380660054 | AD72: 0.0317440394 | AE72: 0.7472469479 | AF72: 0.1272024121 | AG72: 0.8714422277 | AH72: 75.74022843 | AI72: 27.31535889 | AJ72: 258.5172799 | AK72: 0 | AL72: 0.005579234999 | AM72: 0.001505333497 | AN72: -0.007434334055 | AO72: 0 | AP72: 82.02714476 | AQ72: 0.003536174384 | AR72: 24.05808676 | AS72: -5307.808971 | AT72: =$AS$72 -> -5307.808971 | BA72: 64 | BB72: 17976.25994 | BC72: 1.013156754 | BD72: 30932.61691 | BE72: 1.164042678 | BF72: -432.5 | BG72: -1112.961527 | BH72: -1672.36995 | BI72: -2150.53685 | BJ72: -2572.491134 | BK72: -2954.032114 | BL72: -3305.196319 | BM72: -3632.42104 | BN72: -3939.894077 | BO72: -4230.395549 | BP72: -4505.822817 | BQ72: -4767.517754 | BR72: -5004.615898 | BS72: -5230.308698 | BT72: -5445.188073 | BU72: -5649.755319 | BV72: -5844.450671 | BW72: -6029.671856 | BX72: -6205.785788 | BY72: -6373.135999 | BZ72: -6532.047396 | CA72: -6682.829373 | CB72: -6825.777875 | CC72: -6961.176821 | CD72: -7083.198046 | CE72: -7198.539248 | CF72: -7307.441339 | CG72: -7410.136471 | CH72: -7506.848436 | CI72: -7597.793002 | CJ72: -7683.178238 | CK72: -7763.204797 | CL72: -7838.066197 | CM72: -7907.949078 | CN72: -7973.033446 | CO72: -8033.492918 | CP72: -8086.82818 | CQ72: -8136.072066 | CR72: -8181.372926 | CS72: -8222.87384 | CT72: -8260.712808 | CU72: -8295.022923 | CV72: -8325.932551 | CW72: -8353.565499 | CX72: -8378.041169 | CY72: -8399.47472 | CZ72: -8417.977218 | DA72: -8433.655778 | DB72: -8445.996661 | DC72: -8455.841353 | DD72: -8463.281363 | DE72: -8468.404948 | DF72: -8471.29722 | DG72: -8472.040263 | DH72: -8470.713239 | DI72: -8467.39249 | DJ72: -8462.151642 | DK72: -8455.061695 | DL72: -8446.191122 | DM72: -8435.605955 | DN72: -8429.77925 | DS72: 64 | DT72: 17976.25994 | DU72: 1.013156754 | DV72: 30932.61691 | DW72: 1.164042678 | DX72: 64 | DY72: 12418.44268 | DZ72: 3988.663431 | EA72: tx A | EB72: 0 | EG72: 25200 | EH72: 0.9096 | EI72: 0.0904 | EJ72: -4105.851041 | EK72: -9504.912859 | EL72: 0.9096
H73: 4.03 | I73: 52 | J73: =MMULT(J72:M72,J$4:M$7) -> 0.0513696866 | K73: 0.01645199214 | L73: 0.7947027194 | M73: 0.1374756018 | N73: 0.8714422277 | O73: 2.753968915 | P73: 1.755267669 | Q73: 274.9350612 | R73: 0 | S73: 0.003055259989 | T73: 0.0007801696103 | U73: -0.007906469885 | V73: 0 | AA73: 4.03 | AB73: 52 | AC73: =MMULT(AC72:AF72,AC$4:AF$7) -> 0.09034954325 | AD73: 0.03057417541 | AE73: 0.7490595632 | AF73: 0.1300167181 | AG73: 0.8714422277 | AH73: 72.94897166 | AI73: 26.30870519 | AJ73: 259.1443716 | AK73: 0 | AL73: 0.005373623294 | AM73: 0.001449857398 | AN73: -0.007452367701 | AO73: 0 | AP73: 78.95775068 | AQ73: 0.003442153277 | AR73: 24.30684764 | AS73: -5283.502124 | AT73: =$AS$73 -> -5283.502124 | BA73: 65 | BB73: 17213.58143 | BC73: -0.1020647449 | BD73: 30665.05042 | BE73: 0.06446967532 | BF73: -432.5 | BG73: -1118.101153 | BH73: -1690.33338 | BI73: -2187.823091 | BJ73: -2633.297064 | BK73: -3040.267088 | BL73: -3416.907762 | BM73: -3768.302031 | BN73: -4097.739107 | BO73: -4407.463267 | BP73: -4699.105047 | BQ73: -4973.92916 | BR73: -5220.641295 | BS73: -5453.185138 | BT73: -5672.32748 | BU73: -5878.771038 | BV73: -6073.169673 | BW73: -6256.137489 | BX73: -6428.254476 | BY73: -6590.07018 | BZ73: -6742.106266 | CA73: -6884.858429 | CB73: -7018.797942 | CC73: -7144.372976 | CD73: -7256.408017 | CE73: -7361.268917 | CF73: -7459.322863 | CG73: -7550.919053 | CH73: -7636.389549 | CI73: -7716.050096 | CJ73: -7790.200897 | CK73: -7859.127359 | CL73: -7923.100795 | CM73: -7982.379102 | CN73: -8037.2074 | CO73: -8087.81865 | CP73: -8132.214442 | CQ73: -8173.005178 | CR73: -8210.381211 | CS73: -8244.523383 | CT73: -8275.603486 | CU73: -8303.784701 | CV73: -8329.222009 | CW73: -8352.062598 | CX73: -8372.44623 | CY73: -8390.505611 | CZ73: -8406.366729 | DA73: -8420.149183 | DB73: -8431.403765 | DC73: -8440.889391 | DD73: -8448.703436 | DE73: -8454.938293 | DF73: -8459.68162 | DG73: -8463.016571 | DH73: -8465.022021 | DI73: -8465.772772 | DJ73: -8465.339757 | DK73: -8463.79023 | DL73: -8461.187951 | DM73: -8457.593353 | DN73: -8455.436382 | DS73: 65 | DT73: 17213.58143 | DU73: -0.1020647449 | DV73: 30665.05042 | DW73: 0.06446967532 | DX73: 65 | DY73: =lambda*DU73-DT73 -> -20275.52378 | DZ73: =lambda*DW73-DV73 -> -28730.96016 | EA73: =IF(DY73>DZ73, "tx A", IF(DZ73>DY73, "tx B", "either")) -> tx A | EB73: =IF(EA$2="tx A", MAX(0,DZ73-DY73), MAX(0, DY73-DZ73)) -> 0 | EG73: 25600 | EH73: 0.9034 | EI73: 0.0966 | EJ73: -3904.873535 | EK73: -9169.719542 | EL73: 0.9034
H74: 4.04 | I74: 53 | J74: =MMULT(J73:M73,J$4:M$7) -> 0.04904411578 | K74: 0.0157071896 | L74: 0.7948860978 | M74: 0.1403625969 | N74: 0.8714422277 | O74: 2.629293251 | P74: 1.675804477 | Q74: 274.9985027 | R74: 0 | S74: 0.002916944497 | T74: 0.0007448503432 | U74: -0.00790829431 | V74: 0 | AA74: 4.04 | AB74: 53 | AC74: =MMULT(AC73:AF73,AC$4:AF$7) -> 0.08701988899 | AD74: 0.02944742446 | AE74: 0.7507028242 | AF74: 0.1328298624 | AG74: 0.8714422277 | AH74: 70.26058115 | AI74: 25.33914973 | AJ74: 259.7128736 | AK74: 0 | AL74: 0.005175589004 | AM74: 0.001396425762 | AN74: -0.007468716448 | AO74: 0 | AP74: 76.00900404 | AQ74: 0.003349797787 | AR74: 24.48492958 | AS74: -5259.017194 | AT74: =$AS$74 -> -5259.017194 | BA74: 66 | BB74: 16027.76378 | BC74: 0.4318790836 | BD74: 29153.91036 | BE74: 0.4677003065 | BF74: -432.5 | BG74: -1118.796996 | BH74: -1697.823155 | BI74: -2210.270673 | BJ74: -2679.303689 | BK74: -3118.12161 | BL74: -3534.277597 | BM74: -3932.137091 | BN74: -4314.272824 | BO74: -4682.253374 | BP74: -5037.08698 | BQ74: -5379.47008 | BR74: -5694.189699 | BS74: -5997.955587 | BT74: -6291.121194 | BU74: -6574.009343 | BV74: -6846.923888 | BW74: -7110.155898 | BX74: -7363.986886 | BY74: -7608.690467 | BZ74: -7844.533201 | CA74: -8071.775023 | CB74: -8290.669469 | CC74: -8501.463814 | CD74: -8694.735581 | CE74: -8880.746435 | CF74: -9059.714511 | CG74: -9231.852324 | CH74: -9397.366856 | CI74: -9556.459658 | CJ74: -9709.326943 | CK74: -9856.159688 | CL74: -9997.143741 | CM74: -10132.45992 | CN74: -10262.28411 | CO74: -10386.78739 | CP74: -10500.45285 | CQ74: -10609.36325 | CR74: -10713.66835 | CS74: -10813.5137 | CT74: -10909.04075 | CU74: -11000.38695 | CV74: -11087.68585 | CW74: -11171.06715 | CX74: -11250.65686 | CY74: -11326.57735 | CZ74: -11398.94742 | DA74: -11467.88244 | DB74: -11530.37002 | DC74: -11589.79631 | DD74: -11646.26179 | DE74: -11699.86396 | DF74: -11750.69745 | DG74: -11798.85404 | DH74: -11844.42279 | DI74: -11887.49008 | DJ74: -11928.13969 | DK74: -11966.45287 | DL74: -12002.50841 | DM74: -12036.3827 | DN74: -12051.50989 | DS74: 66 | DT74: 16027.76378 | DU74: 0.4318790836 | DV74: 29153.91036 | DW74: 0.4677003065 | DX74: 66 | DY74: -3071.391272 | DZ74: -15122.90116 | EA74: tx A | EB74: 0 | EG74: 26000 | EH74: 0.8953 | EI74: 0.1047 | EJ74: -3703.89603 | EK74: -8834.526226 | EL74: =IF(EJ74>EK74,EH74,EI74) -> 0.8953
H75: 4.05 | I75: 54 | J75: =MMULT(J74:M74,J$4:M$7) -> 0.0468238265 | K75: 0.01499610522 | L75: 0.7949348271 | M75: 0.1432452412 | N75: 0.8714422277 | O75: 2.510261814 | P75: 1.599938684 | Q75: 275.0153611 | R75: 0 | S75: 0.002784890723 | T75: 0.0007111300241 | U75: -0.007908779116 | V75: 0 | AA75: 4.05 | AB75: 54 | AC75: =MMULT(AC74:AF74,AC$4:AF$7) -> 0.08381294256 | AD75: 0.02836219769 | AE75: 0.7521833304 | AF75: 0.1356415293 | AG75: 0.8714422277 | AH75: 67.67126597 | AI75: 24.40532533 | AJ75: 260.225069 | AK75: 0 | AL75: 0.004984852876 | AM75: 0.001344963244 | AN75: -0.007483445954 | AO75: 0 | AP75: 73.17609871 | AQ75: 0.003259128535 | AR75: 24.59775735 | AS75: -5234.419437 | AT75: =$AS$75 -> -5234.419437 | BA75: =1+BA74 -> 67 | BB75: 16215.27408 | BC75: 0.2268637295 | BD75: 31367.17315 | BE75: 0.5843873639 | BF75: -432.5 | BG75: -1112.592943 | BH75: -1663.258201 | BI75: -2121.318034 | BJ75: -2511.298668 | BK75: -2849.638911 | BL75: -3147.464944 | BM75: -3412.414278 | BN75: -3649.83163 | BO75: -3863.551332 | BP75: -4056.408383 | BQ75: -4230.57186 | BR75: -4380.277071 | BS75: -4515.164054 | BT75: -4636.375459 | BU75: -4744.907818 | BV75: -4841.649565 | BW75: -4927.406239 | BX75: -5002.917382 | BY75: -5068.868047 | BZ75: -5125.896797 | CA75: -5174.601424 | CB75: -5215.543164 | CC75: -5249.249934 | CD75: -5274.934663 | CE75: -5294.64867 | CF75: -5308.812653 | CG75: -5317.823303 | CH75: -5322.054663 | CI75: -5321.859378 | CJ75: -5317.56985 | CK75: -5309.499315 | CL75: -5297.942851 | CM75: -5283.17834 | CN75: -5265.46736 | CO75: -5245.056046 | CP75: -5223.265429 | CQ75: -5199.330813 | CR75: -5173.446957 | CS75: -5145.796773 | CT75: -5116.551953 | CU75: -5085.873563 | CV75: -5053.912612 | CW75: -5020.810591 | CX75: -4986.699987 | CY75: -4951.704763 | CZ75: -4915.940829 | DA75: -4879.516473 | DB75: -4844.293911 | DC75: -4808.628443 | DD75: -4772.603737 | DE75: -4736.297681 | DF75: -4699.7827 | DG75: -4663.126065 | DH75: -4626.390185 | DI75: -4589.632882 | DJ75: -4552.90765 | DK75: -4516.263911 | DL75: -4479.747239 | DM75: -4443.399595 | DN75: -4426.190042 | DS75: =1+DS74 -> 67 | DT75: 16215.27408 | DU75: 0.2268637295 | DV75: 31367.17315 | DW75: 0.5843873639 | DX75: 67 | DY75: -9409.362192 | DZ75: -13835.55223 | EA75: tx A | EB75: 0 | EG75: =EG74+400 -> 26400 | EH75: 0.8892 | EI75: 0.1108 | EJ75: -3502.918525 | EK75: -8499.332909 | EL75: 0.8892
H76: 4.06 | I76: 55 | J76: =MMULT(J75:M75,J$4:M$7) -> 0.04470405253 | K76: 0.01431721253 | L76: 0.7948554446 | M76: 0.1461232904 | N76: 0.8714422277 | O76: 2.39661908 | P76: 1.527507432 | Q76: 274.9878979 | R76: 0 | S76: 0.00265881519 | T76: 0.0006789362666 | U76: -0.007907989342 | V76: 0 | AA76: 4.06 | AB76: 55 | AC76: =MMULT(AC75:AF75,AC$4:AF$7) -> 0.08072418183 | AD76: 0.02731696482 | AE76: 0.7535074371 | AF76: 0.1384514163 | AG76: 0.8714422277 | AH76: 65.1773749 | AI76: 23.50591518 | AJ76: 260.6831564 | AK76: 0 | AL76: 0.004801145952 | AM76: 0.001295397276 | AN76: -0.007496619445 | AO76: 0 | AP76: 70.45442206 | AQ76: 0.003170161669 | AR76: 24.650428 | AS76: -5209.769009 | AT76: =$AS$76 -> -5209.769009 | BA76: 68 | BB76: 18133.62356 | BC76: 0.06405995734 | BD76: 30678.94002 | BE76: 0.507250972 | BF76: -432.5 | BG76: -1038.565301 | BH76: -1481.438294 | BI76: -1817.678605 | BJ76: -2080.99073 | BK76: -2291.735744 | BL76: -2462.47067 | BM76: -2601.173791 | BN76: -2713.122522 | BO76: -2801.987055 | BP76: -2870.467768 | BQ76: -2920.667305 | BR76: -2952.706462 | BS76: -2970.376693 | BT76: -2974.911718 | BU76: -2967.421551 | BV76: -2948.919249 | BW76: -2920.337849 | BX76: -2882.54154 | BY76: -2836.333433 | BZ76: -2782.46129 | CA76: -2721.622008 | CB76: -2654.465323 | CC76: -2581.596999 | CD76: -2507.296677 | CE76: -2428.595455 | CF76: -2345.959886 | CG76: -2259.824169 | CH76: -2170.592113 | CI76: -2078.638988 | CJ76: -1984.313263 | CK76: -1887.938241 | CL76: -1789.813607 | CM76: -1690.216877 | CN76: -1589.404775 | CO76: -1487.614521 | CP76: -1389.948364 | CQ76: -1291.751344 | CR76: -1193.200374 | CS76: -1094.458055 | CT76: -995.6735885 | CU76: -896.9836468 | CV76: -798.5131805 | CW76: -700.3761864 | CX76: -602.6764281 | CY76: -505.5081144 | CZ76: -408.956538 | DA76: -313.0986762 | DB76: -222.5320855 | DC76: -132.7511612 | DD76: -43.80855955 | DE76: 44.2490153 | DF76: 131.380391 | DG76: 217.5495323 | DH76: 302.7251704 | DI76: 386.8804546 | DJ76: 469.9926264 | DK76: 552.0427124 | DL76: 633.0152376 | DM76: 712.8979556 | DN76: 750.413975 | DS76: 68 | DT76: 18133.62356 | DU76: 0.06405995734 | DV76: 30678.94002 | DW76: 0.507250972 | DX76: 68 | DY76: -16211.82484 | DZ76: -15461.41086 | EA76: tx B | EB76: 750.413975 | EG76: 26800 | EH76: 0.8808 | EI76: 0.1192 | EJ76: -3301.941019 | EK76: -8164.139593 | EL76: 0.8808
H77: 4.07 | I77: 56 | J77: =MMULT(J76:M76,J$4:M$7) -> 0.04268024341 | K77: 0.01366905417 | L77: 0.79465419 | M77: 0.1489965124 | N77: 0.8714422277 | O77: 2.288121097 | P77: 1.458355234 | Q77: 274.918272 | R77: 0 | S77: 0.002538447257 | T77: 0.0006481999613 | U77: -0.007905987067 | V77: 0 | AA77: 4.07 | AB77: 56 | AC77: =MMULT(AC76:AF76,AC$4:AF$7) -> 0.07774925128 | AD77: 0.02631025194 | AE77: 0.7546812637 | AF77: 0.1412592331 | AG77: 0.8714422277 | AH77: 62.77539126 | AI77: 22.63965102 | AJ77: 261.0892531 | AK77: 0 | AL77: 0.004624209185 | AM77: 0.001247657963 | AN77: -0.007508297805 | AO77: 0 | AP77: 67.83954704 | AQ77: 0.003082909192 | AR77: 24.64772873 | AS77: -5185.12128 | AT77: =$AS$77 -> -5185.12128 | BA77: 69 | BB77: 17289.72476 | BC77: 0.7353097505 | BD77: 31199.53499 | BE77: 1.028655665 | BF77: -432.5 | BG77: -1075.142134 | BH77: -1578.835305 | BI77: -1992.944545 | BJ77: -2346.8319 | BK77: -2658.103725 | BL77: -2937.453365 | BM77: -3191.50384 | BN77: -3424.476091 | BO77: -3639.167852 | BP77: -3837.528032 | BQ77: -4020.99386 | BR77: -4182.608217 | BS77: -4331.989963 | BT77: -4469.89929 | BU77: -4597.013053 | BV77: -4713.948019 | BW77: -4821.274971 | BX77: -4919.527446 | BY77: -5009.207314 | BZ77: -5090.788498 | CA77: -5164.719587 | CB77: -5231.42578 | CC77: -5291.310429 | CD77: -5342.211285 | CE77: -5387.326048 | CF77: -5426.983214 | CG77: -5461.494607 | CH77: -5491.156199 | CI77: -5516.248883 | CJ77: -5537.039201 | CK77: -5553.780039 | CL77: -5566.711287 | CM77: -5576.060461 | CN77: -5582.043304 | CO77: -5584.864355 | CP77: -5584.724485 | CQ77: -5581.933012 | CR77: -5576.655729 | CS77: -5569.049684 | CT77: -5559.263608 | CU77: -5547.438323 | CV77: -5533.707129 | CW77: -5518.196175 | CX77: -5501.024811 | CY77: -5482.305924 | CZ77: -5462.146258 | DA77: -5440.646719 | DB77: -5418.985718 | DC77: -5396.225267 | DD77: -5372.446399 | DE77: -5347.725618 | DF77: -5322.135129 | DG77: -5295.743055 | DH77: -5268.613642 | DI77: -5240.807458 | DJ77: -5212.381579 | DK77: -5183.389771 | DL77: -5153.882654 | DM77: -5123.90787 | DN77: -5109.432806 | DS77: 69 | DT77: 17289.72476 | DU77: 0.7353097505 | DV77: 31199.53499 | DW77: 1.028655665 | DX77: 69 | DY77: 4769.567753 | DZ77: -339.8650523 | EA77: tx A | EB77: 0 | EG77: 27200 | EH77: 0.873 | EI77: 0.127 | EJ77: -3100.963514 | EK77: -7828.946276 | EL77: 0.873
H78: 4.08 | I78: 57 | J78: =MMULT(J77:M77,J$4:M$7) -> 0.0407480547 | K78: 0.01305023877 | L78: 0.794337019 | M78: 0.1518646876 | N78: 0.8714422277 | O78: 2.184534955 | P78: 1.392333645 | Q78: 274.8085436 | R78: 0 | S78: 0.002423528532 | T78: 0.0006188551275 | U78: -0.007902831544 | V78: 0 | AA78: 4.08 | AB78: 57 | AC78: =MMULT(AC77:AF77,AC$4:AF$7) -> 0.07488395592 | AD78: 0.02534063948 | AE78: 0.7557107031 | AF78: 0.1440647015 | AG78: 0.8714422277 | AH78: 60.46192799 | AI78: 21.80531133 | AJ78: 261.4453976 | AK78: 0 | AL78: 0.004453793073 | AM78: 0.001201677989 | AN78: -0.007518539663 | AO78: 0 | AP78: 65.32722467 | AQ78: 0.002997379284 | AR78: 24.59415385 | AS78: -5160.527126 | AT78: =$AS$78 -> -5160.527126 | BA78: 70 | BB78: 17648.60222 | BC78: 0.5572706406 | BD78: 31131.64455 | BE78: 0.8560045988 | BF78: -432.5 | BG78: -1105.127754 | BH78: -1644.364351 | BI78: -2089.26653 | BJ78: -2465.779142 | BK78: -2791.228297 | BL78: -3077.278461 | BM78: -3331.874957 | BN78: -3560.517927 | BO78: -3767.096698 | BP78: -3954.435678 | BQ78: -4124.651262 | BR78: -4272.016839 | BS78: -4405.894556 | BT78: -4527.329296 | BU78: -4637.216562 | BV78: -4736.34355 | BW78: -4825.416352 | BX78: -4905.078122 | BY78: -4975.921355 | BZ78: -5038.496336 | CA78: -5093.317071 | CB78: -5140.865577 | CC78: -5181.595085 | CD78: -5214.297398 | CE78: -5241.29545 | CF78: -5262.951091 | CG78: -5279.605951 | CH78: -5291.582636 | CI78: -5299.185803 | CJ78: -5302.703155 | CK78: -5302.406346 | CL78: -5298.55184 | CM78: -5291.381712 | CN78: -5281.124398 | CO78: -5267.995413 | CP78: -5252.950283 | CQ78: -5235.546353 | CR78: -5215.955683 | CS78: -5194.340405 | CT78: -5170.85325 | CU78: -5145.638039 | CV78: -5118.830152 | CW78: -5090.55698 | CX78: -5060.938346 | CY78: -5030.086908 | CZ78: -4998.108545 | DA78: -4965.102715 | DB78: -4932.778994 | DC78: -4899.649144 | DD78: -4865.791462 | DE78: -4831.279349 | DF78: -4796.181583 | DG78: -4760.562567 | DH78: -4724.482574 | DI78: -4687.997973 | DJ78: -4651.161445 | DK78: -4614.02219 | DL78: -4576.626123 | DM78: -4539.016054 | DN78: -4521.023584 | DS78: 70 | DT78: 17648.60222 | DU78: 0.5572706406 | DV78: 31131.64455 | DW78: 0.8560045988 | DX78: 70 | DY78: -930.4829977 | DZ78: -5451.506582 | EA78: tx A | EB78: 0 | EG78: 27600 | EH78: 0.8626 | EI78: 0.1374 | EJ78: -2899.986008 | EK78: -7493.75296 | EL78: 0.8626
H79: 4.09 | I79: 58 | J79: =MMULT(J78:M78,J$4:M$7) -> 0.03890333862 | K79: 0.01245943792 | L79: 0.7939096161 | M79: 0.1547276074 | N79: 0.8714422277 | O79: 2.085638289 | P79: 1.329300936 | Q79: 274.6606795 | R79: 0 | S79: 0.002313812324 | T79: 0.0005908387716 | U79: -0.007898579327 | V79: 0 | AA79: 4.09 | AB79: 58 | AC79: =MMULT(AC78:AF78,AC$4:AF$7) -> 0.07212425538 | AD79: 0.02440676018 | AE79: 0.7566014299 | AF79: 0.1468675545 | AG79: 0.8714422277 | AH79: 58.23372286 | AI79: 21.00171957 | AJ79: 261.7535531 | AK79: 0 | AL79: 0.004289657312 | AM79: 0.001157392516 | AN79: -0.007527401473 | AO79: 0 | AP79: 62.9133768 | AQ79: 0.002913576587 | AR79: 24.49392081 | AS79: -5136.033205 | AT79: =$AS$79 -> -5136.033205 | BA79: 71 | BB79: 16167.7633 | BC79: 0.9027371093 | BD79: 30624.06986 | BE79: 1.015444864 | BF79: -432.5 | BG79: -1161.617311 | BH79: -1798.524383 | BI79: -2370.238627 | BJ79: -2893.613415 | BK79: -3379.293305 | BL79: -3834.124299 | BM79: -4262.622848 | BN79: -4667.871387 | BO79: -5052.064499 | BP79: -5416.842217 | BQ79: -5763.493634 | BR79: -6077.386828 | BS79: -6375.898351 | BT79: -6659.799576 | BU79: -6929.791691 | BV79: -7186.523058 | BW79: -7430.600236 | BX79: -7662.595097 | BY79: -7883.049564 | BZ79: -8092.478881 | CA79: -8291.37396 | CB79: -8480.203169 | CC79: -8659.413748 | CD79: -8821.336844 | CE79: -8974.895235 | CF79: -9120.460723 | CG79: -9258.388776 | CH79: -9389.019267 | CI79: -9512.677173 | CJ79: -9629.673236 | CK79: -9740.304582 | CL79: -9844.855323 | CM79: -9943.597122 | CN79: -10036.78973 | CO79: -10124.68152 | CP79: -10203.56576 | CQ79: -10277.844 | CR79: -10347.72299 | CS79: -10413.40041 | CT79: -10475.06525 | CU79: -10532.89818 | CV79: -10587.07193 | CW79: -10637.75165 | CX79: -10685.0952 | CY79: -10729.25349 | CZ79: -10770.37081 | DA79: -10808.58505 | DB79: -10842.34028 | DC79: -10873.57624 | DD79: -10902.40765 | DE79: -10928.94415 | DF79: -10953.29056 | DG79: -10975.54703 | DH79: -10995.80932 | DI79: -11014.16893 | DJ79: -11030.7133 | DK79: -11045.52603 | DL79: -11058.68698 | DM79: -11070.27249 | DN79: -11075.07392 | DS79: 71 | DT79: 16167.7633 | DU79: 0.9027371093 | DV79: 30624.06986 | DW79: 1.015444864 | DX79: 71 | DY79: 10914.34998 | DZ79: -160.7239399 | EA79: tx A | EB79: 0 | EG79: 28000 | EH79: 0.853 | EI79: 0.147 | EJ79: -2699.008503 | EK79: -7158.559644 | EL79: 0.853
H80: 4.10 | I80: 59 | J80: =MMULT(J79:M79,J$4:M$7) -> 0.03714213517 | K80: 0.01189538337 | L80: 0.793377407 | M80: 0.1575850744 | N80: 0.8714422277 | O80: 1.9912188 | P80: 1.269121798 | Q80: 274.4765566 | R80: 0 | S80: 0.002209063107 | T80: 0.0005640907515 | U80: -0.007893284398 | V80: 0 | AA80: 4.10 | AB80: 59 | AC80: =MMULT(AC79:AF79,AC$4:AF$7) -> 0.06946625816 | AD80: 0.02350729715 | AE80: 0.7573589081 | AF80: 0.1496675366 | AG80: 0.8714422277 | AH80: 56.08763382 | AI80: 20.22774261 | AJ80: 262.0156099 | AK80: 0 | AL80: 0.00413157045 | AM80: 0.001114739097 | AN80: -0.007534937597 | AO80: 0 | AP80: 60.59408915 | AQ80: 0.002831502488 | AR80: 24.3509855 | AS80: -5111.68222 | AT80: =$AS$80 -> -5111.68222 | BA80: 72 | BB80: 17154.56067 | BC80: 0.9047609355 | BD80: 32364.15957 | BE80: 1.253961046 | BF80: -432.5 | BG80: -1116.525142 | BH80: -1676.201048 | BI80: -2147.893394 | BJ80: -2555.105307 | BK80: -2913.175323 | BL80: -3232.256893 | BM80: -3519.205869 | BN80: -3778.775098 | BO80: -4014.370006 | BP80: -4228.526375 | BQ80: -4423.212522 | BR80: -4591.601142 | BS80: -4744.236568 | BT80: -4882.223117 | BU80: -5006.542866 | BV80: -5118.085952 | BW80: -5217.67034 | BX80: -5306.054936 | BY80: -5383.948492 | BZ80: -5452.015839 | CA80: -5510.882407 | CB80: -5561.137657 | CC80: -5603.337782 | CD80: -5636.356985 | CE80: -5662.677216 | CF80: -5682.744762 | CG80: -5696.98122 | CH80: -5705.784826 | CI80: -5709.531681 | CJ80: -5708.576907 | CK80: -5703.255725 | CL80: -5693.884484 | CM80: -5680.761626 | CN80: -5664.16861 | CO80: -5644.370781 | CP80: -5622.70166 | CQ80: -5598.442846 | CR80: -5571.805605 | CS80: -5542.988792 | CT80: -5512.179498 | CU80: -5479.553666 | CV80: -5445.276672 | CW80: -5409.503886 | CX80: -5372.381191 | CY80: -5334.045493 | CZ80: -5294.625195 | DA80: -5254.24065 | DB80: -5214.968216 | DC80: -5174.985321 | DD80: -5134.385974 | DE80: -5093.258039 | DF80: -5051.683576 | DG80: -5009.739152 | DH80: -4967.496149 | DI80: -4925.021047 | DJ80: -4882.375696 | DK80: -4839.617577 | DL80: -4796.800045 | DM80: -4753.972562 | DN80: -4733.595591 | DS80: 72 | DT80: 17154.56067 | DU80: 0.9047609355 | DV80: 32364.15957 | DW80: 1.253961046 | DX80: 72 | DY80: 9988.267401 | DZ80: 5254.67181 | EA80: tx A | EB80: 0 | EG80: 28400 | EH80: 0.8425 | EI80: 0.1575 | EJ80: -2498.030997 | EK80: -6823.366327 | EL80: 0.8425
H81: 4.11 | I81: 60 | J81: =MMULT(J80:M80,J$4:M$7) -> 0.03546066364 | K81: 0.01135686429 | L81: 0.7927455702 | M81: 0.1604369018 | N81: 0.8714422277 | O81: 1.901073801 | P81: 1.211667046 | Q81: 274.2579666 | R81: 0 | S81: 0.002109056021 | T81: 0.0005385536483 | U81: -0.007886998275 | V81: 0 | AA81: 4.11 | AB81: 60 | AC81: =MMULT(AC80:AF80,AC$4:AF$7) -> 0.06690621619 | AD81: 0.02264098207 | AE81: 0.7579883991 | AF81: 0.1524644026 | AG81: 0.8714422277 | AH81: 54.02063467 | AI81: 19.48228904 | AJ81: 262.2333884 | AK81: 0 | AL81: 0.003979309567 | AM81: 0.001073657586 | AN81: -0.007541200381 | AO81: 0 | AP81: 58.3656047 | AQ81: 0.002751155377 | AR81: 24.16905663 | AS81: -5087.513163 | AT81: =$AS$81 -> -5087.513163 | BA81: 73 | BB81: 16173.62811 | BC81: 0.4501759933 | BD81: 32037.27597 | BE81: 0.7417868466 | BF81: -432.5 | BG81: -1104.847784 | BH81: -1652.312032 | BI81: -2116.439905 | BJ81: -2522.821577 | BK81: -2887.331704 | BL81: -3219.924789 | BM81: -3526.943304 | BN81: -3812.52152 | BO81: -4079.43952 | BP81: -4329.642901 | BQ81: -4564.559195 | BR81: -4774.779652 | BS81: -4972.34282 | BT81: -5157.971521 | BU81: -5332.301348 | BV81: -5495.906555 | BW81: -5649.316132 | BX81: -5793.023899 | BY81: -5927.494952 | BZ81: -6053.169882 | CA81: -6170.467621 | CB81: -6279.787452 | CC81: -6381.510494 | CD81: -6471.50131 | CE81: -6554.935321 | CF81: -6632.129465 | CG81: -6703.38683 | CH81: -6768.997276 | CI81: -6829.238011 | CJ81: -6884.374126 | CK81: -6934.659108 | CL81: -6980.335321 | CM81: -7021.634474 | CN81: -7058.778055 | CO81: -7091.977765 | CP81: -7120.033145 | CQ81: -7144.709245 | CR81: -7166.181963 | CS81: -7184.619327 | CT81: -7200.181823 | CU81: -7213.022711 | CV81: -7223.288325 | CW81: -7231.118366 | CX81: -7236.646177 | CY81: -7239.999016 | CZ81: -7241.298305 | DA81: -7240.659885 | DB81: -7238.311655 | DC81: -7234.323564 | DD81: -7228.791293 | DE81: -7221.806046 | DF81: -7213.454751 | DG81: -7203.820235 | DH81: -7192.981404 | DI81: -7181.013409 | DJ81: -7167.98781 | DK81: -7153.972732 | DL81: -7139.033009 | DM81: -7123.23033 | DN81: -7115.322258 | DS81: 73 | DT81: 16173.62811 | DU81: 0.4501759933 | DV81: 32037.27597 | DW81: 0.7417868466 | DX81: 73 | DY81: -2668.348316 | DZ81: -9783.670574 | EA81: tx A | EB81: 0 | EG81: 28800 | EH81: 0.8326 | EI81: 0.1674 | EJ81: -2297.053492 | EK81: -6488.173011 | EL81: 0.8326
H82: 5.00 | I82: 61 | J82: =MMULT(J81:M81,J$4:M$7) -> 0.03385531446 | K82: 0.01084272465 | L82: 0.7920190483 | M82: 0.1632829126 | N82: 0.8419731669 | O82: 1.753632638 | P82: 1.117694051 | Q82: 264.740695 | R82: 0 | S82: 0.001945484427 | T82: 0.0004967851614 | U82: -0.007613304477 | V82: 0 | AA82: 5.00 | AB82: 61 | AC82: =MMULT(AC81:AF81,AC$4:AF$7) -> 0.06444051951 | AD82: 0.02180659332 | AE82: 0.7584949695 | AF82: 0.1552579177 | AG82: 0.8419731669 | AH82: 50.2703485 | AI82: 18.12976588 | AJ82: 253.5349191 | AK82: 0 | AL82: 0.003703053101 | AM82: 0.0009991208234 | AN82: -0.007291053364 | AO82: 0 | AP82: 54.32301182 | AQ82: 0.002582155449 | AR82: 23.14165165 | AS82: =AS81+AR82*0.5 -> -5075.942337 | AT82: =$AS$82 -> -5075.942337 | BA82: 74 | BB82: 16904.74027 | BC82: 1.209256845 | BD82: 29222.8395 | BE82: 1.333242441 | BF82: -432.5 | BG82: -1119.899072 | BH82: -1692.525863 | BI82: -2188.491827 | BJ82: -2631.030632 | BK82: -3034.416845 | BL82: -3407.52597 | BM82: -3755.975713 | BN82: -4083.413927 | BO82: -4392.293373 | BP82: -4684.33789 | BQ82: -4960.823012 | BR82: -5210.272552 | BS82: -5446.632501 | BT82: -5670.572805 | BU82: -5882.688955 | BV82: -6083.523737 | BW82: -6273.580617 | BX82: -6453.332096 | BY82: -6623.225031 | BZ82: -6783.684119 | CA82: -6935.114267 | CB82: -7077.90228 | CC82: -7212.418138 | CD82: -7332.987529 | CE82: -7446.339 | CF82: -7552.782011 | CG82: -7652.613082 | CH82: -7746.116362 | CI82: -7833.564163 | CJ82: -7915.217466 | CK82: -7991.326397 | CL82: -8062.130677 | CM82: -8127.860059 | CN82: -8188.73474 | CO82: -8244.965758 | CP82: -8294.289196 | CQ82: -8339.567332 | CR82: -8380.977091 | CS82: -8418.688031 | CT82: -8452.862647 | CU82: -8483.656667 | CV82: -8511.219326 | CW82: -8535.693639 | CX82: -8557.216657 | CY82: -8575.919715 | CZ82: -8591.928666 | DA82: -8605.364108 | DB82: -8615.818867 | DC82: -8624.038188 | DD82: -8630.123125 | DE82: -8634.170507 | DF82: -8636.273112 | DG82: -8636.519837 | DH82: -8634.995856 | DI82: -8631.782776 | DJ82: -8626.958783 | DK82: -8620.598786 | DL82: -8612.774551 | DM82: -8603.554832 | DN82: -8598.531338 | DS82: 74 | DT82: 16904.74027 | DU82: 1.209256845 | DV82: 29222.8395 | DW82: 1.333242441 | DX82: 74 | DY82: 19372.96508 | DZ82: 10774.43374 | EA82: tx A | EB82: 0 | EG82: 29200 | EH82: 0.8217 | EI82: 0.1783 | EJ82: -2096.075987 | EK82: -6152.979694 | EL82: 0.8217
O83: SILENT | P83: ACTIVE | Q83: COMPL | R83: DEAD | S83: SILENT | T83: ACTIVE | U83: COMPL | V83: DEAD | AH83: SILENT | AI83: ACTIVE | AJ83: COMPL | AK83: DEAD | AL83: SILENT | AM83: ACTIVE | AN83: COMPL | AO83: DEAD | BA83: 75 | BB83: 16869.16288 | BC83: 1.578128592 | BD83: 29843.6282 | BE83: 1.675856437 | BF83: -432.5 | BG83: -1133.711496 | BH83: -1727.961711 | BI83: -2250.057015 | BJ83: -2721.399993 | BK83: -3155.23731 | BL83: -3559.853478 | BM83: -3940.513145 | BN83: -4300.641438 | BO83: -4642.540754 | BP83: -4967.825748 | BQ83: -5277.687172 | BR83: -5558.986852 | BS83: -5827.203765 | BT83: -6082.958614 | BU83: -6326.803185 | BV83: -6559.241112 | BW83: -6780.740606 | BX83: -6991.742345 | BY83: -7192.664431 | BZ83: -7383.905592 | CA83: -7565.847312 | CB83: -7738.855313 | CC83: -7903.280647 | CD83: -8052.023408 | CE83: -8193.222047 | CF83: -8327.173308 | CG83: -8454.162516 | CH83: -8574.464047 | CI83: -8688.341756 | CJ83: -8796.049396 | CK83: -8897.831006 | CL83: -8993.921282 | CM83: -9084.545939 | CN83: -9169.922052 | CO83: -9250.258385 | CP83: -9322.160598 | CQ83: -9389.638119 | CR83: -9452.867791 | CS83: -9512.019686 | CT83: -9567.257356 | CU83: -9618.738084 | CV83: -9666.613126 | CW83: -9711.027937 | CX83: -9752.122392 | CY83: -9790.031 | CZ83: -9824.883111 | DA83: -9856.803107 | DB83: -9884.524524 | DC83: -9909.6769 | DD83: -9932.365563 | DE83: -9952.691794 | DF83: -9970.75298 | DG83: -9986.642764 | DH83: -10000.45119 | DI83: -10012.26482 | DJ83: -10022.16691 | DK83: -10030.2375 | DL83: -10036.55353 | DM83: -10041.18899 | DN83: -10042.62996 | DS83: 75 | DT83: 16869.16288 | DU83: 1.578128592 | DV83: 29843.6282 | DW83: 1.675856437 | DX83: 75 | DY83: 30474.69488 | DZ83: 20432.06492 | EA83: tx A | EB83: 0 | EG83: 29600 | EH83: 0.8092 | EI83: 0.1908 | EJ83: -1895.098481 | EK83: -5817.786378 | EL83: 0.8092
F84: NO CORRECTION | H84: TOTALS | J84: =SUM(J22:J81) -> 9.944760952 | K84: =SUM(K22:K81) -> 5.67405376 | L84: 39.80295923 | M84: 4.578226062 | O84: =SUM(O22:O81) -> 588.5106046 | P84: 679.8078878 | Q84: 14613.00911 | R84: 0 | S84: 0.652895134 | T84: 0.3021564542 | U84: -0.4202349308 | V84: 0 | AA84: TOTALS | AC84: =SUM(AC22:AC81) -> 13.28713023 | AD84: =SUM(AD22:AD81) -> 7.111256912 | AE84: 35.29915253 | AF84: 4.30246033 | AH84: =SUM(AH22:AH81) -> 11778.96735 | AI84: 6829.797522 | AJ84: 12921.8036 | AK84: 0 | AL84: 0.8676713585 | AM84: 0.3763861579 | AN84: -0.3715999355 | AO84: 0 | BA84: 76 | BB84: 17001.31029 | BC84: 0.7522982767 | BD84: 29513.04581 | BE84: 1.089102226 | BF84: -432.5 | BG84: -1101.229699 | BH84: -1638.388573 | BI84: -2084.038892 | BJ84: -2463.237982 | BK84: -2791.885412 | BL84: -3080.275329 | BM84: -3335.256631 | BN84: -3561.548031 | BO84: -3762.539795 | BP84: -3940.783423 | BQ84: -4098.291489 | BR84: -4230.129951 | BS84: -4345.148681 | BT84: -4444.535102 | BU84: -4529.356917 | BV84: -4600.589105 | BW84: -4659.131484 | BX84: -4705.820467 | BY84: -4741.437194 | BZ84: -4766.713414 | CA84: -4782.335934 | CB84: -4788.950141 | CC84: -4787.162926 | CD84: -4778.00318 | CE84: -4761.897346 | CF84: -4739.326716 | CG84: -4710.744074 | CH84: -4676.575312 | CI84: -4637.220953 | CJ84: -4593.057565 | CK84: -4544.439104 | CL84: -4491.698171 | CM84: -4435.147208 | CN84: -4375.079623 | CO84: -4311.770855 | CP84: -4248.636122 | CQ84: -4182.891647 | CR84: -4114.753974 | CS84: -4044.426075 | CT84: -3972.098123 | CU84: -3897.948218 | CV84: -3822.143077 | CW84: -3744.838687 | CX84: -3666.180921 | CY84: -3586.30612 | CZ84: -3505.341647 | DA84: -3423.406411 | DB84: -3344.553975 | DC84: -3264.981181 | DD84: -3184.77983 | DE84: -3104.035398 | DF84: -3022.827413 | DG84: -2941.229811 | DH84: -2859.311267 | DI84: -2777.135515 | DJ84: -2694.761644 | DK84: -2612.244382 | DL84: -2529.63436 | DM84: -2446.978368 | DN84: -2407.617043 | DS84: 76 | DT84: 17001.31029 | DU84: 0.7522982767 | DV84: 29513.04581 | DW84: 1.089102226 | DX84: 76 | DY84: 5567.638012 | DZ84: 3160.020968 | EA84: tx A | EB84: 0 | EG84: 30000 | EH84: 0.7993 | EI84: 0.2007 | EJ84: -1694.120976 | EK84: -5482.593062 | EL84: 0.7993
BA85: 77 | BB85: 16266.95176 | BC85: -0.286368812 | BD85: 30682.66309 | BE85: 0.01089450118 | BF85: -432.5 | BG85: -1098.519633 | BH85: -1631.712713 | BI85: -2073.60057 | BJ85: -2450.442231 | BK85: -2779.028104 | BL85: -3070.263014 | BM85: -3331.382789 | BN85: -3567.326133 | BO85: -3781.58427 | BP85: -3976.7277 | BQ85: -4154.733268 | BR85: -4309.451799 | BS85: -4450.620491 | BT85: -4579.325652 | BU85: -4696.527239 | BV85: -4803.089626 | BW85: -4899.801605 | BX85: -4987.389679 | BY85: -5066.527157 | BZ85: -5137.840607 | CA85: -5201.914633 | CB85: -5259.295569 | CC85: -5310.494464 | CD85: -5353.823161 | CE85: -5392.146068 | CF85: -5425.862269 | CG85: -5455.345239 | CH85: -5480.944393 | CI85: -5502.986516 | CJ85: -5521.777103 | CK85: -5537.601614 | CL85: -5550.726652 | CM85: -5561.401075 | CN85: -5569.857044 | CO85: -5576.311012 | CP85: -5580.743053 | CQ85: -5583.639337 | CR85: -5585.166262 | CS85: -5585.478531 | CT85: -5584.719858 | CU85: -5583.023636 | CV85: -5580.513565 | CW85: -5577.304245 | CX85: -5573.501737 | CY85: -5569.204092 | CZ85: -5564.501846 | DA85: -5559.478495 | DB85: -5554.461771 | DC85: -5549.279815 | DD85: -5543.994463 | DE85: -5538.662394 | DF85: -5533.335462 | DG85: -5528.061011 | DH85: -5522.882167 | DI85: -5517.838124 | DJ85: -5512.964397 | DK85: -5508.293076 | DL85: -5503.853055 | DM85: -5499.670248 | DN85: -5497.811938 | DS85: 77 | DT85: 16266.95176 | DU85: -0.286368812 | DV85: 30682.66309 | DW85: 0.01089450118 | DX85: 77 | DY85: -24858.01612 | DZ85: -30355.82806 | EA85: tx A | EB85: 0 | EG85: 30400 | EH85: 0.7885 | EI85: 0.2115 | EJ85: -1493.14347 | EK85: -5147.399745 | EL85: 0.7885
Q86: TOTAL COST | R86: =O84+P84+Q84+R84 -> 15881.3276 | U86: TOTAL OUTCOME | V86: =S84+T84+U84+V84 -> 0.5348166573 | AJ86: TOTAL COST | AK86: =AH84+AI84+AJ84+AK84 -> 31530.56847 | AN86: TOTAL OUTCOME | AO86: =AL84+AM84+AN84+AO84 -> 0.8724575809 | BA86: 78 | BB86: 15929.60381 | BC86: 0.3379359252 | BD86: 29463.50285 | BE86: 0.6957080132 | BF86: -432.5 | BG86: -1092.106105 | BH86: -1623.15292 | BI86: -2068.059992 | BJ86: -2450.6827 | BK86: -2784.863533 | BL86: -3079.033687 | BM86: -3338.682793 | BN86: -3567.681118 | BO86: -3768.985971 | BP86: -3945.018791 | BQ86: -4097.866784 | BR86: -4223.128364 | BS86: -4329.696404 | BT86: -4419.05868 | BU86: -4492.595236 | BV86: -4551.59047 | BW86: -4597.241619 | BX86: -4630.665309 | BY86: -4652.90302 | BZ86: -4664.925894 | CA86: -4667.639118 | CB86: -4661.885983 | CC86: -4648.451684 | CD86: -4629.037603 | CE86: -4603.651174 | CF86: -4572.893864 | CG86: -4537.32429 | CH86: -4497.460901 | CI86: -4453.784508 | CJ86: -4406.74066 | CK86: -4356.741885 | CL86: -4304.169795 | CM86: -4249.377073 | CN86: -4192.689335 | CO86: -4134.406883 | CP86: -4077.644478 | CQ86: -4019.869169 | CR86: -3961.303687 | CS86: -3902.152394 | CT86: -3842.602505 | CU86: -3782.82524 | CV86: -3722.976905 | CW86: -3663.199903 | CX86: -3603.62369 | CY86: -3544.365665 | CZ86: -3485.532009 | DA86: -3427.218472 | DB86: -3372.25908 | DC86: -3317.950379 | DD86: -3264.357796 | DE86: -3211.539376 | DF86: -3159.546326 | DG86: -3108.423523 | DH86: -3058.209987 | DI86: -3008.939325 | DJ86: -2960.640149 | DK86: -2913.336461 | DL86: -2867.04802 | DM86: -2821.790679 | DN86: -2800.736404 | DS86: 78 | DT86: 15929.60381 | DU86: 0.3379359252 | DV86: 29463.50285 | DW86: 0.6957080132 | DX86: 78 | DY86: -5791.526049 | DZ86: -8592.262453 | EA86: tx A | EB86: 0 | EG86: 30800 | EH86: 0.7784 | EI86: 0.2216 | EJ86: -1292.165965 | EK86: -4812.206429 | EL86: 0.7784
BA87: 79 | BB87: 17587.87554 | BC87: 0.7699851041 | BD87: 30266.99452 | BE87: 1.022256524 | BF87: -432.5 | BG87: -1072.896787 | BH87: -1576.807381 | BI87: -1994.474878 | BJ87: -2354.686754 | BK87: -2674.091628 | BL87: -2962.477021 | BM87: -3225.753407 | BN87: -3467.637892 | BO87: -3690.602098 | BP87: -3896.404598 | BQ87: -4086.389355 | BR87: -4253.306862 | BS87: -4407.101338 | BT87: -4548.573133 | BU87: -4678.453736 | BV87: -4797.421857 | BW87: -4906.112858 | BX87: -5005.124542 | BY87: -5095.020932 | BZ87: -5176.334951 | CA87: -5249.570481 | CB87: -5315.204078 | CC87: -5373.686476 | CD87: -5422.979311 | CE87: -5466.251364 | CF87: -5503.865601 | CG87: -5536.165133 | CH87: -5563.474245 | CI87: -5586.099371 | CJ87: -5604.33002 | CK87: -5618.439661 | CL87: -5628.686564 | CM87: -5635.314592 | CN87: -5638.553964 | CO87: -5638.621973 | CP87: -5635.861681 | CQ87: -5630.460567 | CR87: -5622.592417 | CS87: -5612.421114 | CT87: -5600.101171 | CU87: -5585.778228 | CV87: -5569.589531 | CW87: -5551.664379 | CX87: -5532.124556 | CY87: -5511.084731 | CZ87: -5488.652851 | DA87: -5464.930496 | DB87: -5441.199769 | DC87: -5416.416634 | DD87: -5390.661568 | DE87: -5364.010207 | DF87: -5336.533616 | DG87: -5308.298537 | DH87: -5279.367627 | DI87: -5249.799691 | DJ87: -5219.649889 | DK87: -5188.969944 | DL87: -5157.808334 | DM87: -5126.210472 | DN87: -5110.976382 | DS87: 79 | DT87: 17587.87554 | DU87: 0.7699851041 | DV87: 30266.99452 | DW87: 1.022256524 | DX87: 79 | DY87: 5511.677585 | DZ87: 400.7012031 | EA87: tx A | EB87: 0 | EG87: 31200 | EH87: 0.769 | EI87: 0.231 | EJ87: -1091.188459 | EK87: -4477.013112 | EL87: 0.769
BA88: 80 | BB88: 15161.79817 | BC88: 0.4125089515 | BD88: 31851.30445 | BE88: 0.8415352194 | BF88: -432.5 | BG88: -1112.370397 | BH88: -1664.889032 | BI88: -2126.897846 | BJ88: -2522.108097 | BK88: -2865.982291 | BL88: -3168.788899 | BM88: -3437.514673 | BN88: -3677.062562 | BO88: -3891.002753 | BP88: -4082.044109 | BQ88: -4252.330598 | BR88: -4396.423502 | BS88: -4523.866077 | BT88: -4635.916842 | BU88: -4733.704342 | BV88: -4818.256895 | BW88: -4890.522165 | BX88: -4951.380328 | BY88: -5001.65318 | BZ88: -5042.110658 | CA88: -5073.475702 | CB88: -5096.428043 | CC88: -5111.607273 | CD88: -5119.234108 | CE88: -5120.571159 | CF88: -5116.126546 | CG88: -5106.378483 | CH88: -5091.776891 | CI88: -5072.744923 | CJ88: -5049.680376 | CK88: -5022.957037 | CL88: -4992.925952 | CM88: -4959.916623 | CN88: -4924.238151 | CO88: -4886.180316 | CP88: -4847.92726 | CQ88: -4807.908776 | CR88: -4766.351327 | CS88: -4723.466609 | CT88: -4679.45235 | CU88: -4634.493069 | CV88: -4588.760793 | CW88: -4542.415749 | CX88: -4495.607005 | CY88: -4448.473099 | CZ88: -4401.142617 | DA88: -4353.734754 | DB88: -4308.615791 | DC88: -4263.62533 | DD88: -4218.85298 | DE88: -4174.381277 | DF88: -4130.286087 | DG88: -4086.636999 | DH88: -4043.497688 | DI88: -4000.926272 | DJ88: -3958.975632 | DK88: -3917.693737 | DL88: -3877.123933 | DM88: -3837.305231 | DN88: -3818.718249 | DS88: 80 | DT88: 15161.79817 | DU88: 0.4125089515 | DV88: 31851.30445 | DW88: 0.8415352194 | DX88: 80 | DY88: -2786.529621 | DZ88: -6605.24787 | EA88: tx A | EB88: 0 | EG88: 31600 | EH88: 0.7587 | EI88: 0.2413 | EJ88: -890.2109539 | EK88: -4141.819796 | EL88: 0.7587
O89: SILENT | P89: ACTIVE | Q89: COMPL | R89: DEAD | S89: SILENT | T89: ACTIVE | U89: COMPL | V89: DEAD | AH89: SILENT | AI89: ACTIVE | AJ89: COMPL | AK89: DEAD | AL89: SILENT | AM89: ACTIVE | AN89: COMPL | AO89: DEAD | BA89: 81 | BB89: 15655.16793 | BC89: 0.7049595062 | BD89: 28156.48702 | BE89: 0.9103729531 | BF89: -432.5 | BG89: -1124.721595 | BH89: -1698.59506 | BI89: -2188.96195 | BJ89: -2618.28037 | BK89: -3001.170786 | BL89: -3347.284902 | BM89: -3663.116873 | BN89: -3953.147341 | BO89: -4220.56648 | BP89: -4467.731366 | BQ89: -4696.455626 | BR89: -4898.110435 | BS89: -5084.7408 | BT89: -5257.339811 | BU89: -5416.785814 | BV89: -5563.871859 | BW89: -5699.324919 | BX89: -5823.818647 | BY89: -5937.981999 | BZ89: -6042.405228 | CA89: -6137.644191 | CB89: -6224.223556 | CC89: -6302.639309 | CD89: -6369.993079 | CE89: -6430.442151 | CF89: -6484.387361 | CG89: -6532.208442 | CH89: -6574.265157 | CI89: -6610.898361 | CJ89: -6642.430972 | CK89: -6669.168896 | CL89: -6691.401889 | CM89: -6709.404377 | CN89: -6723.43623 | CO89: -6733.743497 | CP89: -6740.234551 | CQ89: -6743.610183 | CR89: -6744.069094 | CS89: -6741.799287 | CT89: -6736.978615 | CU89: -6729.775288 | CV89: -6720.348372 | CW89: -6708.848248 | CX89: -6695.417059 | CY89: -6680.189129 | CZ89: -6663.291366 | DA89: -6644.843643 | DB89: -6625.906035 | DC89: -6605.701859 | DD89: -6584.327174 | DE89: -6561.872618 | DF89: -6538.42369 | DG89: -6514.061015 | DH89: -6488.860601 | DI89: -6462.894075 | DJ89: -6436.228919 | DK89: -6408.928682 | DL89: -6381.053191 | DM89: -6352.658746 | DN89: -6338.915679 | DS89: 81 | DT89: 15655.16793 | DU89: 0.7049595062 | DV89: 28156.48702 | DW89: 0.9103729531 | DX89: 81 | DY89: 5493.617255 | DZ89: -845.2984238 | EA89: tx A | EB89: 0 | EG89: 32000 | EH89: 0.7498 | EI89: 0.2502 | EJ89: -689.2334485 | EK89: -3806.626479 | EL89: 0.7498
F90: HALF CYCLE CORRECTION | H90: TOTALS | J90: =0.5*J22+SUM(J23:J81)+0.5*J82 -> 9.961688609 | K90: =0.5*K22+SUM(K23:K81)+0.5*K82 -> 5.179475123 | L90: 40.19896875 | M90: 4.659867518 | O90: 589.387421 | P90: 619.151959 | Q90: 14745.37945 | R90: 0 | S90: =0.5*S22+SUM(S23:S81)+0.5*S82 -> 0.6538678762 | T90: =0.5*T22+SUM(T23:T81)+0.5*T82 -> 0.2751965134 | U90: =0.5*U22+SUM(U23:U81)+0.5*U82 -> -0.4240415831 | V90: =0.5*V22+SUM(V23:V81)+0.5*V82 -> 0 | AA90: TOTALS | AC90: =0.5*AC22+SUM(AC23:AC81)+0.5*AC82 -> 13.31935049 | AD90: =0.5*AD22+SUM(AD23:AD81)+0.5*AD82 -> 6.622160208 | AE90: 35.67840001 | AF90: 4.380089289 | AH90: 11804.10253 | AI90: 6345.147629 | AJ90: 13048.57106 | AK90: 0 | AL90: =0.5*AL22+SUM(AL23:AL81)+0.5*AL82 -> 0.8695228851 | AM90: =0.5*AM22+SUM(AM23:AM81)+0.5*AM82 -> 0.349677385 | AN90: -0.3752454622 | AO90: 0 | BA90: 82 | BB90: 17765.25419 | BC90: 0.5398552629 | BD90: 28780.57258 | BE90: 0.8646540326 | BF90: -432.5 | BG90: -1064.609626 | BH90: -1548.574758 | BI90: -1933.973482 | BJ90: -2250.162351 | BK90: -2514.863339 | BL90: -2739.090998 | BM90: -2929.976288 | BN90: -3092.383407 | BO90: -3229.835048 | BP90: -3345.042084 | BQ90: -3440.207367 | BR90: -3513.53439 | BS90: -3571.115356 | BT90: -3614.347666 | BU90: -3644.500198 | BV90: -3662.735045 | BW90: -3670.121901 | BX90: -3667.648213 | BY90: -3656.226834 | BZ90: -3636.702183 | CA90: -3609.855451 | CB90: -3576.409177 | CC90: -3537.031369 | CD90: -3494.467477 | CE90: -3447.385218 | CF90: -3396.285514 | CG90: -3341.630248 | CH90: -3283.844945 | CI90: -3223.321292 | CJ90: -3160.419487 | CK90: -3095.470439 | CL90: -3028.77782 | CM90: -2960.619989 | CN90: -2891.251787 | CO90: -2820.906212 | CP90: -2753.182193 | CQ90: -2684.914623 | CR90: -2616.271575 | CS90: -2547.405724 | CT90: -2478.455482 | CU90: -2409.546059 | CV90: -2340.790447 | CW90: -2272.290342 | CX90: -2204.137 | CY90: -2136.412041 | CZ90: -2069.188189 | DA90: -2002.52997 | DB90: -1939.638909 | DC90: -1877.388442 | DD90: -1815.820119 | DE90: -1754.969899 | DF90: -1694.868605 | DG90: -1635.542361 | DH90: -1577.012984 | DI90: -1519.298354 | DJ90: -1462.412759 | DK90: -1406.367211 | DL90: -1351.169743 | DM90: -1296.82568 | DN90: -1271.355306 | DS90: 82 | DT90: 17765.25419 | DU90: 0.5398552629 | DV90: 28780.57258 | DW90: 0.8646540326 | DX90: 82 | DY90: -1569.596299 | DZ90: -2840.951605 | EA90: tx A | EB90: 0 | EG90: 32400 | EH90: 0.7395 | EI90: 0.2605 | EJ90: -488.2559431 | EK90: -3471.433163 | EL90: 0.7395
BA91: 83 | BB91: 16528.51242 | BC91: 0.4017377565 | BD91: 30560.80666 | BE91: 0.752872323 | BF91: -432.5 | BG91: -1082.007346 | BH91: -1595.868783 | BI91: -2020.278071 | BJ91: -2382.247029 | BK91: -2697.844224 | BL91: -2976.883229 | BM91: -3225.589454 | BN91: -3448.116761 | BO91: -3647.410026 | BP91: -3825.696024 | BQ91: -3984.763238 | BR91: -4119.390525 | BS91: -4238.413494 | BT91: -4342.966777 | BU91: -4434.08883 | BV91: -4512.740261 | BW91: -4579.815437 | BX91: -4636.150227 | BY91: -4682.527514 | BZ91: -4719.681399 | CA91: -4748.300608 | CB91: -4769.031406 | CC91: -4782.480175 | CD91: -4788.89502 | CE91: -4789.424431 | CF91: -4784.544725 | CG91: -4774.702269 | CH91: -4760.315185 | CI91: -4741.774959 | CJ91: -4719.447958 | CK91: -4693.676869 | CL91: -4664.782059 | CM91: -4633.062858 | CN91: -4598.798779 | CO91: -4562.250662 | CP91: -4525.499334 | CQ91: -4487.020319 | CR91: -4447.014691 | CS91: -4405.669559 | CT91: -4363.158896 | CU91: -4319.644323 | CV91: -4275.275848 | CW91: -4230.192562 | CX91: -4184.523301 | CY91: -4138.387269 | CZ91: -4091.894625 | DA91: -4045.147042 | DB91: -4000.471981 | DC91: -3955.7255 | DD91: -3910.983066 | DE91: -3866.313896 | DF91: -3821.781359 | DG91: -3777.443344 | DH91: -3733.352615 | DI91: -3689.557143 | DJ91: -3646.100418 | DK91: -3603.021747 | DL91: -3560.356527 | DM91: -3518.136512 | DN91: -3498.257247 | DS91: 83 | DT91: 16528.51242 | DU91: 0.4017377565 | DV91: 30560.80666 | DW91: 0.752872323 | DX91: 83 | DY91: -4476.379728 | DZ91: -7974.636975 | EA91: tx A | EB91: 0 | EG91: 32800 | EH91: 0.7281 | EI91: 0.2719 | EJ91: -287.2784376 | EK91: -3136.239847 | EL91: 0.7281
Q92: TOTAL COST | R92: =O90+P90+Q90+R90 -> 15953.91883 | U92: TOTAL OUTCOME | V92: =S90+T90+U90+V90 -> 0.5050228065 | AJ92: TOTAL COST | AK92: =AH90+AI90+AJ90+AK90 -> 31197.82121 | AN92: TOTAL OUTCOME | AO92: =AL90+AM90+AN90+AO90 -> 0.8439548079 | BA92: 84 | BB92: 18575.57276 | BC92: 0.2938765286 | BD92: 33716.14599 | BE92: 1.176063086 | BF92: -432.5 | BG92: -1023.377997 | BH92: -1433.265736 | BI92: -1717.887595 | BJ92: -1911.144696 | BK92: -2034.16168 | BL92: -2100.544459 | BM92: -2119.44031 | BN92: -2097.322279 | BO92: -2039.032371 | BP92: -1948.393621 | BQ92: -1828.571043 | BR92: -1689.252054 | BS92: -1527.022956 | BT92: -1343.951045 | BU92: -1141.925537 | BV92: -922.6877058 | BW92: -687.8511145 | BX92: -438.9158913 | BY92: -177.2793662 | BZ92: 95.75556145 | CA92: 378.9735114 | CB92: 671.2406825 | CC92: 971.4995911 | CD92: 1264.132656 | CE92: 1562.562926 | CF92: 1865.975525 | CG92: 2173.612094 | CH92: 2484.767408 | CI92: 2798.786202 | CJ92: 3115.06018 | CK92: 3433.025199 | CL92: 3752.158616 | CM92: 4071.976779 | CN92: 4392.032666 | CO92: 4711.913654 | CP92: 5016.033432 | CQ92: 5319.291082 | CR92: 5621.380346 | CS92: 5922.020372 | CT92: 6220.954126 | CU92: 6517.946894 | CV92: 6812.784879 | CW92: 7105.273863 | CX92: 7395.237958 | CY92: 7682.518423 | CZ92: 7966.97255 | DA92: 8248.472615 | DB92: 8513.646211 | DC92: 8775.802234 | DD92: 9034.856423 | DE92: 9290.735336 | DF92: 9543.375616 | DG92: 9792.723287 | DH92: 10038.73311 | DI92: 10281.36794 | DJ92: 10520.59819 | DK92: 10756.40125 | DL92: 10988.76097 | DM92: 11217.66722 | DN92: 11325.0235 | DS92: 84 | DT92: 18575.57276 | DU92: 0.2938765286 | DV92: 33716.14599 | DW92: 1.176063086 | DX92: 84 | DY92: -9759.276906 | DZ92: 1565.746589 | EA92: tx B | EB92: 11325.0235 | EG92: 33200 | EH92: 0.7173 | EI92: 0.2827 | EJ92: -86.30093218 | EK92: -2801.04653 | EL92: 0.7173
BA93: 85 | BB93: 15582.79741 | BC93: 0.7251924535 | BD93: 30956.22769 | BE93: 1.02063597 | BF93: -432.5 | BG93: -1111.187603 | BH93: -1669.366317 | BI93: -2146.36448 | BJ93: -2565.883157 | BK93: -2942.39311 | BL93: -3284.905937 | BM93: -3599.19667 | BN93: -3889.113484 | BO93: -4157.349489 | BP93: -4405.897664 | BQ93: -4636.319255 | BR93: -4839.731761 | BS93: -5028.163863 | BT93: -5202.554597 | BU93: -5363.757917 | BV93: -5512.562276 | BW93: -5649.702849 | BX93: -5775.869391 | BY93: -5891.711528 | BZ93: -5997.842506 | CA93: -6094.842011 | CB93: -6183.258424 | CC93: -6263.610705 | CD93: -6332.924368 | CE93: -6395.468495 | CF93: -6451.662149 | CG93: -6501.901889 | CH93: -6546.562911 | CI93: -6586.000129 | CJ93: -6620.549196 | CK93: -6650.527474 | CL93: -6676.234955 | CM93: -6697.955141 | CN93: -6715.955876 | CO93: -6730.490141 | CP93: -6741.258399 | CQ93: -6749.167503 | CR93: -6754.420103 | CS93: -6757.207366 | CT93: -6757.709572 | CU93: -6756.09667 | CV93: -6752.528816 | CW93: -6747.156876 | CX93: -6740.122916 | CY93: -6731.560653 | CZ93: -6721.595897 | DA93: -6710.346965 | DB93: -6698.516594 | DC93: -6685.668641 | DD93: -6671.89656 | DE93: -6657.288069 | DF93: -6641.925449 | DG93: -6625.885841 | DH93: -6609.241519 | DI93: -6592.060157 | DJ93: -6574.405077 | DK93: -6556.335486 | DL93: -6537.906701 | DM93: -6519.170367 | DN93: -6510.12479 | DS93: 85 | DT93: 15582.79741 | DU93: 0.7251924535 | DV93: 30956.22769 | DW93: 1.02063597 | DX93: 85 | DY93: 6172.976198 | DZ93: -337.148592 | EA93: tx A | EB93: 0 | EG93: 33600 | EH93: 0.7056 | EI93: 0.2944 | EJ93: 114.6765733 | EK93: -2465.853214 | EL93: 0.7056
BA94: 86 | BB94: 17227.01293 | BC94: 0.8689953543 | BD94: 31148.52354 | BE94: 1.216914902 | BF94: -432.5 | BG94: -1106.731487 | BH94: -1655.722373 | BI94: -2118.64139 | BJ94: -2519.17686 | BK94: -2871.910593 | BL94: -3186.053155 | BM94: -3467.633555 | BN94: -3720.78358 | BO94: -3948.491753 | BP94: -4153.046561 | BQ94: -4336.297594 | BR94: -4492.023655 | BS94: -4630.258082 | BT94: -4752.176972 | BU94: -4858.857351 | BV94: -4951.297011 | BW94: -5030.427203 | BX94: -5097.121101 | BY94: -5152.199734 | BZ94: -5196.436383 | CA94: -5230.560046 | CB94: -5255.258297 | CC94: -5271.179767 | CD94: -5278.566985 | CE94: -5278.727801 | CF94: -5272.180603 | CG94: -5259.414148 | CH94: -5240.889121 | CI94: -5217.039611 | CJ94: -5188.274512 | CK94: -5154.978841 | CL94: -5117.515003 | CM94: -5076.223977 | CN94: -5031.426456 | CO94: -4983.423918 | CP94: -4934.924617 | CQ94: -4883.896116 | CR94: -4830.576296 | CS94: -4775.188348 | CT94: -4717.941571 | CU94: -4659.032121 | CV94: -4598.643726 | CW94: -4536.948366 | CX94: -4474.106914 | CY94: -4410.269747 | CZ94: -4345.577329 | DA94: -4280.160755 | DB94: -4217.286017 | DC94: -4153.946522 | DD94: -4090.243247 | DE94: -4026.270091 | DF94: -3962.114276 | DG94: -3897.856728 | DH94: -3833.572439 | DI94: -3769.330811 | DJ94: -3705.195977 | DK94: -3641.227114 | DL94: -3577.478729 | DM94: -3514.00094 | DN94: -3483.924176 | DS94: 86 | DT94: 17227.01293 | DU94: 0.8689953543 | DV94: 31148.52354 | DW94: 1.216914902 | DX94: 86 | DY94: 8842.847701 | DZ94: 5358.923525 | EA94: tx A | EB94: 0 | EG94: 34000 | EH94: 0.6957 | EI94: 0.3043 | EJ94: 315.6540787 | EK94: -2130.659897 | EL94: 0.6957
BA95: 87 | BB95: 15388.01855 | BC95: 0.9037809614 | BD95: 30800.7407 | BE95: 1.208614061 | BF95: -432.5 | BG95: -1136.517125 | BH95: -1720.677264 | BI95: -2215.199279 | BJ95: -2641.923033 | BK95: -3016.475809 | BL95: -3349.989006 | BM95: -3650.396007 | BN95: -3923.383234 | BO95: -4173.071852 | BP95: -4402.498512 | BQ95: -4613.950217 | BR95: -4799.898003 | BS95: -4971.752096 | BT95: -5130.613219 | BU95: -5277.411499 | BV95: -5412.953771 | BW95: -5537.955651 | BX95: -5653.063346 | BY95: -5758.86856 | BZ95: -5855.91877 | CA95: -5944.724413 | CB95: -6025.763994 | CC95: -6099.487814 | CD95: -6163.138232 | CE95: -6220.608404 | CF95: -6272.260326 | CG95: -6318.436854 | CH95: -6359.462871 | CI95: -6395.646313 | CJ95: -6427.279086 | CK95: -6454.637901 | CL95: -6477.985054 | CM95: -6497.569145 | CN95: -6513.62576 | CO95: -6526.378109 | CP95: -6535.577657 | CQ95: -6542.022373 | CR95: -6545.892835 | CS95: -6547.359976 | CT95: -6546.585561 | CU95: -6543.722636 | CV95: -6538.915953 | CW95: -6532.302384 | CX95: -6524.011303 | CY95: -6514.164965 | CZ95: -6502.878855 | DA95: -6490.262022 | DB95: -6477.076675 | DC95: -6462.814523 | DD95: -6447.562822 | DE95: -6431.403843 | DF95: -6414.415125 | DG95: -6396.669708 | DH95: -6378.236368 | DI95: -6359.179834 | DJ95: -6339.560993 | DK95: -6319.437088 | DL95: -6298.861909 | DM95: -6277.885969 | DN95: -6267.729163 | DS95: 87 | DT95: 15388.01855 | DU95: 0.9037809614 | DV95: 30800.7407 | DW95: 1.208614061 | DX95: 87 | DY95: 11725.4103 | DZ95: 5457.681132 | EA95: tx A | EB95: 0 | EG95: 34400 | EH95: 0.6852 | EI95: 0.3148 | EJ95: 516.6315841 | EK95: -1795.466581 | EL95: 0.6852
BA96: 88 | BB96: 15631.17474 | BC96: 0.1703604063 | BD96: 27723.13758 | BE96: 0.3748219637 | BF96: -432.5 | BG96: -1083.384893 | BH96: -1600.655015 | BI96: -2031.559282 | BJ96: -2403.997 | BK96: -2734.605944 | BL96: -3033.465286 | BM96: -3306.82865 | BN96: -3558.711597 | BO96: -3791.813372 | BP96: -4008.052029 | BQ96: -4208.875204 | BR96: -4386.556721 | BS96: -4551.5867 | BT96: -4704.775308 | BU96: -4846.850431 | BV96: -4978.478384 | BW96: -5100.276584 | BX96: -5212.821519 | BY96: -5316.654007 | BZ96: -5412.282855 | CA96: -5500.187565 | CB96: -5580.820469 | CC96: -5654.608506 | CD96: -5718.747801 | CE96: -5777.114571 | CF96: -5830.051126 | CG96: -5877.880704 | CH96: -5920.908521 | CI96: -5959.422749 | CJ96: -5993.695447 | CK96: -6023.983434 | CL96: -6050.529121 | CM96: -6073.561291 | CN96: -6093.295843 | CO96: -6109.936493 | CP96: -6123.021202 | CQ96: -6133.515056 | CR96: -6141.580925 | CS96: -6147.372412 | CT96: -6151.034361 | CU96: -6152.703337 | CV96: -6152.508082 | CW96: -6150.569945 | CX96: -6147.00329 | CY96: -6141.915883 | CZ96: -6135.409254 | DA96: -6127.579044 | DB96: -6118.946936 | DC96: -6109.220848 | DD96: -6098.476841 | DE96: -6086.786513 | DF96: -6074.217249 | DG96: -6060.832457 | DH96: -6046.691792 | DI96: -6031.851362 | DJ96: -6016.363933 | DK96: -6000.279115 | DL96: -5983.643536 | DM96: -5966.501019 | DN96: -5958.116121 | DS96: 88 | DT96: 15631.17474 | DU96: 0.1703604063 | DV96: 27723.13758 | DW96: 0.3748219637 | DX96: 88 | DY96: -10520.36255 | DZ96: -16478.47867 | EA96: tx A | EB96: 0 | EG96: 34800 | EH96: 0.6734 | EI96: 0.3266 | EJ96: 717.6090896 | EK96: -1460.273264 | EL96: 0.6734
BA97: 89 | BB97: 16573.67587 | BC97: -0.2930561225 | BD97: 31456.33447 | BE97: 0.4218346554 | BF97: -432.5 | BG97: -1029.916724 | BH97: -1450.634013 | BI97: -1749.771168 | BJ97: -1961.242409 | BK97: -2106.356937 | BL97: -2198.900758 | BM97: -2248.141345 | BN97: -2260.605843 | BO97: -2241.135032 | BP97: -2193.509517 | BQ97: -2120.823177 | BR97: -2030.236527 | BS97: -1920.482721 | BT97: -1793.523985 | BU97: -1651.140045 | BV97: -1494.960176 | BW97: -1326.48467 | BX97: -1147.099935 | BY97: -958.0896821 | BZ97: -760.6436842 | CA97: -555.8649747 | CB97: -344.7760118 | CC97: -128.3241231 | CD97: 82.09273437 | CE97: 296.0090232 | CF97: 512.7105733 | CG97: 731.5381086 | CH97: 951.8837784 | CI97: 1173.187903 | CJ97: 1394.935915 | CK97: 1616.655483 | CL97: 1837.913806 | CM97: 2058.315061 | CN97: 2277.498011 | CO97: 2495.133742 | CP97: 2700.647835 | CQ97: 2904.146264 | CR97: 3105.396459 | CS97: 3304.189231 | CT97: 3500.337179 | CU97: 3693.673206 | CV97: 3884.049112 | CW97: 4071.334275 | CX97: 4255.414416 | CY97: 4436.190434 | CZ97: 4613.577311 | DA97: 4787.503086 | DB97: 4949.793383 | DC97: 5108.684024 | DD97: 5264.138505 | DE97: 5416.129414 | DF97: 5564.637724 | DG97: 5709.652122 | DH97: 5851.168395 | DI97: 5989.188838 | DJ97: 6123.721712 | DK97: 6254.780731 | DL97: 6382.384588 | DM97: 6506.556504 | DN97: 6564.064745 | DS97: 89 | DT97: 16573.67587 | DU97: -0.2930561225 | DV97: 31456.33447 | DW97: 0.4218346554 | DX97: 89 | DY97: -25365.35955 | DZ97: -18801.2948 | EA97: tx B | EB97: 6564.064745 | EG97: 35200 | EH97: 0.6648 | EI97: 0.3352 | EJ97: 918.586595 | EK97: -1125.079948 | EL97: 0.6648
BA98: 90 | BB98: 17780.8348 | BC98: -0.4560424397 | BD98: 29663.90577 | BE98: 0.05223750436 | BF98: -432.5 | BG98: -999.3809982 | BH98: -1382.679649 | BI98: -1649.363906 | BJ98: -1838.824528 | BK98: -1974.471982 | BL98: -2070.455101 | BM98: -2135.548439 | BN98: -2175.398535 | BO98: -2193.820361 | BP98: -2193.544871 | BQ98: -2176.649902 | BR98: -2146.324945 | BS98: -2103.110563 | BT98: -2048.182917 | BU98: -1982.595965 | BV98: -1907.309413 | BW98: -1823.205908 | BX98: -1731.102083 | BY98: -1631.756057 | BZ98: -1525.872882 | CA98: -1414.108764 | CB98: -1297.074557 | CC98: -1175.33878 | CD98: -1055.425953 | CE98: -932.0074276 | CF98: -805.5182782 | CG98: -676.362391 | CH98: -544.9143771 | CI98: -411.5213696 | CJ98: -276.5047177 | CK98: -140.1615835 | CL98: -2.766447926 | CM98: 135.4274695 | CN98: 274.1868716 | CO98: 413.2971217 | CP98: 545.9294381 | CQ98: 678.5359131 | CR98: 810.9589071 | CS98: 943.0543989 | CT98: 1074.691094 | CU98: 1205.749586 | CV98: 1336.121562 | CW98: 1465.709064 | CX98: 1594.423788 | CY98: 1722.186421 | CZ98: 1848.926031 | DA98: 1974.579475 | DB98: 2093.161747 | DC98: 2210.609527 | DD98: 2326.88195 | DE98: 2441.943673 | DF98: 2555.764473 | DG98: 2668.31886 | DH98: 2779.58573 | DI98: 2889.548021 | DJ98: 2998.192407 | DK98: 3105.509001 | DL98: 3211.491082 | DM98: 3316.134834 | DN98: 3365.327347 | DS98: 90 | DT98: 17780.8348 | DU98: -0.4560424397 | DV98: 29663.90577 | DW98: 0.05223750436 | DX98: 90 | DY98: -31462.10799 | DZ98: -28096.78064 | EA98: tx B | EB98: 3365.327347 | EG98: 35600 | EH98: 0.6544 | EI98: 0.3456 | EJ98: 1119.5641 | EK98: -789.8866316 | EL98: 0.6544
BA99: 91 | BB99: 16241.7772 | BC99: 0.3976550499 | BD99: 32341.75872 | BE99: 0.9386476632 | BF99: -432.5 | BG99: -1074.236235 | BH99: -1563.006948 | BI99: -1944.918711 | BJ99: -2250.212982 | BK99: -2498.792455 | BL99: -2703.854481 | BM99: -2874.261687 | BN99: -3016.079006 | BO99: -3133.565125 | BP99: -3229.80936 | BQ99: -3307.139451 | BR99: -3364.513382 | BS99: -3407.034353 | BT99: -3435.905332 | BU99: -3452.176032 | BV99: -3456.784385 | BW99: -3450.583363 | BX99: -3434.358528 | BY99: -3408.839718 | BZ99: -3374.709012 | CA99: -3332.606338 | CB99: -3283.133577 | CC99: -3226.857686 | CD99: -3167.291511 | CE99: -3102.235434 | CF99: -3032.142449 | CG99: -2957.439878 | CH99: -2878.530745 | CI99: -2795.795047 | CJ99: -2709.590937 | CK99: -2620.255834 | CL99: -2528.107475 | CM99: -2433.444911 | CN99: -2336.549447 | CO99: -2237.685542 | CP99: -2141.891374 | CQ99: -2044.681317 | CR99: -1946.263833 | CS99: -1846.834368 | CT99: -1746.576024 | CU99: -1645.660191 | CV99: -1544.247159 | CW99: -1442.486693 | CX99: -1340.518589 | CY99: -1238.473193 | CZ99: -1136.471902 | DA99: -1034.627642 | DB99: -937.882572 | DC99: -841.4796487 | DD99: -745.5047174 | DE99: -650.037159 | DF99: -555.1502427 | DG99: -460.9114629 | DH99: -367.3828592 | DI99: -274.6213207 | DJ99: -182.6788755 | DK99: -91.60296591 | DL99: -1.436710225 | DM99: 87.78084889 | DN99: 129.796877 | DS99: 91 | DT99: 16241.7772 | DU99: 0.3976550499 | DV99: 32341.75872 | DW99: 0.9386476632 | DX99: 91 | DY99: -4312.125704 | DZ99: -4182.328827 | EA99: tx B | EB99: 129.796877 | EG99: 36000 | EH99: 0.6465 | EI99: 0.3535 | EJ99: 1320.541606 | EK99: -454.6933152 | EL99: 0.6465
BA100: 92 | BB100: 17970.88421 | BC100: 0.2989614599 | BD100: 30975.03769 | BE100: 0.7592445855 | BF100: -432.5 | BG100: -1074.683085 | BH100: -1567.085766 | BI100: -1955.024258 | BJ100: -2266.954503 | BK100: -2521.055361 | BL100: -2729.22058 | BM100: -2899.480734 | BN100: -3037.473779 | BO100: -3147.339042 | BP100: -3232.26172 | BQ100: -3294.805484 | BR100: -3335.101729 | BS100: -3357.895203 | BT100: -3364.749737 | BU100: -3357.073944 | BV100: -3336.151878 | BW100: -3303.163423 | BX100: -3259.198373 | BY100: -3205.266569 | BZ100: -3142.305575 | CA100: -3071.186767 | CB100: -2992.720378 | CC100: -2907.659838 | CD100: -2821.036765 | CE100: -2729.420619 | CF100: -2633.387233 | CG100: -2533.47111 | CH100: -2430.168017 | CI100: -2323.937417 | CJ100: -2215.204753 | CK100: -2104.363581 | CL100: -1991.777583 | CM100: -1877.782462 | CN100: -1762.687718 | CO100: -1646.778328 | CP100: -1535.862127 | CQ100: -1424.648725 | CR100: -1313.348115 | CS100: -1202.152424 | CT100: -1091.237095 | CU100: -980.7619913 | CV100: -870.8724374 | CW100: -761.7001976 | CX100: -653.3643962 | CY100: -545.9723811 | CZ100: -439.6205363 | DA100: -334.3950446 | DB100: -235.3260532 | DC100: -137.4674767 | DD100: -40.87617545 | DE100: 54.3982182 | DF100: 148.312771 | DG100: 240.8307529 | DH100: 331.9211716 | DI100: 421.5583374 | DJ100: 509.7214547 | DK100: 596.3942398 | DL100: 681.5645629 | DM100: 765.2241138 | DN100: 804.340292 | DS100: 92 | DT100: 17970.88421 | DU100: 0.2989614599 | DV100: 30975.03769 | DW100: 0.7592445855 | DX100: 92 | DY100: -9002.040414 | DZ100: -8197.700122 | EA100: tx B | EB100: 804.340292 | EG100: 36400 | EH100: 0.6354 | EI100: 0.3646 | EJ100: 1521.519111 | EK100: -119.4999988 | EL100: 0.6354
BA101: 93 | BB101: 16131.0595 | BC101: -0.05168399333 | BD101: 31178.96569 | BE101: 0.5152307569 | BF101: -432.5 | BG101: -1067.811636 | BH101: -1549.185561 | BI101: -1922.937901 | BJ101: -2217.83217 | BK101: -2452.133878 | BL101: -2637.800967 | BM101: -2782.974712 | BN101: -2893.462065 | BO101: -2973.619379 | BP101: -3026.880737 | BQ101: -3056.075196 | BR101: -3063.259369 | BS101: -3051.842265 | BT101: -3023.629897 | BU101: -2980.259401 | BV101: -2923.227738 | BW101: -2853.911247 | BX101: -2773.579597 | BY101: -2683.406295 | BZ101: -2584.477001 | CA101: -2477.796432 | CB101: -2364.294301 | CC101: -2244.830578 | CD101: -2126.135021 | CE101: -2003.218255 | CF101: -1876.725738 | CG101: -1747.252573 | CH101: -1615.346834 | CI101: -1481.512676 | CJ101: -1346.213248 | CK101: -1209.873425 | CL101: -1072.882367 | CM101: -935.5959265 | CN101: -798.3388997 | CO101: -661.4071433 | CP101: -531.5618247 | CQ101: -402.5145812 | CR101: -274.4753734 | CS101: -147.6334834 | CT101: -22.15897608 | CU101: 101.7959316 | CV101: 224.0955879 | CW101: 344.6197041 | CX101: 463.2622298 | CY101: 579.9302983 | CZ101: 694.5432413 | DA101: 807.031666 | DB101: 912.0839761 | DC101: 1015.009739 | DD101: 1115.77036 | DE101: 1214.335003 | DF101: 1310.679962 | DG101: 1404.788076 | DH101: 1496.648186 | DI101: 1586.254618 | DJ101: 1673.606715 | DK101: 1758.708389 | DL101: 1841.567711 | DM101: 1922.196525 | DN101: 1959.536318 | DS101: 93 | DT101: 16131.0595 | DU101: -0.05168399333 | DV101: 31178.96569 | DW101: 0.5152307569 | DX101: 93 | DY101: -17681.5793 | DZ101: -15722.04298 | EA101: tx B | EB101: 1959.536318 | EG101: 36800 | EH101: 0.6246 | EI101: 0.3754 | EJ101: 1722.496617 | EK101: 215.6933177 | EL101: 0.6246
BA102: 94 | BB102: 16983.55947 | BC102: 0.918353052 | BD102: 29359.98891 | BE102: 1.017860543 | BF102: -432.5 | BG102: -1117.700033 | BH102: -1690.007771 | BI102: -2188.544521 | BJ102: -2636.322872 | BK102: -3047.015424 | BL102: -3428.876192 | BM102: -3787.011319 | BN102: -4124.693396 | BO102: -4444.121932 | BP102: -4746.863334 | BQ102: -5034.105505 | BR102: -5293.819597 | BS102: -5540.456547 | BT102: -5774.698001 | BU102: -5997.16233 | BV102: -6208.421115 | BW102: -6409.00909 | BX102: -6599.430302 | BY102: -6780.16208 | BZ102: -6951.657723 | CA102: -7114.348449 | CB102: -7268.644883 | CC102: -7414.938283 | CD102: -7546.998568 | CE102: -7672.13071 | CF102: -7790.657579 | CG102: -7902.887055 | CH102: -8009.112733 | CI102: -8109.614597 | CJ102: -8204.65965 | CK102: -8294.502519 | CL102: -8379.386031 | CM102: -8459.541758 | CN102: -8535.19054 | CO102: -8606.54298 | CP102: -8670.597209 | CQ102: -8730.933377 | CR102: -8787.725439 | CS102: -8841.139289 | CT102: -8891.333131 | CU102: -8938.457833 | CV102: -8982.657269 | CW102: -9024.068643 | CX102: -9062.822798 | CY102: -9099.044507 | CZ102: -9132.852761 | DA102: -9164.361031 | DB102: -9192.281501 | DC102: -9218.212841 | DD102: -9242.248771 | DE102: -9264.47866 | DF102: -9284.987735 | DG102: -9303.857267 | DH102: -9321.164757 | DI102: -9336.984111 | DJ102: -9351.385805 | DK102: -9364.437047 | DL102: -9376.201922 | DM102: -9386.741544 | DN102: -9391.204709 | DS102: 94 | DT102: 16983.55947 | DU102: 0.918353052 | DV102: 29359.98891 | DW102: 1.017860543 | DX102: 94 | DY102: 10567.03209 | DZ102: 1175.827382 | EA102: tx A | EB102: 0 | EG102: 37200 | EH102: 0.6146 | EI102: 0.3854 | EJ102: 1923.474122 | EK102: 550.8866341 | EL102: 0.6146
BA103: 95 | BB103: 17732.30899 | BC103: 1.265041775 | BD103: 33918.14012 | BE103: 1.867246941 | BF103: -432.5 | BG103: -1051.684153 | BH103: -1516.947167 | BI103: -1881.037487 | BJ103: -2174.642478 | BK103: -2415.973128 | BL103: -2616.15068 | BM103: -2782.240521 | BN103: -2918.96551 | BO103: -3029.676747 | BP103: -3116.905935 | BQ103: -3182.681381 | BR103: -3226.518257 | BS103: -3252.969395 | BT103: -3263.309944 | BU103: -3258.70533 | BV103: -3240.233342 | BW103: -3208.898241 | BX103: -3165.640175 | BY103: -3111.341813 | BZ103: -3046.833274 | CA103: -2972.896016 | CB103: -2890.266053 | CC103: -2799.636729 | CD103: -2706.326676 | CE103: -2606.606078 | CF103: -2501.026602 | CG103: -2390.107544 | CH103: -2274.337548 | CI103: -2154.176225 | CJ103: -2030.055681 | CK103: -1902.381966 | CL103: -1771.536448 | CM103: -1637.877111 | CN103: -1501.7398 | CO103: -1363.43939 | CP103: -1229.945591 | CQ103: -1094.935745 | CR103: -958.6559865 | CS103: -821.3364235 | CT103: -683.1919995 | CU103: -544.4233168 | CV103: -405.2174174 | CW103: -265.7485234 | CX103: -126.1787418 | CY103: 13.34126732 | CZ103: 152.6716564 | DA103: 291.6827876 | DB103: 423.6560002 | DC103: 555.1052484 | DD103: 685.93308 | DE103: 816.049749 | DF103: 945.3727734 | DG103: 1073.826517 | DH103: 1201.341792 | DI103: 1327.855481 | DJ103: 1453.310182 | DK103: 1577.653867 | DL103: 1700.839564 | DM103: 1822.825048 | DN103: 1880.323863 | DS103: 95 | DT103: 17732.30899 | DU103: 1.265041775 | DV103: 33918.14012 | DW103: 1.867246941 | DX103: 95 | DY103: 20218.94425 | DZ103: 22099.26811 | EA103: tx B | EB103: 1880.323863 | EG103: 37600 | EH103: 0.6051 | EI103: 0.3949 | EJ103: 2124.451628 | EK103: 886.0799505 | EL103: 0.6051
BA104: 96 | BB104: 17332.76031 | BC104: 0.8752476179 | BD104: 30183.83416 | BE104: 1.248802853 | BF104: -432.5 | BG104: -1046.728992 | BH104: -1505.215902 | BI104: -1863.550427 | BJ104: -2154.502966 | BK104: -2397.625928 | BL104: -2604.801175 | BM104: -2783.446001 | BN104: -2938.366646 | BO104: -3072.83059 | BP104: -3189.187551 | BQ104: -3289.229742 | BR104: -3370.345662 | BS104: -3438.460043 | BT104: -3494.587668 | BU104: -3539.638172 | BV104: -3574.440816 | BW104: -3599.759895 | BX104: -3616.304682 | BY104: -3624.736152 | BZ104: -3625.671803 | CA104: -3619.689315 | CB104: -3607.329512 | CC104: -3589.098847 | CD104: -3566.596705 | CE104: -3539.377885 | CF104: -3507.838264 | CG104: -3472.348269 | CH104: -3433.254369 | CI104: -3390.880473 | CJ104: -3345.529249 | CK104: -3297.483364 | CL104: -3247.006659 | CM104: -3194.345251 | CN104: -3139.728586 | CO104: -3083.370416 | CP104: -3028.226914 | CQ104: -2971.790666 | CR104: -2914.225555 | CS104: -2855.68379 | CT104: -2796.306612 | CU104: -2736.224959 | CV104: -2675.560099 | CW104: -2614.424219 | CX104: -2552.92099 | CY104: -2491.146094 | CZ104: -2429.187722 | DA104: -2367.127048 | DB104: -2307.995257 | DC104: -2248.902259 | DD104: -2189.907746 | DE104: -2131.066274 | DF104: -2072.427598 | DG104: -2014.036987 | DH104: -1955.935516 | DI104: -1898.16035 | DJ104: -1840.745 | DK104: -1783.719576 | DL104: -1727.111014 | DM104: -1670.943297 | DN104: -1644.416804 | DS104: 96 | DT104: 17332.76031 | DU104: 0.8752476179 | DV104: 30183.83416 | DW104: 1.248802853 | DX104: 96 | DY104: 8924.668226 | DZ104: 7280.251421 | EA104: tx A | EB104: 0 | EG104: 38000 | EH104: 0.5964 | EI104: 0.4036 | EJ104: 2325.429133 | EK104: 1221.273267 | EL104: 0.5964
BA105: 97 | BB105: 17252.33631 | BC105: -0.2901746928 | BD105: 31144.59895 | BE105: 0.176622246 | BF105: -432.5 | BG105: -1038.790453 | BH105: -1477.492595 | BI105: -1804.560087 | BJ105: -2054.670532 | BK105: -2249.586181 | BL105: -2403.197273 | BM105: -2524.571646 | BN105: -2619.803611 | BO105: -2693.138117 | BP105: -2747.656497 | BQ105: -2785.696407 | BR105: -2807.995223 | BS105: -2817.818515 | BT105: -2816.405394 | BU105: -2804.839733 | BV105: -2784.088344 | BW105: -2755.025787 | BX105: -2718.450906 | BY105: -2675.098156 | BZ105: -2625.645689 | CA105: -2570.721339 | CB105: -2510.907269 | CC105: -2446.743731 | CD105: -2381.970861 | CE105: -2313.976556 | CF105: -2243.172121 | CG105: -2169.93896 | CH105: -2094.630483 | CI105: -2017.573889 | CJ105: -1939.07181 | CK105: -1859.403857 | CL105: -1778.828064 | CM105: -1697.58225 | CN105: -1615.885295 | CO105: -1533.938341 | CP105: -1455.831281 | CQ105: -1377.822832 | CR105: -1300.060104 | CS105: -1222.677268 | CT105: -1145.7964 | CU105: -1069.528281 | CV105: -993.9731501 | CW105: -919.2214086 | CX105: -845.3542892 | CY105: -772.4444804 | CZ105: -700.556716 | DA105: -629.748329 | DB105: -563.3877984 | DC105: -498.1452601 | DD105: -434.0570288 | DE105: -371.1541818 | DF105: -309.4629448 | DG105: -249.0050542 | DH105: -189.7980971 | DI105: -131.8558304 | DJ105: -75.18847925 | DK105: -19.80301752 | DL105: 34.29656981 | DM105: 87.10904092 | DN105: 111.6455296 | DS105: 97 | DT105: 17252.33631 | DU105: -0.2901746928 | DV105: 31144.59895 | DW105: 0.176622246 | DX105: 97 | DY105: -25957.57709 | DZ105: -25845.93156 | EA105: tx B | EB105: 111.6455296 | EG105: 38400 | EH105: 0.5865 | EI105: 0.4135 | EJ105: 2526.406638 | EK105: 1556.466583 | EL105: 0.5865
BA106: 98 | BB106: 17392.96495 | BC106: 0.7776393532 | BD106: 29742.79763 | BE106: 0.8388883002 | BF106: -432.5 | BG106: -1114.325843 | BH106: -1678.741474 | BI106: -2166.266559 | BJ106: -2601.915562 | BK106: -3001.176563 | BL106: -3373.682561 | BM106: -3725.46637 | BN106: -4060.345916 | BO106: -4380.775483 | BP106: -4688.368926 | BQ106: -4984.221325 | BR106: -5255.540799 | BS106: -5516.962941 | BT106: -5768.916554 | BU106: -6011.75571 | BV106: -6245.786736 | BW106: -6471.284818 | BX106: -6688.504234 | BY106: -6897.684646 | BZ106: -7099.054993 | CA106: -7292.83588 | CB106: -7479.241071 | CC106: -7658.47841 | CD106: -7822.546976 | CE106: -7980.170015 | CF106: -8131.531165 | CG106: -8276.809726 | CH106: -8416.180774 | CI106: -8549.815251 | CJ106: -8677.880035 | CK106: -8800.538008 | CL106: -8917.948118 | CM106: -9030.265432 | CN106: -9137.641201 | CO106: -9240.222915 | CP106: -9333.49096 | CQ106: -9422.463654 | CR106: -9507.271061 | CS106: -9588.039893 | CT106: -9664.893574 | CU106: -9737.952292 | CV106: -9807.333066 | CW106: -9873.149803 | CX106: -9935.513362 | CY106: -9994.531612 | CZ106: -10050.30949 | DA106: -10102.94908 | DB106: -10150.18772 | DC106: -10194.62397 | DD106: -10236.34721 | DE106: -10275.44431 | DF106: -10311.99969 | DG106: -10346.0954 | DH106: -10377.81113 | DI106: -10407.22431 | DJ106: -10434.41014 | DK106: -10459.44167 | DL106: -10482.3898 | DM106: -10503.32338 | DN106: -10512.36427 | DS106: 98 | DT106: 17392.96495 | DU106: 0.7776393532 | DV106: 29742.79763 | DW106: 0.8388883002 | DX106: 98 | DY106: 5936.215647 | DZ106: -4576.148625 | EA106: tx A | EB106: 0 | EG106: 38800 | EH106: 0.5777 | EI106: 0.4223 | EJ106: 2727.384144 | EK106: 1891.6599 | EL106: 0.5777
BA107: 99 | BB107: 18117.07738 | BC107: 0.4895389759 | BD107: 29642.63096 | BE107: 0.6753407445 | BF107: -432.5 | BG107: -1089.812255 | BH107: -1615.375783 | BI107: -2054.395169 | BJ107: -2433.960701 | BK107: -2770.48153 | BL107: -3074.06166 | BM107: -3351.075213 | BN107: -3605.681669 | BO107: -3840.717441 | BP107: -4058.220706 | BQ107: -4259.740643 | BR107: -4437.625747 | BS107: -4602.466921 | BT107: -4755.131365 | BU107: -4896.395624 | BV107: -5026.968046 | BW107: -5147.502755 | BX107: -5258.608618 | BY107: -5360.855221 | BZ107: -5454.777072 | CA107: -5540.876721 | CB107: -5619.627208 | CC107: -5691.474096 | CD107: -5753.724686 | CE107: -5810.177071 | CF107: -5861.186384 | CG107: -5907.087316 | CH107: -5948.195275 | CI107: -5984.807466 | CJ107: -6017.203905 | CK107: -6045.648384 | CL107: -6070.389371 | CM107: -6091.660865 | CN107: -6109.683205 | CO107: -6124.663831 | CP107: -6136.220191 | CQ107: -6145.24067 | CR107: -6151.889957 | CS107: -6156.322992 | CT107: -6158.685513 | CU107: -6159.114578 | CV107: -6157.739054 | CW107: -6154.680081 | CX107: -6150.051513 | CY107: -6143.96033 | CZ107: -6136.507032 | DA107: -6127.786009 | DB107: -6118.357325 | DC107: -6107.884929 | DD107: -6096.443187 | DE107: -6084.10187 | DF107: -6070.926423 | DG107: -6056.978214 | DH107: -6042.314774 | DI107: -6026.990015 | DJ107: -6011.054447 | DK107: -5994.555375 | DL107: -5977.537085 | DM107: -5960.041027 | DN107: -5951.500526 | DS107: 99 | DT107: 18117.07738 | DU107: 0.4895389759 | DV107: 29642.63096 | DW107: 0.6753407445 | DX107: 99 | DY107: -3430.908099 | DZ107: -9382.408625 | EA107: tx A | EB107: 0 | EG107: 39200 | EH107: 0.5686 | EI107: 0.4314 | EJ107: 2928.361649 | EK107: 2226.853216 | EL107: 0.5686
BA108: 100 | BB108: 16450.85013 | BC108: 0.4366371847 | BD108: 29996.16977 | BE108: 0.5958510377 | BF108: -432.5 | BG108: -1106.958065 | BH108: -1661.169791 | BI108: -2136.993563 | BJ108: -2559.467354 | BK108: -2943.67945 | BL108: -3298.830419 | BM108: -3630.633591 | BN108: -3942.733122 | BO108: -4237.541464 | BP108: -4516.733862 | BQ108: -4781.540363 | BR108: -5020.947948 | BS108: -5248.315694 | BT108: -5464.287908 | BU108: -5669.438236 | BV108: -5864.290188 | BW108: -6049.329569 | BX108: -6225.012131 | BY108: -6391.768412 | BZ108: -6550.006897 | CA108: -6700.116198 | CB108: -6842.466626 | CC108: -6977.411413 | CD108: -7099.198357 | CE108: -7214.559977 | CF108: -7323.78906 | CG108: -7427.16525 | CH108: -7524.955665 | CI108: -7617.415457 | CJ108: -7704.78836 | CK108: -7787.307195 | CL108: -7865.194359 | CM108: -7938.662289 | CN108: -8007.913904 | CO108: -8073.143029 | CP108: -8131.61138 | CQ108: -8186.593518 | CR108: -8238.250296 | CS108: -8286.735344 | CT108: -8332.195395 | CU108: -8374.770588 | CV108: -8414.594761 | CW108: -8451.795735 | CX108: -8486.495576 | CY108: -8518.810858 | CZ108: -8548.852902 | DA108: -8576.728015 | DB108: -8601.308677 | DC108: -8624.014591 | DD108: -8644.933909 | DE108: -8664.150801 | DF108: -8681.745637 | DG108: -8697.79515 | DH108: -8712.372605 | DI108: -8725.547951 | DJ108: -8737.387969 | DK108: -8747.956414 | DL108: -8757.314152 | DM108: -8765.519288 | DN108: -8768.90405 | DS108: 100 | DT108: 16450.85013 | DU108: 0.4366371847 | DV108: 29996.16977 | DW108: 0.5958510377 | DX108: 100 | DY108: -3351.734592 | DZ108: -12120.63864 | EA108: tx A | EB108: 0 | EG108: 39600 | EH108: 0.5589 | EI108: 0.4411 | EJ108: 3129.339155 | EK108: 2562.046533 | EL108: 0.5589
BA109: 101 | BB109: 16313.86863 | BC109: 0.8910303105 | BD109: 29948.32774 | BE109: 1.027064349 | BF109: -432.5 | BG109: -1134.963619 | BH109: -1733.256048 | BI109: -2261.672925 | BJ109: -2740.517605 | BK109: -3181.958556 | BL109: -3593.431661 | BM109: -3979.61517 | BN109: -4343.57539 | BO109: -4687.430984 | BP109: -5012.738038 | BQ109: -5320.713299 | BR109: -5598.475588 | BS109: -5861.521289 | BT109: -6110.59509 | BU109: -6346.380112 | BV109: -6569.51259 | BW109: -6780.590811 | BX109: -6980.180715 | BY109: -7168.819581 | BZ109: -7347.018579 | CA109: -7515.264666 | CB109: -7674.022083 | CC109: -7823.733604 | CD109: -7958.103164 | CE109: -8084.643723 | CF109: -8203.721542 | CG109: -8315.686115 | CH109: -8420.870939 | CI109: -8519.594244 | CJ109: -8612.159688 | CK109: -8698.857016 | CL109: -8779.962694 | CM109: -8855.740509 | CN109: -8926.442143 | CO109: -8992.307726 | CP109: -9050.649279 | CQ109: -9104.81142 | CR109: -9154.992736 | CS109: -9201.382678 | CT109: -9244.161972 | CU109: -9283.503021 | CV109: -9319.570278 | CW109: -9352.52061 | CX109: -9382.503646 | CY109: -9409.662102 | CZ109: -9434.132099 | DA109: -9456.043462 | DB109: -9474.592556 | DC109: -9490.93524 | DD109: -9505.178764 | DE109: -9517.425404 | DF109: -9527.77269 | DG109: -9536.313624 | DH109: -9543.136886 | DI109: -9548.327029 | DJ109: -9551.964676 | DK109: -9554.12669 | DL109: -9554.886355 | DM109: -9554.313534 | DN109: -9553.43796 | DS109: 101 | DT109: 16313.86863 | DU109: 0.8910303105 | DV109: 29948.32774 | DW109: 1.027064349 | DX109: 101 | DY109: 10417.04069 | DZ109: 863.6027271 | EA109: tx A | EB109: 0 | EG109: 40000 | EH109: 0.5505 | EI109: 0.4495 | EJ109: 3330.31666 | EK109: 2897.239849 | EL109: 0.5505
BA110: 102 | BB110: 16264.54373 | BC110: 0.7041308108 | BD110: 29254.63883 | BE110: 0.8994763249 | BF110: -432.5 | BG110: -1123.693884 | BH110: -1697.640414 | BI110: -2189.89291 | BJ110: -2622.967453 | BK110: -3011.280075 | BL110: -3364.206048 | BM110: -3687.975816 | BN110: -3986.850258 | BO110: -4263.849556 | BP110: -4521.20557 | BQ110: -4760.642924 | BR110: -4972.939197 | BS110: -5170.609907 | BT110: -5354.621698 | BU110: -5525.83532 | BV110: -5685.031896 | BW110: -5832.929907 | BX110: -5970.196393 | BY110: -6097.454546 | BZ110: -6215.289038 | CA110: -6324.249903 | CB110: -6424.855509 | CC110: -6517.594933 | CD110: -6598.866365 | CE110: -6673.501349 | CF110: -6741.892315 | CG110: -6804.41005 | CH110: -6861.404894 | CI110: -6913.207857 | CJ110: -6960.131664 | CK110: -7002.47173 | CL110: -7040.507092 | CM110: -7074.501274 | CN110: -7104.703121 | CO110: -7131.347578 | CP110: -7153.546486 | CQ110: -7172.76799 | CR110: -7189.200226 | CS110: -7203.0207 | CT110: -7214.396864 | CU110: -7223.486652 | CV110: -7230.438991 | CW110: -7235.394293 | CX110: -7238.48491 | CY110: -7239.835569 | CZ110: -7239.563792 | DA110: -7237.780281 | DB110: -7234.741245 | DC110: -7230.455243 | DD110: -7225.010276 | DE110: -7218.489162 | DF110: -7210.969815 | DG110: -7202.525521 | DH110: -7193.225189 | DI110: -7183.133596 | DJ110: -7172.311615 | DK110: -7160.816434 | DL110: -7148.701758 | DM110: -7136.018006 | DN110: -7129.729669 | DS110: 102 | DT110: 16264.54373 | DU110: 0.7041308108 | DV110: 29254.63883 | DW110: 0.8994763249 | DX110: 102 | DY110: 4859.38059 | DZ110: -2270.349079 | EA110: tx A | EB110: 0 | EG110: 40400 | EH110: 0.54 | EI110: 0.46 | EJ110: 3531.294166 | EK110: 3232.433165 | EL110: 0.54
BA111: 103 | BB111: 17805.15931 | BC111: 0.8695325656 | BD111: 30431.36229 | BE111: 1.183920519 | BF111: -432.5 | BG111: -1103.056401 | BH111: -1644.042504 | BI111: -2094.730035 | BJ111: -2479.315387 | BK111: -2813.054234 | BL111: -3105.854675 | BM111: -3364.39317 | BN111: -3593.367855 | BO111: -3796.245666 | BP111: -3975.710875 | BQ111: -4133.936577 | BR111: -4266.140392 | BS111: -4381.366484 | BT111: -4480.95456 | BU111: -4566.113571 | BV111: -4637.947313 | BW111: -4697.471674 | BX111: -4745.626661 | BY111: -4783.285145 | BZ111: -4811.259498 | CA111: -4830.306852 | CB111: -4841.133434 | CC111: -4844.39827 | CD111: -4840.891754 | CE111: -4831.316041 | CF111: -4816.18124 | CG111: -4795.963199 | CH111: -4771.105649 | CI111: -4742.022206 | CJ111: -4709.098233 | CK111: -4672.692594 | CL111: -4633.139297 | CM111: -4590.749035 | CN111: -4545.810638 | CO111: -4498.592438 | CP111: -4451.688736 | CQ111: -4403.071152 | CR111: -4352.943723 | CS111: -4301.495434 | CT111: -4248.901183 | CU111: -4195.322672 | CV111: -4140.909264 | CW111: -4085.798771 | CX111: -4030.118209 | CY111: -3973.984503 | CZ111: -3917.505143 | DA111: -3860.778812 | DB111: -3806.604676 | DC111: -3752.36032 | DD111: -3698.117769 | DE111: -3643.942687 | DF111: -3589.894815 | DG111: -3536.028378 | DH111: -3482.392462 | DI111: -3429.031379 | DJ111: -3375.984995 | DK111: -3323.28905 | DL111: -3270.975452 | DM111: -3219.072554 | DN111: -3194.56439 | DS111: 103 | DT111: 17805.15931 | DU111: 0.8695325656 | DV111: 30431.36229 | DW111: 1.183920519 | DX111: 103 | DY111: 8280.817658 | DZ111: 5086.253268 | EA111: tx A | EB111: 0 | EG111: 40800 | EH111: 0.5319 | EI111: 0.4681 | EJ111: 3732.271671 | EK111: 3567.626482 | EL111: 0.5319
BA112: 104 | BB112: 16652.16159 | BC112: 0.4988055265 | BD112: 30272.68289 | BE112: 0.8450063862 | BF112: -432.5 | BG112: -1094.618223 | BH112: -1625.198607 | BI112: -2066.267859 | BJ112: -2442.915006 | BK112: -2770.431311 | BL112: -3058.42559 | BM112: -3313.194966 | BN112: -3539.09022 | BO112: -3739.302253 | BP112: -3916.315527 | BQ112: -4072.170113 | BR112: -4202.116505 | BS112: -4315.047408 | BT112: -4412.290695 | BU112: -4495.061607 | BV112: -4564.481925 | BW112: -4621.592567 | BX112: -4667.362361 | BY112: -4702.694558 | BZ112: -4728.431991 | CA112: -4745.36137 | CB112: -4754.217036 | CC112: -4755.684317 | CD112: -4750.654109 | CE112: -4739.764176 | CF112: -4723.543889 | CG112: -4702.486462 | CH112: -4677.051171 | CI112: -4647.665444 | CJ112: -4614.726824 | CK112: -4578.604818 | CL112: -4539.642644 | CM112: -4498.158863 | CN112: -4454.448929 | CO112: -4408.786642 | CP112: -4363.680807 | CQ112: -4317.180375 | CR112: -4269.491755 | CS112: -4220.8055 | CT112: -4171.297333 | CU112: -4121.129105 | CV112: -4070.449701 | CW112: -4019.395887 | CX112: -3968.093111 | CY112: -3916.656253 | CZ112: -3865.190331 | DA112: -3813.791162 | DB112: -3764.986233 | DC112: -3716.403436 | DD112: -3668.111156 | DE112: -3620.171178 | DF112: -3572.639147 | DG112: -3525.565002 | DH112: -3478.993381 | DI112: -3432.964001 | DJ112: -3387.512011 | DK112: -3342.668331 | DL112: -3298.45996 | DM112: -3254.91027 | DN112: -3234.495514 | DS112: 104 | DT112: 16652.16159 | DU112: 0.4988055265 | DV112: 30272.68289 | DW112: 0.8450063862 | DX112: 104 | DY112: -1687.995792 | DZ112: -4922.491306 | EA112: tx A | EB112: 0 | EG112: 41200 | EH112: 0.5234 | EI112: 0.4766 | EJ112: 3933.249177 | EK112: 3902.819798 | EL112: 0.5234
BA113: 105 | BB113: 16436.57652 | BC113: 1.123284069 | BD113: 32459.48481 | BE113: 1.574285208 | BF113: -432.5 | BG113: -1071.598118 | BH113: -1572.395879 | BI113: -1984.670269 | BJ113: -2336.812254 | BK113: -2645.161853 | BL113: -2919.291812 | BM113: -3164.986735 | BN113: -3385.915344 | BO113: -3584.56432 | BP113: -3762.756675 | BQ113: -3921.937554 | BR113: -4056.597616 | BS113: -4175.352208 | BT113: -4279.150129 | BU113: -4368.877057 | BV113: -4445.368149 | BW113: -4509.414971 | BX113: -4561.769522 | BY113: -4603.146793 | BZ113: -4634.226634 | CA113: -4655.655279 | CB113: -4668.046744 | CC113: -4671.984148 | CD113: -4668.209722 | CE113: -4657.41113 | CF113: -4640.06273 | CG113: -4616.614225 | CH113: -4587.491783 | CI113: -4553.099122 | CJ113: -4513.81855 | CK113: -4470.011973 | CL113: -4422.021857 | CM113: -4370.172156 | CN113: -4314.769192 | CO113: -4256.102503 | CP113: -4197.381693 | CQ113: -4136.059169 | CR113: -4072.367216 | CS113: -4006.525013 | CT113: -3938.739278 | CU113: -3869.204877 | CV113: -3798.10541 | CW113: -3725.613766 | CX113: -3651.892656 | CY113: -3577.095118 | CZ113: -3501.365006 | DA113: -3424.837442 | DB113: -3351.315371 | DC113: -3277.267928 | DD113: -3202.801308 | DE113: -3128.014958 | DF113: -3053.001922 | DG113: -2977.849173 | DH113: -2902.637926 | DI113: -2827.44394 | DJ113: -2752.337799 | DK113: -2677.385189 | DL113: -2602.647153 | DM113: -2528.180343 | DN113: -2492.874108 | DS113: 105 | DT113: 16436.57652 | DU113: 1.123284069 | DV113: 32459.48481 | DW113: 1.574285208 | DX113: 105 | DY113: 17261.94555 | DZ113: 14769.07144 | EA113: tx A | EB113: 0 | EG113: 41600 | EH113: 0.5149 | EI113: 0.4851 | EJ113: 4134.226682 | EK113: 4238.013115 | EL113: 0.4851
BA114: 106 | BB114: 15155.05357 | BC114: 1.009203066 | BD114: 29697.45818 | BE114: 0.9936937721 | BF114: -432.5 | BG114: -1170.389482 | BH114: -1828.554839 | BI114: -2434.027823 | BJ114: -3002.286345 | BK114: -3542.260116 | BL114: -4059.173077 | BM114: -4556.154611 | BN114: -5035.151062 | BO114: -5497.440321 | BP114: -5943.921665 | BQ114: -6375.278606 | BR114: -6772.222937 | BS114: -7155.757856 | BT114: -7526.302855 | BU114: -7884.249604 | BV114: -8229.970353 | BW114: -8563.822622 | BX114: -8886.151847 | BY114: -9197.292899 | BZ114: -9497.570998 | CA114: -9787.302284 | CB114: -10066.79422 | CC114: -10336.34587 | CD114: -10583.87189 | CE114: -10822.47761 | CF114: -11052.42524 | CG114: -11273.96982 | CH114: -11487.3594 | CI114: -11692.83522 | CJ114: -11890.63191 | CK114: -12080.97758 | CL114: -12264.09407 | CM114: -12440.19704 | CN114: -12609.49617 | CO114: -12772.19529 | CP114: -12921.04982 | CQ114: -13063.99076 | CR114: -13201.1964 | CS114: -13332.84001 | CT114: -13459.08997 | CU114: -13580.10992 | CV114: -13696.05887 | CW114: -13807.09132 | CX114: -13913.35738 | CY114: -14015.0029 | CZ114: -14112.16956 | DA114: -14204.995 | DB114: -14289.39302 | DC114: -14369.90755 | DD114: -14446.65873 | DE114: -14519.76323 | DF114: -14589.33436 | DG114: -14655.48215 | DH114: -14718.31347 | DI114: -14777.93206 | DJ114: -14834.43867 | DK114: -14887.93113 | DL114: -14938.5044 | DM114: -14986.25067 | DN114: -15007.68343 | DS114: 106 | DT114: 15155.05357 | DU114: 1.009203066 | DV114: 29697.45818 | DW114: 0.9936937721 | DX114: 106 | DY114: 15121.03841 | DZ114: 113.3549804 | EA114: tx A | EB114: 0 | EG114: 42000 | EH114: 0.5085 | EI114: 0.4915 | EJ114: 4335.204187 | EK114: 4573.206431 | EL114: =IF(EJ114>EK114,EH114,EI114) -> 0.4915
BA115: 107 | BB115: 16681.05524 | BC115: 0.709081313 | BD115: 33109.43281 | BE115: 1.264425828 | BF115: -432.5 | BG115: -1098.987592 | BH115: -1628.486412 | BI115: -2060.042303 | BJ115: -2418.701889 | BK115: -2720.777899 | BL115: -2977.119924 | BM115: -3195.146959 | BN115: -3380.11121 | BO115: -3535.884585 | BP115: -3665.448761 | BQ115: -3771.201138 | BR115: -3851.149005 | BS115: -3911.978113 | BT115: -3955.151691 | BU115: -3981.992653 | BV115: -3993.713642 | BW115: -3991.436858 | BX115: -3976.207489 | BY115: -3949.003121 | BZ115: -3910.740588 | CA115: -3862.281192 | CB115: -3804.434859 | CC115: -3737.963589 | CD115: -3667.126297 | CE115: -3589.400285 | CF115: -3505.390122 | CG115: -3415.664433 | CH115: -3320.757841 | CI115: -3221.172788 | CJ115: -3117.381246 | CK115: -3009.826338 | CL115: -2898.923867 | CM115: -2785.063769 | CN115: -2668.611492 | CO115: -2549.909302 | CP115: -2435.021896 | CQ115: -2318.582091 | CR115: -2200.856485 | CS115: -2082.093985 | CT115: -1962.52677 | CU115: -1842.371207 | CV115: -1721.828714 | CW115: -1601.086594 | CX115: -1480.318806 | CY115: -1359.686719 | CZ115: -1239.339812 | DA115: -1119.416344 | DB115: -1005.728389 | DC115: -892.6773984 | DD115: -780.3665023 | DE115: -668.8903898 | DF115: -558.3357969 | DG115: -448.7819723 | DH115: -340.301118 | DI115: -232.9588079 | DJ115: -126.8143836 | DK115: -21.92133044 | DL115: 81.67236692 | DM115: 183.9238872 | DN115: 231.957871 | DS115: 107 | DT115: 16681.05524 | DU115: 0.709081313 | DV115: 33109.43281 | DW115: 1.264425828 | DX115: 107 | DY115: 4591.384155 | DZ115: 4823.342026 | EA115: tx B | EB115: 231.957871 | EG115: 42400 | EH115: 0.503 | EI115: 0.497 | EJ115: 4536.181693 | EK115: 4908.399748 | EL115: 0.497
BA116: 108 | BB116: 17843.45482 | BC116: 1.489290891 | BD116: 31454.08571 | BE116: 1.931414998 | BF116: -432.5 | BG116: -1078.41087 | BH116: -1581.886357 | BI116: -1988.73615 | BJ116: -2326.61166 | BK116: -2612.472019 | BL116: -2856.973113 | BM116: -3067.044933 | BN116: -3247.403528 | BO116: -3401.437266 | BP116: -3531.726162 | BQ116: -3640.34633 | BR116: -3724.824859 | BS116: -3791.792602 | BT116: -3842.558546 | BU116: -3878.318198 | BV116: -3900.175747 | BW116: -3909.158203 | BX116: -3906.224811 | BY116: -3892.273724 | BZ116: -3868.147013 | CA116: -3834.634688 | CB116: -3792.47809 | CC116: -3742.372871 | CD116: -3687.705076 | CE116: -3626.671736 | CF116: -3559.819455 | CG116: -3487.660516 | CH116: -3410.67482 | CI116: -3329.311723 | CJ116: -3243.991766 | CK116: -3155.108317 | CL116: -3063.029118 | CM116: -2968.097757 | CN116: -2870.63505 | CO116: -2770.94036 | CP116: -2674.133191 | CQ116: -2575.7139 | CR116: -2475.913134 | CS116: -2374.945467 | CT116: -2273.010344 | CU116: -2170.292977 | CV116: -2066.965188 | CW116: -1963.186212 | CX116: -1859.103445 | CY116: -1754.853166 | CZ116: -1650.561203 | DA116: -1546.343573 | DB116: -1447.261202 | DC116: -1348.444836 | DD116: -1249.980242 | DE116: -1151.94595 | DF116: -1054.413706 | DG116: -957.4488973 | DH116: -861.1109627 | DI116: -765.4537708 | DJ116: -670.5259811 | DK116: -576.3713837 | DL116: -483.0292186 | DM116: -390.5344779 | DN116: -346.9076741 | DS116: 108 | DT116: 17843.45482 | DU116: 1.489290891 | DV116: 31454.08571 | DW116: 1.931414998 | DX116: 108 | DY116: 26835.27191 | DZ116: 26488.36424 | EA116: tx A | EB116: 0 | EG116: 42800 | EH116: 0.4947 | EI116: 0.5053 | EJ116: 4737.159198 | EK116: 5243.593064 | EL116: 0.5053
BA117: 109 | BB117: 16402.80816 | BC117: 0.2153499359 | BD117: 28801.53504 | BE117: 0.4543283855 | BF117: -432.5 | BG117: -1081.270745 | BH117: -1590.530733 | BI117: -2006.866442 | BJ117: -2358.806908 | BK117: -2664.039887 | BL117: -2933.727246 | BM117: -3175.087654 | BN117: -3392.943802 | BO117: -3590.650492 | BP117: -3770.652346 | BQ117: -3934.819768 | BR117: -4077.517203 | BS117: -4207.754231 | BT117: -4326.559121 | BU117: -4434.840957 | BV117: -4533.417746 | BW117: -4623.034528 | BX117: -4704.37542 | BY117: -4778.071938 | BZ117: -4844.709017 | CA117: -4904.829585 | CB117: -4958.938211 | CC117: -5007.504136 | CD117: -5048.894375 | CE117: -5085.808374 | CF117: -5118.605941 | CG117: -5147.621725 | CH117: -5173.166881 | CI117: -5195.530628 | CJ117: -5214.981685 | CK117: -5231.769621 | CL117: -5246.126114 | CM117: -5258.266131 | CN117: -5268.389028 | CO117: -5276.679588 | CP117: -5282.993299 | CQ117: -5287.87588 | CR117: -5291.466973 | CS117: -5293.895694 | CT117: -5295.281342 | CU117: -5295.734062 | CV117: -5295.355472 | CW117: -5294.239241 | CX117: -5292.471638 | CY117: -5290.132041 | CZ117: -5287.293418 | DA117: -5284.02277 | DB117: -5280.554941 | DC117: -5276.787805 | DD117: -5272.770415 | DE117: -5268.547589 | DF117: -5264.160213 | DG117: -5259.645522 | DH117: -5255.037369 | DI117: -5250.366472 | DJ117: -5245.660643 | DK117: -5240.945006 | DL117: -5236.242201 | DM117: -5231.572565 | DN117: -5229.373399 | DS117: 109 | DT117: 16402.80816 | DU117: 0.2153499359 | DV117: 28801.53504 | DW117: 0.4543283855 | DX117: 109 | DY117: -9942.31008 | DZ117: -15171.68348 | EA117: tx A | EB117: 0 | EG117: 43200 | EH117: 0.4869 | EI117: 0.5131 | EJ117: 4938.136704 | EK117: 5578.78638 | EL117: 0.5131
BA118: 110 | BB118: 16402.72438 | BC118: 0.5368337902 | BD118: 30533.03571 | BE118: 0.9396058247 | BF118: -432.5 | BG118: -1096.791324 | BH118: -1628.669131 | BI118: -2069.171591 | BJ118: -2443.271244 | BK118: -2766.453248 | BL118: -3048.583053 | BM118: -3296.181346 | BN118: -3513.763006 | BO118: -3704.626003 | BP118: -3871.31695 | BQ118: -4015.906578 | BR118: -4134.236889 | BS118: -4234.663766 | BT118: -4318.510076 | BU118: -4386.985459 | BV118: -4441.208032 | BW118: -4482.218458 | BX118: -4510.989475 | BY118: -4528.432682 | BZ118: -4535.403656 | CA118: -4532.706033 | CB118: -4521.094927 | CC118: -4501.279902 | CD118: -4475.230127 | CE118: -4442.598442 | CF118: -4403.944889 | CG118: -4359.795154 | CH118: -4310.642454 | CI118: -4256.949321 | CJ118: -4199.14929 | CK118: -4137.648491 | CL118: -4072.827165 | CM118: -4005.041092 | CN118: -3934.622952 | CO118: -3861.883611 | CP118: -3790.673832 | CQ118: -3717.787776 | CR118: -3643.465915 | CS118: -3567.932245 | CT118: -3491.395221 | CU118: -3414.04865 | CV118: -3336.072531 | CW118: -3257.633849 | CX118: -3178.88734 | CY118: -3099.976195 | CZ118: -3021.032749 | DA118: -2942.179114 | DB118: -2867.273091 | DC118: -2792.658281 | DD118: -2718.425132 | DE118: -2644.656492 | DF118: -2571.428074 | DG118: -2498.808893 | DH118: -2426.861685 | DI118: -2355.643294 | DJ118: -2285.205046 | DK118: -2215.593096 | DL118: -2146.848764 | DM118: -2079.008843 | DN118: -2047.150297 | DS118: 110 | DT118: 16402.72438 | DU118: 0.5368337902 | DV118: 30533.03571 | DW118: 0.9396058247 | DX118: 110 | DY118: -297.7106721 | DZ118: -2344.860969 | EA118: tx A | EB118: 0 | EG118: 43600 | EH118: 0.4792 | EI118: 0.5208 | EJ118: 5139.114209 | EK118: 5913.979697 | EL118: 0.5208
BA119: 111 | BB119: 16637.90771 | BC119: 0.09640198757 | BD119: 29564.44395 | BE119: 0.3169906956 | BF119: -432.5 | BG119: -1088.330354 | BH119: -1618.233438 | BI119: -2067.99911 | BJ119: -2463.067045 | BK119: -2817.829095 | BL119: -3140.679079 | BM119: -3436.748217 | BN119: -3709.383576 | BO119: -3960.945389 | BP119: -4193.236264 | BQ119: -4407.732009 | BR119: -4596.2786 | BS119: -4770.174001 | BT119: -4930.408418 | BU119: -5077.898119 | BV119: -5213.497031 | BW119: -5338.004018 | BX119: -5452.167871 | BY119: -5556.691066 | BZ119: -5652.232832 | CA119: -5739.411826 | CB119: -5818.808539 | CC119: -5890.967536 | CD119: -5953.283725 | CE119: -6009.649293 | CF119: -6060.491689 | CG119: -6106.21144 | CH119: -6147.183726 | CI119: -6183.759871 | CJ119: -6216.268751 | CK119: -6245.018117 | CL119: -6270.295858 | CM119: -6292.371174 | CN119: -6311.4957 | CO119: -6327.904554 | CP119: -6341.15482 | CQ119: -6352.223119 | CR119: -6361.29165 | CS119: -6368.530352 | CT119: -6374.097652 | CU119: -6378.141172 | CV119: -6380.798388 | CW119: -6382.197258 | CX119: -6382.45681 | CY119: -6381.687695 | CZ119: -6379.99271 | DA119: -6377.467291 | DB119: -6374.355561 | DC119: -6370.615425 | DD119: -6366.319284 | DE119: -6361.534138 | DF119: -6356.321936 | DG119: -6350.739902 | DH119: -6344.840838 | DI119: -6338.673411 | DJ119: -6332.282428 | DK119: -6325.709086 | DL119: -6318.991212 | DM119: -6312.163489 | DN119: -6308.875001 | DS119: 111 | DT119: 16637.90771 | DU119: 0.09640198757 | DV119: 29564.44395 | DW119: 0.3169906956 | DX119: 111 | DY119: -13745.84808 | DZ119: -20054.72308 | EA119: tx A | EB119: 0 | EG119: 44000 | EH119: 0.4728 | EI119: 0.5272 | EJ119: 5340.091715 | EK119: 6249.173013 | EL119: 0.5272
BA120: 112 | BB120: 17443.90334 | BC120: 1.162443274 | BD120: 29616.68125 | BE120: 1.438590171 | BF120: -432.5 | BG120: -1059.160467 | BH120: -1541.821201 | BI120: -1934.017907 | BJ120: -2266.19797 | BK120: -2555.804596 | BL120: -2812.991965 | BM120: -3043.847804 | BN120: -3252.199632 | BO120: -3440.62006 | BP120: -3610.981727 | BQ120: -3764.760723 | BR120: -3896.608337 | BS120: -4014.894065 | BT120: -4120.571058 | BU120: -4214.522202 | BV120: -4297.572445 | BW120: -4370.495577 | BX120: -4434.018297 | BY120: -4488.823012 | BZ120: -4535.550102 | CA120: -4574.799955 | CB120: -4607.134944 | CC120: -4633.081371 | CD120: -4652.176618 | CE120: -4666.094207 | CF120: -4675.243137 | CG120: -4680.005114 | CH120: -4680.736182 | CI120: -4677.768275 | CJ120: -4671.410692 | CK120: -4661.951501 | CL120: -4649.658859 | CM120: -4634.782269 | CN120: -4617.553755 | CO120: -4598.188975 | CP120: -4577.902583 | CQ120: -4555.949587 | CR120: -4532.494349 | CS120: -4507.689284 | CT120: -4481.675633 | CU120: -4454.584191 | CV120: -4426.535997 | CW120: -4397.642972 | CX120: -4368.008524 | CY120: -4337.72811 | CZ120: -4306.889774 | DA120: -4275.574636 | DB120: -4245.367712 | DC120: -4214.843189 | DD120: -4184.061112 | DE120: -4153.076553 | DF120: -4121.939953 | DG120: -4090.697447 | DH120: -4059.391159 | DI120: -4028.059487 | DJ120: -3996.737368 | DK120: -3965.456519 | DL120: -3934.245674 | DM120: -3903.130798 | DN120: -3888.371029 | DS120: 112 | DT120: 17443.90334 | DU120: 1.162443274 | DV120: 29616.68125 | DW120: 1.438590171 | DX120: 112 | DY120: 17429.39489 | DZ120: 13541.02386 | EA120: tx A | EB120: 0 | EG120: 44400 | EH120: 0.4646 | EI120: 0.5354 | EJ120: 5541.06922 | EK120: 6584.36633 | EL120: 0.5354
BA121: 113 | BB121: 15457.64495 | BC121: -0.8830307447 | BD121: 28837.30365 | BE121: -0.6455687867 | BF121: -432.5 | BG121: -1058.839571 | BH121: -1532.419321 | BI121: -1906.825074 | BJ121: -2215.559813 | BK121: -2479.642622 | BL121: -2712.329205 | BM121: -2922.044215 | BN121: -3114.202816 | BO121: -3292.342297 | BP121: -3458.825174 | BQ121: -3615.276169 | BR121: -3755.826402 | BS121: -3888.7465 | BT121: -4014.674475 | BU121: -4134.128381 | BV121: -4247.5455 | BW121: -4355.30698 | BX121: -4457.753419 | BY121: -4555.194828 | BZ121: -4647.917074 | CA121: -4736.18615 | CB121: -4820.251055 | CC121: -4900.34583 | CD121: -4973.055547 | CE121: -5042.392536 | CF121: -5108.544186 | CG121: -5171.687699 | CH121: -5231.990708 | CI121: -5289.611827 | CJ121: -5344.701147 | CK121: -5397.400691 | CL121: -5447.844845 | CM121: -5496.160756 | CN121: -5542.468706 | CO121: -5586.882468 | CP121: -5627.479779 | CQ121: -5666.472483 | CR121: -5703.952196 | CS121: -5740.005522 | CT121: -5774.714312 | CU121: -5808.155909 | CV121: -5840.403384 | CW121: -5871.525759 | CX121: -5901.588217 | CY121: -5930.652303 | CZ121: -5958.776116 | DA121: -5986.014489 | DB121: -6011.161796 | DC121: -6035.561586 | DD121: -6059.257701 | DE121: -6082.291481 | DF121: -6104.701895 | DG121: -6126.525669 | DH121: -6147.797405 | DI121: -6168.549699 | DJ121: -6188.813242 | DK121: -6208.61693 | DL121: -6227.987954 | DM121: -6246.951899 | DN121: -6255.79996 | DS121: 113 | DT121: 15457.64495 | DU121: -0.8830307447 | DV121: 28837.30365 | DW121: -0.6455687867 | DX121: 113 | DY121: -41948.56729 | DZ121: -48204.36725 | EA121: tx A | EB121: 0 | EG121: 44800 | EH121: 0.4589 | EI121: 0.5411 | EJ121: 5742.046725 | EK121: 6919.559646 | EL121: 0.5411
BA122: 114 | BB122: 17713.09249 | BC122: 0.832559198 | BD122: 31780.38366 | BE122: 1.252867493 | BF122: -432.5 | BG122: -1096.362154 | BH122: -1621.471922 | BI122: -2048.372784 | BJ122: -2403.559149 | BK122: -2704.492201 | BL122: -2962.823331 | BM122: -3186.463013 | BN122: -3380.907294 | BO122: -3550.087666 | BP122: -3696.915382 | BQ122: -3823.630091 | BR122: -3926.861709 | BS122: -4014.060265 | BT122: -4086.439491 | BU122: -4145.067713 | BV122: -4190.904847 | BW122: -4224.826727 | BX122: -4247.641325 | BY122: -4260.099773 | BZ122: -4262.904061 | CA122: -4256.712576 | CB122: -4242.144242 | CC122: -4219.781749 | CD122: -4191.584051 | CE122: -4156.97926 | CF122: -4116.432262 | CG122: -4070.381453 | CH122: -4019.240211 | CI122: -3963.398251 | CJ122: -3903.222888 | CK122: -3839.060215 | CL122: -3771.236224 | CM122: -3700.057851 | CN122: -3625.813978 | CO122: -3548.776374 | CP122: -3472.989915 | CQ122: -3395.014897 | CR122: -3315.06621 | CS122: -3233.345618 | CT122: -3150.042448 | CU122: -3065.334255 | CV122: -2979.387451 | CW122: -2892.357899 | CX122: -2804.391484 | CY122: -2715.624647 | CZ122: -2626.184904 | DA122: -2536.191324 | DB122: -2450.06149 | DC122: -2363.608611 | DD122: -2276.92452 | DE122: -2190.094638 | DF122: -2103.198337 | DG122: -2016.309276 | DH122: -1929.495724 | DI122: -1842.820866 | DJ122: -1756.343094 | DK122: -1670.11628 | DL122: -1584.190039 | DM122: -1498.609975 | DN122: -1458.042329 | DS122: 114 | DT122: 17713.09249 | DU122: 0.832559198 | DV122: 31780.38366 | DW122: 1.252867493 | DX122: 114 | DY122: 7263.683455 | DZ122: 5805.641126 | EA122: tx A | EB122: 0 | EG122: 45200 | EH122: 0.4526 | EI122: 0.5474 | EJ122: 5943.024231 | EK122: 7254.752963 | EL122: 0.5474
BA123: 115 | BB123: 18040.86207 | BC123: 0.3405551797 | BD123: 30640.72062 | BE123: 0.708159903 | BF123: -432.5 | BG123: -1117.556973 | BH123: -1673.725972 | BI123: -2134.903027 | BJ123: -2523.801761 | BK123: -2855.839585 | BL123: -3141.663571 | BM123: -3388.791784 | BN123: -3602.679816 | BO123: -3787.414036 | BP123: -3946.16255 | BQ123: -4081.46894 | BR123: -4190.016647 | BS123: -4279.966645 | BT123: -4352.823035 | BU123: -4409.92848 | BV123: -4452.499259 | BW123: -4481.649124 | BX123: -4498.405842 | BY123: -4503.722977 | BZ123: -4498.488512 | CA123: -4483.531398 | CB123: -4459.626704 | CC123: -4427.499816 | CD123: -4389.719019 | CE123: -4345.360345 | CF123: -4294.991254 | CG123: -4239.143142 | CH123: -4178.313485 | CI123: -4112.967836 | CJ123: -4043.54168 | CK123: -3970.442179 | CL123: -3894.049799 | CM123: -3814.719852 | CN123: -3732.783951 | CO123: -3648.551375 | CP123: -3566.417083 | CQ123: -3482.625649 | CR123: -3397.414955 | CS123: -3311.006158 | CT123: -3223.604677 | CU123: -3135.401118 | CV123: -3046.572164 | CW123: -2957.281397 | CX123: -2867.680094 | CY123: -2777.907965 | CZ123: -2688.093856 | DA123: -2598.356416 | DB123: -2513.069086 | DC123: -2428.053985 | DD123: -2343.398423 | DE123: -2259.182192 | DF123: -2175.478043 | DG123: -2092.352134 | DH123: -2009.86445 | DI123: -1928.069204 | DJ123: -1847.015213 | DK123: -1766.746252 | DL123: -1687.30139 | DM123: -1608.715301 | DN123: -1571.716856 | DS123: 115 | DT123: 18040.86207 | DU123: 0.3405551797 | DV123: 30640.72062 | DW123: 0.708159903 | DX123: 115 | DY123: -7824.206676 | DZ123: -9395.923532 | EA123: tx A | EB123: 0 | EG123: 45600 | EH123: 0.4463 | EI123: 0.5537 | EJ123: 6144.001736 | EK123: 7589.946279 | EL123: 0.5537
BA124: 116 | BB124: 16354.2408 | BC124: -0.3924300226 | BD124: 29828.88136 | BE124: -0.2033008204 | BF124: -432.5 | BG124: -1094.343215 | BH124: -1625.001165 | BI124: -2069.18418 | BJ124: -2454.743021 | BK124: -2799.098163 | BL124: -3113.21414 | BM124: -3404.056607 | BN124: -3676.111576 | BO124: -3932.324935 | BP124: -4174.683596 | BQ124: -4404.575084 | BR124: -4612.608459 | BS124: -4810.466004 | BT124: -4998.736679 | BU124: -5177.913906 | BV124: -5348.427039 | BW124: -5510.661022 | BX124: -5664.968733 | BY124: -5811.678795 | BZ124: -5951.100576 | CA124: -6083.527451 | CB124: -6209.238971 | CC124: -6328.502358 | CD124: -6436.189231 | CE124: -6538.212614 | CF124: -6634.796962 | CG124: -6726.157862 | CH124: -6812.502461 | CI124: -6894.029836 | CJ124: -6970.931342 | CK124: -7043.390923 | CL124: -7111.585408 | CM124: -7175.684799 | CN124: -7235.85253 | CO124: -7292.245725 | CP124: -7342.5026 | CQ124: -7389.446855 | CR124: -7433.211462 | CS124: -7473.924258 | CT124: -7511.708141 | CU124: -7546.681265 | CV124: -7578.957214 | CW124: -7608.645188 | CX124: -7635.850163 | CY124: -7660.673056 | CZ124: -7683.210884 | DA124: -7703.55691 | DB124: -7720.932031 | DC124: -7736.387187 | DD124: -7750.001282 | DE124: -7761.850163 | DF124: -7772.006741 | DG124: -7780.541101 | DH124: -7787.520612 | DI124: -7793.010033 | DJ124: -7797.071608 | DK124: -7799.765169 | DL124: -7801.148226 | DM124: -7801.276056 | DN124: -7800.7645 | DS124: 116 | DT124: 16354.2408 | DU124: -0.3924300226 | DV124: 29828.88136 | DW124: -0.2033008204 | DX124: 116 | DY124: -28127.14147 | DZ124: -35927.90597 | EA124: tx A | EB124: 0 | EG124: 46000 | EH124: 0.4378 | EI124: 0.5622 | EJ124: 6344.979242 | EK124: 7925.139595 | EL124: 0.5622
BA125: 117 | BB125: 16217.93128 | BC125: 0.4544480418 | BD125: 28877.40102 | BE125: 0.6484204289 | BF125: -432.5 | BG125: -1080.207065 | BH125: -1585.589571 | BI125: -1996.496072 | BJ125: -2343.502368 | BK125: -2646.186847 | BL125: -2917.127527 | BM125: -3164.446689 | BN125: -3393.430133 | BO125: -3607.557162 | BP125: -3809.155492 | BQ125: -3999.817567 | BR125: -4172.053348 | BS125: -4335.722161 | BT125: -4491.4178 | BU125: -4639.612364 | BV125: -4780.697414 | BW125: -4915.010187 | BX125: -5042.850324 | BY125: -5164.490575 | BZ125: -5280.183699 | CA125: -5390.166921 | CB125: -5494.664862 | CC125: -5593.891487 | CD125: -5683.567623 | CE125: -5768.605232 | CF125: -5849.183837 | CG125: -5925.476083 | CH125: -5997.648121 | CI125: -6065.859927 | CJ125: -6130.265571 | CK125: -6191.013461 | CL125: -6248.246566 | CM125: -6302.102616 | CN125: -6352.714296 | CO125: -6400.20943 | CP125: -6442.592023 | CQ125: -6482.236716 | CR125: -6519.252322 | CS125: -6553.74365 | CT125: -6585.811645 | CU125: -6615.553526 | CV125: -6643.06292 | CW125: -6668.429985 | CX125: -6691.74154 | CY125: -6713.081177 | CZ125: -6732.529382 | DA125: -6750.163645 | DB125: -6765.301662 | DC125: -6778.851552 | DD125: -6790.879152 | DE125: -6801.447828 | DF125: -6810.618572 | DG125: -6818.450085 | DH125: -6824.998856 | DI125: -6830.319247 | DJ125: -6834.46357 | DK125: -6837.482158 | DL125: -6839.423437 | DM125: -6840.334001 | DN125: -6840.29813 | DS125: 117 | DT125: 16217.93128 | DU125: 0.4544480418 | DV125: 28877.40102 | DW125: 0.6484204289 | DX125: 117 | DY125: -2584.490027 | DZ125: -9424.788157 | EA125: tx A | EB125: 0 | EG125: 46400 | EH125: 0.4316 | EI125: 0.5684 | EJ125: 6545.956747 | EK125: 8260.332912 | EL125: 0.5684
BA126: 118 | BB126: 17231.39677 | BC126: -0.2271916917 | BD126: 30957.43069 | BE126: 0.2841175762 | BF126: -432.5 | BG126: -1075.915828 | BH126: -1573.65756 | BI126: -1971.59561 | BJ126: -2297.742463 | BK126: -2569.478389 | BL126: -2797.838243 | BM126: -2990.055434 | BN126: -3151.072368 | BO126: -3284.437914 | BP126: -3392.841329 | BQ126: -3478.430521 | BR126: -3539.927498 | BS126: -3582.893805 | BT126: -3608.655828 | BU126: -3618.42088 | BV126: -3613.302395 | BW126: -3594.336053 | BX126: -3562.490461 | BY126: -3518.674556 | BZ126: -3463.743011 | CA126: -3398.500412 | CB126: -3323.704646 | CC126: -3240.069798 | CD126: -3152.640171 | CE126: -3058.036834 | CF126: -2956.828383 | CG126: -2849.550205 | CH126: -2736.706245 | CI126: -2618.770665 | CJ126: -2496.189416 | CK126: -2369.38173 | CL126: -2238.741531 | CM126: -2104.63878 | CN126: -1967.420744 | CO126: -1827.41321 | CP126: -1691.706948 | CQ126: -1553.90752 | CR126: -1414.270179 | CS126: -1273.033782 | CT126: -1130.42168 | CU126: -986.6425697 | CV126: -841.8912895 | CW126: -696.3495897 | CX126: -550.1868538 | CY126: -403.5607872 | CZ126: -256.6180705 | DA126: -109.4949784 | DB126: 30.673603 | DC126: 170.7819189 | DD126: 310.726668 | DE126: 450.4123863 | DF126: 589.7509938 | DG126: 728.6613651 | DH126: 867.0689215 | DI126: 1004.905246 | DJ126: 1142.107716 | DK126: 1278.619158 | DL126: 1414.387519 | DM126: 1549.365554 | DN126: 1613.244117 | DS126: 118 | DT126: 17231.39677 | DU126: -0.2271916917 | DV126: 30957.43069 | DW126: 0.2841175762 | DX126: 118 | DY126: -24047.14752 | DZ126: -22433.90341 | EA126: tx B | EB126: 1613.244117 | EG126: 46800 | EH126: 0.4254 | EI126: 0.5746 | EJ126: 6746.934253 | EK126: 8595.526228 | EL126: 0.5746
BA127: 119 | BB127: 15069.26005 | BC127: 0.08143967687 | BD127: 30112.43592 | BE127: 0.4928314334 | BF127: -432.5 | BG127: -1039.221007 | BH127: -1486.741456 | BI127: -1833.599235 | BJ127: -2114.517332 | BK127: -2350.229303 | BL127: -2553.248525 | BM127: -2731.254125 | BN127: -2889.077241 | BO127: -3029.865737 | BP127: -3155.76698 | BQ127: -3268.328092 | BR127: -3363.949583 | BS127: -3448.89994 | BT127: -3523.947946 | BU127: -3589.768391 | BV127: -3646.969269 | BW127: -3696.108188 | BX127: -3737.702473 | BY127: -3772.235573 | BZ127: -3800.161298 | CA127: -3821.906775 | CB127: -3837.874638 | CC127: -3848.444752 | CD127: -3853.712268 | CE127: -3854.502847 | CF127: -3851.120741 | CG127: -3843.853108 | CH127: -3832.970917 | CI127: -3818.729802 | CJ127: -3801.370862 | CK127: -3781.12142 | CL127: -3758.195744 | CM127: -3732.795729 | CN127: -3705.111549 | CO127: -3675.322266 | CP127: -3645.107178 | CQ127: -3613.198775 | CR127: -3579.739092 | CS127: -3544.86166 | CT127: -3508.691949 | CU127: -3471.347811 | CV127: -3432.939878 | CW127: -3393.571961 | CX127: -3353.341414 | CY127: -3312.339485 | CZ127: -3270.651651 | DA127: -3228.357934 | DB127: -3187.572472 | DC127: -3146.347939 | DD127: -3104.746615 | DE127: -3062.826641 | DF127: -3020.642251 | DG127: -2978.243994 | DH127: -2935.678939 | DI127: -2892.990874 | DJ127: -2850.220493 | DK127: -2807.405572 | DL127: -2764.581142 | DM127: -2721.779641 | DN127: -2701.42318 | DS127: 119 | DT127: 15069.26005 | DU127: 0.08143967687 | DV127: 30112.43592 | DW127: 0.4928314334 | DX127: 119 | DY127: -12626.06974 | DZ127: -15327.49292 | EA127: tx A | EB127: 0 | EG127: 47200 | EH127: 0.4179 | EI127: 0.5821 | EJ127: 6947.911758 | EK127: 8930.719545 | EL127: 0.5821
BA128: 120 | BB128: 15680.77692 | BC128: 0.1883308765 | BD128: 30387.23624 | BE128: 0.5562748583 | BF128: -432.5 | BG128: -1080.770541 | BH128: -1602.984738 | BI128: -2047.553545 | BJ128: -2440.05797 | BK128: -2793.933409 | BL128: -3116.280037 | BM128: -3410.978466 | BN128: -3680.329785 | BO128: -3925.89733 | BP128: -4148.923432 | BQ128: -4350.524608 | BR128: -4523.143743 | BS128: -4677.390484 | BT128: -4814.26562 | BU128: -4934.756385 | BV128: -5039.82932 | BW128: -5130.42362 | BX128: -5207.445974 | BY128: -5271.767043 | BZ128: -5324.219388 | CA128: -5365.596547 | CB128: -5396.652959 | CC128: -5418.104503 | CD128: -5430.033019 | CE128: -5434.071301 | CF128: -5430.797277 | CG128: -5420.756892 | CH128: -5404.465524 | CI128: -5382.409401 | CJ128: -5355.046997 | CK128: -5322.810382 | CL128: -5286.106543 | CM128: -5245.318639 | CN128: -5200.807218 | CO128: -5152.91137 | CP128: -5104.376579 | CQ128: -5053.207281 | CR128: -4999.67125 | CS128: -4944.019757 | CT128: -4886.488439 | CU128: -4827.298123 | CV128: -4766.655617 | CW128: -4704.754454 | CX128: -4641.775607 | CY128: -4577.888162 | CZ128: -4513.249964 | DA128: -4448.008227 | DB128: -4385.42907 | DC128: -4322.527332 | DD128: -4259.416052 | DE128: -4196.200196 | DF128: -4132.977112 | DG128: -4069.83695 | DH128: -4006.863076 | DI128: -3944.132453 | DJ128: -3881.716009 | DK128: -3819.678983 | DL128: -3758.081256 | DM128: -3696.977664 | DN128: -3668.139868 | DS128: 120 | DT128: 15680.77692 | DU128: 0.1883308765 | DV128: 30387.23624 | DW128: 0.5562748583 | DX128: 120 | DY128: -10030.85062 | DZ128: -13698.99049 | EA128: tx A | EB128: 0 | EG128: 47600 | EH128: 0.411 | EI128: 0.589 | EJ128: 7148.889264 | EK128: 9265.912861 | EL128: 0.589
BA129: 121 | BB129: 17312.02501 | BC129: 0.6080730884 | BD129: 30832.99545 | BE129: 0.9420154825 | BF129: -432.5 | BG129: -1122.367364 | BH129: -1690.694055 | BI129: -2171.587746 | BJ129: -2586.993774 | BK129: -2951.250036 | BL129: -3273.92211 | BM129: -3561.569097 | BN129: -3818.844431 | BO129: -4049.182896 | BP129: -4255.230081 | BQ129: -4439.111429 | BR129: -4594.816123 | BS129: -4732.557746 | BT129: -4853.625707 | BU129: -4959.183041 | BV129: -5050.293458 | BW129: -5127.939314 | BX129: -5193.033853 | BY129: -5246.429833 | BZ129: -5288.925836 | CA129: -5321.271097 | CB129: -5344.16935 | CC129: -5358.28203 | CD129: -5363.947737 | CE129: -5362.395425 | CF129: -5354.148756 | CG129: -5339.700054 | CH129: -5319.512078 | CI129: -5294.019684 | CJ129: -5263.63138 | CK129: -5228.730794 | CL129: -5189.678059 | CM129: -5146.811113 | CN129: -5100.446945 | CO129: -5050.882754 | CP129: -5000.896384 | CQ129: -4948.376106 | CR129: -4893.554548 | CS129: -4836.649386 | CT129: -4777.864198 | CU129: -4717.389258 | CV129: -4655.402303 | CW129: -4592.06925 | CX129: -4527.544872 | CY129: -4461.973449 | CZ129: -4395.489374 | DA129: -4328.217728 | DB129: -4263.510207 | DC129: -4198.26632 | DD129: -4132.581601 | DE129: -4066.54463 | DF129: -4000.237454 | DG129: -3933.735973 | DH129: -3867.110318 | DI129: -3800.425198 | DJ129: -3733.740234 | DK129: -3667.110269 | DL129: -3600.585665 | DM129: -3534.212586 | DN129: -3502.698619 | DS129: 121 | DT129: 17312.02501 | DU129: 0.6080730884 | DV129: 30832.99545 | DW129: 0.9420154825 | DX129: 121 | DY129: 930.1676428 | DZ129: -2572.530976 | EA129: tx A | EB129: 0 | EG129: 48000 | EH129: 0.4041 | EI129: 0.5959 | EJ129: 7349.866769 | EK129: 9601.106177 | EL129: 0.5959
BA130: 122 | BB130: 17808.69657 | BC130: 0.8148190991 | BD130: 31792.03303 | BE130: 1.263424704 | BF130: -432.5 | BG130: -1078.571251 | BH130: -1580.003537 | BI130: -1982.438161 | BJ130: -2314.169596 | BK130: -2592.974082 | BL130: -2830.236446 | BM130: -3033.444932 | BN130: -3207.70014 | BO130: -3356.628334 | BP130: -3482.934861 | BQ130: -3588.740059 | BR130: -3671.63876 | BS130: -3738.082749 | BT130: -3789.315154 | BU130: -3826.454198 | BV130: -3850.521783 | BW130: -3862.461855 | BX130: -3863.152529 | BY130: -3853.414404 | BZ130: -3834.016512 | CA130: -3805.680804 | CB130: -3769.085702 | CC130: -3724.86904 | CD130: -3676.070525 | CE130: -3621.121733 | CF130: -3560.527651 | CG130: -3494.762915 | CH130: -3424.273486 | CI130: -3349.478218 | CJ130: -3270.770328 | CK130: -3188.5188 | CL130: -3103.069696 | CM130: -3014.747408 | CN130: -2923.855842 | CO130: -2830.679543 | CP130: -2740.017841 | CQ130: -2647.670869 | CR130: -2553.860176 | CS130: -2458.79262 | CT130: -2362.66119 | CU130: -2265.645787 | CV130: -2167.913957 | CW130: -2069.621592 | CX130: -1970.913594 | CY130: -1871.924501 | CZ130: -1772.779082 | DA130: -1673.592906 | DB130: -1579.192872 | DC130: -1484.949861 | DD130: -1390.950591 | DE130: -1297.274891 | DF130: -1203.996119 | DG130: -1111.181542 | DH130: -1018.892707 | DI130: -927.1857878 | DJ130: -836.1119143 | DK130: -745.717481 | DL130: -656.0444428 | DM130: -567.1305926 | DN130: -525.1683219 | DS130: 122 | DT130: 17808.69657 | DU130: 0.8148190991 | DV130: 31792.03303 | DW130: 1.263424704 | DX130: 122 | DY130: 6635.876406 | DZ130: 6110.708085 | EA130: tx A | EB130: 0 | EG130: 48400 | EH130: 0.3977 | EI130: 0.6023 | EJ130: 7550.844274 | EK130: 9936.299494 | EL130: 0.6023
BA131: 123 | BB131: 16856.3331 | BC131: 1.194749813 | BD131: 29732.61336 | BE131: 1.402414017 | BF131: -432.5 | BG131: -1134.347955 | BH131: -1728.016435 | BI131: -2246.283756 | BJ131: -2708.944755 | BK131: -3128.185882 | BL131: -3511.722509 | BM131: -3864.630679 | BN131: -4190.417163 | BO131: -4491.645119 | BP131: -4770.300441 | BQ131: -5028.006784 | BR131: -5254.811992 | BS131: -5464.157002 | BT131: -5657.101033 | BU131: -5834.619343 | BV131: -5997.619392 | BW131: -6146.951225 | BX131: -6283.41442 | BY131: -6407.763001 | BZ131: -6520.709116 | CA131: -6622.925959 | CB131: -6715.050208 | CC131: -6797.68415 | CD131: -6867.887422 | CE131: -6930.10836 | CF131: -6984.832616 | CG131: -7032.519549 | CH131: -7073.603588 | CI131: -7108.495517 | CJ131: -7137.583694 | CK131: -7161.235208 | CL131: -7179.796971 | CM131: -7193.596767 | CN131: -7202.944237 | CO131: -7208.131818 | CP131: -7209.373554 | CQ131: -7207.164726 | CR131: -7201.739633 | CS131: -7193.319345 | CT131: -7182.112397 | CU131: -7168.315447 | CV131: -7152.1139 | CW131: -7133.6825 | CX131: -7113.185899 | CY131: -7090.779185 | CZ131: -7066.608395 | DA131: -7040.810997 | DB131: -7014.816089 | DC131: -6987.511108 | DD131: -6959.005016 | DE131: -6929.400232 | DF131: -6898.79298 | DG131: -6867.273628 | DH131: -6834.927007 | DI131: -6801.832712 | DJ131: -6768.065388 | DK131: -6733.695004 | DL131: -6698.787107 | DM131: -6663.403073 | DN131: -6646.354149 | DS131: 123 | DT131: 16856.3331 | DU131: 1.194749813 | DV131: 29732.61336 | DW131: 1.402414017 | DX131: 123 | DY131: 18986.16129 | DZ131: 12339.80714 | EA131: tx A | EB131: 0 | EG131: 48800 | EH131: 0.392 | EI131: 0.608 | EJ131: 7751.82178 | EK131: 10271.49281 | EL131: 0.608
BA132: 124 | BB132: 18082.63294 | BC132: 0.464151974 | BD132: 31164.05706 | BE132: 0.8883837932 | BF132: -432.5 | BG132: -1098.771953 | BH132: -1628.051622 | BI132: -2059.343056 | BJ132: -2417.597601 | BK132: -2719.059605 | BL132: -2974.560223 | BM132: -3191.548039 | BN132: -3375.341934 | BO132: -3529.905063 | BP132: -3658.323856 | BQ132: -3763.105309 | BR132: -3842.397649 | BS132: -3902.937992 | BT132: -3946.279207 | BU132: -3973.824457 | BV132: -3986.856584 | BW132: -3986.557824 | BX132: -3974.02347 | BY132: -3950.271732 | BZ132: -3916.251175 | CA132: -3872.846587 | CB132: -3820.883808 | CC132: -3761.133858 | CD132: -3697.498344 | CE132: -3627.77193 | CF132: -3552.551707 | CG132: -3472.394568 | CH132: -3387.819648 | CI132: -3299.310596 | CJ132: -3207.317719 | CK132: -3112.259982 | CL132: -3014.5269 | CM132: -2914.480323 | CN132: -2812.456108 | CO132: -2708.765706 | CP132: -2608.700893 | CQ132: -2507.578342 | CR132: -2405.633146 | CS132: -2303.082368 | CT132: -2200.126168 | CU132: -2096.948862 | CV132: -1993.719917 | CW132: -1890.594899 | CX132: -1787.716351 | CY132: -1685.214638 | CZ132: -1583.208727 | DA132: -1481.806932 | DB132: -1385.902815 | DC132: -1290.752539 | DD132: -1196.432653 | DE132: -1103.011998 | DF132: -1010.552222 | DG132: -919.1082728 | DH132: -828.7288608 | DI132: -739.4568913 | DJ132: -651.3298733 | DK132: -564.380302 | DL132: -478.6360192 | DM132: -394.1205514 | DN132: -354.4695399 | DS132: 124 | DT132: 18082.63294 | DU132: 0.464151974 | DV132: 31164.05706 | DW132: 0.8883837932 | DX132: 124 | DY132: -4158.07372 | DZ132: -4512.54326 | EA132: tx A | EB132: 0 | EG132: 49200 | EH132: 0.3871 | EI132: 0.6129 | EJ132: 7952.799285 | EK132: 10606.68613 | EL132: 0.6129
BA133: 125 | BB133: 17021.22395 | BC133: 0.8367270266 | BD133: 29788.33618 | BE133: 0.9874114056 | BF133: -432.5 | BG133: -1126.034599 | BH133: -1703.023337 | BI133: -2198.74906 | BJ133: -2636.004558 | BK133: -3029.626733 | BL133: -3389.375881 | BM133: -3721.765769 | BN133: -4031.227989 | BO133: -4320.853535 | BP133: -4592.865688 | BQ133: -4848.921968 | BR133: -5078.812731 | BS133: -5295.717852 | BT133: -5500.462842 | BU133: -5693.760878 | BV133: -5876.244494 | BW133: -6048.486274 | BX133: -6211.012482 | BY133: -6364.312173 | BZ133: -6508.843382 | CA133: -6645.037425 | CB133: -6773.301987 | CC133: -6894.023398 | CD133: -7002.161487 | CE133: -7103.796833 | CF133: -7199.245156 | CG133: -7288.806906 | CH133: -7372.768102 | CI133: -7451.401087 | CJ133: -7524.965217 | CK133: -7593.707507 | CL133: -7657.863229 | CM133: -7717.656473 | CN133: -7773.300686 | CO133: -7824.999172 | CP133: -7870.662414 | CQ133: -7912.927901 | CR133: -7951.962936 | CS133: -7987.926862 | CT133: -8020.971438 | CU133: -8051.241195 | CV133: -8078.873775 | CW133: -8104.00026 | CX133: -8126.745475 | CY133: -8147.228288 | CZ133: -8165.561889 | DA133: -8181.854056 | DB133: -8195.523919 | DC133: -8207.440356 | DD133: -8217.691967 | DE133: -8226.363109 | DF133: -8233.534091 | DG133: -8239.281368 | DH133: -8243.677724 | DI133: -8246.792443 | DJ133: -8248.691477 | DK133: -8249.437604 | DL133: -8249.090576 | DM133: -8247.707266 | DN133: -8246.580855 | DS133: 125 | DT133: 17021.22395 | DU133: 0.8367270266 | DV133: 29788.33618 | DW133: 0.9874114056 | DX133: 125 | DY133: 8080.586844 | DZ133: -165.9940104 | EA133: tx A | EB133: 0 | EG133: 49600 | EH133: 0.3817 | EI133: 0.6183 | EJ133: 8153.776791 | EK133: 10941.87944 | EL133: 0.6183
BA134: 126 | BB134: 16969.36063 | BC134: 0.365991735 | BD134: 30411.57262 | BE134: 0.745786141 | BF134: -432.5 | BG134: -1062.38243 | BH134: -1549.670578 | BI134: -1946.187261 | BJ134: -2281.053119 | BK134: -2570.799572 | BL134: -2825.019914 | BM134: -3049.506765 | BN134: -3247.980662 | BO134: -3423.033816 | BP134: -3576.639815 | BQ134: -3710.425412 | BR134: -3820.31862 | BS134: -3913.920992 | BT134: -3992.374911 | BU134: -4056.752268 | BV134: -4108.063563 | BW134: -4147.262787 | BX134: -4175.250437 | BY134: -4192.875777 | BZ134: -4200.938877 | CA134: -4200.192618 | CB134: -4191.344736 | CC134: -4175.059898 | CD134: -4153.061701 | CE134: -4125.131608 | CF134: -4091.791432 | CG134: -4053.529753 | CH134: -4010.803726 | CI134: -3964.040835 | CJ134: -3913.640553 | CK134: -3859.975932 | CL134: -3803.395117 | CM134: -3744.222774 | CN134: -3682.761456 | CO134: -3619.292888 | CP134: -3557.184606 | CQ134: -3493.646361 | CR134: -3428.893686 | CS134: -3363.126565 | CT134: -3296.530364 | CU134: -3229.276711 | CV134: -3161.524325 | CW134: -3093.419803 | CX134: -3025.09836 | CY134: -2956.684532 | CZ134: -2888.292835 | DA134: -2820.028389 | DB134: -2755.227552 | DC134: -2690.723508 | DD134: -2626.592774 | DE134: -2562.904982 | DF134: -2499.723322 | DG134: -2437.104964 | DH134: -2375.101453 | DI134: -2313.759081 | DJ134: -2253.119237 | DK134: -2193.218739 | DL134: -2134.090145 | DM134: -2075.762048 | DN134: -2048.379811 | DS134: 126 | DT134: 16969.36063 | DU134: 0.365991735 | DV134: 30411.57262 | DW134: 0.745786141 | DX134: 126 | DY134: -5989.608575 | DZ134: -8037.988386 | EA134: tx A | EB134: 0 | EG134: 50000 | EH134: 0.3744 | EI134: 0.6256 | EJ134: 8354.754296 | EK134: 11277.07276 | EL134: 0.6256
BA135: 127 | BB135: 17078.63578 | BC135: 0.01218786121 | BD135: 31145.97938 | BE135: 0.487752283 | BF135: -432.5 | BG135: -1025.473733 | BH135: -1452.356559 | BI135: -1774.270485 | BJ135: -2026.669183 | BK135: -2230.320056 | BL135: -2397.593672 | BM135: -2536.059312 | BN135: -2650.536455 | BO135: -2744.26286 | BP135: -2819.558255 | BQ135: -2878.200708 | BR135: -2919.571234 | BS135: -2947.644905 | BT135: -2963.471573 | BU135: -2968.005645 | BV135: -2962.127682 | BW135: -2946.657271 | BX135: -2922.361024 | BY135: -2889.957881 | BZ135: -2850.122905 | CA135: -2803.490238 | CB135: -2750.655559 | CC135: -2692.178257 | CD135: -2631.611731 | CE135: -2566.640493 | CF135: -2497.704419 | CG135: -2425.215679 | CH135: -2349.560232 | CI135: -2271.099238 | CJ135: -2190.17041 | CK135: -2107.089294 | CL135: -2022.150489 | CM135: -1935.628806 | CN135: -1847.780367 | CO135: -1758.843651 | CP135: -1673.316827 | CQ135: -1587.161116 | CR135: -1500.558708 | CS135: -1413.678491 | CT135: -1326.67681 | CU135: -1239.698198 | CV135: -1152.87606 | CW135: -1066.333329 | CX135: -980.1830771 | CY135: -894.5291057 | CZ135: -809.4664984 | DA135: -725.0821453 | DB135: -645.437474 | DC135: -566.5827235 | DD135: -488.579978 | DE135: -411.4852654 | DF135: -335.3489376 | DG135: -260.2160292 | DH135: -186.1265975 | DI135: -113.1160433 | DJ135: -41.2154148 | DK135: 29.54830605 | DL135: 99.15193216 | DM135: 167.5758156 | DN135: 199.589049 | DS135: 127 | DT135: 17078.63578 | DU135: 0.01218786121 | DV135: 31145.97938 | DW135: 0.487752283 | DX135: 127 | DY135: -16712.99994 | DZ135: -16513.41089 | EA135: tx B | EB135: 199.589049 | EG135: 50400 | EH135: 0.3697 | EI135: 0.6303 | EJ135: 8555.731802 | EK135: 11612.26608 | EL135: 0.6303
BA136: 128 | BB136: 15789.40076 | BC136: 0.9457471811 | BD136: 30381.6643 | BE136: 1.161858427 | BF136: -432.5 | BG136: -1155.984503 | BH136: -1781.617987 | BI136: -2336.363039 | BJ136: -2837.113072 | BK136: -3294.670883 | BL136: -3716.138808 | BM136: -4106.357104 | BN136: -4468.771335 | BO136: -4805.956699 | BP136: -5119.935941 | BQ136: -5412.372872 | BR136: -5671.723249 | BS136: -5913.10855 | BT136: -6137.608327 | BU136: -6346.213057 | BV136: -6539.841668 | BW136: -6719.353104 | BX136: -6885.554204 | BY136: -7039.205293 | BZ136: -7181.024336 | CA136: -7311.690177 | CB136: -7431.845183 | CC136: -7542.097484 | CD136: -7638.216971 | CE136: -7725.973157 | CF136: -7805.857946 | CG136: -7878.337177 | CH136: -7943.851963 | CI136: -8002.819954 | CJ136: -8055.636524 | CK136: -8102.675899 | CL136: -8144.292228 | CM136: -8180.820595 | CN136: -8212.577985 | CO136: -8239.864203 | CP136: -8261.86281 | CQ136: -8280.128397 | CR136: -8294.902218 | CS136: -8306.412245 | CT136: -8314.873851 | CU136: -8320.490451 | CV136: -8323.454118 | CW136: -8323.946169 | CX136: -8322.137715 | CY136: -8318.190196 | CZ136: -8312.255873 | DA136: -8304.478317 | DB136: -8295.444538 | DC136: -8284.905619 | DD136: -8272.97595 | DE136: -8259.763241 | DF136: -8245.368877 | DG136: -8229.888248 | DH136: -8213.41107 | DI136: -8196.021689 | DJ136: -8177.799362 | DK136: -8158.818534 | DL136: -8139.149096 | DM136: -8118.856628 | DN136: -8108.926156 | DS136: 128 | DT136: 15789.40076 | DU136: 0.9457471811 | DV136: 30381.6643 | DW136: 1.161858427 | DX136: 128 | DY136: 12583.01468 | DZ136: 4474.088522 | EA136: tx A | EB136: 0 | EG136: 50800 | EH136: 0.3653 | EI136: 0.6347 | EJ136: 8756.709307 | EK136: 11947.45939 | EL136: 0.6347
BA137: 129 | BB137: 16302.86399 | BC137: 0.912794226 | BD137: 28607.70914 | BE137: 1.060515322 | BF137: -432.5 | BG137: -1136.719009 | BH137: -1729.517071 | BI137: -2242.836704 | BJ137: -2697.456984 | BK137: -3107.015309 | BL137: -3480.584081 | BM137: -3824.316472 | BN137: -4142.495039 | BO137: -4438.198576 | BP137: -4713.725682 | BQ137: -4970.863659 | BR137: -5199.6214 | BS137: -5413.400615 | BT137: -5613.203551 | BU137: -5799.920046 | BV137: -5974.354982 | BW137: -6137.246293 | BX137: -6289.277008 | BY137: -6431.083497 | BZ137: -6563.261308 | CA137: -6686.369455 | CB137: -6800.933697 | CC137: -6907.449164 | CD137: -7001.671423 | CE137: -7089.091778 | CF137: -7170.105629 | CG137: -7245.086054 | CH137: -7314.385105 | CI137: -7378.33501 | CJ137: -7437.249292 | CK137: -7491.423813 | CL137: -7541.13776 | CM137: -7586.654569 | CN137: -7628.222801 | CO137: -7666.076964 | CP137: -7698.802038 | CQ137: -7728.39936 | CR137: -7755.056408 | CS137: -7778.950005 | CT137: -7800.246912 | CU137: -7819.104386 | CV137: -7835.670708 | CW137: -7850.085684 | CX137: -7862.481117 | CY137: -7872.981251 | CZ137: -7881.703196 | DA137: -7888.757323 | DB137: -7893.986202 | DC137: -7897.819086 | DD137: -7900.343919 | DE137: -7901.643552 | DF137: -7901.796028 | DG137: -7900.874851 | DH137: -7898.949247 | DI137: -7896.084397 | DJ137: -7892.341674 | DK137: -7887.77885 | DL137: -7882.450309 | DM137: -7876.407231 | DN137: -7873.212254 | DS137: 129 | DT137: 16302.86399 | DU137: 0.912794226 | DV137: 28607.70914 | DW137: 1.060515322 | DX137: 129 | DY137: =lambda*DU137-DT137 -> 11080.96279 | DZ137: =lambda*DW137-DV137 -> 3207.750535 | EA137: =IF(DY137>DZ137, "tx A", IF(DZ137>DY137, "tx B", "either")) -> tx A | EB137: =IF(EA$2="tx A", MAX(0,DZ137-DY137), MAX(0, DY137-DZ137)) -> 0 | EG137: 51200 | EH137: 0.361 | EI137: 0.639 | EJ137: 8957.686812 | EK137: 12282.65271 | EL137: 0.639
BA138: 130 | BB138: 16042.36965 | BC138: 1.648287703 | BD138: 31063.8834 | BE138: 1.968748799 | BF138: -432.5 | BG138: -1121.927968 | BH138: -1695.62531 | BI138: -2189.073636 | BJ138: -2623.658367 | BK138: -3012.566063 | BL138: -3364.183694 | BM138: -3684.06487 | BN138: -3976.071624 | BO138: -4243.040409 | BP138: -4487.172613 | BQ138: -4710.265002 | BR138: -4904.152427 | BS138: -5080.738399 | BT138: -5241.174469 | BU138: -5386.513369 | BV138: -5517.727928 | BW138: -5635.723512 | BX138: -5741.346561 | BY138: -5835.390724 | BZ138: -5918.601505 | CA138: -5991.679963 | CB138: -6055.285788 | CC138: -6110.039962 | CD138: -6154.313446 | CE138: -6191.237798 | CF138: -6221.306532 | CG138: -6244.984202 | CH138: -6262.708029 | CI138: -6274.88943 | CJ138: -6281.915457 | CK138: -6284.150156 | CL138: -6281.935846 | CM138: -6275.594332 | CN138: -6265.428052 | CO138: -6251.721158 | CP138: -6235.549143 | CQ138: -6216.497965 | CR138: -6194.791649 | CS138: -6170.640404 | CT138: -6144.241407 | CU138: -6115.779537 | CV138: -6085.428079 | CW138: -6053.349383 | CX138: -6019.695489 | CY138: -5984.608718 | CZ138: -5948.222236 | DA138: -5910.660575 | DB138: -5873.879206 | DC138: -5836.193044 | DD138: -5797.698787 | DE138: -5758.486665 | DF138: -5718.640822 | DG138: -5678.239673 | DH138: -5637.356244 | DI138: -5596.058491 | DJ138: -5554.409604 | DK138: -5512.468289 | DL138: -5470.289043 | DM138: -5427.922404 | DN138: -5407.680875 | DS138: 130 | DT138: 16042.36965 | DU138: 1.648287703 | DV138: 31063.8834 | DW138: 1.968748799 | DX138: 130 | DY138: 33406.26144 | DZ138: 27998.58057 | EA138: tx A | EB138: 0 | EG138: 51600 | EH138: 0.3562 | EI138: 0.6438 | EJ138: 9158.664318 | EK138: 12617.84603 | EL138: =IF(EJ138>EK138,EH138,EI138) -> 0.6438
BA139: =1+BA138 -> 131 | BB139: 16417.5518 | BC139: 0.1286006183 | BD139: 31034.94819 | BE139: 0.4682971903 | BF139: -432.5 | BG139: -1120.96023 | BH139: -1684.152743 | BI139: -2156.583716 | BJ139: -2561.553773 | BK139: -2914.886614 | BL139: -3227.42212 | BM139: -3506.679147 | BN139: -3757.962116 | BO139: -3985.096108 | BP139: -4190.914439 | BQ139: -4377.581739 | BR139: -4538.749491 | BS139: -4684.63689 | BT139: -4816.365466 | BU139: -4934.907384 | BV139: -5041.125016 | BW139: -5135.797451 | BX139: -5219.638398 | BY139: -5293.308422 | BZ139: -5357.423441 | CA139: -5412.560743 | CB139: -5459.263377 | CC139: -5498.043445 | CD139: -5527.892223 | CE139: -5551.091992 | CF139: -5568.054934 | CG139: -5579.171216 | CH139: -5584.810229 | CI139: -5585.321718 | CJ139: -5581.036811 | CK139: -5572.26897 | CL139: -5559.314885 | CM139: -5542.455317 | CN139: -5521.955886 | CO139: -5498.067825 | CP139: -5472.316272 | CQ139: -5443.77757 | CR139: -5412.653827 | CS139: -5379.135974 | CT139: -5343.404318 | CU139: -5305.629079 | CV139: -5265.970888 | CW139: -5224.581276 | CX139: -5181.603125 | CY139: -5137.171111 | CZ139: -5091.412117 | DA139: -5044.445627 | DB139: -4998.672754 | DC139: -4951.957767 | DD139: -4904.39542 | DE139: -4856.074761 | DF139: -4807.079427 | DG139: -4757.487927 | DH139: -4707.373909 | DI139: -4656.806414 | DJ139: -4605.850119 | DK139: -4554.56557 | DL139: -4503.009399 | DM139: -4451.234532 | DN139: -4426.499227 | DS139: =1+DS138 -> 131 | DT139: 16417.5518 | DU139: 0.1286006183 | DV139: 31034.94819 | DW139: 0.4682971903 | DX139: 131 | DY139: -12559.53325 | DZ139: -16986.03248 | EA139: tx A | EB139: 0 | EG139: =EG138+400 -> 52000 | EH139: 0.3516 | EI139: 0.6484 | EJ139: 9359.641823 | EK139: 12953.03934 | EL139: 0.6484
BA140: 132 | BB140: 17971.37347 | BC140: 0.858754943 | BD140: 30241.37804 | BE140: 1.132024867 | BF140: -432.5 | BG140: -1080.821246 | BH140: -1586.770179 | BI140: -1996.819546 | BJ140: -2340.186749 | BK140: -2635.383298 | BL140: -2894.27028 | BM140: -3124.569971 | BN140: -3331.421733 | BO140: -3518.346248 | BP140: -3687.843446 | BQ140: -3841.763635 | BR140: -3974.882253 | BS140: -4095.629905 | BT140: -4204.931049 | BU140: -4303.587247 | BV140: -4392.311131 | BW140: -4471.748134 | BX140: -4542.490585 | BY140: -4605.087058 | BZ140: -4660.04875 | CA140: -4707.853977 | CB140: -4748.951494 | CC140: -4783.763043 | CD140: -4811.308152 | CE140: -4833.600268 | CF140: -4850.974429 | CG140: -4863.74622 | CH140: -4872.212915 | CI140: -4876.654527 | CJ140: -4877.334787 | CK140: -4874.502058 | CL140: -4868.390187 | CM140: -4859.219317 | CN140: -4847.196647 | CO140: -4832.517148 | CP140: -4816.181052 | CQ140: -4797.653641 | CR140: -4777.089418 | CS140: -4754.633628 | CT140: -4730.422774 | CU140: -4704.585112 | CV140: -4677.241113 | CW140: -4648.503902 | CX140: -4618.47967 | CY140: -4587.268073 | CZ140: -4554.962598 | DA140: -4521.650918 | DB140: -4489.045494 | DC140: -4455.633407 | DD140: -4421.48337 | DE140: -4386.659723 | DF140: -4351.222687 | DG140: -4315.228603 | DH140: -4278.730156 | DI140: -4241.776589 | DJ140: -4204.413909 | DK140: -4166.685071 | DL140: -4128.630162 | DM140: -4090.28657 | DN140: -4071.906843 | DS140: 132 | DT140: 17971.37347 | DU140: 0.858754943 | DV140: 30241.37804 | DW140: 1.132024867 | DX140: 132 | DY140: 7791.274817 | DZ140: 3719.367974 | EA140: tx A | EB140: 0 | EG140: 52400 | EH140: 0.3468 | EI140: 0.6532 | EJ140: 9560.619329 | EK140: 13288.23266 | EL140: 0.6532
BA141: 133 | BB141: 16461.0783 | BC141: 0.8308230029 | BD141: 31234.13095 | BE141: 1.017389777 | BF141: -432.5 | BG141: -1185.442813 | BH141: -1844.692175 | BI141: -2428.000408 | BJ141: -2950.195974 | BK141: -3422.845582 | BL141: -3854.664551 | BM141: -4252.121936 | BN141: -4620.014216 | BO141: -4961.93349 | BP141: -5280.621693 | BQ141: -5578.226684 | BR141: -5843.231751 | BS141: -6091.182755 | BT141: -6323.257042 | BU141: -6540.48894 | BV141: -6743.805863 | BW141: -6934.052557 | BX141: -7112.007493 | BY141: -7278.39409 | BZ141: -7433.888548 | CA141: -7579.125466 | CB141: -7714.702011 | CC141: -7841.181126 | CD141: -7953.479204 | CE141: -8058.09695 | CF141: -8155.485911 | CG141: -8246.072838 | CH141: -8330.261095 | CI141: -8408.43194 | CJ141: -8480.945725 | CK141: -8548.143008 | CL141: -8610.345603 | CM141: -8667.85757 | CN141: -8720.96615 | CO141: -8769.94265 | CP141: -8812.895629 | CQ141: -8852.387691 | CR141: -8888.636323 | CS141: -8921.846792 | CT141: -8952.212791 | CU141: -8979.917049 | CV141: -9005.13192 | CW141: -9028.019928 | CX141: -9048.734298 | CY141: -9067.419446 | CZ141: -9084.211455 | DA141: -9099.238523 | DB141: -9111.984106 | DC141: -9123.27204 | DD141: -9133.204228 | DE141: -9141.876559 | DF141: -9149.379232 | DG141: -9155.797069 | DH141: -9161.209809 | DI141: -9165.692384 | DJ141: -9169.315189 | DK141: -9172.144323 | DL141: -9174.241835 | DM141: -9175.665946 | DN141: -9176.049428 | DS141: 133 | DT141: 16461.0783 | DU141: 0.8308230029 | DV141: 31234.13095 | DW141: 1.017389777 | DX141: 133 | DY141: 8463.611791 | DZ141: -712.437638 | EA141: tx A | EB141: 0 | EG141: 52800 | EH141: 0.3423 | EI141: 0.6577 | EJ141: 9761.596834 | EK141: 13623.42597 | EL141: 0.6577
BA142: 134 | BB142: 18230.50757 | BC142: 0.9586833179 | BD142: 32322.39904 | BE142: 1.392365718 | BF142: -432.5 | BG142: -1058.34153 | BH142: -1530.451763 | BI142: -1900.917759 | BJ142: -2201.676933 | BK142: -2452.479851 | BL142: -2665.697622 | BM142: -2849.224671 | BN142: -3008.231869 | BO142: -3146.225706 | BP142: -3265.688547 | BQ142: -3368.466011 | BR142: -3451.8333 | BS142: -3521.812204 | BT142: -3579.365832 | BU142: -3625.343404 | BV142: -3660.511512 | BW142: -3685.573651 | BX142: -3701.182643 | BY142: -3707.948738 | BZ142: -3706.44509 | CA142: -3697.211602 | CB142: -3680.757782 | CC142: -3657.564963 | CD142: -3629.491786 | CE142: -3595.843527 | CF142: -3557.007575 | CG142: -3513.350192 | CH142: -3465.21761 | CI142: -3412.937048 | CJ142: -3356.817669 | CK142: -3297.151486 | CL142: -3234.214217 | CM142: -3168.266103 | CN142: -3099.55268 | CO142: -3028.305516 | CP142: -2958.245897 | CQ142: -2886.17701 | CR142: -2812.283375 | CS142: -2736.7387 | CT142: -2659.706428 | CU142: -2581.340264 | CV142: -2501.784672 | CW142: -2421.175353 | CX142: -2339.639696 | CY142: -2257.297208 | CZ142: -2174.259927 | DA142: -2090.632809 | DB142: -2010.519757 | DC142: -1930.026048 | DD142: -1849.233469 | DE142: -1768.218385 | DF142: -1687.052024 | DG142: -1605.800756 | DH142: -1524.526355 | DI142: -1443.286248 | DJ142: -1362.133756 | DK142: -1281.118314 | DL142: -1200.285692 | DM142: -1119.678196 | DN142: -1081.419465 | DS142: 134 | DT142: 18230.50757 | DU142: 0.9586833179 | DV142: 32322.39904 | DW142: 1.392365718 | DX142: 134 | DY142: 10529.99197 | DZ142: 9448.572507 | EA142: tx A | EB142: 0 | EG142: 53200 | EH142: 0.3374 | EI142: 0.6626 | EJ142: 9962.57434 | EK142: 13958.61929 | EL142: 0.6626
BA143: 135 | BB143: 16155.28032 | BC143: 0.6454445532 | BD143: 32066.68092 | BE143: 1.132532837 | BF143: -432.5 | BG143: -1040.650312 | BH143: -1495.63932 | BI143: -1855.155622 | BJ143: -2151.483076 | BK143: -2402.904008 | BL143: -2619.996807 | BM143: -2809.103918 | BN143: -2974.235615 | BO143: -3118.111528 | BP143: -3242.728439 | BQ143: -3349.668757 | BR143: -3435.953427 | BS143: -3507.797149 | BT143: -3566.219713 | BU143: -3612.164064 | BV143: -3646.510719 | BW143: -3670.086245 | BX143: -3683.668603 | BY143: -3687.990859 | BZ143: -3683.744022 | CA143: -3671.57942 | CB143: -3652.110812 | CC143: -3625.916335 | CD143: -3595.082045 | CE143: -3558.848477 | CF143: -3517.674566 | CG143: -3471.991799 | CH143: -3422.205641 | CI143: -3368.696911 | CJ143: -3311.823078 | CK143: -3251.919502 | CL143: -3189.300616 | CM143: -3124.261045 | CN143: -3057.076674 | CO143: -2988.00566 | CP143: -2920.656839 | CQ143: -2851.95592 | CR143: -2782.103443 | CS143: -2711.286466 | CT143: -2639.679314 | CU143: -2567.444286 | CV143: -2494.732328 | CW143: -2421.68367 | CX143: -2348.428434 | CY143: -2275.087206 | CZ143: -2201.771582 | DA143: -2128.584686 | DB143: -2059.096088 | DC143: -1989.904148 | DD143: -1921.085576 | DE143: -1852.710739 | DF143: -1784.844039 | DG143: -1717.544268 | DH143: -1650.86495 | DI143: -1584.854657 | DJ143: -1519.557316 | DK143: -1455.012496 | DL143: -1391.255676 | DM143: -1328.318507 | DN143: -1298.752101 | DS143: 135 | DT143: 16155.28032 | DU143: 0.6454445532 | DV143: 32066.68092 | DW143: 1.132532837 | DX143: 135 | DY143: 3208.056278 | DZ143: 1909.304177 | EA143: tx A | EB143: 0 | EG143: 53600 | EH143: 0.3327 | EI143: 0.6673 | EJ143: 10163.55185 | EK143: 14293.81261 | EL143: 0.6673
BA144: 136 | BB144: 16541.09399 | BC144: 0.3081110887 | BD144: 30457.6031 | BE144: 0.6466576493 | BF144: -432.5 | BG144: -1095.088802 | BH144: -1625.661165 | BI144: -2066.683394 | BJ144: -2444.015198 | BK144: -2773.630297 | BL144: -3065.605481 | BM144: -3326.488461 | BN144: -3560.703713 | BO144: -3771.387594 | BP144: -3960.884894 | BQ144: -4131.044576 | BR144: -4276.141552 | BS144: -4405.532489 | BT144: -4520.329091 | BU144: -4621.538186 | BV144: -4710.084864 | BW144: -4786.827203 | BX144: -4852.565958 | BY144: -4908.051234 | BZ144: -4953.987311 | CA144: -4991.036333 | CB144: -5019.8213 | CC144: -5040.928576 | CD144: -5054.244318 | CE144: -5061.268406 | CF144: -5062.466453 | CG144: -5058.276532 | CH144: -5049.110678 | CI144: -5035.356309 | CJ144: -5017.377565 | CK144: -4995.516572 | CL144: -4970.094643 | CM144: -4941.41341 | CN144: -4909.755905 | CO144: -4875.387576 | CP144: -4840.31108 | CQ144: -4803.111866 | CR144: -4763.997845 | CS144: -4723.163594 | CT144: -4680.791098 | CU144: -4637.050454 | CV144: -4592.100543 | CW144: -4546.089661 | CX144: -4499.156123 | CY144: -4451.428827 | CZ144: -4403.027799 | DA144: -4354.064698 | DB144: -4306.996704 | DC144: -4259.584008 | DD144: -4211.91172 | DE144: -4164.058688 | DF144: -4116.097859 | DG144: -4068.096638 | DH144: -4020.117212 | DI144: -3972.216871 | DJ144: -3924.448297 | DK144: -3876.859848 | DL144: -3829.495823 | DM144: -3782.396712 | DN144: -3760.112293 | DS144: 136 | DT144: 16541.09399 | DU144: 0.3081110887 | DV144: 30457.6031 | DW144: 0.6466576493 | DX144: 136 | DY144: -7297.761331 | DZ144: -11057.87362 | EA144: tx A | EB144: 0 | EG144: 54000 | EH144: 0.3277 | EI144: 0.6723 | EJ144: 10364.52935 | EK144: 14629.00592 | EL144: 0.6723
BA145: 137 | BB145: 15176.97094 | BC145: -0.3314867024 | BD145: 28575.43413 | BE145: -0.2023015586 | BF145: -432.5 | BG145: -1127.091593 | BH145: -1702.584901 | BI145: -2194.213309 | BJ145: -2625.914627 | BK145: -3013.840401 | BL145: -3368.851835 | BM145: -3698.255346 | BN145: -4006.989148 | BO145: -4298.423935 | BP145: -4574.897567 | BQ145: -4838.069138 | BR145: -5077.195517 | BS145: -5305.684481 | BT145: -5524.226655 | BU145: -5733.38879 | BV145: -5933.653461 | BW145: -6125.444748 | BX145: -6309.144866 | BY145: -6485.104967 | BZ145: -6653.652193 | CA145: -6815.09433 | CB145: -6969.722926 | CC145: -7117.815416 | CD145: -7252.883238 | CE145: -7382.21966 | CF145: -7506.055752 | CG145: -7624.613029 | CH145: -7738.103976 | CI145: -7846.732488 | CJ145: -7950.694272 | CK145: -8050.177199 | CL145: -8145.361641 | CM145: -8236.420778 | CN145: -8323.520893 | CO145: -8406.821648 | CP145: -8482.683269 | CQ145: -8555.212658 | CR145: -8624.544432 | CS145: -8690.807852 | CT145: -8754.127033 | CU145: -8814.621149 | CV145: -8872.404629 | CW145: -8927.587345 | CX145: -8980.274793 | CY145: -9030.568263 | CZ145: -9078.565011 | DA145: -9124.358417 | DB145: -9165.958148 | DC145: -9205.626825 | DD145: -9243.443158 | DE145: -9279.482717 | DF145: -9313.818059 | DG145: -9346.51884 | DH145: -9377.651937 | DI145: -9407.281558 | DJ145: -9435.469341 | DK145: -9462.274466 | DL145: -9487.753745 | DM145: -9511.961718 | DN145: -9522.908873 | DS145: 137 | DT145: 15176.97094 | DU145: -0.3314867024 | DV145: 28575.43413 | DW145: -0.2023015586 | DX145: 137 | DY145: -25121.57202 | DZ145: -34644.48089 | EA145: tx A | EB145: 0 | EG145: 54400 | EH145: 0.3226 | EI145: 0.6774 | EJ145: 10565.50686 | EK145: 14964.19924 | EL145: 0.6774
BA146: 138 | BB146: 16563.10482 | BC146: 0.4137294838 | BD146: 30512.38637 | BE146: 0.8822590745 | BF146: -432.5 | BG146: -1058.229094 | BH146: -1534.656254 | BI146: -1913.471432 | BJ146: -2224.545058 | BK146: -2485.363854 | BL146: -2706.415993 | BM146: -2894.248459 | BN146: -3053.192249 | BO146: -3186.328967 | BP146: -3296.027936 | BQ146: -3384.241915 | BR146: -3449.409871 | BS146: -3497.188622 | BT146: -3528.918337 | BU146: -3545.847021 | BV146: -3549.143575 | BW146: -3539.905349 | BX146: -3519.163021 | BY146: -3487.884214 | BZ146: -3446.976565 | CA146: -3397.290582 | CB146: -3339.622413 | CC146: -3274.716572 | CD146: -3206.670909 | CE146: -3133.013002 | CF146: -3054.319514 | CG146: -2971.127787 | CH146: -2883.938113 | CI146: -2793.215898 | CJ146: -2699.393723 | CK146: -2602.873313 | CL146: -2504.027397 | CM146: -2403.201469 | CN146: -2300.71546 | CO146: -2196.865313 | CP146: -2096.921651 | CQ146: -1996.179561 | CR146: -1894.860546 | CS146: -1793.16847 | CT146: -1691.290682 | CU146: -1589.399071 | CV146: -1487.651064 | CW146: -1386.190563 | CX146: -1285.148829 | CY146: -1184.645312 | CZ146: -1084.788437 | DA146: -985.6763372 | DB146: -892.0774907 | DC146: -799.3480744 | DD146: -707.5559529 | DE146: -616.7616033 | DF146: -527.0186313 | DG146: -438.3742552 | DH146: -350.8697615 | DI146: -264.5409321 | DJ146: -179.4184455 | DK146: -95.52825303 | DL146: -12.8919326 | DM146: 68.47298041 | DN146: 106.6061719 | DS146: 138 | DT146: 16563.10482 | DU146: 0.4137294838 | DV146: 30512.38637 | DW146: 0.8822590745 | DX146: 138 | DY146: -4151.220304 | DZ146: -4044.614132 | EA146: tx B | EB146: 106.6061719 | EG146: 54800 | EH146: 0.3189 | EI146: 0.6811 | EJ146: 10766.48436 | EK146: 15299.39256 | EL146: 0.6811
BA147: 139 | BB147: 16310.761 | BC147: 0.1482560092 | BD147: 30791.22134 | BE147: 0.6226270747 | BF147: -432.5 | BG147: -1107.691409 | BH147: -1647.854609 | BI147: -2088.79572 | BJ147: -2454.210596 | BK147: -2760.047211 | BL147: -3017.279036 | BM147: -3233.669114 | BN147: -3414.893047 | BO147: -3565.254747 | BP147: -3688.143489 | BQ147: -3786.326564 | BR147: -3858.527392 | BS147: -3911.346426 | BT147: -3946.487053 | BU147: -3965.48088 | BV147: -3969.721229 | BW147: -3960.486106 | BX147: -3938.954402 | BY147: -3906.217716 | BZ147: -3863.289292 | CA147: -3811.111068 | CB147: -3750.559432 | CC147: -3682.450098 | CD147: -3611.109377 | CE147: -3533.966932 | CF147: -3451.648832 | CG147: -3364.737225 | CH147: -3273.773105 | CI147: -3179.258876 | CJ147: -3081.660753 | CK147: -2981.411006 | CL147: -2878.910078 | CM147: -2774.52856 | CN147: -2668.609066 | CO147: -2561.467981 | CP147: -2458.543355 | CQ147: -2354.989232 | CR147: -2251.041094 | CS147: -2146.915212 | CT147: -2042.80989 | CU147: -1938.906626 | CV147: -1835.37121 | CW147: -1732.354753 | CX147: -1629.994664 | CY147: -1528.415556 | CZ147: -1427.73011 | DA147: -1328.039881 | DB147: -1234.131475 | DC147: -1141.335391 | DD147: -1049.720726 | DE147: -959.3486206 | DF147: -870.2728252 | DG147: -782.5402267 | DH147: -696.1913462 | DI147: -611.2608047 | DJ147: -527.77776 | DK147: -445.7663169 | DL147: -365.2459117 | DM147: -286.2316716 | DN147: -249.3283771 | DS147: 139 | DT147: 16310.761 | DU147: 0.1482560092 | DV147: 30791.22134 | DW147: 0.6226270747 | DX147: 139 | DY147: -11863.08072 | DZ147: -12112.4091 | EA147: tx A | EB147: 0 | EG147: 55200 | EH147: 0.3143 | EI147: 0.6857 | EJ147: 10967.46187 | EK147: 15634.58587 | EL147: 0.6857
BA148: 140 | BB148: 16092.81176 | BC148: 0.4135466357 | BD148: 30088.10756 | BE148: 0.5691039464 | BF148: -432.5 | BG148: -1121.173918 | BH148: -1695.694792 | BI148: -2193.848168 | BJ148: -2638.72641 | BK148: -3044.563286 | BL148: -3420.245902 | BM148: -3771.428923 | BN148: -4101.807612 | BO148: -4413.88463 | BP148: -4709.432143 | BQ148: -4989.770521 | BR148: -5243.262051 | BS148: -5484.070637 | BT148: -5712.896545 | BU148: -5930.361724 | BV148: -6137.031834 | BW148: -6333.429919 | BX148: -6520.045034 | BY148: -6697.337818 | BZ148: -6865.744205 | CA148: -7025.678009 | CB148: -7177.532802 | CC148: -7321.683367 | CD148: -7451.97241 | CE148: -7575.588561 | CF148: -7692.841127 | CG148: -7804.025155 | CH148: -7909.422122 | CI148: -8009.30057 | CJ148: -8103.916714 | CK148: -8193.515009 | CL148: -8278.328691 | CM148: -8358.580287 | CN148: -8434.482112 | CO148: -8506.236726 | CP148: -8570.808784 | CQ148: -8631.790767 | CR148: -8689.350198 | CS148: -8743.646895 | CT148: -8794.833324 | CU148: -8843.054934 | CV148: -8888.450474 | CW148: -8931.152303 | CX148: -8971.286683 | CY148: -9008.974051 | CZ148: -9044.329292 | DA148: -9077.461988 | DB148: -9106.999774 | DC148: -9134.615348 | DD148: -9160.399272 | DE148: -9184.437924 | DF148: -9206.813684 | DG148: -9227.605124 | DH148: -9246.887178 | DI148: -9264.731311 | DJ148: -9281.205674 | DK148: -9296.375262 | DL148: -9310.302056 | DM148: -9323.045159 | DN148: -9328.576479 | DS148: 140 | DT148: 16092.81176 | DU148: 0.4135466357 | DV148: 30088.10756 | DW148: 0.5691039464 | DX148: 140 | DY148: -3686.412684 | DZ148: -13014.98916 | EA148: tx A | EB148: 0 | EG148: 55600 | EH148: 0.3101 | EI148: 0.6899 | EJ148: 11168.43937 | EK148: 15969.77919 | EL148: 0.6899
BA149: 141 | BB149: 15858.5944 | BC149: -0.1737997363 | BD149: 31069.53849 | BE149: 0.3371216505 | BF149: -432.5 | BG149: -1057.871021 | BH149: -1522.129505 | BI149: -1875.189308 | BJ149: -2149.032706 | BK149: -2364.386689 | BL149: -2534.899635 | BM149: -2669.75438 | BN149: -2775.303447 | BO149: -2856.092911 | BP149: -2915.504084 | BQ149: -2956.156301 | BR149: -2979.017339 | BS149: -2987.701517 | BT149: -2983.652401 | BU149: -2968.14069 | BV149: -2942.304477 | BW149: -2907.175817 | BX149: -2863.698672 | BY149: -2812.741401 | BZ149: -2755.105774 | CA149: -2691.533761 | CB149: -2622.71285 | CC149: -2549.280409 | CD149: -2475.515614 | CE149: -2398.443334 | CF149: -2318.54682 | CG149: -2236.273417 | CH149: -2152.03686 | CI149: -2066.219404 | CJ149: -1979.173806 | CK149: -1891.225183 | CL149: -1802.672762 | CM149: -1713.791511 | CN149: -1624.833688 | CO149: -1536.030288 | CP149: -1451.803741 | CQ149: -1368.108644 | CR149: -1285.111759 | CS149: -1202.964374 | CT149: -1121.803322 | CU149: -1041.751948 | CV149: -962.9210139 | CW149: -885.4095571 | CX149: -809.3056903 | CY149: -734.6873596 | CZ149: -661.6230553 | DA149: -590.1724799 | DB149: -523.710287 | DC149: -458.8759489 | DD149: -395.7046666 | DE149: -334.2254567 | DF149: -274.4616173 | DG149: -216.4311648 | DH149: -160.1472434 | DI149: -105.6185101 | DJ149: -52.84949407 | DK149: -1.84093448 | DL149: 47.40990347 | DM149: 94.9089328 | DN149: 116.697521 | DS149: 141 | DT149: 15858.5944 | DU149: -0.1737997363 | DV149: 31069.53849 | DW149: 0.3371216505 | DX149: 141 | DY149: -21072.58649 | DZ149: -20955.88897 | EA149: tx B | EB149: 116.697521 | EG149: 56000 | EH149: 0.3063 | EI149: 0.6937 | EJ149: 11369.41688 | EK149: 16304.97251 | EL149: 0.6937
BA150: 142 | BB150: 15540.9383 | BC150: -0.1282070154 | BD150: 30101.65062 | BE150: 0.2055252013 | BF150: -432.5 | BG150: -1100.818713 | BH150: -1644.344982 | BI150: -2104.649763 | BJ150: -2505.987616 | BK150: -2862.736974 | BL150: -3183.647679 | BM150: -3474.259545 | BN150: -3738.275707 | BO150: -3978.340262 | BP150: -4196.477403 | BQ150: -4394.338846 | BR150: -4564.819064 | BS150: -4718.543565 | BT150: -4856.610809 | BU150: -4980.038482 | BV150: -5089.777789 | BW150: -5186.722247 | BX150: -5271.713427 | BY150: -5345.545031 | BZ150: -5408.96604 | CA150: -5462.683325 | CB150: -5507.36395 | CC150: -5543.637269 | CD150: -5570.741667 | CE150: -5590.937488 | CF150: -5604.727152 | CG150: -5612.584041 | CH150: -5614.954007 | CI150: -5612.256814 | CJ150: -5604.887503 | CK150: -5593.217696 | CL150: -5577.596836 | CM150: -5558.353364 | CN150: -5535.795837 | CO150: -5510.213996 | CP150: -5483.229023 | CQ150: -5453.865674 | CR150: -5422.351713 | CS150: -5388.900555 | CT150: -5353.712042 | CU150: -5316.973198 | CV150: -5278.858925 | CW150: -5239.532676 | CX150: -5199.147092 | CY150: -5157.844602 | CZ150: -5115.757999 | DA150: -5073.010979 | DB150: -5031.780194 | DC150: -4990.131997 | DD150: -4948.161046 | DE150: -4905.955147 | DF150: -4863.595655 | DG150: -4821.157844 | DH150: -4778.711266 | DI150: -4736.320084 | DJ150: -4694.043395 | DK150: -4651.935532 | DL150: -4610.046344 | DM150: -4568.421474 | DN150: -4548.745826 | DS150: 142 | DT150: 15540.9383 | DU150: -0.1282070154 | DV150: 30101.65062 | DW150: 0.2055252013 | DX150: 142 | DY150: -19387.14876 | DZ150: -23935.89458 | EA150: tx A | EB150: 0 | EG150: 56400 | EH150: 0.3016 | EI150: 0.6984 | EJ150: 11570.39438 | EK150: 16640.16582 | EL150: 0.6984
BA151: 143 | BB151: 16168.27425 | BC151: 0.3418391517 | BD151: 31573.27464 | BE151: 0.9335119642 | BF151: -432.5 | BG151: -1065.459376 | BH151: -1542.464468 | BI151: -1910.828223 | BJ151: -2200.302045 | BK151: -2429.898686 | BL151: -2612.045407 | BM151: -2755.113093 | BN151: -2864.957373 | BO151: -2945.858647 | BP151: -3001.096321 | BQ151: -3033.300444 | BR151: -3044.126485 | BS151: -3036.914665 | BT151: -3013.26544 | BU151: -2974.623006 | BV151: -2922.307396 | BW151: -2857.5356 | BX151: -2781.435927 | BY151: -2695.058185 | BZ151: -2599.381233 | CA151: -2495.318864 | CB151: -2383.724613 | CC151: -2265.395835 | CD151: -2146.997221 | CE151: -2023.556338 | CF151: -1895.691235 | CG151: -1763.978336 | CH151: -1628.954864 | CI151: -1491.121107 | CJ151: -1350.942561 | CK151: -1208.85194 | CL151: -1065.251081 | CM151: -920.5127427 | CN151: -774.9823086 | CO151: -628.9793915 | CP151: -489.760312 | CQ151: -350.6321298 | CR151: -211.8340001 | CS151: -73.58587955 | CT151: 63.91031326 | CU151: 200.4696012 | CV151: 335.9229116 | CW151: 470.1160955 | CX151: 602.9090014 | CY151: 734.1745996 | CZ151: 863.7981545 | DA151: 991.6764436 | DB151: 1111.715087 | DC151: 1229.925079 | DD151: 1346.236943 | DE151: 1460.589582 | DF151: 1572.929722 | DG151: 1683.211381 | DH151: 1791.395379 | DI151: 1897.448863 | DJ151: 2001.344872 | DK151: 2103.061915 | DL151: 2202.583583 | DM151: 2299.89818 | DN151: 2345.183985 | DS151: 143 | DT151: 16168.27425 | DU151: 0.3418391517 | DV151: 31573.27464 | DW151: 0.9335119642 | DX151: 143 | DY151: -5913.099696 | DZ151: -3567.915711 | EA151: tx B | EB151: 2345.183985 | EG151: 56800 | EH151: 0.2975 | EI151: 0.7025 | EJ151: 11771.37189 | EK151: 16975.35914 | EL151: 0.7025
BA152: 144 | BB152: 17676.49949 | BC152: 0.8811680531 | BD152: 30010.33955 | BE152: 1.109774049 | BF152: -432.5 | BG152: -1114.085738 | BH152: -1675.077162 | BI152: -2153.615767 | BJ152: -2573.058744 | BK152: -2947.894985 | BL152: -3287.283482 | BM152: -3597.170454 | BN152: -3881.556729 | BO152: -4143.256971 | BP152: -4384.35498 | BQ152: -4606.477139 | BR152: -4801.219884 | BS152: -4980.246386 | BT152: -5144.515956 | BU152: -5294.89653 | BV152: -5432.186525 | BW152: -5557.128649 | BX152: -5670.418852 | BY152: -5772.712338 | BZ152: -5864.62779 | CA152: -5946.750487 | CB152: -6019.634735 | CC152: -6083.805853 | CD152: -6137.097308 | CE152: -6183.014642 | CF152: -6221.984375 | CG152: -6254.410975 | CH152: -6280.67797 | CI152: -6301.148998 | CJ152: -6316.168798 | CK152: -6326.064146 | CL152: -6331.144748 | CM152: -6331.704083 | CN152: -6328.020207 | CO152: -6320.356522 | CP152: -6309.505074 | CQ152: -6295.325911 | CR152: -6278.032047 | CS152: -6257.825112 | CT152: -6234.895931 | CU152: -6209.425057 | CV152: -6181.583295 | CW152: -6151.532187 | CX152: -6119.424478 | CY152: -6085.404567 | CZ152: -6049.608925 | DA152: -6012.166496 | DB152: -5975.054676 | DC152: -5936.600041 | DD152: -5896.906013 | DE152: -5856.070207 | DF152: -5814.18472 | DG152: -5771.336425 | DH152: -5727.607232 | DI152: -5683.074353 | DJ152: -5637.810538 | DK152: -5591.884313 | DL152: -5545.360199 | DM152: -5498.298918 | DN152: -5475.660195 | DS152: 144 | DT152: 17676.49949 | DU152: 0.8811680531 | DV152: 30010.33955 | DW152: 1.109774049 | DX152: 144 | DY152: 8758.542106 | DZ152: 3282.88191 | EA152: tx A | EB152: 0 | EG152: 57200 | EH152: 0.2936 | EI152: 0.7064 | EJ152: 11972.34939 | EK152: 17310.55246 | EL152: 0.7064
BA153: 145 | BB153: 17123.20017 | BC153: -0.2773573159 | BD153: 29687.41438 | BE153: 0.1496141442 | BF153: -432.5 | BG153: -1093.874938 | BH153: -1616.741267 | BI153: -2041.845857 | BJ153: -2394.97449 | BK153: -2692.706704 | BL153: -2945.938635 | BM153: -3162.041522 | BN153: -3346.185745 | BO153: -3502.154166 | BP153: -3632.842717 | BQ153: -3740.56932 | BR153: -3823.136869 | BS153: -3887.259799 | BT153: -3934.339266 | BU153: -3965.638254 | BV153: -3982.310804 | BW153: -3985.421302 | BX153: -3975.957604 | BY153: -3954.840304 | BZ153: -3922.929555 | CA153: -3881.030341 | CB153: -3829.896727 | CC153: -3770.235428 | CD153: -3705.924465 | CE153: -3634.714248 | CF153: -3557.159084 | CG153: -3473.778374 | CH153: -3385.058651 | CI153: -3291.455492 | CJ153: -3193.395316 | CK153: -3091.277065 | CL153: -2985.473802 | CM153: -2876.334207 | CN153: -2764.183995 | CO153: -2649.327258 | CP153: -2537.632466 | CQ153: -2423.882219 | CR153: -2308.311308 | CS153: -2191.138365 | CT153: -2072.566819 | CU153: -1952.78581 | CV153: -1831.97104 | CW153: -1710.285584 | CX153: -1587.880656 | CY153: -1464.896327 | CZ153: -1341.462212 | DA153: -1217.698105 | DB153: -1099.618569 | DC153: -981.4271708 | DD153: -863.2132918 | DE153: -745.0590888 | DF153: -627.0399494 | DG153: -509.2249241 | DH153: -391.677133 | DI153: -274.4541489 | DJ153: -157.6083587 | DK153: -41.18730378 | DL153: 74.76599978 | DM153: 190.2127591 | DN153: 244.9295979 | DS153: 145 | DT153: 17123.20017 | DU153: -0.2773573159 | DV153: 29687.41438 | DW153: 0.1496141442 | DX153: 145 | DY153: -25443.91965 | DZ153: -25198.99005 | EA153: tx B | EB153: 244.9295979 | EG153: 57600 | EH153: 0.2889 | EI153: 0.7111 | EJ153: 12173.3269 | EK153: 17645.74577 | EL153: 0.7111
BA154: 146 | BB154: 18186.35129 | BC154: 0.1267984865 | BD154: 32377.6652 | BE154: 0.7914443702 | BF154: -432.5 | BG154: -1019.919724 | BH154: -1425.152148 | BI154: -1707.286915 | BJ154: -1903.2245 | BK154: -2036.284629 | BL154: -2121.457743 | BM154: -2168.609589 | BN154: -2184.437669 | BO154: -2173.666542 | BP154: -2139.778911 | BQ154: -2085.463532 | BR154: -2016.34623 | BS154: -1931.574696 | BT154: -1832.650849 | BU154: -1720.907166 | BV154: -1597.546509 | BW154: -1463.667885 | BX154: -1320.283535 | BY154: -1168.330678 | BZ154: -1008.679914 | CA154: -842.1415301 | CB154: -669.4704681 | CC154: -491.3704052 | CD154: -317.2054955 | CE154: -139.0768962 | CF154: 42.47319758 | CG154: 226.9400872 | CH154: 413.8543266 | CI154: 602.7796299 | CJ154: 793.3109083 | CK154: 985.0724249 | CL154: 1177.716055 | CM154: 1370.919644 | CN154: 1564.38546 | CO154: 1757.838725 | CP154: 1941.826832 | CQ154: 2125.339994 | CR154: 2308.174489 | CS154: 2490.143608 | CT154: 2671.076601 | CU154: 2850.817687 | CV154: 3029.225118 | CW154: 3206.170288 | CX154: 3381.536905 | CY154: 3555.220194 | CZ154: 3727.126157 | DA154: 3897.170869 | DB154: 4057.274625 | DC154: 4215.472193 | DD154: 4371.708772 | DE154: 4525.936841 | DF154: 4678.11565 | DG154: 4828.210756 | DH154: 4976.193577 | DI154: 5122.040977 | DJ154: 5265.73487 | DK154: 5407.261853 | DL154: 5546.612856 | DM154: 5683.782817 | DN154: 5748.062606 | DS154: 146 | DT154: 18186.35129 | DU154: 0.1267984865 | DV154: 32377.6652 | DW154: 0.7914443702 | DX154: 146 | DY154: -14382.3967 | DZ154: -8634.334091 | EA154: tx B | EB154: 5748.062606 | EG154: 58000 | EH154: 0.2846 | EI154: 0.7154 | EJ154: 12374.3044 | EK154: 17980.93909 | EL154: 0.7154
BA155: 147 | BB155: 17424.03048 | BC155: 0.6821899919 | BD155: 30147.17015 | BE155: 0.8102623085 | BF155: -432.5 | BG155: -1136.593843 | BH155: -1733.239611 | BI155: -2255.592908 | BJ155: -2724.35174 | BK155: -3152.564772 | BL155: -3548.578306 | BM155: -3917.84253 | BN155: -4264.018699 | BO155: -4589.657978 | BP155: -4896.617827 | BQ155: -5186.317601 | BR155: -5446.868122 | BS155: -5692.973262 | BT155: -5925.4231 | BU155: -6144.924481 | BV155: -6352.123127 | BW155: -6547.617624 | BX155: -6731.968413 | BY155: -6905.70372 | BZ155: -7069.323581 | CA155: -7223.302684 | CB155: -7368.092486 | CC155: -7504.122845 | CD155: -7625.723339 | CE155: -7739.743494 | CF155: -7846.537949 | CG155: -7946.444951 | CH155: -8039.787148 | CI155: -8126.872333 | CJ155: -8207.994129 | CK155: -8283.432654 | CL155: -8353.455136 | CM155: -8418.316509 | CN155: -8478.259972 | CO155: -8533.517528 | CP155: -8581.891784 | CQ155: -8626.215118 | CR155: -8666.679332 | CS155: -8703.467381 | CT155: -8736.75378 | CU155: -8766.704991 | CV155: -8793.479787 | CW155: -8817.22961 | CX155: -8838.098898 | CY155: -8856.225414 | CZ155: -8871.740546 | DA155: -8884.7696 | DB155: -8894.924343 | DC155: -8902.933747 | DD155: -8908.90132 | DE155: -8912.925769 | DF155: -8915.101223 | DG155: -8915.517437 | DH155: -8914.26 | DI155: -8911.410521 | DJ155: -8907.046815 | DK155: -8901.243074 | DL155: -8894.070038 | DM155: -8885.595151 | DN155: -8880.970181 | DS155: 147 | DT155: 17424.03048 | DU155: 0.6821899919 | DV155: 30147.17015 | DW155: 0.8102623085 | DX155: 147 | DY155: 3041.669282 | DZ155: -5839.300898 | EA155: tx A | EB155: 0 | EG155: 58400 | EH155: 0.2806 | EI155: 0.7194 | EJ155: 12575.28191 | EK155: 18316.1324 | EL155: 0.7194
